Workbook

Sheet summary
A3: file name | B3: iv curve name | C3: Jsc1 | D3: Jsc2 | E3: Voc1 | F3: FF1 | G3: PCE up | H3: Jsc3 | I3: Voc2 | J3: FF2 | K3: PCE back | L3: Illumination Time
A4: PbSCdS TBAI pedot dark | B4: PbSCdS TBAI pedot dark | C4: 2.358722359e-05 | D4: -0.0001367076167 | E4: -0.005346709717 | F4: 0 | G4: 0 | H4: 0.0001323341523 | K4: -3.44029484e-07
A5: PbSCdS TBAI pedot | B5: PbSCdS TBAI pedot | C5: 5.534068796 | D5: 4.089192138 | E5: 0.4389148304 | F5: 0.3894814048 | G5: 0.006990439803 | H5: 5.279764128 | I5: 0.4671095773 | J5: 0.4233483462 | K5: 0.0104407371
A6: PbSCdS TBAC pedot dark | B6: PbSCdS TBAC pedot dark | C6: 1.857493857e-05 | D6: -0.0001028992629 | E6: -0.008890964674 | F6: 0 | G6: 0 | H6: 9.98034398e-05 | K6: -2.118427518e-07
A7: PbSCdS TBAC pedot | B7: PbSCdS TBAC pedot | C7: 4.243377396 | D7: 3.501160688 | E7: 0.4297512684 | F7: 0.3419784871 | G7: 0.005145504914 | H7: 4.076412776 | I7: 0.4396002966 | J7: 0.4008452689 | K7: 0.007183116216
A8: PbSCdS TBAB pedot dark | B8: PbSCdS TBAB pedot dark | C8: 3.474201474e-05 | D8: -0.0001519410319 | E8: -0.00367605098 | F8: 0 | G8: 0 | H8: 0.0001714004914 | K8: -5.237100737e-07
A9: PbSCdS TBAB pedot | B9: PbSCdS TBAB pedot | C9: 16.44331204 | D9: 12.88413759 | E9: 0.4725351587 | F9: 0.3940135563 | G9: 0.02398836486 | H9: 16.14921867 | I9: 0.4835855703 | J9: 0.4253693592 | K9: 0.03321934398
A10: PbS TBAI pedot dark | B10: PbS TBAI pedot dark | C10: 4.855036855e-05 | D10: -7.076167076e-06 | E10: -0.001247833622 | F10: 0 | G10: 0 | H10: 5.562653563e-05 | K10: -9.697788698e-08
A11: PbS TBAI pedot B | B11: PbS TBAI pedot B | C11: 18.49086978 | D11: 13.74039803 | E11: 0.5250575495 | F11: 0.3367832759 | G11: 0.0242972285 | H11: 17.52295823 | I11: 0.5379592337 | J11: 0.3918375656 | K11: 0.03693710565
A12: PbS TBAI pedot | B12: PbS TBAI pedot | C12: 17.57655037 | D12: 12.99131695 | E12: 0.5221433599 | F12: 0.3894136687 | G12: 0.02641521376 | H12: 16.98430467 | I12: 0.5255361168 | J12: 0.3768706022 | K12: 0.03363896314
A13: PbS TBAC pedotB | B13: PbS TBAC pedotB | C13: 9.465110565 | D13: 5.904938575 | E13: 0.4583433879 | F13: 0.3808559379 | G13: 0.01030782617 | H13: 7.704058968 | I13: 0.4569612025 | J13: 0.4542937007 | K13: 0.01599321007
A14: PbS TBAC pedot dark | B14: PbS TBAC pedot dark | C14: 1.828009828e-05 | D14: -6.26044226e-05 | E14: -0.01053240741 | F14: 0 | G14: 0 | H14: 6.27027027e-05 | K14: -1.85995086e-07
A15: PbS TBAC pedot | B15: PbS TBAC pedot | C15: 8.647783784 | D15: 5.437823096 | E15: 0.4546327194 | F15: 0.398275438 | G15: 0.009846214373 | H15: 7.296643735 | I15: 0.4587672271 | J15: 0.4792975838 | K15: 0.01604429975
A16: PbS TBAB pedot dark | B16: PbS TBAB pedot dark | C16: 8.791154791e-05 | D16: -4.314496314e-05 | E16: -0.00521873514 | F16: 0 | G16: 0 | H16: 0.0001167076167 | K16: -1.728746929e-07
A17: PbS TBAB pedot B | B17: PbS TBAB pedot B | C17: 19.91030467 | D17: 14.96535627 | E17: 0.4903348496 | F17: 0.3847260727 | G17: 0.02823133661 | H17: 19.2528059 | I17: 0.5011551378 | J17: 0.4203953746 | K17: 0.04056244717
A18: PbS TBAB pedot | B18: PbS TBAB pedot | C18: 20.55475184 | D18: 15.73206388 | E18: 0.502422322 | F18: 0.3459442297 | G18: 0.02734391646 | H18: 19.90628993 | I18: 0.5126880243 | J18: 0.4160879417 | K18: 0.04246475553
G28: What is the difference between PCE up and PCE back?
B30: PbS TBAC pedotB | C30: 9.465110565 | D30: 5.904938575 | E30: 0.4583433879 | F30: 0.3808559379 | G30: 0.01030782617 | H30: 7.704058968 | I30: 0.4569612025 | J30: 0.4542937007 | K30: 0.01599321007
B31: PbS TBAB pedot | C31: 20.55475184 | D31: 15.73206388 | E31: 0.502422322 | F31: 0.3459442297 | G31: 0.02734391646 | H31: 19.90628993 | I31: 0.5126880243 | J31: 0.4160879417 | K31: 0.04246475553
B32: PbS TBAI pedot B | C32: 18.49086978 | D32: 13.74039803 | E32: 0.5250575495 | F32: 0.3367832759 | G32: 0.0242972285 | H32: 17.52295823 | I32: 0.5379592337 | J32: 0.3918375656 | K32: 0.03693710565
B33: PbSCdS TBAC pedot | C33: 4.243377396 | D33: 3.501160688 | E33: 0.4297512684 | F33: 0.3419784871 | G33: 0.005145504914 | H33: 4.076412776 | I33: 0.4396002966 | J33: 0.4008452689 | K33: 0.007183116216
B34: PbSCdS TBAB pedot | C34: 16.44331204 | D34: 12.88413759 | E34: 0.4725351587 | F34: 0.3940135563 | G34: 0.02398836486 | H34: 16.14921867 | I34: 0.4835855703 | J34: 0.4253693592 | K34: 0.03321934398
B35: PbSCdS TBAI pedot | C35: 5.534068796 | D35: 4.089192138 | E35: 0.43891483 | F35: 0.389481405 | G35: 0.00699 | H35: 5.279764128 | I35: 0.467109577 | J35: 0.423348346 | K35: 0.010441
L36: difference
B37: pbc TBAC pedot | C37: 5.105908521 | D37: 4.519669747 | E37: 0.4691644238 | F37: 0.3561381341 | G37: 0.007551796069 | H37: 5.541371523 | I37: 0.4686751523 | J37: 0.3941823599 | K37: 0.01023732245 | L37: =K37-K30 -> -0.00575588762
B38: pbc TBAB pedot | C38: 20.52271237 | D38: 16.88639736 | E38: 0.5009204324 | F38: 0.5026215358 | G38: 0.04251545627 | H38: 20.60088336 | I38: 0.5017931574 | J38: 0.4838644747 | K38: 0.0500189206 | L38: =K38-K31 -> 0.007554165071
B39: pbc TBAI pedot | C39: 20.21529778 | D39: 17.50145195 | E39: 0.5341577734 | F39: 0.3873136782 | G39: 0.03620816098 | H39: 19.17451831 | I39: 0.5338366945 | J39: 0.3976671993 | K39: 0.04070545896 | L39: 0.003768353312
B40: pbsCdS TBAC pedot | C40: 3.936142041 | D40: 2.687184408 | E40: 0.4680106825 | F40: 0.3688193284 | G40: 0.004638386241 | H40: 3.071313118 | I40: 0.4715846542 | J40: 0.401361244 | K40: 0.00581325258 | L40: -0.001369863636
B41: pbsCdS TBAB pedot | C41: 17.02919054 | D41: 15.06752425 | E41: 0.5018816271 | F41: 0.4361271286 | G41: 0.03298042885 | H41: 17.67381322 | I41: 0.5021559094 | J41: 0.43240913 | K41: 0.03837635244 | L41: 0.005157008457
B42: pbsCdS TBAI pedot | C42: 6.510130358 | D42: 5.145018904 | E42: 0.49615034 | F42: 0.383568857 | G42: 0.009791 | H42: 6.143331232 | I42: 0.498813996 | J42: 0.428941686 | K42: 0.013144 | L42: 0.002703

Sheet Files to process
A2: Data Folder: | B2: C:\Documents and Settings\aarw\My Documents\LabVIEW Data\Darren\PbS\26Aug14 PbScds zno bottom\TBA
B4: PbS TBAB pedot | M4: phrase in filename:
B5: PbS TBAB pedot .log
B6: PbS TBAB pedot B
B7: PbS TBAB pedot B.log
B8: PbS TBAB pedot dark
B9: PbS TBAB pedot dark.log
B10: PbS TBAC pedot
B11: PbS TBAC pedot dark
B12: PbS TBAC pedot dark.log
B13: PbS TBAC pedot.log
B14: PbS TBAC pedotB
B15: PbS TBAC pedotB.log
B16: PbS TBAI pedot
B17: PbS TBAI pedot .log
B18: PbS TBAI pedot B
B19: PbS TBAI pedot B.log
B20: PbS TBAI pedot dark
B21: PbS TBAI pedot dark.log
B22: PbSCdS TBAB pedot
B23: PbSCdS TBAB pedot .log
B24: PbSCdS TBAB pedot dark
B25: PbSCdS TBAB pedot dark.log
B26: PbSCdS TBAC pedot
B27: PbSCdS TBAC pedot .log
B28: PbSCdS TBAC pedot dark
B29: PbSCdS TBAC pedot dark.log
B30: PbSCdS TBAC pedot.log
B31: PbSCdS TBAI pedot
B32: PbSCdS TBAI pedot .log
B33: PbSCdS TBAI pedot dark
B34: PbSCdS TBAI pedot dark.log
B35: DARREN LIGHT.log
B36: NWS CONTACT
B37: NWS CONTACT.log
B38: pbscds14 tbai 6L retest
B39: pbscds14 tbai 6L retest.log
B40: ZnOmeso pbs tbai edt retest
B41: ZnOmeso pbs tbai edt retest.log
B42: ZnOmeso pbs tbai edt retest2
B43: ZnOmeso pbs tbai edt retest2.log

Sheet calculate efficiencies
C2: iv curve name: | D2: device, pixel etc
C3: file name: | D3: EXAMPLE
C4: Illumination Time: | D4: 01:00:00 | E4: (hh:mm)
C5: Illumination Intensity: | D5: 100 | E5: (mW/cm2)
C6: Filter: | D6: 420 | E6: (nm)
C7: Pixel Area: | D7: 0.02035 | E7: (cm2)
A9: V (V) | B9: J (A) | E9: (mA/cm2) | F9: (A) | J9: power | K9: J (mA/cm2)
A10: 0.0025 | B10: -9.37e-05 | D10: Jsc1 = | E10: =-F10*1000/$D$7 -> 4.672876404 | F10: =((INDEX(firsttwo,1,2)+INDEX(firsttwo,2,2))-((INDEX(firsttwo,1,2)-INDEX(firsttwo,2,2))/(INDEX(firsttwo,1,1)-INDEX(firsttwo,2,1))*(INDEX(firsttwo,1,1)+INDEX(firsttwo,2,1))))/2 -> -9.509303483e-05 | G10: ((INDEX(firsttwo,1,2)+INDEX(firsttwo,2,2))-((INDEX(firsttwo,1,2)-INDEX(firsttwo,2,2))/(INDEX(firsttwo,1,1)- | H10: INDEX(firsttwo,2,1))*(INDEX(firsttwo,1,1)+INDEX(firsttwo,2,1))))/2 | J10: =-(B10*A10) -> 2.3425e-07 | K10: =B10*1000/$D$7 -> -4.604422604 | L10: Jsc | M10: =MAX(E14:E15)/20 -> 0.01034693878 | N10: =-E10 -> -4.672876404 | O10: =-E11 -> -4.143239576 | P10: =-E12 -> -4.935655728
A11: -0.00755 | B11: -9.93e-05 | D11: Jsc2 = | E11: =-F11*1000/$D$7 -> 4.143239576 | F11: =((INDEX(CtoD,MATCH(0,CtoDa,1),2)+INDEX(CtoD,MATCH(0,CtoDa,1)+1,2))-((INDEX(CtoD,MATCH(0,CtoDa,1),2)-INDEX(CtoD,MATCH(0,CtoDa,1)+1,2))/(INDEX(CtoD,MATCH(0,CtoDa,1),1)-INDEX(CtoD,MATCH(0,CtoDa,1)+1,1))*(INDEX(CtoD,MATCH(0,CtoDa,1),1)+INDEX(CtoD,MATCH(0,CtoDa,1)+1,1))))/2 -> -8.431492537e-05 | G11: ((INDEX(CtoD,MATCH(0,CtoDa,1),2)+INDEX(CtoD,MATCH(0,CtoDa,1)+1,2))-((INDEX(CtoD,MATCH(0,CtoDa,1),2)-INDEX(CtoD,MATCH(0,CtoDa,1)+1,2))/ | H11: (INDEX(CtoD,MATCH(0,CtoDa,1),1)-INDEX(CtoD,MATCH(0,CtoDa,1)+1,1))*(INDEX(CtoD,MATCH(0,CtoDa,1),1)+INDEX(CtoD,MATCH(0,CtoDa,1)+1,1))))/2 | J11: =-(B11*A11) -> -7.49715e-07 | K11: =B11*1000/$D$7 -> -4.87960688 | M11: =-MAX(E15:E16)/20 -> -0.01034693878 | N11: =-E10 -> -4.672876404 | O11: =-E11 -> -4.143239576 | P11: =-E12 -> -4.935655728
A12: -0.0176 | B12: -0.000104 | D12: Jsc3 = | E12: =-F12*1000/$D$7 -> 4.935655728 | F12: =((INDEX(lasttwo,1,2)+INDEX(lasttwo,2,2))-((INDEX(lasttwo,1,2)-INDEX(lasttwo,2,2))/(INDEX(lasttwo,1,1)-INDEX(lasttwo,2,1))*(INDEX(lasttwo,1,1)+INDEX(lasttwo,2,1))))/2 -> -0.0001004405941 | G12: ((INDEX(lasttwo,1,2)+INDEX(lasttwo,2,2))-((INDEX(lasttwo,1,2)-INDEX(lasttwo,2,2))/(INDEX(lasttwo,1,1)- | H12: INDEX(lasttwo,2,1))*(INDEX(lasttwo,1,1)+INDEX(lasttwo,2,1))))/2 | J12: -1.8304e-06 | K12: -5.110565111
A13: -0.0277 | B13: -0.00011 | E13: (V) | J13: -3.047e-06 | K13: -5.405405405 | L13: Voc | M13: =E14 -> 0.08369163778 | N13: =-MAX(E10:E12)/15 -> -0.3290437152
A14: -0.0377 | B14: -0.000115 | D14: Voc1 = | E14: =F14 -> 0.08369163778 | F14: =((INDEX(CtoD,MATCH(0,CtoDb,1),1)+INDEX(CtoD,MATCH(0,CtoDb,1)+1,1))-((INDEX(CtoD,MATCH(0,CtoDb,1),1)-INDEX(CtoD,MATCH(0,CtoDb,1)+1,1))/(INDEX(CtoD,MATCH(0,CtoDb,1),2)-INDEX(CtoD,MATCH(0,CtoDb,1)+1,2))*(INDEX(CtoD,MATCH(0,CtoDb,1),2)+INDEX(CtoD,MATCH(0,CtoDb,1)+1,2))))/2 -> 0.08369163778 | G14: ((INDEX(CtoD,MATCH(0,CtoDb,1),1)+INDEX(CtoD,MATCH(0,CtoDb,1)+1,1))-((INDEX(CtoD,MATCH(0,CtoDb,1),1)-INDEX(CtoD,MATCH(0,CtoDb,1)+1,1))/ | H14: (INDEX(CtoD,MATCH(0,CtoDb,1),2)-INDEX(CtoD,MATCH(0,CtoDb,1)+1,2))*(INDEX(CtoD,MATCH(0,CtoDb,1),2)+INDEX(CtoD,MATCH(0,CtoDb,1)+1,2))))/2 | J14: -4.3355e-06 | K14: -5.651105651 | M14: =E14 -> 0.08369163778 | N14: =MAX(E10:E12)/15 -> 0.3290437152
A15: -0.0478 | B15: -0.000119 | D15: Voc2 = | E15: =F15 -> 0.2069387755 | F15: =((INDEX(DtoB,MATCH(0,DtoBb,-1),1)+INDEX(DtoB,MATCH(0,DtoBb,-1)+1,1))-((INDEX(DtoB,MATCH(0,DtoBb,-1),1)-INDEX(DtoB,MATCH(0,DtoBb,-1)+1,1))/(INDEX(DtoB,MATCH(0,DtoBb,-1),2)-INDEX(DtoB,MATCH(0,DtoBb,-1)+1,2))*(INDEX(DtoB,MATCH(0,DtoBb,-1),2)+INDEX(DtoB,MATCH(0,DtoBb,-1)+1,2))))/2 -> 0.2069387755 | G15: ((INDEX(DtoB,MATCH(0,DtoBb,-1),1)+INDEX(DtoB,MATCH(0,DtoBb,-1)+1,1))-((INDEX(DtoB,MATCH(0,DtoBb,-1),1)-INDEX(DtoB,MATCH(0,DtoBb,-1)+1,1))/(INDEX(DtoB,MATCH(0,DtoBb,-1),2)- | H15: INDEX(DtoB,MATCH(0,DtoBb,-1)+1,2))*(INDEX(DtoB,MATCH(0,DtoBb,-1),2)+INDEX(DtoB,MATCH(0,DtoBb,-1)+1,2))))/2 | J15: -5.6882e-06 | K15: -5.847665848 | M15: =E15 -> 0.2069387755 | N15: =-MAX(E10:E12)/15 -> -0.3290437152
A16: -0.0578 | B16: -0.000124 | J16: -7.1672e-06 | K16: -6.093366093 | M16: =E15 -> 0.2069387755 | N16: =MAX(E10:E12)/15 -> 0.3290437152
A17: -0.0679 | B17: -0.000129 | D17: FF1 = | E17: =F17 -> 0.2765397389 | F17: =-MAX(CtoDj)/F11/E14 -> 0.2765397389 | G17: (-1)*MAX(CtoDj)/F11/E14 | J17: -8.7591e-06 | K17: -6.339066339
A18: -0.0779 | B18: -0.000134 | D18: FF2 = | E18: =F18 -> 0.2903143832 | F18: =-MAX(DtoBj)/F12/E15 -> 0.2903143832 | G18: (-1)*MAX(DtoBj)/F12/E15 | J18: -1.04386e-05 | K18: -6.584766585 | L18: FF | M18: 0 | N18: =INDEX(CtoDk,MATCH(MAX(CtoDj),CtoDj,0),1) -> -2.245700246 | P18: INDEX(CtoDk,MATCH(MAX(CtoDj),CtoDj,0),1)
A19: -0.088 | B19: -0.000139 | J19: -1.2232e-05 | K19: -6.83046683 | M19: =INDEX(CtoDa,MATCH(MAX(CtoDj),CtoDj,0),1) -> 0.0427 | N19: =INDEX(CtoDk,MATCH(MAX(CtoDj),CtoDj,0),1) -> -2.245700246 | O19: INDEX(CtoDa,MATCH(MAX(CtoDj),CtoDj,0),1) | P19: INDEX(CtoDk,MATCH(MAX(CtoDj),CtoDj,0),1)
A20: -0.098 | B20: -0.000144 | D20: PCE up = | E20: =F20 -> 0.0009589140049 | F20: =MAX(CtoDj)/D5/D7*1000 -> 0.0009589140049 | G20: MAX(CtoDj)/D5/D7*1000 | J20: -1.4112e-05 | K20: -7.076167076 | M20: =INDEX(CtoDa,MATCH(MAX(CtoDj),CtoDj,0),1) -> 0.0427 | N20: 0 | O20: INDEX(CtoDa,MATCH(MAX(CtoDj),CtoDj,0),1)
A21: -0.108 | B21: -0.000149 | D21: PCE back = | E21: =F21 -> 0.002965208845 | F21: =MAX(DtoBj)/D5/D7*1000 -> 0.002965208845 | G21: MAX(DtoBj)/D5/D7*1000 | J21: -1.6092e-05 | K21: -7.321867322
A22: -0.118 | B22: -0.000154 | J22: -1.8172e-05 | K22: -7.567567568 | M22: 0 | N22: =INDEX(DtoBk,MATCH(MAX(DtoBj),DtoBj,0),1) -> -2.624078624 | P22: INDEX(DtoBk,MATCH(MAX(DtoBj),DtoBj,0),1)
A23: -0.128 | B23: -0.000159 | D23: discrepancy: | E23: =E11*E14*E17/D5-E20 -> 0 | J23: -2.0352e-05 | K23: -7.813267813 | M23: =INDEX(DtoBa,MATCH(MAX(DtoBj),DtoBj,0),1) -> 0.113 | N23: =INDEX(DtoBk,MATCH(MAX(DtoBj),DtoBj,0),1) -> -2.624078624 | O23: INDEX(DtoBa,MATCH(MAX(DtoBj),DtoBj,0),1) | P23: INDEX(DtoBk,MATCH(MAX(DtoBj),DtoBj,0),1)
A24: -0.138 | B24: -0.000164 | E24: =E12*E15*E18/D5-E21 -> 0 | J24: -2.2632e-05 | K24: -8.058968059 | M24: =INDEX(DtoBa,MATCH(MAX(DtoBj),DtoBj,0),1) -> 0.113 | N24: 0 | O24: INDEX(DtoBa,MATCH(MAX(DtoBj),DtoBj,0),1)
A25: -0.148 | B25: -0.000169 | J25: -2.5012e-05 | K25: -8.304668305
A26: -0.158 | B26: -0.000175 | D26: V is from: | E26: =MIN(A10:A410) -> -0.5 | F26: to | G26: =MAX(A10:A410) -> 1.5 | J26: -2.765e-05 | K26: -8.5995086
A27: -0.168 | B27: -0.000181 | D27: row: | E27: =MATCH(-0.5,A1:A410,0) -> 60 | F27: - | G27: =MATCH(1.5,A1:A410,0) -> 260 | J27: -3.0408e-05 | K27: -8.894348894
A28: -0.178 | B28: -0.000187 | J28: -3.3286e-05 | K28: -9.189189189
A29: -0.188 | B29: -0.000193 | J29: -3.6284e-05 | K29: -9.484029484
A30: -0.199 | B30: -0.000199 | J30: -3.9601e-05 | K30: -9.778869779
A31: -0.209 | B31: -0.000206 | J31: -4.3054e-05 | K31: -10.12285012
A32: -0.219 | B32: -0.000213 | J32: -4.6647e-05 | K32: -10.46683047
A33: -0.229 | B33: -0.000221 | J33: -5.0609e-05 | K33: -10.85995086
A34: -0.239 | B34: -0.000228 | J34: -5.4492e-05 | K34: -11.2039312
A35: -0.249 | B35: -0.000236 | J35: -5.8764e-05 | K35: -11.5970516
A36: -0.259 | B36: -0.000244 | J36: -6.3196e-05 | K36: -11.99017199
A37: -0.269 | B37: -0.000253 | J37: -6.8057e-05 | K37: -12.43243243
A38: -0.279 | B38: -0.000262 | J38: -7.3098e-05 | K38: -12.87469287
A39: -0.289 | B39: -0.000271 | J39: -7.8319e-05 | K39: -13.31695332
A40: -0.299 | B40: -0.000281 | J40: -8.4019e-05 | K40: -13.80835381
A41: -0.309 | B41: -0.000291 | J41: -8.9919e-05 | K41: -14.2997543
A42: -0.319 | B42: -0.000301 | J42: -9.6019e-05 | K42: -14.79115479
A43: -0.329 | B43: -0.000312 | J43: -0.000102648 | K43: -15.33169533
A44: -0.339 | B44: -0.000323 | J44: -0.000109497 | K44: -15.87223587
A45: -0.349 | B45: -0.000334 | J45: -0.000116566 | K45: -16.41277641
A46: -0.359 | B46: -0.000347 | J46: -0.000124573 | K46: -17.05159705
A47: -0.369 | B47: -0.000359 | J47: -0.000132471 | K47: -17.64127764
A48: -0.379 | B48: -0.000372 | J48: -0.000140988 | K48: -18.28009828
A49: -0.389 | B49: -0.000385 | J49: -0.000149765 | K49: -18.91891892
A50: -0.4 | B50: -0.000398 | J50: -0.0001592 | K50: -19.55773956
A51: -0.41 | B51: -0.000412 | J51: -0.00016892 | K51: -20.24570025
A52: -0.42 | B52: -0.000426 | J52: -0.00017892 | K52: -20.93366093
A53: -0.43 | B53: -0.000441 | J53: -0.00018963 | K53: -21.67076167
A54: -0.44 | B54: -0.000456 | J54: -0.00020064 | K54: -22.40786241
A55: -0.45 | B55: -0.000473 | J55: -0.00021285 | K55: -23.24324324
A56: -0.46 | B56: -0.000489 | J56: -0.00022494 | K56: -24.02948403
A57: -0.47 | B57: -0.000506 | J57: -0.00023782 | K57: -24.86486486
A58: -0.48 | B58: -0.000522 | J58: -0.00025056 | K58: -25.65110565
A59: -0.49 | B59: -0.00054 | J59: -0.0002646 | K59: -26.53562654
A60: -0.5 | B60: -0.000557 | J60: -0.0002785 | K60: -27.37100737
A61: -0.5 | B61: -0.000559 | J61: -0.0002795 | K61: -27.46928747
A62: -0.49 | B62: -0.000547 | J62: -0.00026803 | K62: -26.87960688
A63: -0.48 | B63: -0.000534 | J63: -0.00025632 | K63: -26.24078624
A64: -0.47 | B64: -0.000521 | J64: -0.00024487 | K64: -25.6019656
A65: -0.46 | B65: -0.000508 | J65: -0.00023368 | K65: -24.96314496
A66: -0.45 | B66: -0.000495 | J66: -0.00022275 | K66: -24.32432432
A67: -0.44 | B67: -0.000483 | J67: -0.00021252 | K67: -23.73464373
A68: -0.43 | B68: -0.00047 | J68: -0.0002021 | K68: -23.0958231
A69: -0.42 | B69: -0.000458 | J69: -0.00019236 | K69: -22.50614251
A70: -0.41 | B70: -0.000445 | J70: -0.00018245 | K70: -21.86732187
A71: -0.4 | B71: -0.000433 | J71: -0.0001732 | K71: -21.27764128
A72: -0.389 | B72: -0.000421 | J72: -0.000163769 | K72: -20.68796069
A73: -0.379 | B73: -0.000409 | J73: -0.000155011 | K73: -20.0982801
A74: -0.369 | B74: -0.000397 | J74: -0.000146493 | K74: -19.50859951
A75: -0.359 | B75: -0.000385 | J75: =-(B75*A75) -> -0.000138215 | K75: =B75*1000/$D$7 -> -18.91891892
A76: -0.349 | B76: -0.000374 | J76: -0.000130526 | K76: -18.37837838
A77: -0.339 | B77: -0.000363 | J77: -0.000123057 | K77: -17.83783784
A78: -0.329 | B78: -0.000352 | J78: -0.000115808 | K78: -17.2972973
A79: -0.319 | B79: -0.000341 | J79: -0.000108779 | K79: -16.75675676
A80: -0.309 | B80: -0.00033 | J80: -0.00010197 | K80: -16.21621622
A81: -0.299 | B81: -0.00032 | J81: -9.568e-05 | K81: -15.72481572
A82: -0.289 | B82: -0.00031 | J82: -8.959e-05 | K82: -15.23341523
A83: -0.279 | B83: -0.0003 | J83: -8.37e-05 | K83: -14.74201474
A84: -0.269 | B84: -0.00029 | J84: -7.801e-05 | K84: -14.25061425
A85: -0.259 | B85: -0.00028 | J85: -7.252e-05 | K85: -13.75921376
A86: -0.249 | B86: -0.000271 | J86: -6.7479e-05 | K86: -13.31695332
A87: -0.239 | B87: -0.000262 | J87: -6.2618e-05 | K87: -12.87469287
A88: -0.229 | B88: -0.000253 | J88: -5.7937e-05 | K88: -12.43243243
A89: -0.219 | B89: -0.000244 | J89: -5.3436e-05 | K89: -11.99017199
A90: -0.209 | B90: -0.000236 | J90: -4.9324e-05 | K90: -11.5970516
A91: -0.199 | B91: -0.000228 | J91: -4.5372e-05 | K91: -11.2039312
A92: -0.188 | B92: -0.00022 | J92: -4.136e-05 | K92: -10.81081081
A93: -0.178 | B93: -0.000212 | J93: -3.7736e-05 | K93: -10.41769042
A94: -0.168 | B94: -0.000204 | J94: -3.4272e-05 | K94: -10.02457002
A95: -0.158 | B95: -0.000197 | J95: -3.1126e-05 | K95: -9.680589681
A96: -0.148 | B96: -0.000189 | J96: -2.7972e-05 | K96: -9.287469287
A97: -0.138 | B97: -0.000182 | J97: -2.5116e-05 | K97: -8.943488943
A98: -0.128 | B98: -0.000175 | J98: -2.24e-05 | K98: -8.5995086
A99: -0.118 | B99: -0.000168 | J99: -1.9824e-05 | K99: -8.255528256
A100: -0.108 | B100: -0.000161 | J100: -1.7388e-05 | K100: -7.911547912
A101: -0.098 | B101: -0.000154 | J101: -1.5092e-05 | K101: -7.567567568
A102: -0.088 | B102: -0.000147 | J102: -1.2936e-05 | K102: -7.223587224
A103: -0.0779 | B103: -0.000141 | J103: -1.09839e-05 | K103: -6.928746929
A104: -0.0679 | B104: -0.000134 | J104: -9.0986e-06 | K104: -6.584766585
A105: -0.0578 | B105: -0.000127 | J105: -7.3406e-06 | K105: -6.240786241
A106: -0.0478 | B106: -0.00012 | J106: -5.736e-06 | K106: -5.896805897
A107: -0.0377 | B107: -0.000113 | J107: -4.2601e-06 | K107: -5.552825553
A108: -0.0277 | B108: -0.000105 | J108: -2.9085e-06 | K108: -5.15970516
A109: -0.0176 | B109: -9.81e-05 | J109: -1.72656e-06 | K109: -4.820638821
A110: -0.00755 | B110: -9.04e-05 | J110: -6.8252e-07 | K110: -4.442260442
A111: 0.0025 | B111: -8.23e-05 | J111: 2.0575e-07 | K111: -4.044226044
A112: 0.0126 | B112: -7.38e-05 | J112: 9.2988e-07 | K112: -3.626535627
A113: 0.0226 | B113: -6.49e-05 | J113: 1.46674e-06 | K113: -3.189189189
A114: 0.0327 | B114: -5.56e-05 | J114: 1.81812e-06 | K114: -2.732186732
A115: 0.0427 | B115: -4.57e-05 | J115: 1.95139e-06 | K115: -2.245700246
A116: 0.0528 | B116: -3.53e-05 | J116: 1.86384e-06 | K116: -1.734643735
A117: 0.0628 | B117: -2.43e-05 | J117: 1.52604e-06 | K117: -1.194103194
A118: 0.0729 | B118: -1.26e-05 | J118: 9.1854e-07 | K118: -0.6191646192
A119: 0.0829 | B119: -9.27e-07 | J119: 7.68483e-08 | K119: -0.04555282555
A120: 0.093 | B120: 1.09e-05 | J120: -1.0137e-06 | K120: 0.5356265356
A121: 0.103 | B121: 2.45e-05 | J121: -2.5235e-06 | K121: 1.203931204
A122: 0.113 | B122: 3.89e-05 | J122: -4.3957e-06 | K122: 1.911547912
A123: 0.123 | B123: 5.38e-05 | J123: -6.6174e-06 | K123: 2.643734644
A124: 0.133 | B124: 6.96e-05 | J124: -9.2568e-06 | K124: 3.42014742
A125: 0.143 | B125: 8.58e-05 | J125: -1.22694e-05 | K125: 4.216216216
A126: 0.153 | B126: 0.000103 | J126: -1.5759e-05 | K126: 5.061425061
A127: 0.163 | B127: 0.000118 | J127: -1.9234e-05 | K127: 5.798525799
A128: 0.173 | B128: 0.000137 | J128: -2.3701e-05 | K128: 6.732186732
A129: 0.183 | B129: 0.000156 | J129: -2.8548e-05 | K129: 7.665847666
A130: 0.193 | B130: 0.000175 | J130: -3.3775e-05 | K130: 8.5995086
A131: 0.204 | B131: 0.000195 | J131: -3.978e-05 | K131: 9.582309582
A132: 0.214 | B132: 0.000216 | J132: -4.6224e-05 | K132: 10.61425061
A133: 0.224 | B133: 0.000237 | J133: -5.3088e-05 | K133: 11.64619165
A134: 0.234 | B134: 0.000259 | J134: -6.0606e-05 | K134: 12.72727273
A135: 0.244 | B135: 0.000281 | J135: -6.8564e-05 | K135: 13.80835381
A136: 0.254 | B136: 0.000303 | J136: -7.6962e-05 | K136: 14.88943489
A137: 0.264 | B137: 0.000326 | J137: -8.6064e-05 | K137: 16.01965602
A138: 0.274 | B138: 0.00035 | J138: -9.59e-05 | K138: 17.1990172
A139: 0.284 | B139: 0.000374 | J139: =-(B139*A139) -> -0.000106216 | K139: =B139*1000/$D$7 -> 18.37837838
A140: 0.294 | B140: 0.000398 | J140: -0.000117012 | K140: 19.55773956
A141: 0.304 | B141: 0.000422 | J141: -0.000128288 | K141: 20.73710074
A142: 0.314 | B142: 0.000447 | J142: -0.000140358 | K142: 21.96560197
A143: 0.324 | B143: 0.000473 | J143: -0.000153252 | K143: 23.24324324
A144: 0.334 | B144: 0.000498 | J144: -0.000166332 | K144: 24.47174447
A145: 0.344 | B145: 0.000524 | J145: -0.000180256 | K145: 25.74938575
A146: 0.354 | B146: 0.00055 | J146: -0.0001947 | K146: 27.02702703
A147: 0.364 | B147: 0.000576 | J147: -0.000209664 | K147: 28.3046683
A148: 0.374 | B148: 0.000603 | J148: -0.000225522 | K148: 29.63144963
A149: 0.384 | B149: 0.00063 | J149: -0.00024192 | K149: 30.95823096
A150: 0.394 | B150: 0.000657 | J150: -0.000258858 | K150: 32.28501229
A151: 0.405 | B151: 0.000684 | J151: -0.00027702 | K151: 33.61179361
A152: 0.415 | B152: 0.000712 | J152: -0.00029548 | K152: 34.98771499
A153: 0.425 | B153: 0.000739 | J153: -0.000314075 | K153: 36.31449631
A154: 0.435 | B154: 0.000767 | J154: -0.000333645 | K154: 37.69041769
A155: 0.445 | B155: 0.000795 | J155: -0.000353775 | K155: 39.06633907
A156: 0.455 | B156: 0.000823 | J156: -0.000374465 | K156: 40.44226044
A157: 0.465 | B157: 0.000852 | J157: -0.00039618 | K157: 41.86732187
A158: 0.475 | B158: 0.00088 | J158: -0.000418 | K158: 43.24324324
A159: 0.485 | B159: 0.000909 | J159: -0.000440865 | K159: 44.66830467
A160: 0.495 | B160: 0.000937 | J160: -0.000463815 | K160: 46.04422604
A161: 0.505 | B161: 0.000967 | J161: -0.000488335 | K161: 47.51842752
A162: 0.515 | B162: 0.000996 | J162: -0.00051294 | K162: 48.94348894
A163: 0.525 | B163: 0.00102 | J163: -0.0005355 | K163: 50.12285012
A164: 0.535 | B164: 0.00105 | J164: -0.00056175 | K164: 51.5970516
A165: 0.545 | B165: 0.00108 | J165: -0.0005886 | K165: 53.07125307
A166: 0.555 | B166: 0.00111 | J166: -0.00061605 | K166: 54.54545455
A167: 0.565 | B167: 0.00114 | J167: -0.0006441 | K167: 56.01965602
A168: 0.575 | B168: 0.00117 | J168: -0.00067275 | K168: 57.49385749
A169: 0.585 | B169: 0.0012 | J169: -0.000702 | K169: 58.96805897
A170: 0.596 | B170: 0.00123 | J170: -0.00073308 | K170: 60.44226044
A171: 0.606 | B171: 0.00126 | J171: -0.00076356 | K171: 61.91646192
A172: 0.616 | B172: 0.00129 | J172: -0.00079464 | K172: 63.39066339
A173: 0.626 | B173: 0.00132 | J173: -0.00082632 | K173: 64.86486486
A174: 0.636 | B174: 0.00135 | J174: -0.0008586 | K174: 66.33906634
A175: 0.646 | B175: 0.00138 | J175: -0.00089148 | K175: 67.81326781
A176: 0.656 | B176: 0.00141 | J176: -0.00092496 | K176: 69.28746929
A177: 0.666 | B177: 0.00144 | J177: -0.00095904 | K177: 70.76167076
A178: 0.676 | B178: 0.00147 | J178: -0.00099372 | K178: 72.23587224
A179: 0.686 | B179: 0.0015 | J179: -0.001029 | K179: 73.71007371
A180: 0.696 | B180: 0.00153 | J180: -0.00106488 | K180: 75.18427518
A181: 0.706 | B181: 0.00157 | J181: -0.00110842 | K181: 77.14987715
A182: 0.716 | B182: 0.0016 | J182: -0.0011456 | K182: 78.62407862
A183: 0.726 | B183: 0.00163 | J183: -0.00118338 | K183: 80.0982801
A184: 0.736 | B184: 0.00166 | J184: -0.00122176 | K184: 81.57248157
A185: 0.746 | B185: 0.00169 | J185: -0.00126074 | K185: 83.04668305
A186: 0.756 | B186: 0.00172 | J186: -0.00130032 | K186: 84.52088452
A187: 0.766 | B187: 0.00175 | J187: -0.0013405 | K187: 85.995086
A188: 0.776 | B188: 0.00178 | J188: -0.00138128 | K188: 87.46928747
A189: 0.786 | B189: 0.00181 | J189: -0.00142266 | K189: 88.94348894
A190: 0.797 | B190: 0.00184 | J190: -0.00146648 | K190: 90.41769042
A191: 0.807 | B191: 0.00187 | J191: -0.00150909 | K191: 91.89189189
A192: 0.817 | B192: 0.0019 | J192: -0.0015523 | K192: 93.36609337
A193: 0.827 | B193: 0.00194 | J193: -0.00160438 | K193: 95.33169533
A194: 0.837 | B194: 0.00197 | J194: -0.00164889 | K194: 96.80589681
A195: 0.847 | B195: 0.002 | J195: -0.001694 | K195: 98.28009828
A196: 0.857 | B196: 0.00203 | J196: -0.00173971 | K196: 99.75429975
A197: 0.867 | B197: 0.00206 | J197: -0.00178602 | K197: 101.2285012
A198: 0.877 | B198: 0.00209 | J198: -0.00183293 | K198: 102.7027027
A199: 0.887 | B199: 0.00212 | J199: -0.00188044 | K199: 104.1769042
A200: 0.897 | B200: 0.00216 | J200: -0.00193752 | K200: 106.1425061
A201: 0.907 | B201: 0.00219 | J201: -0.00198633 | K201: 107.6167076
A202: 0.917 | B202: 0.00222 | J202: -0.00203574 | K202: 109.0909091
... 208 more rows

Sheet PbSCdS TBAI pedot dark
C2: iv curve name: | D2: PbSCdS TBAI pedot dark
C3: file name: | D3: PbSCdS TBAI pedot dark
C4: Illumination Time: | E4: (hh:mm)
C5: Illumination Intensity: | D5: 100 | E5: (mW/cm2)
C6: Filter: | D6: 420 | E6: (nm)
C7: Pixel Area: | D7: 0.02035 | E7: (cm2)
A9: V (V) | B9: J (A) | E9: (mA/cm2) | F9: (A) | J9: power | K9: J (mA/cm2)
A10: 0 | B10: -4.8e-10 | D10: Jsc1 = | E10: =-F10*1000/$D$7 -> 2.358722359e-05 | F10: =((INDEX(A10:B11,1,2)+INDEX(A10:B11,2,2))-((INDEX(A10:B11,1,2)-INDEX(A10:B11,2,2))/(INDEX(A10:B11,1,1)-INDEX(A10:B11,2,1))*(INDEX(A10:B11,1,1)+INDEX(A10:B11,2,1))))/2 -> -4.8e-10 | G10: ((INDEX(A10:B11,1,2)+INDEX(A10:B11,2,2))-((INDEX(A10:B11,1,2)-INDEX(A10:B11,2,2))/(INDEX(A10:B11,1,1)- | H10: INDEX(A10:B11,2,1))*(INDEX(A10:B11,1,1)+INDEX(A10:B11,2,1))))/2 | J10: =-(B10*A10) -> 0 | K10: =B10*1000/$D$7 -> -2.358722359e-05 | L10: Jsc | M10: =MAX(E14:E15)/20 ->  | N10: =-E10 -> -2.358722359e-05 | O10: =-E11 -> 0.0001367076167 | P10: =-E12 -> -0.0001323341523
A11: -0.025 | B11: -1.3283e-08 | D11: Jsc2 = | E11: =-F11*1000/$D$7 -> -0.0001367076167 | F11: =((INDEX(A30:B91,MATCH(0,A30:A91,1),2)+INDEX(A30:B91,MATCH(0,A30:A91,1)+1,2))-((INDEX(A30:B91,MATCH(0,A30:A91,1),2)-INDEX(A30:B91,MATCH(0,A30:A91,1)+1,2))/(INDEX(A30:B91,MATCH(0,A30:A91,1),1)-INDEX(A30:B91,MATCH(0,A30:A91,1)+1,1))*(INDEX(A30:B91,MATCH(0,A30:A91,1),1)+INDEX(A30:B91,MATCH(0,A30:A91,1)+1,1))))/2 -> 2.782e-09 | G11: ((INDEX(a30:b91,MATCH(0,a30:a91,1),2)+INDEX(a30:b91,MATCH(0,a30:a91,1)+1,2))-((INDEX(a30:b91,MATCH(0,a30:a91,1),2)-INDEX(a30:b91,MATCH(0,a30:a91,1)+1,2))/ | H11: (INDEX(a30:b91,MATCH(0,a30:a91,1),1)-INDEX(a30:b91,MATCH(0,a30:a91,1)+1,1))*(INDEX(a30:b91,MATCH(0,a30:a91,1),1)+INDEX(a30:b91,MATCH(0,a30:a91,1)+1,1))))/2 | J11: -3.32075e-10 | K11: -0.0006527272727 | M11: =-MAX(E15:E16)/20 ->  | N11: =-E10 -> -2.358722359e-05 | O11: =-E11 -> 0.0001367076167 | P11: =-E12 -> -0.0001323341523
A12: -0.05 | B12: -2.376e-08 | D12: Jsc3 = | E12: =-F12*1000/$D$7 -> 0.0001323341523 | F12: =((INDEX(A131:B132,1,2)+INDEX(A131:B132,2,2))-((INDEX(A131:B132,1,2)-INDEX(A131:B132,2,2))/(INDEX(A131:B132,1,1)-INDEX(A131:B132,2,1))*(INDEX(A131:B132,1,1)+INDEX(A131:B132,2,1))))/2 -> -2.693e-09 | G12: ((INDEX(A131:B132,1,2)+INDEX(A131:B132,2,2))-((INDEX(A131:B132,1,2)-INDEX(A131:B132,2,2))/(INDEX(A131:B132,1,1)- | H12: INDEX(A131:B132,2,1))*(INDEX(A131:B132,1,1)+INDEX(A131:B132,2,1))))/2 | J12: -1.188e-09 | K12: -0.001167567568
A13: -0.075 | B13: -3.4003e-08 | E13: (V) | J13: -2.550225e-09 | K13: -0.001670909091 | L13: Voc | M13: =E14 -> -0.005346709717 | N13: =-MAX(E10:E12)/15 -> -8.822276822e-06
A14: -0.1 | B14: -4.4613e-08 | D14: Voc1 = | E14: =F14 -> -0.005346709717 | F14: =((INDEX(A30:B91,MATCH(0,B30:B91,1),1)+INDEX(A30:B91,MATCH(0,B30:B91,1)+1,1))-((INDEX(A30:B91,MATCH(0,B30:B91,1),1)-INDEX(A30:B91,MATCH(0,B30:B91,1)+1,1))/(INDEX(A30:B91,MATCH(0,B30:B91,1),2)-INDEX(A30:B91,MATCH(0,B30:B91,1)+1,2))*(INDEX(A30:B91,MATCH(0,B30:B91,1),2)+INDEX(A30:B91,MATCH(0,B30:B91,1)+1,2))))/2 -> -0.005346709717 | G14: ((INDEX(a30:b91,MATCH(0,b30:b91,1),1)+INDEX(a30:b91,MATCH(0,b30:b91,1)+1,1))-((INDEX(a30:b91,MATCH(0,b30:b91,1),1)-INDEX(a30:b91,MATCH(0,b30:b91,1)+1,1))/ | H14: (INDEX(a30:b91,MATCH(0,b30:b91,1),2)-INDEX(a30:b91,MATCH(0,b30:b91,1)+1,2))*(INDEX(a30:b91,MATCH(0,b30:b91,1),2)+INDEX(a30:b91,MATCH(0,b30:b91,1)+1,2))))/2 | J14: -4.4613e-09 | K14: -0.002192285012 | M14: =E14 -> -0.005346709717 | N14: =MAX(E10:E12)/15 -> 8.822276822e-06
A15: -0.125 | B15: -5.5978e-08 | D15: Voc2 = | E15: =F15 ->  | F15: =((INDEX(A91:B130,MATCH(0,B91:B130,-1),1)+INDEX(A91:B130,MATCH(0,B91:B130,-1)+1,1))-((INDEX(A91:B130,MATCH(0,B91:B130,-1),1)-INDEX(A91:B130,MATCH(0,B91:B130,-1)+1,1))/(INDEX(A91:B130,MATCH(0,B91:B130,-1),2)-INDEX(A91:B130,MATCH(0,B91:B130,-1)+1,2))*(INDEX(A91:B130,MATCH(0,B91:B130,-1),2)+INDEX(A91:B130,MATCH(0,B91:B130,-1)+1,2))))/2 ->  | G15: ((INDEX(a91:b130,MATCH(0,b91:b130,-1),1)+INDEX(a91:b130,MATCH(0,b91:b130,-1)+1,1))-((INDEX(a91:b130,MATCH(0,b91:b130,-1),1)-INDEX(a91:b130,MATCH(0,b91:b130,-1)+1,1))/(INDEX(a91:b130,MATCH(0,b91:b130,-1),2)- | H15: INDEX(a91:b130,MATCH(0,b91:b130,-1)+1,2))*(INDEX(a91:b130,MATCH(0,b91:b130,-1),2)+INDEX(a91:b130,MATCH(0,b91:b130,-1)+1,2))))/2 | J15: -6.99725e-09 | K15: -0.002750761671 | M15: =E15 ->  | N15: =-MAX(E10:E12)/15 -> -8.822276822e-06
A16: -0.15 | B16: -6.8308e-08 | J16: -1.02462e-08 | K16: -0.003356658477 | M16: =E15 ->  | N16: =MAX(E10:E12)/15 -> 8.822276822e-06
A17: -0.175 | B17: -8.1768e-08 | D17: FF1 = | E17: =F17 -> 0 | F17: =(-1)*MAX(J30:J91)/F11/E14 -> 0 | G17: (-1)*MAX(j30:j91)/F11/E14 | J17: -1.43094e-08 | K17: -0.004018083538
A18: -0.2 | B18: -9.6604e-08 | D18: FF2 = | E18: =F18 ->  | F18: =(-1)*MAX(J91:J130)/F12/E15 ->  | G18: (-1)*MAX(j91:j130)/F12/E15 | J18: -1.93208e-08 | K18: -0.004747125307 | L18: FF | M18: 0 | N18: =INDEX(K30:K91,MATCH(MAX(J30:J91),J30:J91,0),1) -> 0.0001367076167 | P18: INDEX(k30:k91,MATCH(MAX(j30:j91),j30:j91,0),1)
A19: -0.225 | B19: -1.12934e-07 | J19: -2.541015e-08 | K19: -0.00554958231 | M19: =INDEX(A30:A91,MATCH(MAX(J30:J91),J30:J91,0),1) -> 0 | N19: =INDEX(K30:K91,MATCH(MAX(J30:J91),J30:J91,0),1) -> 0.0001367076167 | O19: INDEX(a30:a91,MATCH(MAX(j30:j91),j30:j91,0),1) | P19: INDEX(k30:k91,MATCH(MAX(j30:j91),j30:j91,0),1)
A20: -0.25 | B20: -1.30953e-07 | D20: PCE up = | E20: =F20 -> 0 | F20: =MAX(J30:J91)/D5/D7*1000 -> 0 | G20: MAX(j30:j91)/D5/D7*1000 | J20: -3.273825e-08 | K20: -0.006435036855 | M20: =INDEX(A30:A91,MATCH(MAX(J30:J91),J30:J91,0),1) -> 0 | N20: 0 | O20: INDEX(a30:a91,MATCH(MAX(j30:j91),j30:j91,0),1)
A21: -0.275 | B21: -1.508e-07 | D21: PCE back = | E21: =F21 -> -3.44029484e-07 | F21: =MAX(J91:J130)/D5/D7*1000 -> -3.44029484e-07 | G21: MAX(j91:j130)/D5/D7*1000 | J21: -4.147e-08 | K21: -0.00741031941
A22: -0.3 | B22: -1.7283e-07 | J22: -5.1849e-08 | K22: -0.008492874693 | M22: 0 | N22: =INDEX(K91:K130,MATCH(MAX(J91:J130),J91:J130,0),1) -> 0.0006880589681 | P22: INDEX(k91:k130,MATCH(MAX(j91:j130),j91:j130,0),1)
A23: -0.325 | B23: -1.9728e-07 | D23: discrepancy: | E23: =E11*E14*E17/D5-E20 -> 0 | J23: -6.4116e-08 | K23: -0.009694348894 | M23: =INDEX(A91:A130,MATCH(MAX(J91:J130),J91:J130,0),1) -> 0.05 | N23: =INDEX(K91:K130,MATCH(MAX(J91:J130),J91:J130,0),1) -> 0.0006880589681 | O23: INDEX(a91:a130,MATCH(MAX(j91:j130),j91:j130,0),1) | P23: INDEX(k91:k130,MATCH(MAX(j91:j130),j91:j130,0),1)
A24: -0.35 | B24: -2.24521e-07 | E24: =E12*E15*E18/D5-E21 ->  | J24: -7.858235e-08 | K24: -0.01103297297 | M24: =INDEX(A91:A130,MATCH(MAX(J91:J130),J91:J130,0),1) -> 0.05 | N24: 0 | O24: INDEX(a91:a130,MATCH(MAX(j91:j130),j91:j130,0),1)
A25: -0.375 | B25: -2.54705e-07 | J25: -9.5514375e-08 | K25: -0.01251621622
A26: -0.4 | B26: -2.88355e-07 | D26: V is from: | E26: =MIN(A10:A132) -> -0.5 | F26: to | G26: =MAX(A10:A132) -> 1 | J26: -1.15342e-07 | K26: -0.01416977887
A27: -0.425 | B27: -3.25928e-07 | D27: row: | E27: =MATCH(-0.5,A1:A132,0) -> 30 | F27: - | G27: =MATCH(1,A1:A132,0) -> 91 | J27: -1.385194e-07 | K27: -0.01601611794
A28: -0.45 | B28: -3.67408e-07 | J28: -1.653336e-07 | K28: -0.01805444717
A29: -0.475 | B29: -4.13627e-07 | J29: -1.96472825e-07 | K29: -0.02032565111
A30: -0.5 | B30: -4.64749e-07 | J30: -2.323745e-07 | K30: -0.0228377887
A31: -0.5 | B31: -4.84357e-07 | J31: -2.421785e-07 | K31: -0.02380132678
A32: -0.475 | B32: -4.59787e-07 | J32: -2.18398825e-07 | K32: -0.02259395577
A33: -0.45 | B33: -4.25766e-07 | J33: -1.915947e-07 | K33: -0.02092216216
A34: -0.425 | B34: -3.88636e-07 | J34: -1.651703e-07 | K34: -0.01909759214
A35: -0.4 | B35: -3.51098e-07 | J35: -1.404392e-07 | K35: -0.01725297297
A36: -0.375 | B36: -3.14422e-07 | J36: -1.1790825e-07 | K36: -0.01545071253
A37: -0.35 | B37: -2.79427e-07 | J37: -9.779945e-08 | K37: -0.01373105651
A38: -0.325 | B38: -2.46633e-07 | J38: -8.0155725e-08 | K38: -0.01211955774
A39: -0.3 | B39: -2.1623e-07 | J39: -6.4869e-08 | K39: -0.01062555283
A40: -0.275 | B40: -1.88087e-07 | J40: -5.1723925e-08 | K40: -0.009242604423
A41: -0.25 | B41: -1.62345e-07 | J41: -4.058625e-08 | K41: -0.007977641278
A42: -0.225 | B42: -1.38739e-07 | J42: -3.1216275e-08 | K42: -0.006817641278
A43: -0.2 | B43: -1.17331e-07 | J43: -2.34662e-08 | K43: -0.005765651106
A44: -0.175 | B44: -9.782e-08 | J44: -1.71185e-08 | K44: -0.004806879607
A45: -0.15 | B45: -8.0081e-08 | J45: -1.201215e-08 | K45: -0.003935184275
A46: -0.125 | B46: -6.3946e-08 | J46: -7.99325e-09 | K46: -0.003142309582
A47: -0.1 | B47: -4.9209e-08 | J47: -4.9209e-09 | K47: -0.002418132678
A48: -0.075 | B48: -3.5623e-08 | J48: -2.671725e-09 | K48: -0.001750515971
A49: -0.05 | B49: -2.2785e-08 | J49: -1.13925e-09 | K49: -0.00111965602
A50: -0.025 | B50: -1.0226e-08 | J50: -2.5565e-10 | K50: -0.0005025061425
A51: 0 | B51: 2.782e-09 | J51: 0 | K51: 0.0001367076167
A52: 0.025 | B52: 1.7205e-08 | J52: -4.30125e-10 | K52: 0.0008454545455
A53: 0.05 | B53: 3.4101e-08 | J53: -1.70505e-09 | K53: 0.001675724816
A54: 0.075 | B54: 5.503e-08 | J54: -4.12725e-09 | K54: 0.002704176904
A55: 0.1 | B55: 8.1801e-08 | J55: -8.1801e-09 | K55: 0.00401970516
A56: 0.125 | B56: 1.1721e-07 | J56: -1.465125e-08 | K56: 0.00575970516
A57: 0.15 | B57: 1.65561e-07 | J57: -2.483415e-08 | K57: 0.008135675676
A58: 0.175 | B58: 2.33101e-07 | J58: -4.0792675e-08 | K58: 0.01145459459
A59: 0.2 | B59: 3.28969e-07 | J59: -6.57938e-08 | K59: 0.01616555283
A60: 0.225 | B60: 4.64491e-07 | J60: -1.04510475e-07 | K60: 0.02282511057
A61: 0.25 | B61: 6.55004e-07 | J61: -1.63751e-07 | K61: 0.03218692875
A62: 0.275 | B62: 9.20507e-07 | J62: -2.53139425e-07 | K62: 0.04523375921
A63: 0.3 | B63: 1.27212e-06 | J63: -3.81636e-07 | K63: 0.06251203931
A64: 0.325 | B64: 1.783959e-06 | J64: -5.79786675e-07 | K64: 0.08766383292
A65: 0.35 | B65: 2.486945e-06 | J65: -8.7043075e-07 | K65: 0.1222085995
A66: 0.375 | B66: 3.453991e-06 | J66: -1.295246625e-06 | K66: 0.1697292875
A67: 0.4 | B67: 4.777653e-06 | J67: -1.9110612e-06 | K67: 0.2347741032
A68: 0.425 | B68: 6.586105e-06 | J68: -2.799094625e-06 | K68: 0.3236415233
A69: 0.45 | B69: 9.04668e-06 | J69: -4.071006e-06 | K69: 0.4445542998
A70: 0.475 | B70: 1.27189e-05 | J70: -6.0414775e-06 | K70: 0.625007371
A71: 0.5 | B71: 1.72225e-05 | J71: -8.61125e-06 | K71: 0.8463144963
A72: 0.525 | B72: 2.334219e-05 | J72: -1.225464975e-05 | K72: 1.147036364
A73: 0.55 | B73: 3.15657e-05 | J73: -1.7361135e-05 | K73: 1.551140049
A74: 0.575 | B74: 4.250449e-05 | J74: =-(B74*A74) -> -2.444008175e-05 | K74: =B74*1000/$D$7 -> 2.088672727
A75: 0.6 | B75: 5.691795e-05 | J75: -3.415077e-05 | K75: 2.79695086
A76: 0.625 | B76: 7.575931e-05 | J76: -4.734956875e-05 | K76: 3.722816216
A77: 0.65 | B77: 0.0001000096 | J77: -6.500624e-05 | K77: 4.914476658
A78: 0.675 | B78: 0.0001364178 | J78: -9.2082015e-05 | K78: 6.703577396
A79: 0.7 | B79: 0.0001743017 | J79: -0.00012201119 | K79: 8.565194103
A80: 0.725 | B80: 0.0002218566 | J80: -0.000160846035 | K80: 10.90204423
A81: 0.75 | B81: 0.0002795303 | J81: -0.000209647725 | K81: 13.73613268
A82: 0.775 | B82: 0.0003482563 | J82: -0.0002698986325 | K82: 17.1133317
A83: 0.8 | B83: 0.0004287795 | J83: -0.0003430236 | K83: 21.0702457
A84: 0.825 | B84: 0.0005214085 | J84: -0.0004301620125 | K84: 25.62203931
A85: 0.85 | B85: 0.0006264545 | J85: -0.000532486325 | K85: 30.78400491
A86: 0.875 | B86: 0.0007434511 | J86: -0.0006505197125 | K86: 36.53322359
A87: 0.9 | B87: 0.0008725264 | J87: -0.00078527376 | K87: 42.87599017
A88: 0.925 | B88: 0.0010129 | J88: -0.0009369325 | K88: 49.77395577
A89: 0.95 | B89: 0.001174072 | J89: -0.0011153684 | K89: 57.69395577
A90: 0.975 | B90: 0.001333925 | J90: -0.001300576875 | K90: 65.54914005
A91: 1 | B91: 0.001503838 | J91: -0.001503838 | K91: 73.89867322
A92: 1 | B92: 0.001517116 | J92: -0.001517116 | K92: 74.55115479
A93: 0.975 | B93: 0.001368188 | J93: -0.0013339833 | K93: 67.23282555
A94: 0.95 | B94: 0.00122187 | J94: -0.0011607765 | K94: 60.04275184
A95: 0.925 | B95: 0.001081736 | J95: -0.0010006058 | K95: 53.1565602
A96: 0.9 | B96: 0.0009459303 | J96: -0.00085133727 | K96: 46.48306143
A97: 0.875 | B97: 0.0008234415 | J97: -0.0007205113125 | K97: 40.46395577
A98: 0.85 | B98: 0.0007086209 | J98: -0.000602327765 | K98: 34.82166585
A99: 0.825 | B99: 0.0006029643 | J99: -0.0004974455475 | K99: 29.62969533
A100: 0.8 | B100: 0.0005073248 | J100: -0.00040585984 | K100: 24.9299656
A101: 0.775 | B101: 0.0004217965 | J101: -0.0003268922875 | K101: 20.72710074
A102: 0.75 | B102: 0.0003463731 | J102: -0.000259779825 | K102: 17.02079115
A103: 0.725 | B103: 0.0002807241 | J103: -0.0002035249725 | K103: 13.79479607
A104: 0.7 | B104: 0.0002243812 | J104: -0.00015706684 | K104: 11.02610319
A105: 0.675 | B105: 0.0001769079 | J105: -0.0001194128325 | K105: 8.693262899
A106: 0.65 | B106: 0.0001374089 | J106: -8.9315785e-05 | K106: 6.752280098
A107: 0.625 | B107: 0.0001052157 | J107: -6.57598125e-05 | K107: 5.170304668
A108: 0.6 | B108: 7.825427e-05 | J108: -4.6952562e-05 | K108: 3.845418673
A109: 0.575 | B109: 5.855848e-05 | J109: -3.3671126e-05 | K109: 2.877566585
A110: 0.55 | B110: 4.300115e-05 | J110: -2.36506325e-05 | K110: 2.113078624
A111: 0.525 | B111: 3.10895e-05 | J111: -1.63219875e-05 | K111: 1.527739558
A112: 0.5 | B112: 2.219997e-05 | J112: -1.1099985e-05 | K112: 1.090907617
A113: 0.475 | B113: 1.563681e-05 | J113: -7.42748475e-06 | K113: 0.7683936118
A114: 0.45 | B114: 1.089191e-05 | J114: -4.9013595e-06 | K114: 0.5352289926
A115: 0.425 | B115: 7.448292e-06 | J115: -3.1655241e-06 | K115: 0.3660094349
A116: 0.4 | B116: 5.090484e-06 | J116: -2.0361936e-06 | K116: 0.2501466339
A117: 0.375 | B117: 3.440862e-06 | J117: -1.29032325e-06 | K117: 0.1690841278
A118: 0.35 | B118: 2.306863e-06 | J118: -8.0740205e-07 | K118: 0.1133593612
A119: 0.325 | B119: 1.538834e-06 | J119: -5.0012105e-07 | K119: 0.07561837838
A120: 0.3 | B120: 1.022038e-06 | J120: -3.066114e-07 | K120: 0.05022299754
A121: 0.275 | B121: 6.86604e-07 | J121: -1.888161e-07 | K121: 0.0337397543
A122: 0.25 | B122: 4.5208e-07 | J122: -1.1302e-07 | K122: 0.02221523342
A123: 0.225 | B123: 3.00213e-07 | J123: -6.7547925e-08 | K123: 0.01475248157
A124: 0.2 | B124: 2.00561e-07 | J124: -4.01122e-08 | K124: 0.009855577396
A125: 0.175 | B125: 1.34654e-07 | J125: -2.356445e-08 | K125: 0.006616904177
A126: 0.15 | B126: 9.0713e-08 | J126: -1.360695e-08 | K126: 0.004457641278
A127: 0.125 | B127: 6.0889e-08 | J127: -7.611125e-09 | K127: 0.002992088452
A128: 0.1 | B128: 4.0193e-08 | J128: -4.0193e-09 | K128: 0.001975085995
A129: 0.075 | B129: 2.5292e-08 | J129: -1.8969e-09 | K129: 0.001242850123
A130: 0.05 | B130: 1.4002e-08 | J130: -7.001e-10 | K130: 0.0006880589681
A131: 0.025 | B131: 4.998e-09 | J131: -1.2495e-10 | K131: 0.0002456019656
A132: 0 | B132: -2.693e-09 | J132: 0 | K132: -0.0001323341523
J133: 0 | K133: 0
J134: 0 | K134: 0
J135: 0 | K135: 0
J136: 0 | K136: 0
J137: 0 | K137: 0
J138: =-(B138*A138) -> 0 | K138: =B138*1000/$D$7 -> 0
J139: 0 | K139: 0
J140: 0 | K140: 0
J141: 0 | K141: 0
J142: 0 | K142: 0
J143: 0 | K143: 0
J144: 0 | K144: 0
J145: 0 | K145: 0
J146: 0 | K146: 0
J147: 0 | K147: 0
J148: 0 | K148: 0
J149: 0 | K149: 0
J150: 0 | K150: 0
J151: 0 | K151: 0
J152: 0 | K152: 0
J153: 0 | K153: 0
J154: 0 | K154: 0
J155: 0 | K155: 0
J156: 0 | K156: 0
J157: 0 | K157: 0
J158: 0 | K158: 0
J159: 0 | K159: 0
J160: 0 | K160: 0
J161: 0 | K161: 0
J162: 0 | K162: 0
J163: 0 | K163: 0
J164: 0 | K164: 0
J165: 0 | K165: 0
J166: 0 | K166: 0
J167: 0 | K167: 0
J168: 0 | K168: 0
J169: 0 | K169: 0
J170: 0 | K170: 0
J171: 0 | K171: 0
J172: 0 | K172: 0
J173: 0 | K173: 0
J174: 0 | K174: 0
J175: 0 | K175: 0
J176: 0 | K176: 0
J177: 0 | K177: 0
J178: 0 | K178: 0
J179: 0 | K179: 0
J180: 0 | K180: 0
J181: 0 | K181: 0
J182: 0 | K182: 0
J183: 0 | K183: 0
J184: 0 | K184: 0
J185: 0 | K185: 0
J186: 0 | K186: 0
J187: 0 | K187: 0
J188: 0 | K188: 0
J189: 0 | K189: 0
J190: 0 | K190: 0
J191: 0 | K191: 0
J192: 0 | K192: 0
J193: 0 | K193: 0
J194: 0 | K194: 0
J195: 0 | K195: 0
J196: 0 | K196: 0
J197: 0 | K197: 0
J198: 0 | K198: 0
J199: 0 | K199: 0
J200: 0 | K200: 0
J201: 0 | K201: 0
J202: =-(B202*A202) -> 0 | K202: =B202*1000/$D$7 -> 0
... 208 more rows

Sheet PbSCdS TBAI pedot
C2: iv curve name: | D2: PbSCdS TBAI pedot
C3: file name: | D3: PbSCdS TBAI pedot
C4: Illumination Time: | E4: (hh:mm)
C5: Illumination Intensity: | D5: 100 | E5: (mW/cm2)
C6: Filter: | D6: 420 | E6: (nm)
C7: Pixel Area: | D7: 0.02035 | E7: (cm2)
A9: V (V) | B9: J (A) | E9: (mA/cm2) | F9: (A) | J9: power | K9: J (mA/cm2)
A10: 0 | B10: -0.0001126183 | D10: Jsc1 = | E10: =-F10*1000/$D$7 -> 5.534068796 | F10: =((INDEX(A10:B11,1,2)+INDEX(A10:B11,2,2))-((INDEX(A10:B11,1,2)-INDEX(A10:B11,2,2))/(INDEX(A10:B11,1,1)-INDEX(A10:B11,2,1))*(INDEX(A10:B11,1,1)+INDEX(A10:B11,2,1))))/2 -> -0.0001126183 | G10: ((INDEX(A10:B11,1,2)+INDEX(A10:B11,2,2))-((INDEX(A10:B11,1,2)-INDEX(A10:B11,2,2))/(INDEX(A10:B11,1,1)- | H10: INDEX(A10:B11,2,1))*(INDEX(A10:B11,1,1)+INDEX(A10:B11,2,1))))/2 | J10: =-(B10*A10) -> 0 | K10: =B10*1000/$D$7 -> -5.534068796 | L10: Jsc | M10: =MAX(E14:E15)/20 -> 0.02335547886 | N10: =-E10 -> -5.534068796 | O10: =-E11 -> -4.089192138 | P10: =-E12 -> -5.279764128
A11: -0.025 | B11: -0.0001128572 | D11: Jsc2 = | E11: =-F11*1000/$D$7 -> 4.089192138 | F11: =((INDEX(A30:B91,MATCH(0,A30:A91,1),2)+INDEX(A30:B91,MATCH(0,A30:A91,1)+1,2))-((INDEX(A30:B91,MATCH(0,A30:A91,1),2)-INDEX(A30:B91,MATCH(0,A30:A91,1)+1,2))/(INDEX(A30:B91,MATCH(0,A30:A91,1),1)-INDEX(A30:B91,MATCH(0,A30:A91,1)+1,1))*(INDEX(A30:B91,MATCH(0,A30:A91,1),1)+INDEX(A30:B91,MATCH(0,A30:A91,1)+1,1))))/2 -> -8.321506e-05 | G11: ((INDEX(a30:b91,MATCH(0,a30:a91,1),2)+INDEX(a30:b91,MATCH(0,a30:a91,1)+1,2))-((INDEX(a30:b91,MATCH(0,a30:a91,1),2)-INDEX(a30:b91,MATCH(0,a30:a91,1)+1,2))/ | H11: (INDEX(a30:b91,MATCH(0,a30:a91,1),1)-INDEX(a30:b91,MATCH(0,a30:a91,1)+1,1))*(INDEX(a30:b91,MATCH(0,a30:a91,1),1)+INDEX(a30:b91,MATCH(0,a30:a91,1)+1,1))))/2 | J11: -2.82143e-06 | K11: -5.545808354 | M11: =-MAX(E15:E16)/20 -> -0.02335547886 | N11: =-E10 -> -5.534068796 | O11: =-E11 -> -4.089192138 | P11: =-E12 -> -5.279764128
A12: -0.05 | B12: -0.0001125212 | D12: Jsc3 = | E12: =-F12*1000/$D$7 -> 5.279764128 | F12: =((INDEX(A131:B132,1,2)+INDEX(A131:B132,2,2))-((INDEX(A131:B132,1,2)-INDEX(A131:B132,2,2))/(INDEX(A131:B132,1,1)-INDEX(A131:B132,2,1))*(INDEX(A131:B132,1,1)+INDEX(A131:B132,2,1))))/2 -> -0.0001074432 | G12: ((INDEX(A131:B132,1,2)+INDEX(A131:B132,2,2))-((INDEX(A131:B132,1,2)-INDEX(A131:B132,2,2))/(INDEX(A131:B132,1,1)- | H12: INDEX(A131:B132,2,1))*(INDEX(A131:B132,1,1)+INDEX(A131:B132,2,1))))/2 | J12: -5.62606e-06 | K12: -5.529297297
A13: -0.075 | B13: -0.000113735 | E13: (V) | J13: -8.530125e-06 | K13: -5.588943489 | L13: Voc | M13: =E14 -> 0.4389148304 | N13: =-MAX(E10:E12)/15 -> -0.3689379197
A14: -0.1 | B14: -0.0001169559 | D14: Voc1 = | E14: =F14 -> 0.4389148304 | F14: =((INDEX(A30:B91,MATCH(0,B30:B91,1),1)+INDEX(A30:B91,MATCH(0,B30:B91,1)+1,1))-((INDEX(A30:B91,MATCH(0,B30:B91,1),1)-INDEX(A30:B91,MATCH(0,B30:B91,1)+1,1))/(INDEX(A30:B91,MATCH(0,B30:B91,1),2)-INDEX(A30:B91,MATCH(0,B30:B91,1)+1,2))*(INDEX(A30:B91,MATCH(0,B30:B91,1),2)+INDEX(A30:B91,MATCH(0,B30:B91,1)+1,2))))/2 -> 0.4389148304 | G14: ((INDEX(a30:b91,MATCH(0,b30:b91,1),1)+INDEX(a30:b91,MATCH(0,b30:b91,1)+1,1))-((INDEX(a30:b91,MATCH(0,b30:b91,1),1)-INDEX(a30:b91,MATCH(0,b30:b91,1)+1,1))/ | H14: (INDEX(a30:b91,MATCH(0,b30:b91,1),2)-INDEX(a30:b91,MATCH(0,b30:b91,1)+1,2))*(INDEX(a30:b91,MATCH(0,b30:b91,1),2)+INDEX(a30:b91,MATCH(0,b30:b91,1)+1,2))))/2 | J14: -1.169559e-05 | K14: -5.747218673 | M14: =E14 -> 0.4389148304 | N14: =MAX(E10:E12)/15 -> 0.3689379197
A15: -0.125 | B15: -0.0001170742 | D15: Voc2 = | E15: =F15 -> 0.4671095773 | F15: =((INDEX(A91:B130,MATCH(0,B91:B130,-1),1)+INDEX(A91:B130,MATCH(0,B91:B130,-1)+1,1))-((INDEX(A91:B130,MATCH(0,B91:B130,-1),1)-INDEX(A91:B130,MATCH(0,B91:B130,-1)+1,1))/(INDEX(A91:B130,MATCH(0,B91:B130,-1),2)-INDEX(A91:B130,MATCH(0,B91:B130,-1)+1,2))*(INDEX(A91:B130,MATCH(0,B91:B130,-1),2)+INDEX(A91:B130,MATCH(0,B91:B130,-1)+1,2))))/2 -> 0.4671095773 | G15: ((INDEX(a91:b130,MATCH(0,b91:b130,-1),1)+INDEX(a91:b130,MATCH(0,b91:b130,-1)+1,1))-((INDEX(a91:b130,MATCH(0,b91:b130,-1),1)-INDEX(a91:b130,MATCH(0,b91:b130,-1)+1,1))/(INDEX(a91:b130,MATCH(0,b91:b130,-1),2)- | H15: INDEX(a91:b130,MATCH(0,b91:b130,-1)+1,2))*(INDEX(a91:b130,MATCH(0,b91:b130,-1),2)+INDEX(a91:b130,MATCH(0,b91:b130,-1)+1,2))))/2 | J15: -1.4634275e-05 | K15: -5.753031941 | M15: =E15 -> 0.4671095773 | N15: =-MAX(E10:E12)/15 -> -0.3689379197
A16: -0.15 | B16: -0.0001183688 | J16: -1.775532e-05 | K16: -5.816648649 | M16: =E15 -> 0.4671095773 | N16: =MAX(E10:E12)/15 -> 0.3689379197
A17: -0.175 | B17: -0.0001204759 | D17: FF1 = | E17: =F17 -> 0.3894814048 | F17: =(-1)*MAX(J30:J91)/F11/E14 -> 0.3894814048 | G17: (-1)*MAX(j30:j91)/F11/E14 | J17: -2.10832825e-05 | K17: -5.920191646
A18: -0.2 | B18: -0.0001193438 | D18: FF2 = | E18: =F18 -> 0.4233483462 | F18: =(-1)*MAX(J91:J130)/F12/E15 -> 0.4233483462 | G18: (-1)*MAX(j91:j130)/F12/E15 | J18: -2.386876e-05 | K18: -5.864560197 | L18: FF | M18: 0 | N18: =INDEX(K30:K91,MATCH(MAX(J30:J91),J30:J91,0),1) -> -2.796175921 | P18: INDEX(k30:k91,MATCH(MAX(j30:j91),j30:j91,0),1)
A19: -0.225 | B19: -0.0001215622 | J19: -2.7351495e-05 | K19: -5.973572482 | M19: =INDEX(A30:A91,MATCH(MAX(J30:J91),J30:J91,0),1) -> 0.25 | N19: =INDEX(K30:K91,MATCH(MAX(J30:J91),J30:J91,0),1) -> -2.796175921 | O19: INDEX(a30:a91,MATCH(MAX(j30:j91),j30:j91,0),1) | P19: INDEX(k30:k91,MATCH(MAX(j30:j91),j30:j91,0),1)
A20: -0.25 | B20: -0.0001235026 | D20: PCE up = | E20: =F20 -> 0.006990439803 | F20: =MAX(J30:J91)/D5/D7*1000 -> 0.006990439803 | G20: MAX(j30:j91)/D5/D7*1000 | J20: -3.087565e-05 | K20: -6.068923833 | M20: =INDEX(A30:A91,MATCH(MAX(J30:J91),J30:J91,0),1) -> 0.25 | N20: 0 | O20: INDEX(a30:a91,MATCH(MAX(j30:j91),j30:j91,0),1)
A21: -0.275 | B21: -0.000124718 | D21: PCE back = | E21: =F21 -> 0.0104407371 | F21: =MAX(J91:J130)/D5/D7*1000 -> 0.0104407371 | G21: MAX(j91:j130)/D5/D7*1000 | J21: -3.429745e-05 | K21: -6.128648649
A22: -0.3 | B22: -0.0001267313 | J22: -3.801939e-05 | K22: -6.22758231 | M22: 0 | N22: =INDEX(K91:K130,MATCH(MAX(J91:J130),J91:J130,0),1) -> -3.4802457 | P22: INDEX(k91:k130,MATCH(MAX(j91:j130),j91:j130,0),1)
A23: -0.325 | B23: -0.0001353421 | D23: discrepancy: | E23: =E11*E14*E17/D5-E20 -> 0 | J23: -4.39861825e-05 | K23: -6.650717445 | M23: =INDEX(A91:A130,MATCH(MAX(J91:J130),J91:J130,0),1) -> 0.3 | N23: =INDEX(K91:K130,MATCH(MAX(J91:J130),J91:J130,0),1) -> -3.4802457 | O23: INDEX(a91:a130,MATCH(MAX(j91:j130),j91:j130,0),1) | P23: INDEX(k91:k130,MATCH(MAX(j91:j130),j91:j130,0),1)
A24: -0.35 | B24: -0.0001315823 | E24: =E12*E15*E18/D5-E21 -> 0 | J24: -4.6053805e-05 | K24: -6.465960688 | M24: =INDEX(A91:A130,MATCH(MAX(J91:J130),J91:J130,0),1) -> 0.3 | N24: 0 | O24: INDEX(a91:a130,MATCH(MAX(j91:j130),j91:j130,0),1)
A25: -0.375 | B25: -0.0001337389 | J25: -5.01520875e-05 | K25: -6.571936118
A26: -0.4 | B26: -0.0001395786 | D26: V is from: | E26: =MIN(A10:A132) -> -0.5 | F26: to | G26: =MAX(A10:A132) -> 1 | J26: -5.583144e-05 | K26: -6.858899263
A27: -0.425 | B27: -0.0001421121 | D27: row: | E27: =MATCH(-0.5,A1:A132,0) -> 30 | F27: - | G27: =MATCH(1,A1:A132,0) -> 91 | J27: -6.03976425e-05 | K27: -6.983395577
A28: -0.45 | B28: -0.0001447556 | J28: -6.514002e-05 | K28: -7.113297297
A29: -0.475 | B29: -0.0001540588 | J29: -7.317793e-05 | K29: -7.570457002
A30: -0.5 | B30: -0.0001599583 | J30: -7.997915e-05 | K30: -7.860358722
A31: -0.5 | B31: -0.0001562428 | J31: -7.81214e-05 | K31: -7.67777887
A32: -0.475 | B32: -0.0001481998 | J32: -7.0394905e-05 | K32: -7.282545455
A33: -0.45 | B33: -0.0001422164 | J33: -6.399738e-05 | K33: -6.988520885
A34: -0.425 | B34: -0.0001366721 | J34: -5.80856425e-05 | K34: -6.71607371
A35: -0.4 | B35: -0.0001318278 | J35: -5.273112e-05 | K35: -6.47802457
A36: -0.375 | B36: -0.000126919 | J36: -4.7594625e-05 | K36: -6.236805897
A37: -0.35 | B37: -0.0001186395 | J37: -4.1523825e-05 | K37: -5.82995086
A38: -0.325 | B38: -0.0001148105 | J38: -3.73134125e-05 | K38: -5.641793612
A39: -0.3 | B39: -0.0001125357 | J39: -3.376071e-05 | K39: -5.530009828
A40: -0.275 | B40: -0.0001114584 | J40: -3.065106e-05 | K40: -5.477071253
A41: -0.25 | B41: -0.0001067831 | J41: -2.6695775e-05 | K41: -5.247326781
A42: -0.225 | B42: -0.0001036823 | J42: -2.33285175e-05 | K42: -5.094953317
A43: -0.2 | B43: -0.0001018528 | J43: -2.037056e-05 | K43: -5.005051597
A44: -0.175 | B44: -0.0001009447 | J44: -1.76653225e-05 | K44: -4.960427518
A45: -0.15 | B45: -9.744042e-05 | J45: -1.4616063e-05 | K45: -4.788227027
A46: -0.125 | B46: -9.54011e-05 | J46: -1.19251375e-05 | K46: -4.688014742
A47: -0.1 | B47: -9.23527e-05 | J47: -9.23527e-06 | K47: -4.538216216
A48: -0.075 | B48: -9.050452e-05 | J48: -6.787839e-06 | K48: -4.44739656
A49: -0.05 | B49: -8.849287e-05 | J49: -4.4246435e-06 | K49: -4.34854398
A50: -0.025 | B50: -8.575483e-05 | J50: -2.14387075e-06 | K50: -4.21399656
A51: 0 | B51: -8.321506e-05 | J51: 0 | K51: -4.089192138
A52: 0.025 | B52: -8.092044e-05 | J52: 2.023011e-06 | K52: -3.976434398
A53: 0.05 | B53: -7.771479e-05 | J53: 3.8857395e-06 | K53: -3.8189086
A54: 0.075 | B54: -7.494741e-05 | J54: 5.62105575e-06 | K54: -3.68291941
A55: 0.1 | B55: -7.2464e-05 | J55: 7.2464e-06 | K55: -3.560884521
A56: 0.125 | B56: -6.976778e-05 | J56: 8.7209725e-06 | K56: -3.428392138
A57: 0.15 | B57: -6.568003e-05 | J57: 9.8520045e-06 | K57: -3.227519902
A58: 0.175 | B58: -6.303489e-05 | J58: 1.103110575e-05 | K58: -3.097537592
A59: 0.2 | B59: -6.023676e-05 | J59: 1.2047352e-05 | K59: -2.960037346
A60: 0.225 | B60: -5.517183e-05 | J60: 1.241366175e-05 | K60: -2.711146437
A61: 0.25 | B61: -5.690218e-05 | J61: 1.4225545e-05 | K61: -2.796175921
A62: 0.275 | B62: -5.028425e-05 | J62: 1.382816875e-05 | K62: -2.470970516
A63: 0.3 | B63: -4.398186e-05 | J63: 1.3194558e-05 | K63: -2.161270762
A64: 0.325 | B64: -3.816624e-05 | J64: 1.2404028e-05 | K64: -1.875490909
A65: 0.35 | B65: -3.036989e-05 | J65: 1.06294615e-05 | K65: -1.492377887
A66: 0.375 | B66: -2.283935e-05 | J66: 8.56475625e-06 | K66: -1.122326781
A67: 0.4 | B67: -1.413934e-05 | J67: 5.655736e-06 | K67: -0.6948078624
A68: 0.425 | B68: -6.799016e-06 | J68: 2.8895818e-06 | K68: -0.3341039803
A69: 0.45 | B69: 5.416397e-06 | J69: -2.43737865e-06 | K69: 0.2661620147
A70: 0.475 | B70: 1.706812e-05 | J70: -8.107357e-06 | K70: 0.8387282555
A71: 0.5 | B71: 3.444384e-05 | J71: -1.722192e-05 | K71: 1.69257199
A72: 0.525 | B72: 5.5309e-05 | J72: -2.9037225e-05 | K72: 2.717886978
A73: 0.55 | B73: 8.076127e-05 | J73: -4.44186985e-05 | K73: 3.968612776
A74: 0.575 | B74: 0.0001117487 | J74: =-(B74*A74) -> -6.42555025e-05 | K74: =B74*1000/$D$7 -> 5.491336609
A75: 0.6 | B75: 0.0001494662 | J75: -8.967972e-05 | K75: 7.344776413
A76: 0.625 | B76: 0.0001941252 | J76: -0.00012132825 | K76: 9.539321867
A77: 0.65 | B77: 0.0002450673 | J77: -0.000159293745 | K77: 12.04261916
A78: 0.675 | B78: 0.000302297 | J78: -0.000204050475 | K78: 14.85488943
A79: 0.7 | B79: 0.0003710153 | J79: -0.00025971071 | K79: 18.23171007
A80: 0.725 | B80: 0.0004462659 | J80: -0.0003235427775 | K80: 21.92952826
A81: 0.75 | B81: 0.0005300569 | J81: -0.000397542675 | K81: 26.04702211
A82: 0.775 | B82: 0.0006244085 | J82: -0.0004839165875 | K82: 30.68346437
A83: 0.8 | B83: 0.0007275178 | J83: -0.00058201424 | K83: 35.75026044
A84: 0.825 | B84: 0.0008403282 | J84: -0.000693270765 | K84: 41.29376904
A85: 0.85 | B85: 0.000964554 | J85: -0.0008198709 | K85: 47.39823096
A86: 0.875 | B86: 0.001103758 | J86: -0.00096578825 | K86: 54.23872236
A87: 0.9 | B87: 0.001245185 | J87: -0.0011206665 | K87: 61.18845209
A88: 0.925 | B88: 0.001395154 | J88: -0.00129051745 | K88: 68.55793612
A89: 0.95 | B89: 0.001556083 | J89: -0.00147827885 | K89: 76.46599509
A90: 0.975 | B90: 0.00172391 | J90: -0.00168081225 | K90: 84.71302211
A91: 1 | B91: 0.001898822 | J91: -0.001898822 | K91: 93.30820639
A92: 1 | B92: 0.001908615 | J92: -0.001908615 | K92: 93.78943489
A93: 0.975 | B93: 0.001744478 | J93: -0.00170086605 | K93: 85.72373464
A94: 0.95 | B94: 0.001584666 | J94: -0.0015054327 | K94: 77.87056511
A95: 0.925 | B95: 0.00143167 | J95: -0.00132429475 | K95: 70.35233415
A96: 0.9 | B96: 0.001283855 | J96: -0.0011554695 | K96: 63.08869779
A97: 0.875 | B97: 0.001143434 | J97: -0.00100050475 | K97: 56.18840295
A98: 0.85 | B98: 0.001012718 | J98: -0.0008608103 | K98: 49.76501229
A99: 0.825 | B99: 0.0008847048 | J99: -0.00072988146 | K99: 43.47443735
A100: 0.8 | B100: 0.0007739077 | J100: -0.00061912616 | K100: 38.02986241
A101: 0.775 | B101: 0.0006653781 | J101: -0.0005156680275 | K101: 32.69671253
A102: 0.75 | B102: 0.0005696579 | J102: -0.000427243425 | K102: 27.9930172
A103: 0.725 | B103: 0.0004877292 | J103: -0.00035360367 | K103: 23.96703686
A104: 0.7 | B104: 0.0004058507 | J104: -0.00028409549 | K104: 19.94352334
A105: 0.675 | B105: 0.0003321851 | J105: -0.0002242249425 | K105: 16.32359214
A106: 0.65 | B106: 0.0002663219 | J106: -0.000173109235 | K106: 13.08707125
A107: 0.625 | B107: 0.0002090333 | J107: -0.0001306458125 | K107: 10.27190663
A108: 0.6 | B108: 0.0001593161 | J108: -9.558966e-05 | K108: 7.828800983
A109: 0.575 | B109: 0.0001162499 | J109: -6.68436925e-05 | K109: 5.712525799
A110: 0.55 | B110: 7.99187e-05 | J110: -4.3955285e-05 | K110: 3.927208845
A111: 0.525 | B111: 4.951936e-05 | J111: -2.5997664e-05 | K111: 2.433383784
A112: 0.5 | B112: 2.455853e-05 | J112: -1.2279265e-05 | K112: 1.206807371
A113: 0.475 | B113: 4.797039e-06 | J113: -2.278593525e-06 | K113: 0.2357267322
A114: 0.45 | B114: -1.040189e-05 | J114: 4.6808505e-06 | K114: -0.5111493857
A115: 0.425 | B115: -2.55005e-05 | J115: 1.08377125e-05 | K115: -1.253095823
A116: 0.4 | B116: -3.761785e-05 | J116: 1.504714e-05 | K116: -1.848542998
A117: 0.375 | B117: -4.748414e-05 | J117: 1.78065525e-05 | K117: -2.333372973
A118: 0.35 | B118: -5.613071e-05 | J118: 1.96457485e-05 | K118: -2.758265848
A119: 0.325 | B119: -6.377231e-05 | J119: 2.072600075e-05 | K119: -3.133774447
A120: 0.3 | B120: -7.0823e-05 | J120: 2.12469e-05 | K120: -3.4802457
A121: 0.275 | B121: -7.659609e-05 | J121: 2.106392475e-05 | K121: -3.763935627
A122: 0.25 | B122: -8.21016e-05 | J122: 2.05254e-05 | K122: -4.034476658
A123: 0.225 | B123: -8.736578e-05 | J123: 1.96573005e-05 | K123: -4.293158722
A124: 0.2 | B124: -9.122517e-05 | J124: 1.8245034e-05 | K124: -4.482809337
A125: 0.175 | B125: -9.553452e-05 | J125: 1.6718541e-05 | K125: -4.694571007
A126: 0.15 | B126: -9.832875e-05 | J126: 1.47493125e-05 | K126: -4.831879607
A127: 0.125 | B127: -0.0001018346 | J127: 1.2729325e-05 | K127: -5.004157248
A128: 0.1 | B128: -0.000104231 | J128: 1.04231e-05 | K128: -5.121916462
A129: 0.075 | B129: -0.000105568 | J129: 7.9176e-06 | K129: -5.187616708
A130: 0.05 | B130: -0.0001085074 | J130: 5.42537e-06 | K130: -5.332058968
A131: 0.025 | B131: -0.0001109187 | J131: 2.7729675e-06 | K131: -5.450550369
A132: 0 | B132: -0.0001074432 | J132: 0 | K132: -5.279764128
J133: 0 | K133: 0
J134: 0 | K134: 0
J135: 0 | K135: 0
J136: 0 | K136: 0
J137: 0 | K137: 0
J138: =-(B138*A138) -> 0 | K138: =B138*1000/$D$7 -> 0
J139: 0 | K139: 0
J140: 0 | K140: 0
J141: 0 | K141: 0
J142: 0 | K142: 0
J143: 0 | K143: 0
J144: 0 | K144: 0
J145: 0 | K145: 0
J146: 0 | K146: 0
J147: 0 | K147: 0
J148: 0 | K148: 0
J149: 0 | K149: 0
J150: 0 | K150: 0
J151: 0 | K151: 0
J152: 0 | K152: 0
J153: 0 | K153: 0
J154: 0 | K154: 0
J155: 0 | K155: 0
J156: 0 | K156: 0
J157: 0 | K157: 0
J158: 0 | K158: 0
J159: 0 | K159: 0
J160: 0 | K160: 0
J161: 0 | K161: 0
J162: 0 | K162: 0
J163: 0 | K163: 0
J164: 0 | K164: 0
J165: 0 | K165: 0
J166: 0 | K166: 0
J167: 0 | K167: 0
J168: 0 | K168: 0
J169: 0 | K169: 0
J170: 0 | K170: 0
J171: 0 | K171: 0
J172: 0 | K172: 0
J173: 0 | K173: 0
J174: 0 | K174: 0
J175: 0 | K175: 0
J176: 0 | K176: 0
J177: 0 | K177: 0
J178: 0 | K178: 0
J179: 0 | K179: 0
J180: 0 | K180: 0
J181: 0 | K181: 0
J182: 0 | K182: 0
J183: 0 | K183: 0
J184: 0 | K184: 0
J185: 0 | K185: 0
J186: 0 | K186: 0
J187: 0 | K187: 0
J188: 0 | K188: 0
J189: 0 | K189: 0
J190: 0 | K190: 0
J191: 0 | K191: 0
J192: 0 | K192: 0
J193: 0 | K193: 0
J194: 0 | K194: 0
J195: 0 | K195: 0
J196: 0 | K196: 0
J197: 0 | K197: 0
J198: 0 | K198: 0
J199: 0 | K199: 0
J200: 0 | K200: 0
J201: 0 | K201: 0
J202: =-(B202*A202) -> 0 | K202: =B202*1000/$D$7 -> 0
... 208 more rows

Sheet PbSCdS TBAC pedot dark
C2: iv curve name: | D2: PbSCdS TBAC pedot dark
C3: file name: | D3: PbSCdS TBAC pedot dark
C4: Illumination Time: | E4: (hh:mm)
C5: Illumination Intensity: | D5: 100 | E5: (mW/cm2)
C6: Filter: | D6: 420 | E6: (nm)
C7: Pixel Area: | D7: 0.02035 | E7: (cm2)
A9: V (V) | B9: J (A) | E9: (mA/cm2) | F9: (A) | J9: power | K9: J (mA/cm2)
A10: 0 | B10: -3.78e-10 | D10: Jsc1 = | E10: =-F10*1000/$D$7 -> 1.857493857e-05 | F10: =((INDEX(A10:B11,1,2)+INDEX(A10:B11,2,2))-((INDEX(A10:B11,1,2)-INDEX(A10:B11,2,2))/(INDEX(A10:B11,1,1)-INDEX(A10:B11,2,1))*(INDEX(A10:B11,1,1)+INDEX(A10:B11,2,1))))/2 -> -3.78e-10 | G10: ((INDEX(A10:B11,1,2)+INDEX(A10:B11,2,2))-((INDEX(A10:B11,1,2)-INDEX(A10:B11,2,2))/(INDEX(A10:B11,1,1)- | H10: INDEX(A10:B11,2,1))*(INDEX(A10:B11,1,1)+INDEX(A10:B11,2,1))))/2 | J10: =-(B10*A10) -> 0 | K10: =B10*1000/$D$7 -> -1.857493857e-05 | L10: Jsc | M10: =MAX(E14:E15)/20 ->  | N10: =-E10 -> -1.857493857e-05 | O10: =-E11 -> 0.0001028992629 | P10: =-E12 -> -9.98034398e-05
A11: -0.025 | B11: -7.073e-09 | D11: Jsc2 = | E11: =-F11*1000/$D$7 -> -0.0001028992629 | F11: =((INDEX(A30:B91,MATCH(0,A30:A91,1),2)+INDEX(A30:B91,MATCH(0,A30:A91,1)+1,2))-((INDEX(A30:B91,MATCH(0,A30:A91,1),2)-INDEX(A30:B91,MATCH(0,A30:A91,1)+1,2))/(INDEX(A30:B91,MATCH(0,A30:A91,1),1)-INDEX(A30:B91,MATCH(0,A30:A91,1)+1,1))*(INDEX(A30:B91,MATCH(0,A30:A91,1),1)+INDEX(A30:B91,MATCH(0,A30:A91,1)+1,1))))/2 -> 2.094e-09 | G11: ((INDEX(a30:b91,MATCH(0,a30:a91,1),2)+INDEX(a30:b91,MATCH(0,a30:a91,1)+1,2))-((INDEX(a30:b91,MATCH(0,a30:a91,1),2)-INDEX(a30:b91,MATCH(0,a30:a91,1)+1,2))/ | H11: (INDEX(a30:b91,MATCH(0,a30:a91,1),1)-INDEX(a30:b91,MATCH(0,a30:a91,1)+1,1))*(INDEX(a30:b91,MATCH(0,a30:a91,1),1)+INDEX(a30:b91,MATCH(0,a30:a91,1)+1,1))))/2 | J11: -1.76825e-10 | K11: -0.0003475675676 | M11: =-MAX(E15:E16)/20 ->  | N11: =-E10 -> -1.857493857e-05 | O11: =-E11 -> 0.0001028992629 | P11: =-E12 -> -9.98034398e-05
A12: -0.05 | B12: -1.2046e-08 | D12: Jsc3 = | E12: =-F12*1000/$D$7 -> 9.98034398e-05 | F12: =((INDEX(A131:B132,1,2)+INDEX(A131:B132,2,2))-((INDEX(A131:B132,1,2)-INDEX(A131:B132,2,2))/(INDEX(A131:B132,1,1)-INDEX(A131:B132,2,1))*(INDEX(A131:B132,1,1)+INDEX(A131:B132,2,1))))/2 -> -2.031e-09 | G12: ((INDEX(A131:B132,1,2)+INDEX(A131:B132,2,2))-((INDEX(A131:B132,1,2)-INDEX(A131:B132,2,2))/(INDEX(A131:B132,1,1)- | H12: INDEX(A131:B132,2,1))*(INDEX(A131:B132,1,1)+INDEX(A131:B132,2,1))))/2 | J12: -6.023e-10 | K12: -0.0005919410319
A13: -0.075 | B13: -1.6691e-08 | E13: (V) | J13: -1.251825e-09 | K13: -0.0008201965602 | L13: Voc | M13: =E14 -> -0.008890964674 | N13: =-MAX(E10:E12)/15 -> -6.653562654e-06
A14: -0.1 | B14: -2.1346e-08 | D14: Voc1 = | E14: =F14 -> -0.008890964674 | F14: =((INDEX(A30:B91,MATCH(0,B30:B91,1),1)+INDEX(A30:B91,MATCH(0,B30:B91,1)+1,1))-((INDEX(A30:B91,MATCH(0,B30:B91,1),1)-INDEX(A30:B91,MATCH(0,B30:B91,1)+1,1))/(INDEX(A30:B91,MATCH(0,B30:B91,1),2)-INDEX(A30:B91,MATCH(0,B30:B91,1)+1,2))*(INDEX(A30:B91,MATCH(0,B30:B91,1),2)+INDEX(A30:B91,MATCH(0,B30:B91,1)+1,2))))/2 -> -0.008890964674 | G14: ((INDEX(a30:b91,MATCH(0,b30:b91,1),1)+INDEX(a30:b91,MATCH(0,b30:b91,1)+1,1))-((INDEX(a30:b91,MATCH(0,b30:b91,1),1)-INDEX(a30:b91,MATCH(0,b30:b91,1)+1,1))/ | H14: (INDEX(a30:b91,MATCH(0,b30:b91,1),2)-INDEX(a30:b91,MATCH(0,b30:b91,1)+1,2))*(INDEX(a30:b91,MATCH(0,b30:b91,1),2)+INDEX(a30:b91,MATCH(0,b30:b91,1)+1,2))))/2 | J14: -2.1346e-09 | K14: -0.001048943489 | M14: =E14 -> -0.008890964674 | N14: =MAX(E10:E12)/15 -> 6.653562654e-06
A15: -0.125 | B15: -2.6216e-08 | D15: Voc2 = | E15: =F15 ->  | F15: =((INDEX(A91:B130,MATCH(0,B91:B130,-1),1)+INDEX(A91:B130,MATCH(0,B91:B130,-1)+1,1))-((INDEX(A91:B130,MATCH(0,B91:B130,-1),1)-INDEX(A91:B130,MATCH(0,B91:B130,-1)+1,1))/(INDEX(A91:B130,MATCH(0,B91:B130,-1),2)-INDEX(A91:B130,MATCH(0,B91:B130,-1)+1,2))*(INDEX(A91:B130,MATCH(0,B91:B130,-1),2)+INDEX(A91:B130,MATCH(0,B91:B130,-1)+1,2))))/2 ->  | G15: ((INDEX(a91:b130,MATCH(0,b91:b130,-1),1)+INDEX(a91:b130,MATCH(0,b91:b130,-1)+1,1))-((INDEX(a91:b130,MATCH(0,b91:b130,-1),1)-INDEX(a91:b130,MATCH(0,b91:b130,-1)+1,1))/(INDEX(a91:b130,MATCH(0,b91:b130,-1),2)- | H15: INDEX(a91:b130,MATCH(0,b91:b130,-1)+1,2))*(INDEX(a91:b130,MATCH(0,b91:b130,-1),2)+INDEX(a91:b130,MATCH(0,b91:b130,-1)+1,2))))/2 | J15: -3.277e-09 | K15: -0.001288255528 | M15: =E15 ->  | N15: =-MAX(E10:E12)/15 -> -6.653562654e-06
A16: -0.15 | B16: -3.1392e-08 | J16: -4.7088e-09 | K16: -0.001542604423 | M16: =E15 ->  | N16: =MAX(E10:E12)/15 -> 6.653562654e-06
A17: -0.175 | B17: -3.6939e-08 | D17: FF1 = | E17: =F17 -> 0 | F17: =(-1)*MAX(J30:J91)/F11/E14 -> 0 | G17: (-1)*MAX(j30:j91)/F11/E14 | J17: -6.464325e-09 | K17: -0.001815184275
A18: -0.2 | B18: -4.2929e-08 | D18: FF2 = | E18: =F18 ->  | F18: =(-1)*MAX(J91:J130)/F12/E15 ->  | G18: (-1)*MAX(j91:j130)/F12/E15 | J18: -8.5858e-09 | K18: -0.00210953317 | L18: FF | M18: 0 | N18: =INDEX(K30:K91,MATCH(MAX(J30:J91),J30:J91,0),1) -> 0.0001028992629 | P18: INDEX(k30:k91,MATCH(MAX(j30:j91),j30:j91,0),1)
A19: -0.225 | B19: -4.941e-08 | J19: -1.111725e-08 | K19: -0.002428009828 | M19: =INDEX(A30:A91,MATCH(MAX(J30:J91),J30:J91,0),1) -> 0 | N19: =INDEX(K30:K91,MATCH(MAX(J30:J91),J30:J91,0),1) -> 0.0001028992629 | O19: INDEX(a30:a91,MATCH(MAX(j30:j91),j30:j91,0),1) | P19: INDEX(k30:k91,MATCH(MAX(j30:j91),j30:j91,0),1)
A20: -0.25 | B20: -5.6426e-08 | D20: PCE up = | E20: =F20 -> 0 | F20: =MAX(J30:J91)/D5/D7*1000 -> 0 | G20: MAX(j30:j91)/D5/D7*1000 | J20: -1.41065e-08 | K20: -0.002772776413 | M20: =INDEX(A30:A91,MATCH(MAX(J30:J91),J30:J91,0),1) -> 0 | N20: 0 | O20: INDEX(a30:a91,MATCH(MAX(j30:j91),j30:j91,0),1)
A21: -0.275 | B21: -6.4013e-08 | D21: PCE back = | E21: =F21 -> -2.118427518e-07 | F21: =MAX(J91:J130)/D5/D7*1000 -> -2.118427518e-07 | G21: MAX(j91:j130)/D5/D7*1000 | J21: -1.7603575e-08 | K21: -0.003145601966
A22: -0.3 | B22: -7.2232e-08 | J22: -2.16696e-08 | K22: -0.003549484029 | M22: 0 | N22: =INDEX(K91:K130,MATCH(MAX(J91:J130),J91:J130,0),1) -> 0.0004236855037 | P22: INDEX(k91:k130,MATCH(MAX(j91:j130),j91:j130,0),1)
A23: -0.325 | B23: -8.1111e-08 | D23: discrepancy: | E23: =E11*E14*E17/D5-E20 -> 0 | J23: -2.6361075e-08 | K23: -0.003985798526 | M23: =INDEX(A91:A130,MATCH(MAX(J91:J130),J91:J130,0),1) -> 0.05 | N23: =INDEX(K91:K130,MATCH(MAX(J91:J130),J91:J130,0),1) -> 0.0004236855037 | O23: INDEX(a91:a130,MATCH(MAX(j91:j130),j91:j130,0),1) | P23: INDEX(k91:k130,MATCH(MAX(j91:j130),j91:j130,0),1)
A24: -0.35 | B24: -9.0694e-08 | E24: =E12*E15*E18/D5-E21 ->  | J24: -3.17429e-08 | K24: -0.004456707617 | M24: =INDEX(A91:A130,MATCH(MAX(J91:J130),J91:J130,0),1) -> 0.05 | N24: 0 | O24: INDEX(a91:a130,MATCH(MAX(j91:j130),j91:j130,0),1)
A25: -0.375 | B25: -1.01085e-07 | J25: -3.7906875e-08 | K25: -0.004967321867
A26: -0.4 | B26: -1.12242e-07 | D26: V is from: | E26: =MIN(A10:A132) -> -0.5 | F26: to | G26: =MAX(A10:A132) -> 1 | J26: -4.48968e-08 | K26: -0.005515577396
A27: -0.425 | B27: -1.24273e-07 | D27: row: | E27: =MATCH(-0.5,A1:A132,0) -> 30 | F27: - | G27: =MATCH(1,A1:A132,0) -> 91 | J27: -5.2816025e-08 | K27: -0.006106781327
A28: -0.45 | B28: -1.37182e-07 | J28: -6.17319e-08 | K28: -0.006741130221
A29: -0.475 | B29: -1.51083e-07 | J29: -7.1764425e-08 | K29: -0.007424226044
A30: -0.5 | B30: -1.66012e-07 | J30: -8.3006e-08 | K30: -0.008157837838
A31: -0.5 | B31: -1.70447e-07 | J31: -8.52235e-08 | K31: -0.008375773956
A32: -0.475 | B32: -1.61998e-07 | J32: -7.694905e-08 | K32: -0.007960589681
A33: -0.45 | B33: -1.51577e-07 | J33: -6.820965e-08 | K33: -0.007448501229
A34: -0.425 | B34: -1.40152e-07 | J34: -5.95646e-08 | K34: -0.006887076167
A35: -0.4 | B35: -1.28322e-07 | J35: -5.13288e-08 | K35: -0.006305749386
A36: -0.375 | B36: -1.16456e-07 | J36: -4.3671e-08 | K36: -0.005722653563
A37: -0.35 | B37: -1.04809e-07 | J37: -3.668315e-08 | K37: -0.00515031941
A38: -0.325 | B38: -9.3623e-08 | J38: -3.0427475e-08 | K38: -0.004600638821
A39: -0.3 | B39: -8.2958e-08 | J39: -2.48874e-08 | K39: -0.004076560197
A40: -0.275 | B40: -7.2913e-08 | J40: -2.0051075e-08 | K40: -0.003582948403
A41: -0.25 | B41: -6.3512e-08 | J41: -1.5878e-08 | K41: -0.003120982801
A42: -0.225 | B42: -5.4728e-08 | J42: -1.23138e-08 | K42: -0.002689336609
A43: -0.2 | B43: -4.6607e-08 | J43: -9.3214e-09 | K43: -0.00229027027
A44: -0.175 | B44: -3.9112e-08 | J44: -6.8446e-09 | K44: -0.001921965602
A45: -0.15 | B45: -3.2217e-08 | J45: -4.83255e-09 | K45: -0.001583144963
A46: -0.125 | B46: -2.5857e-08 | J46: -3.232125e-09 | K46: -0.001270614251
A47: -0.1 | B47: -1.9951e-08 | J47: -1.9951e-09 | K47: -0.0009803931204
A48: -0.075 | B48: -1.4443e-08 | J48: -1.083225e-09 | K48: -0.0007097297297
A49: -0.05 | B49: -9.135e-09 | J49: -4.5675e-10 | K49: -0.0004488943489
A50: -0.025 | B50: -3.794e-09 | J50: -9.485e-11 | K50: -0.0001864373464
A51: 0 | B51: 2.094e-09 | J51: 0 | K51: 0.0001028992629
A52: 0.025 | B52: 8.957e-09 | J52: -2.23925e-10 | K52: 0.0004401474201
A53: 0.05 | B53: 1.7694e-08 | J53: -8.847e-10 | K53: 0.0008694840295
A54: 0.075 | B54: 2.9404e-08 | J54: -2.2053e-09 | K54: 0.001444914005
A55: 0.1 | B55: 4.5438e-08 | J55: -4.5438e-09 | K55: 0.002232825553
A56: 0.125 | B56: 6.7751e-08 | J56: -8.468875e-09 | K56: 0.003329287469
A57: 0.15 | B57: 9.9044e-08 | J57: -1.48566e-08 | K57: 0.004867027027
A58: 0.175 | B58: 1.43409e-07 | J58: -2.5096575e-08 | K58: 0.007047125307
A59: 0.2 | B59: 2.07376e-07 | J59: -4.14752e-08 | K59: 0.01019046683
A60: 0.225 | B60: 2.99806e-07 | J60: -6.745635e-08 | K60: 0.01473248157
A61: 0.25 | B61: 4.33275e-07 | J61: -1.0831875e-07 | K61: 0.02129115479
A62: 0.275 | B62: 6.24477e-07 | J62: -1.71731175e-07 | K62: 0.03068683047
A63: 0.3 | B63: 8.96417e-07 | J63: -2.689251e-07 | K63: 0.04404997543
A64: 0.325 | B64: 1.271235e-06 | J64: -4.13151375e-07 | K64: 0.06246855037
A65: 0.35 | B65: 1.80624e-06 | J65: -6.32184e-07 | K65: 0.08875872236
A66: 0.375 | B66: 2.554735e-06 | J66: -9.58025625e-07 | K66: 0.1255398034
A67: 0.4 | B67: 3.588242e-06 | J67: -1.4352968e-06 | K67: 0.1763263882
A68: 0.425 | B68: 5.006903e-06 | J68: -2.127933775e-06 | K68: 0.2460394595
A69: 0.45 | B69: 6.939918e-06 | J69: -3.1229631e-06 | K69: 0.3410279115
A70: 0.475 | B70: 9.55937e-06 | J70: -4.54070075e-06 | K70: 0.4697479115
A71: 0.5 | B71: 1.331216e-05 | J71: -6.65608e-06 | K71: 0.6541601966
A72: 0.525 | B72: 1.799428e-05 | J72: -9.446997e-06 | K72: 0.8842398034
A73: 0.55 | B73: 2.428411e-05 | J73: -1.33562605e-05 | K73: 1.193322359
A74: 0.575 | B74: 3.26036e-05 | J74: =-(B74*A74) -> -1.874707e-05 | K74: =B74*1000/$D$7 -> 1.602142506
A75: 0.6 | B75: 4.348582e-05 | J75: -2.6091492e-05 | K75: 2.136895332
A76: 0.625 | B76: 5.764272e-05 | J76: -3.60267e-05 | K76: 2.832566093
A77: 0.65 | B77: 7.585516e-05 | J77: -4.9305854e-05 | K77: 3.72752629
A78: 0.675 | B78: 9.906381e-05 | J78: -6.686807175e-05 | K78: 4.868000491
A79: 0.7 | B79: 0.0001313033 | J79: -9.191231e-05 | K79: 6.452250614
A80: 0.725 | B80: 0.0001670517 | J80: -0.0001211124825 | K80: 8.208928747
A81: 0.75 | B81: 0.0002113328 | J81: -0.0001584996 | K81: 10.38490418
A82: 0.775 | B82: 0.000265107 | J82: -0.000205457925 | K82: 13.02737101
A83: 0.8 | B83: 0.0003294139 | J83: -0.00026353112 | K83: 16.18741523
A84: 0.825 | B84: 0.0004052077 | J84: -0.0003342963525 | K84: 19.91192629
A85: 0.85 | B85: 0.0004933238 | J85: -0.00041932523 | K85: 24.24195577
A86: 0.875 | B86: 0.0005941784 | J86: -0.0005199061 | K86: 29.19795577
A87: 0.9 | B87: 0.0007083113 | J87: -0.00063748017 | K87: 34.80645209
A88: 0.925 | B88: 0.0008355443 | J88: -0.0007728784775 | K88: 41.05868796
A89: 0.95 | B89: 0.0009759869 | J89: -0.000927187555 | K89: 47.96004423
A90: 0.975 | B90: 0.001136998 | J90: -0.00110857305 | K90: 55.87213759
A91: 1 | B91: 0.001301558 | J91: -0.001301558 | K91: 63.95862408
A92: 1 | B92: 0.001309834 | J92: -0.001309834 | K92: 64.36530713
A93: 0.975 | B93: 0.00115746 | J93: -0.0011285235 | K93: 56.87764128
A94: 0.95 | B94: 0.001012679 | J94: -0.00096204505 | K94: 49.76309582
A95: 0.925 | B95: 0.0008755725 | J95: -0.0008099045625 | K95: 43.02567568
A96: 0.9 | B96: 0.0007529488 | J96: -0.00067765392 | K96: 36.99994103
A97: 0.875 | B97: 0.0006405252 | J97: -0.00056045955 | K97: 31.4754398
A98: 0.85 | B98: 0.0005396284 | J98: -0.00045868414 | K98: 26.51736609
A99: 0.825 | B99: 0.0004499051 | J99: -0.0003711717075 | K99: 22.10835872
A100: 0.8 | B100: 0.0003713655 | J100: -0.0002970924 | K100: 18.24891892
A101: 0.775 | B101: 0.0003034269 | J101: -0.0002351558475 | K101: 14.91041278
A102: 0.75 | B102: 0.0002454114 | J102: -0.00018405855 | K102: 12.05952826
A103: 0.725 | B103: 0.0001964479 | J103: -0.0001424247275 | K103: 9.653459459
A104: 0.7 | B104: 0.0001555781 | J104: -0.00010890467 | K104: 7.645115479
A105: 0.675 | B105: 0.0001219873 | J105: -8.23414275e-05 | K105: 5.994461916
A106: 0.65 | B106: 9.366387e-05 | J106: -6.08815155e-05 | K106: 4.602647174
A107: 0.625 | B107: 7.218039e-05 | J107: -4.511274375e-05 | K107: 3.546947912
A108: 0.6 | B108: 5.490542e-05 | J108: -3.2943252e-05 | K108: 2.698055037
A109: 0.575 | B109: 4.13291e-05 | J109: -2.37642325e-05 | K109: 2.030914005
A110: 0.55 | B110: 3.0785e-05 | J110: -1.693175e-05 | K110: 1.512776413
A111: 0.525 | B111: 2.268229e-05 | J111: -1.190820225e-05 | K111: 1.114608845
A112: 0.5 | B112: 1.654716e-05 | J112: -8.27358e-06 | K112: 0.8131282555
A113: 0.475 | B113: 1.193358e-05 | J113: -5.6684505e-06 | K113: 0.5864167076
A114: 0.45 | B114: 8.420772e-06 | J114: -3.7893474e-06 | K114: 0.4137971499
A115: 0.425 | B115: 5.960118e-06 | J115: -2.53305015e-06 | K115: 0.2928804914
A116: 0.4 | B116: 4.156514e-06 | J116: -1.6626056e-06 | K116: 0.2042513022
A117: 0.375 | B117: 2.864184e-06 | J117: -1.074069e-06 | K117: 0.1407461425
A118: 0.35 | B118: 1.95088e-06 | J118: -6.82808e-07 | K118: 0.09586633907
A119: 0.325 | B119: 1.316305e-06 | J119: -4.27799125e-07 | K119: 0.06468329238
A120: 0.3 | B120: 8.76674e-07 | J120: -2.630022e-07 | K120: 0.04307980344
A121: 0.275 | B121: 5.82093e-07 | J121: -1.60075575e-07 | K121: 0.02860407862
A122: 0.25 | B122: 3.84055e-07 | J122: -9.601375e-08 | K122: 0.01887248157
A123: 0.225 | B123: 2.52232e-07 | J123: -5.67522e-08 | K123: 0.01239469287
A124: 0.2 | B124: 1.65165e-07 | J124: -3.3033e-08 | K124: 0.008116216216
A125: 0.175 | B125: 1.07752e-07 | J125: -1.88566e-08 | K125: 0.005294938575
A126: 0.15 | B126: 6.9945e-08 | J126: -1.049175e-08 | K126: 0.003437100737
A127: 0.125 | B127: 4.4961e-08 | J127: -5.620125e-09 | K127: 0.002209385749
A128: 0.1 | B128: 2.8184e-08 | J128: -2.8184e-09 | K128: 0.001384963145
A129: 0.075 | B129: 1.671e-08 | J129: -1.25325e-09 | K129: 0.0008211302211
A130: 0.05 | B130: 8.622e-09 | J130: -4.311e-10 | K130: 0.0004236855037
A131: 0.025 | B131: 2.657e-09 | J131: -6.6425e-11 | K131: 0.0001305651106
A132: 0 | B132: -2.031e-09 | J132: 0 | K132: -9.98034398e-05
J133: 0 | K133: 0
J134: 0 | K134: 0
J135: 0 | K135: 0
J136: 0 | K136: 0
J137: 0 | K137: 0
J138: =-(B138*A138) -> 0 | K138: =B138*1000/$D$7 -> 0
J139: 0 | K139: 0
J140: 0 | K140: 0
J141: 0 | K141: 0
J142: 0 | K142: 0
J143: 0 | K143: 0
J144: 0 | K144: 0
J145: 0 | K145: 0
J146: 0 | K146: 0
J147: 0 | K147: 0
J148: 0 | K148: 0
J149: 0 | K149: 0
J150: 0 | K150: 0
J151: 0 | K151: 0
J152: 0 | K152: 0
J153: 0 | K153: 0
J154: 0 | K154: 0
J155: 0 | K155: 0
J156: 0 | K156: 0
J157: 0 | K157: 0
J158: 0 | K158: 0
J159: 0 | K159: 0
J160: 0 | K160: 0
J161: 0 | K161: 0
J162: 0 | K162: 0
J163: 0 | K163: 0
J164: 0 | K164: 0
J165: 0 | K165: 0
J166: 0 | K166: 0
J167: 0 | K167: 0
J168: 0 | K168: 0
J169: 0 | K169: 0
J170: 0 | K170: 0
J171: 0 | K171: 0
J172: 0 | K172: 0
J173: 0 | K173: 0
J174: 0 | K174: 0
J175: 0 | K175: 0
J176: 0 | K176: 0
J177: 0 | K177: 0
J178: 0 | K178: 0
J179: 0 | K179: 0
J180: 0 | K180: 0
J181: 0 | K181: 0
J182: 0 | K182: 0
J183: 0 | K183: 0
J184: 0 | K184: 0
J185: 0 | K185: 0
J186: 0 | K186: 0
J187: 0 | K187: 0
J188: 0 | K188: 0
J189: 0 | K189: 0
J190: 0 | K190: 0
J191: 0 | K191: 0
J192: 0 | K192: 0
J193: 0 | K193: 0
J194: 0 | K194: 0
J195: 0 | K195: 0
J196: 0 | K196: 0
J197: 0 | K197: 0
J198: 0 | K198: 0
J199: 0 | K199: 0
J200: 0 | K200: 0
J201: 0 | K201: 0
J202: =-(B202*A202) -> 0 | K202: =B202*1000/$D$7 -> 0
... 208 more rows

Sheet PbSCdS TBAC pedot
C2: iv curve name: | D2: PbSCdS TBAC pedot
C3: file name: | D3: PbSCdS TBAC pedot
C4: Illumination Time: | E4: (hh:mm)
C5: Illumination Intensity: | D5: 100 | E5: (mW/cm2)
C6: Filter: | D6: 420 | E6: (nm)
C7: Pixel Area: | D7: 0.02035 | E7: (cm2)
A9: V (V) | B9: J (A) | E9: (mA/cm2) | F9: (A) | J9: power | K9: J (mA/cm2)
A10: 0 | B10: -8.635273e-05 | D10: Jsc1 = | E10: =-F10*1000/$D$7 -> 4.243377396 | F10: =((INDEX(A10:B11,1,2)+INDEX(A10:B11,2,2))-((INDEX(A10:B11,1,2)-INDEX(A10:B11,2,2))/(INDEX(A10:B11,1,1)-INDEX(A10:B11,2,1))*(INDEX(A10:B11,1,1)+INDEX(A10:B11,2,1))))/2 -> -8.635273e-05 | G10: ((INDEX(A10:B11,1,2)+INDEX(A10:B11,2,2))-((INDEX(A10:B11,1,2)-INDEX(A10:B11,2,2))/(INDEX(A10:B11,1,1)- | H10: INDEX(A10:B11,2,1))*(INDEX(A10:B11,1,1)+INDEX(A10:B11,2,1))))/2 | J10: =-(B10*A10) -> 0 | K10: =B10*1000/$D$7 -> -4.243377396 | L10: Jsc | M10: =MAX(E14:E15)/20 -> 0.02198001483 | N10: =-E10 -> -4.243377396 | O10: =-E11 -> -3.501160688 | P10: =-E12 -> -4.076412776
A11: -0.025 | B11: -8.966072e-05 | D11: Jsc2 = | E11: =-F11*1000/$D$7 -> 3.501160688 | F11: =((INDEX(A30:B91,MATCH(0,A30:A91,1),2)+INDEX(A30:B91,MATCH(0,A30:A91,1)+1,2))-((INDEX(A30:B91,MATCH(0,A30:A91,1),2)-INDEX(A30:B91,MATCH(0,A30:A91,1)+1,2))/(INDEX(A30:B91,MATCH(0,A30:A91,1),1)-INDEX(A30:B91,MATCH(0,A30:A91,1)+1,1))*(INDEX(A30:B91,MATCH(0,A30:A91,1),1)+INDEX(A30:B91,MATCH(0,A30:A91,1)+1,1))))/2 -> -7.124862e-05 | G11: ((INDEX(a30:b91,MATCH(0,a30:a91,1),2)+INDEX(a30:b91,MATCH(0,a30:a91,1)+1,2))-((INDEX(a30:b91,MATCH(0,a30:a91,1),2)-INDEX(a30:b91,MATCH(0,a30:a91,1)+1,2))/ | H11: (INDEX(a30:b91,MATCH(0,a30:a91,1),1)-INDEX(a30:b91,MATCH(0,a30:a91,1)+1,1))*(INDEX(a30:b91,MATCH(0,a30:a91,1),1)+INDEX(a30:b91,MATCH(0,a30:a91,1)+1,1))))/2 | J11: -2.241518e-06 | K11: -4.405932187 | M11: =-MAX(E15:E16)/20 -> -0.02198001483 | N11: =-E10 -> -4.243377396 | O11: =-E11 -> -3.501160688 | P11: =-E12 -> -4.076412776
A12: -0.05 | B12: -9.246045e-05 | D12: Jsc3 = | E12: =-F12*1000/$D$7 -> 4.076412776 | F12: =((INDEX(A131:B132,1,2)+INDEX(A131:B132,2,2))-((INDEX(A131:B132,1,2)-INDEX(A131:B132,2,2))/(INDEX(A131:B132,1,1)-INDEX(A131:B132,2,1))*(INDEX(A131:B132,1,1)+INDEX(A131:B132,2,1))))/2 -> -8.2955e-05 | G12: ((INDEX(A131:B132,1,2)+INDEX(A131:B132,2,2))-((INDEX(A131:B132,1,2)-INDEX(A131:B132,2,2))/(INDEX(A131:B132,1,1)- | H12: INDEX(A131:B132,2,1))*(INDEX(A131:B132,1,1)+INDEX(A131:B132,2,1))))/2 | J12: -4.6230225e-06 | K12: -4.543511057
A13: -0.075 | B13: -9.43335e-05 | E13: (V) | J13: -7.0750125e-06 | K13: -4.635552826 | L13: Voc | M13: =E14 -> 0.4297512684 | N13: =-MAX(E10:E12)/15 -> -0.2828918264
A14: -0.1 | B14: -9.63237e-05 | D14: Voc1 = | E14: =F14 -> 0.4297512684 | F14: =((INDEX(A30:B91,MATCH(0,B30:B91,1),1)+INDEX(A30:B91,MATCH(0,B30:B91,1)+1,1))-((INDEX(A30:B91,MATCH(0,B30:B91,1),1)-INDEX(A30:B91,MATCH(0,B30:B91,1)+1,1))/(INDEX(A30:B91,MATCH(0,B30:B91,1),2)-INDEX(A30:B91,MATCH(0,B30:B91,1)+1,2))*(INDEX(A30:B91,MATCH(0,B30:B91,1),2)+INDEX(A30:B91,MATCH(0,B30:B91,1)+1,2))))/2 -> 0.4297512684 | G14: ((INDEX(a30:b91,MATCH(0,b30:b91,1),1)+INDEX(a30:b91,MATCH(0,b30:b91,1)+1,1))-((INDEX(a30:b91,MATCH(0,b30:b91,1),1)-INDEX(a30:b91,MATCH(0,b30:b91,1)+1,1))/ | H14: (INDEX(a30:b91,MATCH(0,b30:b91,1),2)-INDEX(a30:b91,MATCH(0,b30:b91,1)+1,2))*(INDEX(a30:b91,MATCH(0,b30:b91,1),2)+INDEX(a30:b91,MATCH(0,b30:b91,1)+1,2))))/2 | J14: -9.63237e-06 | K14: -4.733351351 | M14: =E14 -> 0.4297512684 | N14: =MAX(E10:E12)/15 -> 0.2828918264
A15: -0.125 | B15: -9.599065e-05 | D15: Voc2 = | E15: =F15 -> 0.4396002966 | F15: =((INDEX(A91:B130,MATCH(0,B91:B130,-1),1)+INDEX(A91:B130,MATCH(0,B91:B130,-1)+1,1))-((INDEX(A91:B130,MATCH(0,B91:B130,-1),1)-INDEX(A91:B130,MATCH(0,B91:B130,-1)+1,1))/(INDEX(A91:B130,MATCH(0,B91:B130,-1),2)-INDEX(A91:B130,MATCH(0,B91:B130,-1)+1,2))*(INDEX(A91:B130,MATCH(0,B91:B130,-1),2)+INDEX(A91:B130,MATCH(0,B91:B130,-1)+1,2))))/2 -> 0.4396002966 | G15: ((INDEX(a91:b130,MATCH(0,b91:b130,-1),1)+INDEX(a91:b130,MATCH(0,b91:b130,-1)+1,1))-((INDEX(a91:b130,MATCH(0,b91:b130,-1),1)-INDEX(a91:b130,MATCH(0,b91:b130,-1)+1,1))/(INDEX(a91:b130,MATCH(0,b91:b130,-1),2)- | H15: INDEX(a91:b130,MATCH(0,b91:b130,-1)+1,2))*(INDEX(a91:b130,MATCH(0,b91:b130,-1),2)+INDEX(a91:b130,MATCH(0,b91:b130,-1)+1,2))))/2 | J15: -1.199883125e-05 | K15: -4.716985258 | M15: =E15 -> 0.4396002966 | N15: =-MAX(E10:E12)/15 -> -0.2828918264
A16: -0.15 | B16: -9.846645e-05 | J16: -1.47699675e-05 | K16: -4.838646192 | M16: =E15 -> 0.4396002966 | N16: =MAX(E10:E12)/15 -> 0.2828918264
A17: -0.175 | B17: -9.895125e-05 | D17: FF1 = | E17: =F17 -> 0.3419784871 | F17: =(-1)*MAX(J30:J91)/F11/E14 -> 0.3419784871 | G17: (-1)*MAX(j30:j91)/F11/E14 | J17: -1.731646875e-05 | K17: -4.862469287
A18: -0.2 | B18: -0.0001012259 | D18: FF2 = | E18: =F18 -> 0.4008452689 | F18: =(-1)*MAX(J91:J130)/F12/E15 -> 0.4008452689 | G18: (-1)*MAX(j91:j130)/F12/E15 | J18: -2.024518e-05 | K18: -4.9742457 | L18: FF | M18: 0 | N18: =INDEX(K30:K91,MATCH(MAX(J30:J91),J30:J91,0),1) -> -2.058201966 | P18: INDEX(k30:k91,MATCH(MAX(j30:j91),j30:j91,0),1)
A19: -0.225 | B19: -0.0001028341 | J19: -2.31376725e-05 | K19: -5.053272727 | M19: =INDEX(A30:A91,MATCH(MAX(J30:J91),J30:J91,0),1) -> 0.25 | N19: =INDEX(K30:K91,MATCH(MAX(J30:J91),J30:J91,0),1) -> -2.058201966 | O19: INDEX(a30:a91,MATCH(MAX(j30:j91),j30:j91,0),1) | P19: INDEX(k30:k91,MATCH(MAX(j30:j91),j30:j91,0),1)
A20: -0.25 | B20: -0.0001011228 | D20: PCE up = | E20: =F20 -> 0.005145504914 | F20: =MAX(J30:J91)/D5/D7*1000 -> 0.005145504914 | G20: MAX(j30:j91)/D5/D7*1000 | J20: -2.52807e-05 | K20: -4.969179361 | M20: =INDEX(A30:A91,MATCH(MAX(J30:J91),J30:J91,0),1) -> 0.25 | N20: 0 | O20: INDEX(a30:a91,MATCH(MAX(j30:j91),j30:j91,0),1)
A21: -0.275 | B21: -0.0001024948 | D21: PCE back = | E21: =F21 -> 0.007183116216 | F21: =MAX(J91:J130)/D5/D7*1000 -> 0.007183116216 | G21: MAX(j91:j130)/D5/D7*1000 | J21: -2.818607e-05 | K21: -5.036599509
A22: -0.3 | B22: -0.0001053681 | J22: -3.161043e-05 | K22: -5.177793612 | M22: 0 | N22: =INDEX(K91:K130,MATCH(MAX(J91:J130),J91:J130,0),1) -> -2.61204226 | P22: INDEX(k91:k130,MATCH(MAX(j91:j130),j91:j130,0),1)
A23: -0.325 | B23: -0.0001042171 | D23: discrepancy: | E23: =E11*E14*E17/D5-E20 -> 0 | J23: -3.38705575e-05 | K23: -5.121233415 | M23: =INDEX(A91:A130,MATCH(MAX(J91:J130),J91:J130,0),1) -> 0.275 | N23: =INDEX(K91:K130,MATCH(MAX(J91:J130),J91:J130,0),1) -> -2.61204226 | O23: INDEX(a91:a130,MATCH(MAX(j91:j130),j91:j130,0),1) | P23: INDEX(k91:k130,MATCH(MAX(j91:j130),j91:j130,0),1)
A24: -0.35 | B24: -0.0001105694 | E24: =E12*E15*E18/D5-E21 -> 0 | J24: -3.869929e-05 | K24: -5.433385749 | M24: =INDEX(A91:A130,MATCH(MAX(J91:J130),J91:J130,0),1) -> 0.275 | N24: 0 | O24: INDEX(a91:a130,MATCH(MAX(j91:j130),j91:j130,0),1)
A25: -0.375 | B25: -0.0001144942 | J25: -4.2935325e-05 | K25: -5.626250614
A26: -0.4 | B26: -0.0001159531 | D26: V is from: | E26: =MIN(A10:A132) -> -0.5 | F26: to | G26: =MAX(A10:A132) -> 1 | J26: -4.638124e-05 | K26: -5.697941032
A27: -0.425 | B27: -0.0001205121 | D27: row: | E27: =MATCH(-0.5,A1:A132,0) -> 30 | F27: - | G27: =MATCH(1,A1:A132,0) -> 91 | J27: -5.12176425e-05 | K27: -5.921970516
A28: -0.45 | B28: -0.0001226728 | J28: -5.520276e-05 | K28: -6.02814742
A29: -0.475 | B29: -0.0001249714 | J29: -5.9361415e-05 | K29: -6.141100737
A30: -0.5 | B30: -0.000128687 | J30: -6.43435e-05 | K30: -6.323685504
A31: -0.5 | B31: -0.0001284462 | J31: -6.42231e-05 | K31: -6.31185258
A32: -0.475 | B32: -0.000117784 | J32: -5.59474e-05 | K32: -5.787911548
A33: -0.45 | B33: -0.000110132 | J33: -4.95594e-05 | K33: -5.411891892
A34: -0.425 | B34: -0.0001067464 | J34: -4.536722e-05 | K34: -5.245523342
A35: -0.4 | B35: -0.0001016375 | J35: -4.0655e-05 | K35: -4.994471744
A36: -0.375 | B36: -9.752465e-05 | J36: -3.657174375e-05 | K36: -4.792366093
A37: -0.35 | B37: -9.428201e-05 | J37: -3.29987035e-05 | K37: -4.633022604
A38: -0.325 | B38: -9.111461e-05 | J38: -2.961224825e-05 | K38: -4.477376413
A39: -0.3 | B39: -8.911004e-05 | J39: -2.6733012e-05 | K39: -4.378871744
A40: -0.275 | B40: -8.602621e-05 | J40: -2.365720775e-05 | K40: -4.227332187
A41: -0.25 | B41: -8.360573e-05 | J41: -2.09014325e-05 | K41: -4.108389681
A42: -0.225 | B42: -8.244823e-05 | J42: -1.855085175e-05 | K42: -4.051510074
A43: -0.2 | B43: -7.963632e-05 | J43: -1.5927264e-05 | K43: -3.913332678
A44: -0.175 | B44: -7.762109e-05 | J44: -1.358369075e-05 | K44: -3.814304177
A45: -0.15 | B45: -7.642087e-05 | J45: -1.14631305e-05 | K45: -3.755325307
A46: -0.125 | B46: -7.419135e-05 | J46: -9.27391875e-06 | K46: -3.645766585
A47: -0.1 | B47: -7.17892e-05 | J47: -7.17892e-06 | K47: -3.527724816
A48: -0.075 | B48: -7.038019e-05 | J48: -5.27851425e-06 | K48: -3.458485995
A49: -0.05 | B49: -6.858894e-05 | J49: -3.429447e-06 | K49: -3.370463882
A50: -0.025 | B50: -6.639206e-05 | J50: -1.6598015e-06 | K50: -3.262509091
A51: 0 | B51: -7.124862e-05 | J51: 0 | K51: -3.501160688
A52: 0.025 | B52: -6.795756e-05 | J52: 1.698939e-06 | K52: -3.339437838
A53: 0.05 | B53: -6.543833e-05 | J53: 3.2719165e-06 | K53: -3.215642752
A54: 0.075 | B54: -6.219577e-05 | J54: 4.66468275e-06 | K54: -3.056303194
A55: 0.1 | B55: -6.011781e-05 | J55: 6.011781e-06 | K55: -2.954192138
A56: 0.125 | B56: -5.55853e-05 | J56: 6.9481625e-06 | K56: -2.731464373
A57: 0.15 | B57: -5.323922e-05 | J57: 7.985883e-06 | K57: -2.616177887
A58: 0.175 | B58: -5.16412e-05 | J58: 9.03721e-06 | K58: -2.537651106
A59: 0.2 | B59: -4.835141e-05 | J59: 9.670282e-06 | K59: -2.375990663
A60: 0.225 | B60: -4.503669e-05 | J60: 1.013325525e-05 | K60: -2.21310516
A61: 0.25 | B61: -4.188441e-05 | J61: 1.04711025e-05 | K61: -2.058201966
A62: 0.275 | B62: -3.805386e-05 | J62: 1.04648115e-05 | K62: -1.86996855
A63: 0.3 | B63: -3.364088e-05 | J63: 1.0092264e-05 | K63: -1.653114496
A64: 0.325 | B64: -2.869608e-05 | J64: 9.326226e-06 | K64: -1.410126781
A65: 0.35 | B65: -2.319365e-05 | J65: 8.1177775e-06 | K65: -1.139737101
A66: 0.375 | B66: -1.648632e-05 | J66: 6.18237e-06 | K66: -0.8101385749
A67: 0.4 | B67: -1.145727e-05 | J67: 4.582908e-06 | K67: -0.5630108108
A68: 0.425 | B68: -2.351401e-06 | J68: 9.99345425e-07 | K68: -0.1155479607
A69: 0.45 | B69: 1.002109e-05 | J69: -4.5094905e-06 | K69: 0.492436855
A70: 0.475 | B70: 2.585087e-05 | J70: -1.227916325e-05 | K70: 1.270313022
A71: 0.5 | B71: 4.648017e-05 | J71: -2.3240085e-05 | K71: 2.284037838
A72: 0.525 | B72: 7.116178e-05 | J72: -3.73599345e-05 | K72: 3.496893366
A73: 0.55 | B73: 0.0001015678 | J73: -5.586229e-05 | K73: 4.991046683
A74: 0.575 | B74: 0.0001386556 | J74: =-(B74*A74) -> -7.972697e-05 | K74: =B74*1000/$D$7 -> 6.813542998
A75: 0.6 | B75: 0.0001825873 | J75: -0.00010955238 | K75: 8.972348894
A76: 0.625 | B76: 0.0002343827 | J76: -0.0001464891875 | K76: 11.5175774
A77: 0.65 | B77: 0.0002936134 | J77: -0.00019084871 | K77: 14.4281769
A78: 0.675 | B78: 0.0003628425 | J78: -0.0002449186875 | K78: 17.83009828
A79: 0.7 | B79: 0.0004407561 | J79: -0.00030852927 | K79: 21.65877641
A80: 0.725 | B80: 0.0005277951 | J80: -0.0003826514475 | K80: 25.93587715
A81: 0.75 | B81: 0.0006257616 | J81: -0.0004693212 | K81: 30.74995577
A82: 0.775 | B82: 0.0007343427 | J82: -0.0005691155925 | K82: 36.08563636
A83: 0.8 | B83: 0.0008528365 | J83: -0.0006822692 | K83: 41.90842752
A84: 0.825 | B84: 0.0009835606 | J84: -0.000811437495 | K84: 48.33221622
A85: 0.85 | B85: 0.001130089 | J85: -0.00096057565 | K85: 55.53262899
A86: 0.875 | B86: 0.001282433 | J86: -0.001122128875 | K86: 63.01882064
A87: 0.9 | B87: 0.00144746 | J87: -0.001302714 | K87: 71.12825553
A88: 0.925 | B88: 0.001650623 | J88: -0.001526826275 | K88: 81.11169533
A89: 0.95 | B89: 0.001831881 | J89: -0.00174028695 | K89: 90.01872236
A90: 0.975 | B90: 0.002025489 | J90: -0.001974851775 | K90: 99.53262899
A91: 1 | B91: 0.002235539 | J91: -0.002235539 | K91: 109.8544963
A92: 1 | B92: 0.002237892 | J92: -0.002237892 | K92: 109.9701229
A93: 0.975 | B93: 0.002037995 | J93: -0.001987045125 | K93: 100.1471744
A94: 0.95 | B94: 0.001843772 | J94: -0.0017515834 | K94: 90.60304668
A95: 0.925 | B95: 0.001660061 | J95: -0.001535556425 | K95: 81.57547912
A96: 0.9 | B96: 0.001489583 | J96: -0.0013406247 | K96: 73.19818182
A97: 0.875 | B97: 0.001324565 | J97: -0.001158994375 | K97: 65.08918919
A98: 0.85 | B98: 0.001172606 | J98: -0.0009967151 | K98: 57.62191646
A99: 0.825 | B99: 0.001029276 | J99: -0.0008491527 | K99: 50.57867322
A100: 0.8 | B100: 0.0008951457 | J100: -0.00071611656 | K100: 43.98750369
A101: 0.775 | B101: 0.0007747067 | J101: -0.0006003976925 | K101: 38.06912531
A102: 0.75 | B102: 0.0006638697 | J102: -0.000497902275 | K102: 32.62258968
A103: 0.725 | B103: 0.0005643382 | J103: -0.000409145195 | K103: 27.73160688
A104: 0.7 | B104: 0.0004730047 | J104: -0.00033110329 | K104: 23.2434742
A105: 0.675 | B105: 0.0003912444 | J105: -0.00026408997 | K105: 19.22576904
A106: 0.65 | B106: 0.0003181136 | J106: -0.00020677384 | K106: 15.63211794
A107: 0.625 | B107: 0.0002538293 | J107: -0.0001586433125 | K107: 12.47318428
A108: 0.6 | B108: 0.0001980817 | J108: -0.00011884902 | K108: 9.733744472
A109: 0.575 | B109: 0.0001497913 | J109: -8.61299975e-05 | K109: 7.360751843
A110: 0.55 | B110: 0.0001088132 | J110: -5.984726e-05 | K110: 5.347085995
A111: 0.525 | B111: 7.448435e-05 | J111: -3.910428375e-05 | K111: 3.660164619
A112: 0.5 | B112: 4.622764e-05 | J112: -2.311382e-05 | K112: 2.271628501
A113: 0.475 | B113: 2.327731e-05 | J113: -1.105672225e-05 | K113: 1.143848157
A114: 0.45 | B114: 5.662183e-06 | J114: -2.54798235e-06 | K114: 0.2782399509
A115: 0.425 | B115: -7.949222e-06 | J115: 3.37841935e-06 | K115: -0.3906251597
A116: 0.4 | B116: -1.796373e-05 | J116: 7.185492e-06 | K116: -0.8827385749
A117: 0.375 | B117: -2.762261e-05 | J117: 1.035847875e-05 | K117: -1.357376413
A118: 0.35 | B118: -3.568257e-05 | J118: 1.24888995e-05 | K118: -1.753443243
A119: 0.325 | B119: -4.257768e-05 | J119: 1.3837746e-05 | K119: -2.092269287
A120: 0.3 | B120: -4.731711e-05 | J120: 1.4195133e-05 | K120: -2.325165111
A121: 0.275 | B121: -5.315506e-05 | J121: 1.46176415e-05 | K121: -2.61204226
A122: 0.25 | B122: -5.730629e-05 | J122: 1.43265725e-05 | K122: -2.816033907
A123: 0.225 | B123: -6.09236e-05 | J123: 1.370781e-05 | K123: -2.993788698
A124: 0.2 | B124: -6.393861e-05 | J124: 1.2787722e-05 | K124: -3.141946437
A125: 0.175 | B125: -6.766417e-05 | J125: 1.184122975e-05 | K125: -3.325020639
A126: 0.15 | B126: -6.95709e-05 | J126: 1.0435635e-05 | K126: -3.418717445
A127: 0.125 | B127: -7.270534e-05 | J127: 9.0881675e-06 | K127: -3.57274398
A128: 0.1 | B128: -7.505029e-05 | J128: 7.505029e-06 | K128: -3.687974939
A129: 0.075 | B129: -7.71886e-05 | J129: 5.789145e-06 | K129: -3.793051597
A130: 0.05 | B130: -7.829961e-05 | J130: 3.9149805e-06 | K130: -3.847646683
A131: 0.025 | B131: -8.074422e-05 | J131: 2.0186055e-06 | K131: -3.967774939
A132: 0 | B132: -8.2955e-05 | J132: 0 | K132: -4.076412776
J133: 0 | K133: 0
J134: 0 | K134: 0
J135: 0 | K135: 0
J136: 0 | K136: 0
J137: 0 | K137: 0
J138: =-(B138*A138) -> 0 | K138: =B138*1000/$D$7 -> 0
J139: 0 | K139: 0
J140: 0 | K140: 0
J141: 0 | K141: 0
J142: 0 | K142: 0
J143: 0 | K143: 0
J144: 0 | K144: 0
J145: 0 | K145: 0
J146: 0 | K146: 0
J147: 0 | K147: 0
J148: 0 | K148: 0
J149: 0 | K149: 0
J150: 0 | K150: 0
J151: 0 | K151: 0
J152: 0 | K152: 0
J153: 0 | K153: 0
J154: 0 | K154: 0
J155: 0 | K155: 0
J156: 0 | K156: 0
J157: 0 | K157: 0
J158: 0 | K158: 0
J159: 0 | K159: 0
J160: 0 | K160: 0
J161: 0 | K161: 0
J162: 0 | K162: 0
J163: 0 | K163: 0
J164: 0 | K164: 0
J165: 0 | K165: 0
J166: 0 | K166: 0
J167: 0 | K167: 0
J168: 0 | K168: 0
J169: 0 | K169: 0
J170: 0 | K170: 0
J171: 0 | K171: 0
J172: 0 | K172: 0
J173: 0 | K173: 0
J174: 0 | K174: 0
J175: 0 | K175: 0
J176: 0 | K176: 0
J177: 0 | K177: 0
J178: 0 | K178: 0
J179: 0 | K179: 0
J180: 0 | K180: 0
J181: 0 | K181: 0
J182: 0 | K182: 0
J183: 0 | K183: 0
J184: 0 | K184: 0
J185: 0 | K185: 0
J186: 0 | K186: 0
J187: 0 | K187: 0
J188: 0 | K188: 0
J189: 0 | K189: 0
J190: 0 | K190: 0
J191: 0 | K191: 0
J192: 0 | K192: 0
J193: 0 | K193: 0
J194: 0 | K194: 0
J195: 0 | K195: 0
J196: 0 | K196: 0
J197: 0 | K197: 0
J198: 0 | K198: 0
J199: 0 | K199: 0
J200: 0 | K200: 0
J201: 0 | K201: 0
J202: =-(B202*A202) -> 0 | K202: =B202*1000/$D$7 -> 0
... 208 more rows

Sheet PbSCdS TBAB pedot dark
C2: iv curve name: | D2: PbSCdS TBAB pedot dark
C3: file name: | D3: PbSCdS TBAB pedot dark
C4: Illumination Time: | E4: (hh:mm)
C5: Illumination Intensity: | D5: 100 | E5: (mW/cm2)
C6: Filter: | D6: 420 | E6: (nm)
C7: Pixel Area: | D7: 0.02035 | E7: (cm2)
A9: V (V) | B9: J (A) | E9: (mA/cm2) | F9: (A) | J9: power | K9: J (mA/cm2)
A10: 0 | B10: -7.07e-10 | D10: Jsc1 = | E10: =-F10*1000/$D$7 -> 3.474201474e-05 | F10: =((INDEX(A10:B11,1,2)+INDEX(A10:B11,2,2))-((INDEX(A10:B11,1,2)-INDEX(A10:B11,2,2))/(INDEX(A10:B11,1,1)-INDEX(A10:B11,2,1))*(INDEX(A10:B11,1,1)+INDEX(A10:B11,2,1))))/2 -> -7.07e-10 | G10: ((INDEX(A10:B11,1,2)+INDEX(A10:B11,2,2))-((INDEX(A10:B11,1,2)-INDEX(A10:B11,2,2))/(INDEX(A10:B11,1,1)- | H10: INDEX(A10:B11,2,1))*(INDEX(A10:B11,1,1)+INDEX(A10:B11,2,1))))/2 | J10: =-(B10*A10) -> 0 | K10: =B10*1000/$D$7 -> -3.474201474e-05 | L10: Jsc | M10: =MAX(E14:E15)/20 ->  | N10: =-E10 -> -3.474201474e-05 | O10: =-E11 -> 0.0001519410319 | P10: =-E12 -> -0.0001714004914
A11: -0.025 | B11: -1.8072e-08 | D11: Jsc2 = | E11: =-F11*1000/$D$7 -> -0.0001519410319 | F11: =((INDEX(A30:B91,MATCH(0,A30:A91,1),2)+INDEX(A30:B91,MATCH(0,A30:A91,1)+1,2))-((INDEX(A30:B91,MATCH(0,A30:A91,1),2)-INDEX(A30:B91,MATCH(0,A30:A91,1)+1,2))/(INDEX(A30:B91,MATCH(0,A30:A91,1),1)-INDEX(A30:B91,MATCH(0,A30:A91,1)+1,1))*(INDEX(A30:B91,MATCH(0,A30:A91,1),1)+INDEX(A30:B91,MATCH(0,A30:A91,1)+1,1))))/2 -> 3.092e-09 | G11: ((INDEX(a30:b91,MATCH(0,a30:a91,1),2)+INDEX(a30:b91,MATCH(0,a30:a91,1)+1,2))-((INDEX(a30:b91,MATCH(0,a30:a91,1),2)-INDEX(a30:b91,MATCH(0,a30:a91,1)+1,2))/ | H11: (INDEX(a30:b91,MATCH(0,a30:a91,1),1)-INDEX(a30:b91,MATCH(0,a30:a91,1)+1,1))*(INDEX(a30:b91,MATCH(0,a30:a91,1),1)+INDEX(a30:b91,MATCH(0,a30:a91,1)+1,1))))/2 | J11: -4.518e-10 | K11: -0.0008880589681 | M11: =-MAX(E15:E16)/20 ->  | N11: =-E10 -> -3.474201474e-05 | O11: =-E11 -> 0.0001519410319 | P11: =-E12 -> -0.0001714004914
A12: -0.05 | B12: -3.0807e-08 | D12: Jsc3 = | E12: =-F12*1000/$D$7 -> 0.0001714004914 | F12: =((INDEX(A131:B132,1,2)+INDEX(A131:B132,2,2))-((INDEX(A131:B132,1,2)-INDEX(A131:B132,2,2))/(INDEX(A131:B132,1,1)-INDEX(A131:B132,2,1))*(INDEX(A131:B132,1,1)+INDEX(A131:B132,2,1))))/2 -> -3.488e-09 | G12: ((INDEX(A131:B132,1,2)+INDEX(A131:B132,2,2))-((INDEX(A131:B132,1,2)-INDEX(A131:B132,2,2))/(INDEX(A131:B132,1,1)- | H12: INDEX(A131:B132,2,1))*(INDEX(A131:B132,1,1)+INDEX(A131:B132,2,1))))/2 | J12: -1.54035e-09 | K12: -0.001513857494
A13: -0.075 | B13: -4.2402e-08 | E13: (V) | J13: -3.18015e-09 | K13: -0.002083636364 | L13: Voc | M13: =E14 -> -0.00367605098 | N13: =-MAX(E10:E12)/15 -> -1.142669943e-05
A14: -0.1 | B14: -5.3975e-08 | D14: Voc1 = | E14: =F14 -> -0.00367605098 | F14: =((INDEX(A30:B91,MATCH(0,B30:B91,1),1)+INDEX(A30:B91,MATCH(0,B30:B91,1)+1,1))-((INDEX(A30:B91,MATCH(0,B30:B91,1),1)-INDEX(A30:B91,MATCH(0,B30:B91,1)+1,1))/(INDEX(A30:B91,MATCH(0,B30:B91,1),2)-INDEX(A30:B91,MATCH(0,B30:B91,1)+1,2))*(INDEX(A30:B91,MATCH(0,B30:B91,1),2)+INDEX(A30:B91,MATCH(0,B30:B91,1)+1,2))))/2 -> -0.00367605098 | G14: ((INDEX(a30:b91,MATCH(0,b30:b91,1),1)+INDEX(a30:b91,MATCH(0,b30:b91,1)+1,1))-((INDEX(a30:b91,MATCH(0,b30:b91,1),1)-INDEX(a30:b91,MATCH(0,b30:b91,1)+1,1))/ | H14: (INDEX(a30:b91,MATCH(0,b30:b91,1),2)-INDEX(a30:b91,MATCH(0,b30:b91,1)+1,2))*(INDEX(a30:b91,MATCH(0,b30:b91,1),2)+INDEX(a30:b91,MATCH(0,b30:b91,1)+1,2))))/2 | J14: -5.3975e-09 | K14: -0.002652334152 | M14: =E14 -> -0.00367605098 | N14: =MAX(E10:E12)/15 -> 1.142669943e-05
A15: -0.125 | B15: -6.6001e-08 | D15: Voc2 = | E15: =F15 ->  | F15: =((INDEX(A91:B130,MATCH(0,B91:B130,-1),1)+INDEX(A91:B130,MATCH(0,B91:B130,-1)+1,1))-((INDEX(A91:B130,MATCH(0,B91:B130,-1),1)-INDEX(A91:B130,MATCH(0,B91:B130,-1)+1,1))/(INDEX(A91:B130,MATCH(0,B91:B130,-1),2)-INDEX(A91:B130,MATCH(0,B91:B130,-1)+1,2))*(INDEX(A91:B130,MATCH(0,B91:B130,-1),2)+INDEX(A91:B130,MATCH(0,B91:B130,-1)+1,2))))/2 ->  | G15: ((INDEX(a91:b130,MATCH(0,b91:b130,-1),1)+INDEX(a91:b130,MATCH(0,b91:b130,-1)+1,1))-((INDEX(a91:b130,MATCH(0,b91:b130,-1),1)-INDEX(a91:b130,MATCH(0,b91:b130,-1)+1,1))/(INDEX(a91:b130,MATCH(0,b91:b130,-1),2)- | H15: INDEX(a91:b130,MATCH(0,b91:b130,-1)+1,2))*(INDEX(a91:b130,MATCH(0,b91:b130,-1),2)+INDEX(a91:b130,MATCH(0,b91:b130,-1)+1,2))))/2 | J15: -8.250125e-09 | K15: -0.003243292383 | M15: =E15 ->  | N15: =-MAX(E10:E12)/15 -> -1.142669943e-05
A16: -0.15 | B16: -7.8868e-08 | J16: -1.18302e-08 | K16: -0.003875577396 | M16: =E15 ->  | N16: =MAX(E10:E12)/15 -> 1.142669943e-05
A17: -0.175 | B17: -9.2693e-08 | D17: FF1 = | E17: =F17 -> 0 | F17: =(-1)*MAX(J30:J91)/F11/E14 -> 0 | G17: (-1)*MAX(j30:j91)/F11/E14 | J17: -1.6221275e-08 | K17: -0.004554938575
A18: -0.2 | B18: -1.0818e-07 | D18: FF2 = | E18: =F18 ->  | F18: =(-1)*MAX(J91:J130)/F12/E15 ->  | G18: (-1)*MAX(j91:j130)/F12/E15 | J18: -2.1636e-08 | K18: -0.005315970516 | L18: FF | M18: 0 | N18: =INDEX(K30:K91,MATCH(MAX(J30:J91),J30:J91,0),1) -> 0.0001519410319 | P18: INDEX(k30:k91,MATCH(MAX(j30:j91),j30:j91,0),1)
A19: -0.225 | B19: -1.2508e-07 | J19: -2.8143e-08 | K19: -0.006146437346 | M19: =INDEX(A30:A91,MATCH(MAX(J30:J91),J30:J91,0),1) -> 0 | N19: =INDEX(K30:K91,MATCH(MAX(J30:J91),J30:J91,0),1) -> 0.0001519410319 | O19: INDEX(a30:a91,MATCH(MAX(j30:j91),j30:j91,0),1) | P19: INDEX(k30:k91,MATCH(MAX(j30:j91),j30:j91,0),1)
A20: -0.25 | B20: -1.42117e-07 | D20: PCE up = | E20: =F20 -> 0 | F20: =MAX(J30:J91)/D5/D7*1000 -> 0 | G20: MAX(j30:j91)/D5/D7*1000 | J20: -3.552925e-08 | K20: -0.006983636364 | M20: =INDEX(A30:A91,MATCH(MAX(J30:J91),J30:J91,0),1) -> 0 | N20: 0 | O20: INDEX(a30:a91,MATCH(MAX(j30:j91),j30:j91,0),1)
A21: -0.275 | B21: -1.61368e-07 | D21: PCE back = | E21: =F21 -> -5.237100737e-07 | F21: =MAX(J91:J130)/D5/D7*1000 -> -5.237100737e-07 | G21: MAX(j91:j130)/D5/D7*1000 | J21: -4.43762e-08 | K21: -0.00792963145
A22: -0.3 | B22: -1.82195e-07 | J22: -5.46585e-08 | K22: -0.008953071253 | M22: 0 | N22: =INDEX(K91:K130,MATCH(MAX(J91:J130),J91:J130,0),1) -> 0.001047420147 | P22: INDEX(k91:k130,MATCH(MAX(j91:j130),j91:j130,0),1)
A23: -0.325 | B23: -2.03484e-07 | D23: discrepancy: | E23: =E11*E14*E17/D5-E20 -> 0 | J23: -6.61323e-08 | K23: -0.009999213759 | M23: =INDEX(A91:A130,MATCH(MAX(J91:J130),J91:J130,0),1) -> 0.05 | N23: =INDEX(K91:K130,MATCH(MAX(J91:J130),J91:J130,0),1) -> 0.001047420147 | O23: INDEX(a91:a130,MATCH(MAX(j91:j130),j91:j130,0),1) | P23: INDEX(k91:k130,MATCH(MAX(j91:j130),j91:j130,0),1)
A24: -0.35 | B24: -2.26818e-07 | E24: =E12*E15*E18/D5-E21 ->  | J24: -7.93863e-08 | K24: -0.01114584767 | M24: =INDEX(A91:A130,MATCH(MAX(J91:J130),J91:J130,0),1) -> 0.05 | N24: 0 | O24: INDEX(a91:a130,MATCH(MAX(j91:j130),j91:j130,0),1)
A25: -0.375 | B25: -2.52062e-07 | J25: -9.452325e-08 | K25: -0.01238633907
A26: -0.4 | B26: -2.79069e-07 | D26: V is from: | E26: =MIN(A10:A132) -> -0.5 | F26: to | G26: =MAX(A10:A132) -> 1 | J26: -1.116276e-07 | K26: -0.01371346437
A27: -0.425 | B27: -3.07976e-07 | D27: row: | E27: =MATCH(-0.5,A1:A132,0) -> 30 | F27: - | G27: =MATCH(1,A1:A132,0) -> 91 | J27: -1.308898e-07 | K27: -0.01513395577
A28: -0.45 | B28: -3.38463e-07 | J28: -1.5230835e-07 | K28: -0.01663208845
A29: -0.475 | B29: -3.71815e-07 | J29: -1.76612125e-07 | K29: -0.01827100737
A30: -0.5 | B30: -4.05636e-07 | J30: -2.02818e-07 | K30: -0.01993297297
A31: -0.5 | B31: -4.17638e-07 | J31: -2.08819e-07 | K31: -0.02052275184
A32: -0.475 | B32: -4.03597e-07 | J32: -1.91708575e-07 | K32: -0.01983277641
A33: -0.45 | B33: -3.86582e-07 | J33: -1.739619e-07 | K33: -0.01899665848
A34: -0.425 | B34: -3.6845e-07 | J34: -1.5659125e-07 | K34: -0.01810565111
A35: -0.4 | B35: -3.49404e-07 | J35: -1.397616e-07 | K35: -0.01716972973
A36: -0.375 | B36: -3.27891e-07 | J36: -1.22959125e-07 | K36: -0.01611257985
A37: -0.35 | B37: -3.05805e-07 | J37: -1.0703175e-07 | K37: -0.01502727273
A38: -0.325 | B38: -2.81701e-07 | J38: -9.1552825e-08 | K38: -0.01384280098
A39: -0.3 | B39: -2.57287e-07 | J39: -7.71861e-08 | K39: -0.01264309582
A40: -0.275 | B40: -2.31716e-07 | J40: -6.37219e-08 | K40: -0.01138653563
A41: -0.25 | B41: -2.06586e-07 | J41: -5.16465e-08 | K41: -0.01015164619
A42: -0.225 | B42: -1.81758e-07 | J42: -4.089555e-08 | K42: -0.008931597052
A43: -0.2 | B43: -1.58135e-07 | J43: -3.1627e-08 | K43: -0.007770761671
A44: -0.175 | B44: -1.35038e-07 | J44: -2.363165e-08 | K44: -0.006635773956
A45: -0.15 | B45: -1.1336e-07 | J45: -1.7004e-08 | K45: -0.005570515971
A46: -0.125 | B46: -9.2939e-08 | J46: -1.1617375e-08 | K46: -0.004567027027
A47: -0.1 | B47: -7.3314e-08 | J47: -7.3314e-09 | K47: -0.003602653563
A48: -0.075 | B48: -5.4836e-08 | J48: -4.1127e-09 | K48: -0.002694643735
A49: -0.05 | B49: -3.6632e-08 | J49: -1.8316e-09 | K49: -0.00180009828
A50: -0.025 | B50: -1.7936e-08 | J50: -4.484e-10 | K50: -0.0008813759214
A51: 0 | B51: 3.092e-09 | J51: 0 | K51: 0.0001519410319
A52: 0.025 | B52: 2.9192e-08 | J52: -7.298e-10 | K52: 0.001434496314
A53: 0.05 | B53: 6.3942e-08 | J53: -3.1971e-09 | K53: 0.003142113022
A54: 0.075 | B54: 1.12953e-07 | J54: -8.471475e-09 | K54: 0.005550515971
A55: 0.1 | B55: 1.84168e-07 | J55: -1.84168e-08 | K55: 0.00905002457
A56: 0.125 | B56: 2.89277e-07 | J56: -3.6159625e-08 | K56: 0.014215086
A57: 0.15 | B57: 4.44799e-07 | J57: -6.671985e-08 | K57: 0.02185744472
A58: 0.175 | B58: 6.72913e-07 | J58: -1.17759775e-07 | K58: 0.03306697789
A59: 0.2 | B59: 1.004894e-06 | J59: -2.009788e-07 | K59: 0.04938054054
A60: 0.225 | B60: 1.417502e-06 | J60: -3.1893795e-07 | K60: 0.06965611794
A61: 0.25 | B61: 2.108452e-06 | J61: -5.27113e-07 | K61: 0.1036094349
A62: 0.275 | B62: 3.071472e-06 | J62: -8.446548e-07 | K62: 0.150932285
A63: 0.3 | B63: 4.423001e-06 | J63: -1.3269003e-06 | K63: 0.2173464865
A64: 0.325 | B64: 6.315739e-06 | J64: -2.052615175e-06 | K64: 0.3103557248
A65: 0.35 | B65: 8.946256e-06 | J65: -3.1311896e-06 | K65: 0.4396194595
A66: 0.375 | B66: 1.243075e-05 | J66: -4.66153125e-06 | K66: 0.6108476658
A67: 0.4 | B67: 1.750245e-05 | J67: -7.00098e-06 | K67: 0.8600712531
A68: 0.425 | B68: 2.440883e-05 | J68: -1.037375275e-05 | K68: 1.199451106
A69: 0.45 | B69: 3.376916e-05 | J69: -1.5196122e-05 | K69: 1.659418182
A70: 0.475 | B70: 4.639255e-05 | J70: -2.203646125e-05 | K70: 2.279732187
A71: 0.5 | B71: 6.332152e-05 | J71: -3.166076e-05 | K71: 3.111622604
A72: 0.525 | B72: 8.576455e-05 | J72: -4.502638875e-05 | K72: 4.214474201
A73: 0.55 | B73: 0.0001177527 | J73: -6.4763985e-05 | K73: 5.786373464
A74: 0.575 | B74: 0.0001560038 | J74: =-(B74*A74) -> -8.9702185e-05 | K74: =B74*1000/$D$7 -> 7.666034398
A75: 0.6 | B75: 0.0002052594 | J75: -0.00012315564 | K75: 10.086457
A76: 0.625 | B76: 0.0002674475 | J76: -0.0001671546875 | K76: 13.14238329
A77: 0.65 | B77: 0.0003444042 | J77: -0.00022386273 | K77: 16.92403931
A78: 0.675 | B78: 0.0004380349 | J78: -0.0002956735575 | K78: 21.52505651
A79: 0.7 | B79: 0.0005493779 | J79: -0.00038456453 | K79: 26.996457
A80: 0.725 | B80: 0.0006796861 | J80: -0.0004927724225 | K80: 33.39980835
A81: 0.75 | B81: 0.0008289378 | J81: -0.00062170335 | K81: 40.73404423
A82: 0.775 | B82: 0.0009972268 | J82: -0.00077285077 | K82: 49.00377396
A83: 0.8 | B83: 0.001194678 | J83: -0.0009557424 | K83: 58.70653563
A84: 0.825 | B84: 0.001397785 | J84: -0.001153172625 | K84: 68.68722359
A85: 0.85 | B85: 0.00161822 | J85: -0.001375487 | K85: 79.51941032
A86: 0.875 | B86: 0.001853727 | J86: -0.001622011125 | K86: 91.09223587
A87: 0.9 | B87: 0.002103464 | J87: -0.0018931176 | K87: 103.3643243
A88: 0.925 | B88: 0.0023658 | J88: -0.002188365 | K88: 116.2555283
A89: 0.95 | B89: 0.002639355 | J89: -0.00250738725 | K89: 129.6980344
A90: 0.975 | B90: 0.002923177 | J90: -0.002850097575 | K90: 143.6450614
A91: 1 | B91: 0.003216177 | J91: -0.003216177 | K91: 158.0430958
A92: 1 | B92: 0.003232338 | J92: -0.003232338 | K92: 158.8372482
A93: 0.975 | B93: 0.002967124 | J93: -0.0028929459 | K93: 145.8046192
A94: 0.95 | B94: 0.002704702 | J94: -0.0025694669 | K94: 132.9091892
A95: 0.925 | B95: 0.002448723 | J95: -0.002265068775 | K95: 120.3303686
A96: 0.9 | B96: 0.002200829 | J96: -0.0019807461 | K96: 108.1488452
A97: 0.875 | B97: 0.001962187 | J97: -0.001716913625 | K97: 96.4219656
A98: 0.85 | B98: 0.001734697 | J98: -0.00147449245 | K98: 85.24309582
A99: 0.825 | B99: 0.001518907 | J99: -0.001253098275 | K99: 74.63916462
A100: 0.8 | B100: 0.001316697 | J100: -0.0010533576 | K100: 64.70255528
A101: 0.775 | B101: 0.00112885 | J101: -0.00087485875 | K101: 55.47174447
A102: 0.75 | B102: 0.0009517235 | J102: -0.000713792625 | K102: 46.76773956
A103: 0.725 | B103: 0.0007969816 | J103: -0.00057781166 | K103: 39.16371499
A104: 0.7 | B104: 0.0006571053 | J104: -0.00045997371 | K104: 32.29018673
A105: 0.675 | B105: 0.0005337355 | J105: -0.0003602714625 | K105: 26.2277887
A106: 0.65 | B106: 0.0004264625 | J106: -0.000277200625 | K106: 20.95638821
A107: 0.625 | B107: 0.0003352166 | J107: -0.000209510375 | K107: 16.4725602
A108: 0.6 | B108: 0.0002589911 | J108: -0.00015539466 | K108: 12.72683538
A109: 0.575 | B109: 0.0001966615 | J109: -0.0001130803625 | K109: 9.663955774
A110: 0.55 | B110: 0.0001467095 | J110: -8.0690225e-05 | K110: 7.209312039
A111: 0.525 | B111: 0.0001074755 | J111: -5.64246375e-05 | K111: 5.281351351
A112: 0.5 | B112: 7.673694e-05 | J112: -3.836847e-05 | K112: 3.770857002
A113: 0.475 | B113: 5.440598e-05 | J113: -2.58428405e-05 | K113: 2.673512531
A114: 0.45 | B114: 3.786544e-05 | J114: -1.7039448e-05 | K114: 1.860709582
A115: 0.425 | B115: 2.592168e-05 | J115: -1.1016714e-05 | K115: 1.273792629
A116: 0.4 | B116: 1.747688e-05 | J116: -6.990752e-06 | K116: 0.858814742
A117: 0.375 | B117: 1.163299e-05 | J117: -4.36237125e-06 | K117: 0.5716457002
A118: 0.35 | B118: 7.673404e-06 | J118: -2.6856914e-06 | K118: 0.3770714496
A119: 0.325 | B119: 4.997192e-06 | J119: -1.6240874e-06 | K119: 0.2455622604
A120: 0.3 | B120: 3.235575e-06 | J120: -9.706725e-07 | K120: 0.1589963145
A121: 0.275 | B121: 2.085575e-06 | J121: -5.73533125e-07 | K121: 0.102485258
A122: 0.25 | B122: 1.338654e-06 | J122: -3.346635e-07 | K122: 0.06578152334
A123: 0.225 | B123: 8.70475e-07 | J123: -1.95856875e-07 | K123: 0.04277518428
A124: 0.2 | B124: 5.46293e-07 | J124: -1.092586e-07 | K124: 0.02684486486
A125: 0.175 | B125: 3.42353e-07 | J125: -5.9911775e-08 | K125: 0.01682324324
A126: 0.15 | B126: 2.12421e-07 | J126: -3.186315e-08 | K126: 0.01043837838
A127: 0.125 | B127: 1.29395e-07 | J127: -1.6174375e-08 | K127: 0.006358476658
A128: 0.1 | B128: 7.66e-08 | J128: -7.66e-09 | K128: 0.003764127764
A129: 0.075 | B129: 4.306e-08 | J129: -3.2295e-09 | K129: 0.002115970516
A130: 0.05 | B130: 2.1315e-08 | J130: -1.06575e-09 | K130: 0.001047420147
A131: 0.025 | B131: 6.828e-09 | J131: -1.707e-10 | K131: 0.0003355282555
A132: 0 | B132: -3.488e-09 | J132: 0 | K132: -0.0001714004914
J133: 0 | K133: 0
J134: 0 | K134: 0
J135: 0 | K135: 0
J136: 0 | K136: 0
J137: 0 | K137: 0
J138: =-(B138*A138) -> 0 | K138: =B138*1000/$D$7 -> 0
J139: 0 | K139: 0
J140: 0 | K140: 0
J141: 0 | K141: 0
J142: 0 | K142: 0
J143: 0 | K143: 0
J144: 0 | K144: 0
J145: 0 | K145: 0
J146: 0 | K146: 0
J147: 0 | K147: 0
J148: 0 | K148: 0
J149: 0 | K149: 0
J150: 0 | K150: 0
J151: 0 | K151: 0
J152: 0 | K152: 0
J153: 0 | K153: 0
J154: 0 | K154: 0
J155: 0 | K155: 0
J156: 0 | K156: 0
J157: 0 | K157: 0
J158: 0 | K158: 0
J159: 0 | K159: 0
J160: 0 | K160: 0
J161: 0 | K161: 0
J162: 0 | K162: 0
J163: 0 | K163: 0
J164: 0 | K164: 0
J165: 0 | K165: 0
J166: 0 | K166: 0
J167: 0 | K167: 0
J168: 0 | K168: 0
J169: 0 | K169: 0
J170: 0 | K170: 0
J171: 0 | K171: 0
J172: 0 | K172: 0
J173: 0 | K173: 0
J174: 0 | K174: 0
J175: 0 | K175: 0
J176: 0 | K176: 0
J177: 0 | K177: 0
J178: 0 | K178: 0
J179: 0 | K179: 0
J180: 0 | K180: 0
J181: 0 | K181: 0
J182: 0 | K182: 0
J183: 0 | K183: 0
J184: 0 | K184: 0
J185: 0 | K185: 0
J186: 0 | K186: 0
J187: 0 | K187: 0
J188: 0 | K188: 0
J189: 0 | K189: 0
J190: 0 | K190: 0
J191: 0 | K191: 0
J192: 0 | K192: 0
J193: 0 | K193: 0
J194: 0 | K194: 0
J195: 0 | K195: 0
J196: 0 | K196: 0
J197: 0 | K197: 0
J198: 0 | K198: 0
J199: 0 | K199: 0
J200: 0 | K200: 0
J201: 0 | K201: 0
J202: =-(B202*A202) -> 0 | K202: =B202*1000/$D$7 -> 0
... 208 more rows

Sheet PbSCdS TBAB pedot
C2: iv curve name: | D2: PbSCdS TBAB pedot
C3: file name: | D3: PbSCdS TBAB pedot
C4: Illumination Time: | E4: (hh:mm)
C5: Illumination Intensity: | D5: 100 | E5: (mW/cm2)
C6: Filter: | D6: 420 | E6: (nm)
C7: Pixel Area: | D7: 0.02035 | E7: (cm2)
A9: V (V) | B9: J (A) | E9: (mA/cm2) | F9: (A) | J9: power | K9: J (mA/cm2)
A10: 0 | B10: -0.0003346214 | D10: Jsc1 = | E10: =-F10*1000/$D$7 -> 16.44331204 | F10: =((INDEX(A10:B11,1,2)+INDEX(A10:B11,2,2))-((INDEX(A10:B11,1,2)-INDEX(A10:B11,2,2))/(INDEX(A10:B11,1,1)-INDEX(A10:B11,2,1))*(INDEX(A10:B11,1,1)+INDEX(A10:B11,2,1))))/2 -> -0.0003346214 | G10: ((INDEX(A10:B11,1,2)+INDEX(A10:B11,2,2))-((INDEX(A10:B11,1,2)-INDEX(A10:B11,2,2))/(INDEX(A10:B11,1,1)- | H10: INDEX(A10:B11,2,1))*(INDEX(A10:B11,1,1)+INDEX(A10:B11,2,1))))/2 | J10: =-(B10*A10) -> 0 | K10: =B10*1000/$D$7 -> -16.44331204 | L10: Jsc | M10: =MAX(E14:E15)/20 -> 0.02417927851 | N10: =-E10 -> -16.44331204 | O10: =-E11 -> -12.88413759 | P10: =-E12 -> -16.14921867
A11: -0.025 | B11: -0.0003259014 | D11: Jsc2 = | E11: =-F11*1000/$D$7 -> 12.88413759 | F11: =((INDEX(A30:B91,MATCH(0,A30:A91,1),2)+INDEX(A30:B91,MATCH(0,A30:A91,1)+1,2))-((INDEX(A30:B91,MATCH(0,A30:A91,1),2)-INDEX(A30:B91,MATCH(0,A30:A91,1)+1,2))/(INDEX(A30:B91,MATCH(0,A30:A91,1),1)-INDEX(A30:B91,MATCH(0,A30:A91,1)+1,1))*(INDEX(A30:B91,MATCH(0,A30:A91,1),1)+INDEX(A30:B91,MATCH(0,A30:A91,1)+1,1))))/2 -> -0.0002621922 | G11: ((INDEX(a30:b91,MATCH(0,a30:a91,1),2)+INDEX(a30:b91,MATCH(0,a30:a91,1)+1,2))-((INDEX(a30:b91,MATCH(0,a30:a91,1),2)-INDEX(a30:b91,MATCH(0,a30:a91,1)+1,2))/ | H11: (INDEX(a30:b91,MATCH(0,a30:a91,1),1)-INDEX(a30:b91,MATCH(0,a30:a91,1)+1,1))*(INDEX(a30:b91,MATCH(0,a30:a91,1),1)+INDEX(a30:b91,MATCH(0,a30:a91,1)+1,1))))/2 | J11: -8.147535e-06 | K11: -16.01481081 | M11: =-MAX(E15:E16)/20 -> -0.02417927851 | N11: =-E10 -> -16.44331204 | O11: =-E11 -> -12.88413759 | P11: =-E12 -> -16.14921867
A12: -0.05 | B12: -0.0003418088 | D12: Jsc3 = | E12: =-F12*1000/$D$7 -> 16.14921867 | F12: =((INDEX(A131:B132,1,2)+INDEX(A131:B132,2,2))-((INDEX(A131:B132,1,2)-INDEX(A131:B132,2,2))/(INDEX(A131:B132,1,1)-INDEX(A131:B132,2,1))*(INDEX(A131:B132,1,1)+INDEX(A131:B132,2,1))))/2 -> -0.0003286366 | G12: ((INDEX(A131:B132,1,2)+INDEX(A131:B132,2,2))-((INDEX(A131:B132,1,2)-INDEX(A131:B132,2,2))/(INDEX(A131:B132,1,1)- | H12: INDEX(A131:B132,2,1))*(INDEX(A131:B132,1,1)+INDEX(A131:B132,2,1))))/2 | J12: -1.709044e-05 | K12: -16.79650123
A13: -0.075 | B13: -0.000322719 | E13: (V) | J13: -2.4203925e-05 | K13: -15.85842752 | L13: Voc | M13: =E14 -> 0.4725351587 | N13: =-MAX(E10:E12)/15 -> -1.096220803
A14: -0.1 | B14: -0.000332373 | D14: Voc1 = | E14: =F14 -> 0.4725351587 | F14: =((INDEX(A30:B91,MATCH(0,B30:B91,1),1)+INDEX(A30:B91,MATCH(0,B30:B91,1)+1,1))-((INDEX(A30:B91,MATCH(0,B30:B91,1),1)-INDEX(A30:B91,MATCH(0,B30:B91,1)+1,1))/(INDEX(A30:B91,MATCH(0,B30:B91,1),2)-INDEX(A30:B91,MATCH(0,B30:B91,1)+1,2))*(INDEX(A30:B91,MATCH(0,B30:B91,1),2)+INDEX(A30:B91,MATCH(0,B30:B91,1)+1,2))))/2 -> 0.4725351587 | G14: ((INDEX(a30:b91,MATCH(0,b30:b91,1),1)+INDEX(a30:b91,MATCH(0,b30:b91,1)+1,1))-((INDEX(a30:b91,MATCH(0,b30:b91,1),1)-INDEX(a30:b91,MATCH(0,b30:b91,1)+1,1))/ | H14: (INDEX(a30:b91,MATCH(0,b30:b91,1),2)-INDEX(a30:b91,MATCH(0,b30:b91,1)+1,2))*(INDEX(a30:b91,MATCH(0,b30:b91,1),2)+INDEX(a30:b91,MATCH(0,b30:b91,1)+1,2))))/2 | J14: -3.32373e-05 | K14: -16.33282555 | M14: =E14 -> 0.4725351587 | N14: =MAX(E10:E12)/15 -> 1.096220803
A15: -0.125 | B15: -0.0003322848 | D15: Voc2 = | E15: =F15 -> 0.4835855703 | F15: =((INDEX(A91:B130,MATCH(0,B91:B130,-1),1)+INDEX(A91:B130,MATCH(0,B91:B130,-1)+1,1))-((INDEX(A91:B130,MATCH(0,B91:B130,-1),1)-INDEX(A91:B130,MATCH(0,B91:B130,-1)+1,1))/(INDEX(A91:B130,MATCH(0,B91:B130,-1),2)-INDEX(A91:B130,MATCH(0,B91:B130,-1)+1,2))*(INDEX(A91:B130,MATCH(0,B91:B130,-1),2)+INDEX(A91:B130,MATCH(0,B91:B130,-1)+1,2))))/2 -> 0.4835855703 | G15: ((INDEX(a91:b130,MATCH(0,b91:b130,-1),1)+INDEX(a91:b130,MATCH(0,b91:b130,-1)+1,1))-((INDEX(a91:b130,MATCH(0,b91:b130,-1),1)-INDEX(a91:b130,MATCH(0,b91:b130,-1)+1,1))/(INDEX(a91:b130,MATCH(0,b91:b130,-1),2)- | H15: INDEX(a91:b130,MATCH(0,b91:b130,-1)+1,2))*(INDEX(a91:b130,MATCH(0,b91:b130,-1),2)+INDEX(a91:b130,MATCH(0,b91:b130,-1)+1,2))))/2 | J15: -4.15356e-05 | K15: -16.3284914 | M15: =E15 -> 0.4835855703 | N15: =-MAX(E10:E12)/15 -> -1.096220803
A16: -0.15 | B16: -0.0003289636 | J16: -4.934454e-05 | K16: -16.16528747 | M16: =E15 -> 0.4835855703 | N16: =MAX(E10:E12)/15 -> 1.096220803
A17: -0.175 | B17: -0.0003344062 | D17: FF1 = | E17: =F17 -> 0.3940135563 | F17: =(-1)*MAX(J30:J91)/F11/E14 -> 0.3940135563 | G17: (-1)*MAX(j30:j91)/F11/E14 | J17: -5.8521085e-05 | K17: -16.4327371
A18: -0.2 | B18: -0.0003394096 | D18: FF2 = | E18: =F18 -> 0.4253693592 | F18: =(-1)*MAX(J91:J130)/F12/E15 -> 0.4253693592 | G18: (-1)*MAX(j91:j130)/F12/E15 | J18: -6.788192e-05 | K18: -16.67860442 | L18: FF | M18: 0 | N18: =INDEX(K30:K91,MATCH(MAX(J30:J91),J30:J91,0),1) -> -8.723041769 | P18: INDEX(k30:k91,MATCH(MAX(j30:j91),j30:j91,0),1)
A19: -0.225 | B19: -0.0003400715 | J19: -7.65160875e-05 | K19: -16.71113022 | M19: =INDEX(A30:A91,MATCH(MAX(J30:J91),J30:J91,0),1) -> 0.275 | N19: =INDEX(K30:K91,MATCH(MAX(J30:J91),J30:J91,0),1) -> -8.723041769 | O19: INDEX(a30:a91,MATCH(MAX(j30:j91),j30:j91,0),1) | P19: INDEX(k30:k91,MATCH(MAX(j30:j91),j30:j91,0),1)
A20: -0.25 | B20: -0.0003434275 | D20: PCE up = | E20: =F20 -> 0.02398836486 | F20: =MAX(J30:J91)/D5/D7*1000 -> 0.02398836486 | G20: MAX(j30:j91)/D5/D7*1000 | J20: -8.5856875e-05 | K20: -16.87604423 | M20: =INDEX(A30:A91,MATCH(MAX(J30:J91),J30:J91,0),1) -> 0.275 | N20: 0 | O20: INDEX(a30:a91,MATCH(MAX(j30:j91),j30:j91,0),1)
A21: -0.275 | B21: -0.0003450093 | D21: PCE back = | E21: =F21 -> 0.03321934398 | F21: =MAX(J91:J130)/D5/D7*1000 -> 0.03321934398 | G21: MAX(j91:j130)/D5/D7*1000 | J21: -9.48775575e-05 | K21: -16.95377396
A22: -0.3 | B22: -0.0003480465 | J22: -0.00010441395 | K22: -17.10302211 | M22: 0 | N22: =INDEX(K91:K130,MATCH(MAX(J91:J130),J91:J130,0),1) -> -10.22133661 | P22: INDEX(k91:k130,MATCH(MAX(j91:j130),j91:j130,0),1)
A23: -0.325 | B23: -0.0003503209 | D23: discrepancy: | E23: =E11*E14*E17/D5-E20 -> 0 | J23: -0.0001138542925 | K23: -17.21478624 | M23: =INDEX(A91:A130,MATCH(MAX(J91:J130),J91:J130,0),1) -> 0.325 | N23: =INDEX(K91:K130,MATCH(MAX(J91:J130),J91:J130,0),1) -> -10.22133661 | O23: INDEX(a91:a130,MATCH(MAX(j91:j130),j91:j130,0),1) | P23: INDEX(k91:k130,MATCH(MAX(j91:j130),j91:j130,0),1)
A24: -0.35 | B24: -0.0003558484 | E24: =E12*E15*E18/D5-E21 -> 0 | J24: -0.00012454694 | K24: -17.48640786 | M24: =INDEX(A91:A130,MATCH(MAX(J91:J130),J91:J130,0),1) -> 0.325 | N24: 0 | O24: INDEX(a91:a130,MATCH(MAX(j91:j130),j91:j130,0),1)
A25: -0.375 | B25: -0.0003585722 | J25: -0.000134464575 | K25: -17.62025553
A26: -0.4 | B26: -0.000361194 | D26: V is from: | E26: =MIN(A10:A132) -> -0.5 | F26: to | G26: =MAX(A10:A132) -> 1 | J26: -0.0001444776 | K26: -17.74909091
A27: -0.425 | B27: -0.0003638466 | D27: row: | E27: =MATCH(-0.5,A1:A132,0) -> 30 | F27: - | G27: =MATCH(1,A1:A132,0) -> 91 | J27: -0.000154634805 | K27: -17.8794398
A28: -0.45 | B28: -0.000367565 | J28: -0.00016540425 | K28: -18.06216216
A29: -0.475 | B29: -0.0003722197 | J29: -0.0001768043575 | K29: -18.29089435
A30: -0.5 | B30: -0.0003719113 | J30: -0.00018595565 | K30: -18.27573956
A31: -0.5 | B31: -0.0003711346 | J31: -0.0001855673 | K31: -18.23757248
A32: -0.475 | B32: -0.0003640433 | J32: -0.0001729205675 | K32: -17.88910565
A33: -0.45 | B33: -0.0003547612 | J33: -0.00015964254 | K33: -17.4329828
A34: -0.425 | B34: -0.000349313 | J34: -0.000148458025 | K34: -17.16525799
A35: -0.4 | B35: -0.0003437529 | J35: -0.00013750116 | K35: -16.8920344
A36: -0.375 | B36: -0.0003410026 | J36: -0.000127875975 | K36: -16.75688452
A37: -0.35 | B37: -0.0003356165 | J37: -0.000117465775 | K37: -16.4922113
A38: -0.325 | B38: -0.0003283888 | J38: -0.00010672636 | K38: -16.13704177
A39: -0.3 | B39: -0.0003247151 | J39: -9.741453e-05 | K39: -15.95651597
A40: -0.275 | B40: -0.0003190431 | J40: -8.77368525e-05 | K40: -15.67779361
A41: -0.25 | B41: -0.0003135746 | J41: -7.839365e-05 | K41: -15.40907125
A42: -0.225 | B42: -0.0003107063 | J42: -6.99089175e-05 | K42: -15.26812285
A43: -0.2 | B43: -0.0003067549 | J43: -6.135098e-05 | K43: -15.07395086
A44: -0.175 | B44: -0.0003024307 | J44: -5.29253725e-05 | K44: -14.86145946
A45: -0.15 | B45: -0.0002943334 | J45: -4.415001e-05 | K45: -14.46355774
A46: -0.125 | B46: -0.0002945145 | J46: -3.68143125e-05 | K46: -14.472457
A47: -0.1 | B47: -0.0002844238 | J47: -2.844238e-05 | K47: -13.97659951
A48: -0.075 | B48: -0.0002789499 | J48: -2.09212425e-05 | K48: -13.70761179
A49: -0.05 | B49: -0.0002789137 | J49: -1.3945685e-05 | K49: -13.70583292
A50: -0.025 | B50: -0.0002730743 | J50: -6.8268575e-06 | K50: -13.41888452
A51: 0 | B51: -0.0002621922 | J51: 0 | K51: -12.88413759
A52: 0.025 | B52: -0.0002617136 | J52: 6.54284e-06 | K52: -12.86061916
A53: 0.05 | B53: -0.0002530944 | J53: 1.265472e-05 | K53: -12.43707125
A54: 0.075 | B54: -0.0002450164 | J54: 1.837623e-05 | K54: -12.04011794
A55: 0.1 | B55: -0.0002417197 | J55: 2.417197e-05 | K55: -11.87811794
A56: 0.125 | B56: -0.0002338227 | J56: 2.92278375e-05 | K56: -11.49005897
A57: 0.15 | B57: -0.0002214931 | J57: 3.3223965e-05 | K57: -10.88418182
A58: 0.175 | B58: -0.000217655 | J58: 3.8089625e-05 | K58: -10.6955774
A59: 0.2 | B59: -0.0002107872 | J59: 4.215744e-05 | K59: -10.35809337
A60: 0.225 | B60: -0.0001937762 | J60: 4.3599645e-05 | K60: -9.52217199
A61: 0.25 | B61: -0.0001880092 | J61: 4.70023e-05 | K61: -9.238781327
A62: 0.275 | B62: -0.0001775139 | J62: 4.88163225e-05 | K62: -8.723041769
A63: 0.3 | B63: -0.0001578449 | J63: 4.735347e-05 | K63: -7.756506143
A64: 0.325 | B64: -0.0001472184 | J64: 4.784598e-05 | K64: -7.23431941
A65: 0.35 | B65: -0.0001344996 | J65: 4.707486e-05 | K65: -6.609316953
A66: 0.375 | B66: -0.0001096949 | J66: 4.11355875e-05 | K66: -5.390412776
A67: 0.4 | B67: -9.52495e-05 | J67: 3.80998e-05 | K67: -4.680565111
A68: 0.425 | B68: -6.32889e-05 | J68: 2.68977825e-05 | K68: -3.110019656
A69: 0.45 | B69: -3.255016e-05 | J69: 1.4647572e-05 | K69: -1.599516462
A70: 0.475 | B70: 3.560258e-06 | J70: -1.69112255e-06 | K70: 0.1749512531
A71: 0.5 | B71: 4.719856e-05 | J71: -2.359928e-05 | K71: 2.319339558
A72: 0.525 | B72: 0.0001032151 | J72: -5.41879275e-05 | K72: 5.071995086
A73: 0.55 | B73: 0.0001703524 | J73: -9.369382e-05 | K73: 8.371125307
A74: 0.575 | B74: 0.0002475241 | J74: =-(B74*A74) -> -0.0001423263575 | K74: =B74*1000/$D$7 -> 12.16334644
A75: 0.6 | B75: 0.0003369609 | J75: -0.00020217654 | K75: 16.55827518
A76: 0.625 | B76: 0.000438631 | J76: -0.000274144375 | K76: 21.55434889
A77: 0.65 | B77: 0.0005548352 | J77: -0.00036064288 | K77: 27.26462899
A78: 0.675 | B78: 0.0006864484 | J78: -0.00046335267 | K78: 33.73210811
A79: 0.7 | B79: 0.0008302854 | J79: -0.00058119978 | K79: 40.80026536
A80: 0.725 | B80: 0.0009889514 | J80: -0.000716989765 | K80: 48.59712039
A81: 0.75 | B81: 0.0011693 | J81: -0.000876975 | K81: 57.45945946
A82: 0.775 | B82: 0.001359082 | J82: -0.00105328855 | K82: 66.78535627
A83: 0.8 | B83: 0.001567758 | J83: -0.0012542064 | K83: 77.03970516
A84: 0.825 | B84: 0.001781309 | J84: -0.001469579925 | K84: 87.53361179
A85: 0.85 | B85: 0.002014404 | J85: -0.0017122434 | K85: 98.98791155
A86: 0.875 | B86: 0.002261495 | J86: -0.001978808125 | K86: 111.1299754
A87: 0.9 | B87: 0.00251407 | J87: -0.002262663 | K87: 123.5415233
A88: 0.925 | B88: 0.002779149 | J88: -0.002570712825 | K88: 136.5675184
A89: 0.95 | B89: 0.003058162 | J89: -0.0029052539 | K89: 150.278231
A90: 0.975 | B90: 0.003341012 | J90: -0.0032574867 | K90: 164.1774939
A91: 1 | B91: 0.003631108 | J91: -0.003631108 | K91: 178.4328256
A92: 1 | B92: 0.003643843 | J92: -0.003643843 | K92: 179.0586241
A93: 0.975 | B93: 0.003366587 | J93: -0.003282422325 | K93: 165.4342506
A94: 0.95 | B94: 0.003088999 | J94: -0.00293454905 | K94: 151.7935627
A95: 0.925 | B95: 0.002825092 | J95: -0.0026132101 | K95: 138.8251597
A96: 0.9 | B96: 0.002570273 | J96: -0.0023132457 | K96: 126.3033415
A97: 0.875 | B97: 0.002313741 | J97: -0.002024523375 | K97: 113.6973464
A98: 0.85 | B98: 0.002076947 | J98: -0.00176540495 | K98: 102.0612776
A99: 0.825 | B99: 0.001849295 | J99: -0.001525668375 | K99: 90.87444717
A100: 0.8 | B100: 0.001628553 | J100: -0.0013028424 | K100: 80.02717445
A101: 0.775 | B101: 0.001423763 | J101: -0.001103416325 | K101: 69.96378378
A102: 0.75 | B102: 0.001235065 | J102: -0.00092629875 | K102: 60.69115479
A103: 0.725 | B103: 0.001053195 | J103: -0.000763566375 | K103: 51.75405405
A104: 0.7 | B104: 0.000886158 | J104: -0.0006203106 | K104: 43.54584767
A105: 0.675 | B105: 0.0007335066 | J105: -0.000495116955 | K105: 36.04455037
A106: 0.65 | B106: 0.0005988905 | J106: -0.000389278825 | K106: 29.4295086
A107: 0.625 | B107: 0.0004732577 | J107: -0.0002957860625 | K107: 23.25590663
A108: 0.6 | B108: 0.0003603019 | J108: -0.00021618114 | K108: 17.70525307
A109: 0.575 | B109: 0.0002605782 | J109: -0.000149832465 | K109: 12.80482555
A110: 0.55 | B110: 0.0001725436 | J110: -9.489898e-05 | K110: 8.478800983
A111: 0.525 | B111: 0.0001021948 | J111: -5.365227e-05 | K111: 5.021857494
A112: 0.5 | B112: 3.695634e-05 | J112: -1.847817e-05 | K112: 1.816036364
A113: 0.475 | B113: -1.933002e-05 | J113: 9.1817595e-06 | K113: -0.9498781327
A114: 0.45 | B114: -6.647949e-05 | J114: 2.99157705e-05 | K114: -3.266805405
A115: 0.425 | B115: -0.0001044569 | J115: 4.43941825e-05 | K115: -5.133017199
A116: 0.4 | B116: -0.0001371969 | J116: 5.487876e-05 | K116: -6.741862408
A117: 0.375 | B117: -0.0001623496 | J117: 6.08811e-05 | K117: -7.977867322
A118: 0.35 | B118: -0.0001865492 | J118: 6.529222e-05 | K118: -9.167036855
A119: 0.325 | B119: -0.0002080042 | J119: 6.7601365e-05 | K119: -10.22133661
A120: 0.3 | B120: -0.0002249472 | J120: 6.748416e-05 | K120: -11.05391646
A121: 0.275 | B121: -0.0002352363 | J121: 6.46899825e-05 | K121: -11.55952334
A122: 0.25 | B122: -0.0002516778 | J122: 6.291945e-05 | K122: -12.36745946
A123: 0.225 | B123: -0.0002661684 | J123: 5.988789e-05 | K123: -13.07952826
A124: 0.2 | B124: -0.0002670447 | J124: 5.340894e-05 | K124: -13.12258968
A125: 0.175 | B125: -0.0002806223 | J125: 4.91089025e-05 | K125: -13.78979361
A126: 0.15 | B126: -0.0002933116 | J126: 4.399674e-05 | K126: -14.41334644
A127: 0.125 | B127: -0.0002917365 | J127: 3.64670625e-05 | K127: -14.33594595
A128: 0.1 | B128: -0.0003014277 | J128: 3.014277e-05 | K128: -14.81217199
A129: 0.075 | B129: -0.0003167015 | J129: 2.37526125e-05 | K129: -15.56272727
A130: 0.05 | B130: -0.000310598 | J130: 1.55299e-05 | K130: -15.26280098
A131: 0.025 | B131: -0.000315052 | J131: 7.8763e-06 | K131: -15.48167076
A132: 0 | B132: -0.0003286366 | J132: 0 | K132: -16.14921867
J133: 0 | K133: 0
J134: 0 | K134: 0
J135: 0 | K135: 0
J136: 0 | K136: 0
J137: 0 | K137: 0
J138: =-(B138*A138) -> 0 | K138: =B138*1000/$D$7 -> 0
J139: 0 | K139: 0
J140: 0 | K140: 0
J141: 0 | K141: 0
J142: 0 | K142: 0
J143: 0 | K143: 0
J144: 0 | K144: 0
J145: 0 | K145: 0
J146: 0 | K146: 0
J147: 0 | K147: 0
J148: 0 | K148: 0
J149: 0 | K149: 0
J150: 0 | K150: 0
J151: 0 | K151: 0
J152: 0 | K152: 0
J153: 0 | K153: 0
J154: 0 | K154: 0
J155: 0 | K155: 0
J156: 0 | K156: 0
J157: 0 | K157: 0
J158: 0 | K158: 0
J159: 0 | K159: 0
J160: 0 | K160: 0
J161: 0 | K161: 0
J162: 0 | K162: 0
J163: 0 | K163: 0
J164: 0 | K164: 0
J165: 0 | K165: 0
J166: 0 | K166: 0
J167: 0 | K167: 0
J168: 0 | K168: 0
J169: 0 | K169: 0
J170: 0 | K170: 0
J171: 0 | K171: 0
J172: 0 | K172: 0
J173: 0 | K173: 0
J174: 0 | K174: 0
J175: 0 | K175: 0
J176: 0 | K176: 0
J177: 0 | K177: 0
J178: 0 | K178: 0
J179: 0 | K179: 0
J180: 0 | K180: 0
J181: 0 | K181: 0
J182: 0 | K182: 0
J183: 0 | K183: 0
J184: 0 | K184: 0
J185: 0 | K185: 0
J186: 0 | K186: 0
J187: 0 | K187: 0
J188: 0 | K188: 0
J189: 0 | K189: 0
J190: 0 | K190: 0
J191: 0 | K191: 0
J192: 0 | K192: 0
J193: 0 | K193: 0
J194: 0 | K194: 0
J195: 0 | K195: 0
J196: 0 | K196: 0
J197: 0 | K197: 0
J198: 0 | K198: 0
J199: 0 | K199: 0
J200: 0 | K200: 0
J201: 0 | K201: 0
J202: =-(B202*A202) -> 0 | K202: =B202*1000/$D$7 -> 0
... 208 more rows

Sheet PbS TBAI pedot dark
C2: iv curve name: | D2: PbS TBAI pedot dark
C3: file name: | D3: PbS TBAI pedot dark
C4: Illumination Time: | E4: (hh:mm)
C5: Illumination Intensity: | D5: 100 | E5: (mW/cm2)
C6: Filter: | D6: 420 | E6: (nm)
C7: Pixel Area: | D7: 0.02035 | E7: (cm2)
A9: V (V) | B9: J (A) | E9: (mA/cm2) | F9: (A) | J9: power | K9: J (mA/cm2)
A10: 0 | B10: -9.88e-10 | D10: Jsc1 = | E10: =-F10*1000/$D$7 -> 4.855036855e-05 | F10: =((INDEX(A10:B11,1,2)+INDEX(A10:B11,2,2))-((INDEX(A10:B11,1,2)-INDEX(A10:B11,2,2))/(INDEX(A10:B11,1,1)-INDEX(A10:B11,2,1))*(INDEX(A10:B11,1,1)+INDEX(A10:B11,2,1))))/2 -> -9.88e-10 | G10: ((INDEX(A10:B11,1,2)+INDEX(A10:B11,2,2))-((INDEX(A10:B11,1,2)-INDEX(A10:B11,2,2))/(INDEX(A10:B11,1,1)- | H10: INDEX(A10:B11,2,1))*(INDEX(A10:B11,1,1)+INDEX(A10:B11,2,1))))/2 | J10: =-(B10*A10) -> 0 | K10: =B10*1000/$D$7 -> -4.855036855e-05 | L10: Jsc | M10: =MAX(E14:E15)/20 ->  | N10: =-E10 -> -4.855036855e-05 | O10: =-E11 -> 7.076167076e-06 | P10: =-E12 -> -5.562653563e-05
A11: -0.025 | B11: -4.468e-09 | D11: Jsc2 = | E11: =-F11*1000/$D$7 -> -7.076167076e-06 | F11: =((INDEX(A30:B91,MATCH(0,A30:A91,1),2)+INDEX(A30:B91,MATCH(0,A30:A91,1)+1,2))-((INDEX(A30:B91,MATCH(0,A30:A91,1),2)-INDEX(A30:B91,MATCH(0,A30:A91,1)+1,2))/(INDEX(A30:B91,MATCH(0,A30:A91,1),1)-INDEX(A30:B91,MATCH(0,A30:A91,1)+1,1))*(INDEX(A30:B91,MATCH(0,A30:A91,1),1)+INDEX(A30:B91,MATCH(0,A30:A91,1)+1,1))))/2 -> 1.44e-10 | G11: ((INDEX(a30:b91,MATCH(0,a30:a91,1),2)+INDEX(a30:b91,MATCH(0,a30:a91,1)+1,2))-((INDEX(a30:b91,MATCH(0,a30:a91,1),2)-INDEX(a30:b91,MATCH(0,a30:a91,1)+1,2))/ | H11: (INDEX(a30:b91,MATCH(0,a30:a91,1),1)-INDEX(a30:b91,MATCH(0,a30:a91,1)+1,1))*(INDEX(a30:b91,MATCH(0,a30:a91,1),1)+INDEX(a30:b91,MATCH(0,a30:a91,1)+1,1))))/2 | J11: -1.117e-10 | K11: -0.0002195577396 | M11: =-MAX(E15:E16)/20 ->  | N11: =-E10 -> -4.855036855e-05 | O11: =-E11 -> 7.076167076e-06 | P11: =-E12 -> -5.562653563e-05
A12: -0.05 | B12: -7.546e-09 | D12: Jsc3 = | E12: =-F12*1000/$D$7 -> 5.562653563e-05 | F12: =((INDEX(A131:B132,1,2)+INDEX(A131:B132,2,2))-((INDEX(A131:B132,1,2)-INDEX(A131:B132,2,2))/(INDEX(A131:B132,1,1)-INDEX(A131:B132,2,1))*(INDEX(A131:B132,1,1)+INDEX(A131:B132,2,1))))/2 -> -1.132e-09 | G12: ((INDEX(A131:B132,1,2)+INDEX(A131:B132,2,2))-((INDEX(A131:B132,1,2)-INDEX(A131:B132,2,2))/(INDEX(A131:B132,1,1)- | H12: INDEX(A131:B132,2,1))*(INDEX(A131:B132,1,1)+INDEX(A131:B132,2,1))))/2 | J12: -3.773e-10 | K12: -0.0003708108108
A13: -0.075 | B13: -1.0549e-08 | E13: (V) | J13: -7.91175e-10 | K13: -0.0005183783784 | L13: Voc | M13: =E14 -> -0.001247833622 | N13: =-MAX(E10:E12)/15 -> -3.708435708e-06
A14: -0.1 | B14: -1.3515e-08 | D14: Voc1 = | E14: =F14 -> -0.001247833622 | F14: =((INDEX(A30:B91,MATCH(0,B30:B91,1),1)+INDEX(A30:B91,MATCH(0,B30:B91,1)+1,1))-((INDEX(A30:B91,MATCH(0,B30:B91,1),1)-INDEX(A30:B91,MATCH(0,B30:B91,1)+1,1))/(INDEX(A30:B91,MATCH(0,B30:B91,1),2)-INDEX(A30:B91,MATCH(0,B30:B91,1)+1,2))*(INDEX(A30:B91,MATCH(0,B30:B91,1),2)+INDEX(A30:B91,MATCH(0,B30:B91,1)+1,2))))/2 -> -0.001247833622 | G14: ((INDEX(a30:b91,MATCH(0,b30:b91,1),1)+INDEX(a30:b91,MATCH(0,b30:b91,1)+1,1))-((INDEX(a30:b91,MATCH(0,b30:b91,1),1)-INDEX(a30:b91,MATCH(0,b30:b91,1)+1,1))/ | H14: (INDEX(a30:b91,MATCH(0,b30:b91,1),2)-INDEX(a30:b91,MATCH(0,b30:b91,1)+1,2))*(INDEX(a30:b91,MATCH(0,b30:b91,1),2)+INDEX(a30:b91,MATCH(0,b30:b91,1)+1,2))))/2 | J14: -1.3515e-09 | K14: -0.0006641277641 | M14: =E14 -> -0.001247833622 | N14: =MAX(E10:E12)/15 -> 3.708435708e-06
A15: -0.125 | B15: -1.649e-08 | D15: Voc2 = | E15: =F15 ->  | F15: =((INDEX(A91:B130,MATCH(0,B91:B130,-1),1)+INDEX(A91:B130,MATCH(0,B91:B130,-1)+1,1))-((INDEX(A91:B130,MATCH(0,B91:B130,-1),1)-INDEX(A91:B130,MATCH(0,B91:B130,-1)+1,1))/(INDEX(A91:B130,MATCH(0,B91:B130,-1),2)-INDEX(A91:B130,MATCH(0,B91:B130,-1)+1,2))*(INDEX(A91:B130,MATCH(0,B91:B130,-1),2)+INDEX(A91:B130,MATCH(0,B91:B130,-1)+1,2))))/2 ->  | G15: ((INDEX(a91:b130,MATCH(0,b91:b130,-1),1)+INDEX(a91:b130,MATCH(0,b91:b130,-1)+1,1))-((INDEX(a91:b130,MATCH(0,b91:b130,-1),1)-INDEX(a91:b130,MATCH(0,b91:b130,-1)+1,1))/(INDEX(a91:b130,MATCH(0,b91:b130,-1),2)- | H15: INDEX(a91:b130,MATCH(0,b91:b130,-1)+1,2))*(INDEX(a91:b130,MATCH(0,b91:b130,-1),2)+INDEX(a91:b130,MATCH(0,b91:b130,-1)+1,2))))/2 | J15: -2.06125e-09 | K15: -0.0008103194103 | M15: =E15 ->  | N15: =-MAX(E10:E12)/15 -> -3.708435708e-06
A16: -0.15 | B16: -1.9458e-08 | J16: -2.9187e-09 | K16: -0.0009561670762 | M16: =E15 ->  | N16: =MAX(E10:E12)/15 -> 3.708435708e-06
A17: -0.175 | B17: -2.2447e-08 | D17: FF1 = | E17: =F17 -> 0 | F17: =(-1)*MAX(J30:J91)/F11/E14 -> 0 | G17: (-1)*MAX(j30:j91)/F11/E14 | J17: -3.928225e-09 | K17: -0.001103046683
A18: -0.2 | B18: -2.5474e-08 | D18: FF2 = | E18: =F18 ->  | F18: =(-1)*MAX(J91:J130)/F12/E15 ->  | G18: (-1)*MAX(j91:j130)/F12/E15 | J18: -5.0948e-09 | K18: -0.001251793612 | L18: FF | M18: 0 | N18: =INDEX(K30:K91,MATCH(MAX(J30:J91),J30:J91,0),1) -> 7.076167076e-06 | P18: INDEX(k30:k91,MATCH(MAX(j30:j91),j30:j91,0),1)
A19: -0.225 | B19: -2.8542e-08 | J19: -6.42195e-09 | K19: -0.001402555283 | M19: =INDEX(A30:A91,MATCH(MAX(J30:J91),J30:J91,0),1) -> 0 | N19: =INDEX(K30:K91,MATCH(MAX(J30:J91),J30:J91,0),1) -> 7.076167076e-06 | O19: INDEX(a30:a91,MATCH(MAX(j30:j91),j30:j91,0),1) | P19: INDEX(k30:k91,MATCH(MAX(j30:j91),j30:j91,0),1)
A20: -0.25 | B20: -3.1635e-08 | D20: PCE up = | E20: =F20 -> 0 | F20: =MAX(J30:J91)/D5/D7*1000 -> 0 | G20: MAX(j30:j91)/D5/D7*1000 | J20: -7.90875e-09 | K20: -0.001554545455 | M20: =INDEX(A30:A91,MATCH(MAX(J30:J91),J30:J91,0),1) -> 0 | N20: 0 | O20: INDEX(a30:a91,MATCH(MAX(j30:j91),j30:j91,0),1)
A21: -0.275 | B21: -3.4777e-08 | D21: PCE back = | E21: =F21 -> -9.697788698e-08 | F21: =MAX(J91:J130)/D5/D7*1000 -> -9.697788698e-08 | G21: MAX(j91:j130)/D5/D7*1000 | J21: -9.563675e-09 | K21: -0.001708943489
A22: -0.3 | B22: -3.7974e-08 | J22: -1.13922e-08 | K22: -0.001866044226 | M22: 0 | N22: =INDEX(K91:K130,MATCH(MAX(J91:J130),J91:J130,0),1) -> 0.000193955774 | P22: INDEX(k91:k130,MATCH(MAX(j91:j130),j91:j130,0),1)
A23: -0.325 | B23: -4.1174e-08 | D23: discrepancy: | E23: =E11*E14*E17/D5-E20 -> 0 | J23: -1.338155e-08 | K23: -0.002023292383 | M23: =INDEX(A91:A130,MATCH(MAX(J91:J130),J91:J130,0),1) -> 0.05 | N23: =INDEX(K91:K130,MATCH(MAX(J91:J130),J91:J130,0),1) -> 0.000193955774 | O23: INDEX(a91:a130,MATCH(MAX(j91:j130),j91:j130,0),1) | P23: INDEX(k91:k130,MATCH(MAX(j91:j130),j91:j130,0),1)
A24: -0.35 | B24: -4.4451e-08 | E24: =E12*E15*E18/D5-E21 ->  | J24: -1.555785e-08 | K24: -0.002184324324 | M24: =INDEX(A91:A130,MATCH(MAX(J91:J130),J91:J130,0),1) -> 0.05 | N24: 0 | O24: INDEX(a91:a130,MATCH(MAX(j91:j130),j91:j130,0),1)
A25: -0.375 | B25: -4.7745e-08 | J25: -1.7904375e-08 | K25: -0.002346191646
A26: -0.4 | B26: -5.1054e-08 | D26: V is from: | E26: =MIN(A10:A132) -> -0.5 | F26: to | G26: =MAX(A10:A132) -> 1 | J26: -2.04216e-08 | K26: -0.002508796069
A27: -0.425 | B27: -5.4478e-08 | D27: row: | E27: =MATCH(-0.5,A1:A132,0) -> 30 | F27: - | G27: =MATCH(1,A1:A132,0) -> 91 | J27: -2.315315e-08 | K27: -0.002677051597
A28: -0.45 | B28: -5.7927e-08 | J28: -2.606715e-08 | K28: -0.002846535627
A29: -0.475 | B29: -6.14e-08 | J29: -2.9165e-08 | K29: -0.003017199017
A30: -0.5 | B30: -6.4933e-08 | J30: -3.24665e-08 | K30: -0.003190810811
A31: -0.5 | B31: -6.445e-08 | J31: -3.2225e-08 | K31: -0.003167076167
A32: -0.475 | B32: -6.0186e-08 | J32: -2.858835e-08 | K32: -0.002957542998
A33: -0.45 | B33: -5.6274e-08 | J33: -2.53233e-08 | K33: -0.002765307125
A34: -0.425 | B34: -5.2532e-08 | J34: -2.23261e-08 | K34: -0.002581425061
A35: -0.4 | B35: -4.8865e-08 | J35: -1.9546e-08 | K35: -0.002401228501
A36: -0.375 | B36: -4.5321e-08 | J36: -1.6995375e-08 | K36: -0.002227076167
A37: -0.35 | B37: -4.1873e-08 | J37: -1.465555e-08 | K37: -0.002057641278
A38: -0.325 | B38: -3.8475e-08 | J38: -1.2504375e-08 | K38: -0.001890663391
A39: -0.3 | B39: -3.5151e-08 | J39: -1.05453e-08 | K39: -0.001727321867
A40: -0.275 | B40: -3.1902e-08 | J40: -8.77305e-09 | K40: -0.001567665848
A41: -0.25 | B41: -2.872e-08 | J41: -7.18e-09 | K41: -0.001411302211
A42: -0.225 | B42: -2.5635e-08 | J42: -5.767875e-09 | K42: -0.00125970516
A43: -0.2 | B43: -2.2603e-08 | J43: -4.5206e-09 | K43: -0.001110712531
A44: -0.175 | B44: -1.9645e-08 | J44: -3.437875e-09 | K44: -0.0009653562654
A45: -0.15 | B45: -1.6719e-08 | J45: -2.50785e-09 | K45: -0.0008215724816
A46: -0.125 | B46: -1.3866e-08 | J46: -1.73325e-09 | K46: -0.0006813759214
A47: -0.1 | B47: -1.1054e-08 | J47: -1.1054e-09 | K47: -0.0005431941032
A48: -0.075 | B48: -8.244e-09 | J48: -6.183e-10 | K48: -0.0004051105651
A49: -0.05 | B49: -5.471e-09 | J49: -2.7355e-10 | K49: -0.0002688452088
A50: -0.025 | B50: -2.741e-09 | J50: -6.8525e-11 | K50: -0.0001346928747
A51: 0 | B51: 1.44e-10 | J51: 0 | K51: 7.076167076e-06
A52: 0.025 | B52: 3.157e-09 | J52: -7.8925e-11 | K52: 0.0001551351351
A53: 0.05 | B53: 6.393e-09 | J53: -3.1965e-10 | K53: 0.0003141523342
A54: 0.075 | B54: 1.0141e-08 | J54: -7.60575e-10 | K54: 0.0004983292383
A55: 0.1 | B55: 1.4773e-08 | J55: -1.4773e-09 | K55: 0.0007259459459
A56: 0.125 | B56: 2.092e-08 | J56: -2.615e-09 | K56: 0.001028009828
A57: 0.15 | B57: 2.9647e-08 | J57: -4.44705e-09 | K57: 0.001456855037
A58: 0.175 | B58: 4.2639e-08 | J58: -7.461825e-09 | K58: 0.002095282555
A59: 0.2 | B59: 6.2636e-08 | J59: -1.25272e-08 | K59: 0.003077936118
A60: 0.225 | B60: 9.3757e-08 | J60: -2.1095325e-08 | K60: 0.004607223587
A61: 0.25 | B61: 1.42467e-07 | J61: -3.561675e-08 | K61: 0.007000835381
A62: 0.275 | B62: 2.18265e-07 | J62: -6.0022875e-08 | K62: 0.01072555283
A63: 0.3 | B63: 3.3524e-07 | J63: -1.00572e-07 | K63: 0.01647371007
A64: 0.325 | B64: 5.13903e-07 | J64: -1.67018475e-07 | K64: 0.02525321867
A65: 0.35 | B65: 7.8276e-07 | J65: -2.73966e-07 | K65: 0.03846486486
A66: 0.375 | B66: 1.20311e-06 | J66: -4.5116625e-07 | K66: 0.05912088452
A67: 0.4 | B67: 1.796644e-06 | J67: -7.186576e-07 | K67: 0.08828717445
A68: 0.425 | B68: 2.661352e-06 | J68: -1.1310746e-06 | K68: 0.1307789681
A69: 0.45 | B69: 3.905237e-06 | J69: -1.75735665e-06 | K69: 0.1919035381
A70: 0.475 | B70: 5.677113e-06 | J70: -2.696628675e-06 | K70: 0.2789736118
A71: 0.5 | B71: 8.178692e-06 | J71: -4.089346e-06 | K71: 0.4019013268
A72: 0.525 | B72: 1.236275e-05 | J72: -6.49044375e-06 | K72: 0.6075061425
A73: 0.55 | B73: 1.712256e-05 | J73: -9.417408e-06 | K73: 0.8414034398
A74: 0.575 | B74: 2.361399e-05 | J74: =-(B74*A74) -> -1.357804425e-05 | K74: =B74*1000/$D$7 -> 1.160392629
A75: 0.6 | B75: 3.223202e-05 | J75: -1.9339212e-05 | K75: 1.583883047
A76: 0.625 | B76: 4.346983e-05 | J76: -2.716864375e-05 | K76: 2.136109582
A77: 0.65 | B77: 5.776692e-05 | J77: -3.7548498e-05 | K77: 2.838669287
A78: 0.675 | B78: 7.56107e-05 | J78: -5.10372225e-05 | K78: 3.715513514
A79: 0.7 | B79: 9.74442e-05 | J79: -6.821094e-05 | K79: 4.788412776
A80: 0.725 | B80: 0.0001283241 | J80: -9.30349725e-05 | K80: 6.30585258
A81: 0.75 | B81: 0.0001576098 | J81: -0.00011820735 | K81: 7.744953317
A82: 0.775 | B82: 0.0001916858 | J82: -0.000148556495 | K82: 9.419449631
A83: 0.8 | B83: 0.0002302715 | J83: -0.0001842172 | K83: 11.31555283
A84: 0.825 | B84: 0.000273228 | J84: -0.0002254131 | K84: 13.42643735
A85: 0.85 | B85: 0.0003203542 | J85: -0.00027230107 | K85: 15.74222113
A86: 0.875 | B86: 0.0003712784 | J86: -0.0003248686 | K86: 18.24463882
A87: 0.9 | B87: 0.0004259761 | J87: -0.00038337849 | K87: 20.93248649
A88: 0.925 | B88: 0.0004838959 | J88: -0.0004476037075 | K88: 23.7786683
A89: 0.95 | B89: 0.0005449449 | J89: -0.000517697655 | K89: 26.77861916
A90: 0.975 | B90: 0.0006090015 | J90: -0.0005937764625 | K90: 29.92636364
A91: 1 | B91: 0.0006756121 | J91: -0.0006756121 | K91: 33.19961179
A92: 1 | B92: 0.0006793534 | J92: -0.0006793534 | K92: 33.38345946
A93: 0.975 | B93: 0.0006188563 | J93: -0.0006033848925 | K93: 30.41062899
A94: 0.95 | B94: 0.000559262 | J94: -0.0005312989 | K94: 27.48216216
A95: 0.925 | B95: 0.0005018366 | J95: -0.000464198855 | K95: 24.66027518
A96: 0.9 | B96: 0.0004468329 | J96: -0.00040214961 | K96: 21.95739066
A97: 0.875 | B97: 0.0003945682 | J97: -0.000345247175 | K97: 19.38910074
A98: 0.85 | B98: 0.0003454431 | J98: -0.000293626635 | K98: 16.97509091
A99: 0.825 | B99: 0.0002994188 | J99: -0.00024702051 | K99: 14.71345455
A100: 0.8 | B100: 0.0002568667 | J100: -0.00020549336 | K100: 12.62244226
A101: 0.775 | B101: 0.0002178584 | J101: -0.00016884026 | K101: 10.70557248
A102: 0.75 | B102: 0.0001825063 | J102: -0.000136879725 | K102: 8.96836855
A103: 0.725 | B103: 0.0001508354 | J103: -0.000109355665 | K103: 7.412058968
A104: 0.7 | B104: 0.0001227856 | J104: -8.594992e-05 | K104: 6.033690418
A105: 0.675 | B105: 9.755883e-05 | J105: -6.585221025e-05 | K105: 4.7940457
A106: 0.65 | B106: 7.709872e-05 | J106: -5.0114168e-05 | K106: 3.788634889
A107: 0.625 | B107: 5.96678e-05 | J107: -3.7292375e-05 | K107: 2.932078624
A108: 0.6 | B108: 4.525926e-05 | J108: -2.7155556e-05 | K108: 2.22404226
A109: 0.575 | B109: 3.364609e-05 | J109: -1.934650175e-05 | K109: 1.653370516
A110: 0.55 | B110: 2.44939e-05 | J110: -1.3471645e-05 | K110: 1.20363145
A111: 0.525 | B111: 1.744678e-05 | J111: -9.1595595e-06 | K111: 0.8573356265
A112: 0.5 | B112: 1.217089e-05 | J112: -6.085445e-06 | K112: 0.5980781327
A113: 0.475 | B113: 8.182772e-06 | J113: -3.8868167e-06 | K113: 0.4021018182
A114: 0.45 | B114: 5.496253e-06 | J114: -2.47331385e-06 | K114: 0.2700861425
A115: 0.425 | B115: 3.596244e-06 | J115: -1.5284037e-06 | K115: 0.1767196069
A116: 0.4 | B116: 2.302935e-06 | J116: -9.21174e-07 | K116: 0.1131663391
A117: 0.375 | B117: 1.44663e-06 | J117: -5.4248625e-07 | K117: 0.07108746929
A118: 0.35 | B118: 8.84641e-07 | J118: -3.0962435e-07 | K118: 0.04347130221
A119: 0.325 | B119: 5.44212e-07 | J119: -1.768689e-07 | K119: 0.02674260442
A120: 0.3 | B120: 3.31513e-07 | J120: -9.94539e-08 | K120: 0.01629056511
A121: 0.275 | B121: 2.02396e-07 | J121: -5.56589e-08 | K121: 0.009945749386
A122: 0.25 | B122: 1.24777e-07 | J122: -3.119425e-08 | K122: 0.006131547912
A123: 0.225 | B123: 7.8336e-08 | J123: -1.76256e-08 | K123: 0.003849434889
A124: 0.2 | B124: 5.0462e-08 | J124: -1.00924e-08 | K124: 0.00247970516
A125: 0.175 | B125: 3.3445e-08 | J125: -5.852875e-09 | K125: 0.001643488943
A126: 0.15 | B126: 2.2765e-08 | J126: -3.41475e-09 | K126: 0.001118673219
A127: 0.125 | B127: 1.5713e-08 | J127: -1.964125e-09 | K127: 0.0007721375921
A128: 0.1 | B128: 1.0748e-08 | J128: -1.0748e-09 | K128: 0.0005281572482
A129: 0.075 | B129: 7e-09 | J129: -5.25e-10 | K129: 0.000343980344
A130: 0.05 | B130: 3.947e-09 | J130: -1.9735e-10 | K130: 0.000193955774
A131: 0.025 | B131: 1.291e-09 | J131: -3.2275e-11 | K131: 6.343980344e-05
A132: 0 | B132: -1.132e-09 | J132: 0 | K132: -5.562653563e-05
J133: 0 | K133: 0
J134: 0 | K134: 0
J135: 0 | K135: 0
J136: 0 | K136: 0
J137: 0 | K137: 0
J138: =-(B138*A138) -> 0 | K138: =B138*1000/$D$7 -> 0
J139: 0 | K139: 0
J140: 0 | K140: 0
J141: 0 | K141: 0
J142: 0 | K142: 0
J143: 0 | K143: 0
J144: 0 | K144: 0
J145: 0 | K145: 0
J146: 0 | K146: 0
J147: 0 | K147: 0
J148: 0 | K148: 0
J149: 0 | K149: 0
J150: 0 | K150: 0
J151: 0 | K151: 0
J152: 0 | K152: 0
J153: 0 | K153: 0
J154: 0 | K154: 0
J155: 0 | K155: 0
J156: 0 | K156: 0
J157: 0 | K157: 0
J158: 0 | K158: 0
J159: 0 | K159: 0
J160: 0 | K160: 0
J161: 0 | K161: 0
J162: 0 | K162: 0
J163: 0 | K163: 0
J164: 0 | K164: 0
J165: 0 | K165: 0
J166: 0 | K166: 0
J167: 0 | K167: 0
J168: 0 | K168: 0
J169: 0 | K169: 0
J170: 0 | K170: 0
J171: 0 | K171: 0
J172: 0 | K172: 0
J173: 0 | K173: 0
J174: 0 | K174: 0
J175: 0 | K175: 0
J176: 0 | K176: 0
J177: 0 | K177: 0
J178: 0 | K178: 0
J179: 0 | K179: 0
J180: 0 | K180: 0
J181: 0 | K181: 0
J182: 0 | K182: 0
J183: 0 | K183: 0
J184: 0 | K184: 0
J185: 0 | K185: 0
J186: 0 | K186: 0
J187: 0 | K187: 0
J188: 0 | K188: 0
J189: 0 | K189: 0
J190: 0 | K190: 0
J191: 0 | K191: 0
J192: 0 | K192: 0
J193: 0 | K193: 0
J194: 0 | K194: 0
J195: 0 | K195: 0
J196: 0 | K196: 0
J197: 0 | K197: 0
J198: 0 | K198: 0
J199: 0 | K199: 0
J200: 0 | K200: 0
J201: 0 | K201: 0
J202: =-(B202*A202) -> 0 | K202: =B202*1000/$D$7 -> 0
... 208 more rows

Sheet PbS TBAI pedot B
C2: iv curve name: | D2: PbS TBAI pedot B
C3: file name: | D3: PbS TBAI pedot B
C4: Illumination Time: | E4: (hh:mm)
C5: Illumination Intensity: | D5: 100 | E5: (mW/cm2)
C6: Filter: | D6: 420 | E6: (nm)
C7: Pixel Area: | D7: 0.02035 | E7: (cm2)
A9: V (V) | B9: J (A) | E9: (mA/cm2) | F9: (A) | J9: power | K9: J (mA/cm2)
A10: 0 | B10: -0.0003762892 | D10: Jsc1 = | E10: =-F10*1000/$D$7 -> 18.49086978 | F10: =((INDEX(A10:B11,1,2)+INDEX(A10:B11,2,2))-((INDEX(A10:B11,1,2)-INDEX(A10:B11,2,2))/(INDEX(A10:B11,1,1)-INDEX(A10:B11,2,1))*(INDEX(A10:B11,1,1)+INDEX(A10:B11,2,1))))/2 -> -0.0003762892 | G10: ((INDEX(A10:B11,1,2)+INDEX(A10:B11,2,2))-((INDEX(A10:B11,1,2)-INDEX(A10:B11,2,2))/(INDEX(A10:B11,1,1)- | H10: INDEX(A10:B11,2,1))*(INDEX(A10:B11,1,1)+INDEX(A10:B11,2,1))))/2 | J10: =-(B10*A10) -> 0 | K10: =B10*1000/$D$7 -> -18.49086978 | L10: Jsc | M10: =MAX(E14:E15)/20 -> 0.02689796169 | N10: =-E10 -> -18.49086978 | O10: =-E11 -> -13.74039803 | P10: =-E12 -> -17.52295823
A11: -0.025 | B11: -0.0003528211 | D11: Jsc2 = | E11: =-F11*1000/$D$7 -> 13.74039803 | F11: =((INDEX(A30:B91,MATCH(0,A30:A91,1),2)+INDEX(A30:B91,MATCH(0,A30:A91,1)+1,2))-((INDEX(A30:B91,MATCH(0,A30:A91,1),2)-INDEX(A30:B91,MATCH(0,A30:A91,1)+1,2))/(INDEX(A30:B91,MATCH(0,A30:A91,1),1)-INDEX(A30:B91,MATCH(0,A30:A91,1)+1,1))*(INDEX(A30:B91,MATCH(0,A30:A91,1),1)+INDEX(A30:B91,MATCH(0,A30:A91,1)+1,1))))/2 -> -0.0002796171 | G11: ((INDEX(a30:b91,MATCH(0,a30:a91,1),2)+INDEX(a30:b91,MATCH(0,a30:a91,1)+1,2))-((INDEX(a30:b91,MATCH(0,a30:a91,1),2)-INDEX(a30:b91,MATCH(0,a30:a91,1)+1,2))/ | H11: (INDEX(a30:b91,MATCH(0,a30:a91,1),1)-INDEX(a30:b91,MATCH(0,a30:a91,1)+1,1))*(INDEX(a30:b91,MATCH(0,a30:a91,1),1)+INDEX(a30:b91,MATCH(0,a30:a91,1)+1,1))))/2 | J11: -8.8205275e-06 | K11: -17.33764619 | M11: =-MAX(E15:E16)/20 -> -0.02689796169 | N11: =-E10 -> -18.49086978 | O11: =-E11 -> -13.74039803 | P11: =-E12 -> -17.52295823
A12: -0.05 | B12: -0.0003607047 | D12: Jsc3 = | E12: =-F12*1000/$D$7 -> 17.52295823 | F12: =((INDEX(A131:B132,1,2)+INDEX(A131:B132,2,2))-((INDEX(A131:B132,1,2)-INDEX(A131:B132,2,2))/(INDEX(A131:B132,1,1)-INDEX(A131:B132,2,1))*(INDEX(A131:B132,1,1)+INDEX(A131:B132,2,1))))/2 -> -0.0003565922 | G12: ((INDEX(A131:B132,1,2)+INDEX(A131:B132,2,2))-((INDEX(A131:B132,1,2)-INDEX(A131:B132,2,2))/(INDEX(A131:B132,1,1)- | H12: INDEX(A131:B132,2,1))*(INDEX(A131:B132,1,1)+INDEX(A131:B132,2,1))))/2 | J12: -1.8035235e-05 | K12: -17.72504668
A13: -0.075 | B13: -0.0003752152 | E13: (V) | J13: -2.814114e-05 | K13: -18.43809337 | L13: Voc | M13: =E14 -> 0.5250575495 | N13: =-MAX(E10:E12)/15 -> -1.232724652
A14: -0.1 | B14: -0.0003664214 | D14: Voc1 = | E14: =F14 -> 0.5250575495 | F14: =((INDEX(A30:B91,MATCH(0,B30:B91,1),1)+INDEX(A30:B91,MATCH(0,B30:B91,1)+1,1))-((INDEX(A30:B91,MATCH(0,B30:B91,1),1)-INDEX(A30:B91,MATCH(0,B30:B91,1)+1,1))/(INDEX(A30:B91,MATCH(0,B30:B91,1),2)-INDEX(A30:B91,MATCH(0,B30:B91,1)+1,2))*(INDEX(A30:B91,MATCH(0,B30:B91,1),2)+INDEX(A30:B91,MATCH(0,B30:B91,1)+1,2))))/2 -> 0.5250575495 | G14: ((INDEX(a30:b91,MATCH(0,b30:b91,1),1)+INDEX(a30:b91,MATCH(0,b30:b91,1)+1,1))-((INDEX(a30:b91,MATCH(0,b30:b91,1),1)-INDEX(a30:b91,MATCH(0,b30:b91,1)+1,1))/ | H14: (INDEX(a30:b91,MATCH(0,b30:b91,1),2)-INDEX(a30:b91,MATCH(0,b30:b91,1)+1,2))*(INDEX(a30:b91,MATCH(0,b30:b91,1),2)+INDEX(a30:b91,MATCH(0,b30:b91,1)+1,2))))/2 | J14: -3.664214e-05 | K14: -18.0059656 | M14: =E14 -> 0.5250575495 | N14: =MAX(E10:E12)/15 -> 1.232724652
A15: -0.125 | B15: -0.0003717381 | D15: Voc2 = | E15: =F15 -> 0.5379592337 | F15: =((INDEX(A91:B130,MATCH(0,B91:B130,-1),1)+INDEX(A91:B130,MATCH(0,B91:B130,-1)+1,1))-((INDEX(A91:B130,MATCH(0,B91:B130,-1),1)-INDEX(A91:B130,MATCH(0,B91:B130,-1)+1,1))/(INDEX(A91:B130,MATCH(0,B91:B130,-1),2)-INDEX(A91:B130,MATCH(0,B91:B130,-1)+1,2))*(INDEX(A91:B130,MATCH(0,B91:B130,-1),2)+INDEX(A91:B130,MATCH(0,B91:B130,-1)+1,2))))/2 -> 0.5379592337 | G15: ((INDEX(a91:b130,MATCH(0,b91:b130,-1),1)+INDEX(a91:b130,MATCH(0,b91:b130,-1)+1,1))-((INDEX(a91:b130,MATCH(0,b91:b130,-1),1)-INDEX(a91:b130,MATCH(0,b91:b130,-1)+1,1))/(INDEX(a91:b130,MATCH(0,b91:b130,-1),2)- | H15: INDEX(a91:b130,MATCH(0,b91:b130,-1)+1,2))*(INDEX(a91:b130,MATCH(0,b91:b130,-1),2)+INDEX(a91:b130,MATCH(0,b91:b130,-1)+1,2))))/2 | J15: -4.64672625e-05 | K15: -18.2672285 | M15: =E15 -> 0.5379592337 | N15: =-MAX(E10:E12)/15 -> -1.232724652
A16: -0.15 | B16: -0.0003883795 | J16: -5.8256925e-05 | K16: -19.08498771 | M16: =E15 -> 0.5379592337 | N16: =MAX(E10:E12)/15 -> 1.232724652
A17: -0.175 | B17: -0.0003749164 | D17: FF1 = | E17: =F17 -> 0.3367832759 | F17: =(-1)*MAX(J30:J91)/F11/E14 -> 0.3367832759 | G17: (-1)*MAX(j30:j91)/F11/E14 | J17: -6.561037e-05 | K17: -18.42341032
A18: -0.2 | B18: -0.0003856999 | D18: FF2 = | E18: =F18 -> 0.3918375656 | F18: =(-1)*MAX(J91:J130)/F12/E15 -> 0.3918375656 | G18: (-1)*MAX(j91:j130)/F12/E15 | J18: -7.713998e-05 | K18: -18.95331204 | L18: FF | M18: 0 | N18: =INDEX(K30:K91,MATCH(MAX(J30:J91),J30:J91,0),1) -> -8.099076167 | P18: INDEX(k30:k91,MATCH(MAX(j30:j91),j30:j91,0),1)
A19: -0.225 | B19: -0.0003957073 | J19: -8.90341425e-05 | K19: -19.44507617 | M19: =INDEX(A30:A91,MATCH(MAX(J30:J91),J30:J91,0),1) -> 0.3 | N19: =INDEX(K30:K91,MATCH(MAX(J30:J91),J30:J91,0),1) -> -8.099076167 | O19: INDEX(a30:a91,MATCH(MAX(j30:j91),j30:j91,0),1) | P19: INDEX(k30:k91,MATCH(MAX(j30:j91),j30:j91,0),1)
A20: -0.25 | B20: -0.0003895743 | D20: PCE up = | E20: =F20 -> 0.0242972285 | F20: =MAX(J30:J91)/D5/D7*1000 -> 0.0242972285 | G20: MAX(j30:j91)/D5/D7*1000 | J20: -9.7393575e-05 | K20: -19.14370025 | M20: =INDEX(A30:A91,MATCH(MAX(J30:J91),J30:J91,0),1) -> 0.3 | N20: 0 | O20: INDEX(a30:a91,MATCH(MAX(j30:j91),j30:j91,0),1)
A21: -0.275 | B21: -0.0003915026 | D21: PCE back = | E21: =F21 -> 0.03693710565 | F21: =MAX(J91:J130)/D5/D7*1000 -> 0.03693710565 | G21: MAX(j91:j130)/D5/D7*1000 | J21: -0.000107663215 | K21: -19.238457
A22: -0.3 | B22: -0.000400537 | J22: -0.0001201611 | K22: -19.68240786 | M22: 0 | N22: =INDEX(K91:K130,MATCH(MAX(J91:J130),J91:J130,0),1) -> -12.31236855 | P22: INDEX(k91:k130,MATCH(MAX(j91:j130),j91:j130,0),1)
A23: -0.325 | B23: -0.0003992172 | D23: discrepancy: | E23: =E11*E14*E17/D5-E20 -> 0 | J23: -0.00012974559 | K23: -19.61755283 | M23: =INDEX(A91:A130,MATCH(MAX(J91:J130),J91:J130,0),1) -> 0.3 | N23: =INDEX(K91:K130,MATCH(MAX(J91:J130),J91:J130,0),1) -> -12.31236855 | O23: INDEX(a91:a130,MATCH(MAX(j91:j130),j91:j130,0),1) | P23: INDEX(k91:k130,MATCH(MAX(j91:j130),j91:j130,0),1)
A24: -0.35 | B24: -0.0003966884 | E24: =E12*E15*E18/D5-E21 -> 0 | J24: -0.00013884094 | K24: -19.49328747 | M24: =INDEX(A91:A130,MATCH(MAX(J91:J130),J91:J130,0),1) -> 0.3 | N24: 0 | O24: INDEX(a91:a130,MATCH(MAX(j91:j130),j91:j130,0),1)
A25: -0.375 | B25: -0.0004103665 | J25: -0.0001538874375 | K25: -20.16542998
A26: -0.4 | B26: -0.0004050784 | D26: V is from: | E26: =MIN(A10:A132) -> -0.5 | F26: to | G26: =MAX(A10:A132) -> 1 | J26: -0.00016203136 | K26: -19.90557248
A27: -0.425 | B27: -0.0004056254 | D27: row: | E27: =MATCH(-0.5,A1:A132,0) -> 30 | F27: - | G27: =MATCH(1,A1:A132,0) -> 91 | J27: -0.000172390795 | K27: -19.93245209
A28: -0.45 | B28: -0.000414172 | J28: -0.0001863774 | K28: -20.35243243
A29: -0.475 | B29: -0.0004165038 | J29: -0.000197839305 | K29: -20.4670172
A30: -0.5 | B30: -0.0004075468 | J30: -0.0002037734 | K30: -20.02686978
A31: -0.5 | B31: -0.0004122209 | J31: -0.00020611045 | K31: -20.25655528
A32: -0.475 | B32: -0.0004038905 | J32: -0.0001918479875 | K32: -19.84719902
A33: -0.45 | B33: -0.0003860605 | J33: -0.000173727225 | K33: -18.97103194
A34: -0.425 | B34: -0.0003850759 | J34: -0.0001636572575 | K34: -18.92264865
A35: -0.4 | B35: -0.0003844283 | J35: -0.00015377132 | K35: -18.89082555
A36: -0.375 | B36: -0.0003662831 | J36: -0.0001373561625 | K36: -17.99916953
A37: -0.35 | B37: -0.0003653018 | J37: -0.00012785563 | K37: -17.9509484
A38: -0.325 | B38: -0.000365926 | J38: -0.00011892595 | K38: -17.98162162
A39: -0.3 | B39: -0.000352366 | J39: -0.0001057098 | K39: -17.31528256
A40: -0.275 | B40: -0.0003485944 | J40: -9.586346e-05 | K40: -17.12994595
A41: -0.25 | B41: -0.0003510086 | J41: -8.775215e-05 | K41: -17.24857985
A42: -0.225 | B42: -0.0003331167 | J42: -7.49512575e-05 | K42: -16.36937101
A43: -0.2 | B43: -0.0003277551 | J43: -6.555102e-05 | K43: -16.10590172
A44: -0.175 | B44: -0.0003310314 | J44: -5.7930495e-05 | K44: -16.26689926
A45: -0.15 | B45: -0.000318696 | J45: -4.78044e-05 | K45: -15.6607371
A46: -0.125 | B46: -0.000309571 | J46: -3.8696375e-05 | K46: -15.21233415
A47: -0.1 | B47: -0.0003138824 | J47: -3.138824e-05 | K47: -15.42419656
A48: -0.075 | B48: -0.000296931 | J48: -2.2269825e-05 | K48: -14.59120393
A49: -0.05 | B49: -0.0002888373 | J49: -1.4441865e-05 | K49: -14.19347912
A50: -0.025 | B50: -0.0002869797 | J50: -7.1744925e-06 | K50: -14.10219656
A51: 0 | B51: -0.0002796171 | J51: 0 | K51: -13.74039803
A52: 0.025 | B52: -0.0002665708 | J52: 6.66427e-06 | K52: -13.09930221
A53: 0.05 | B53: -0.0002633349 | J53: 1.3166745e-05 | K53: -12.94028993
A54: 0.075 | B54: -0.0002552936 | J54: 1.914702e-05 | K54: -12.54514005
A55: 0.1 | B55: -0.0002428373 | J55: 2.428373e-05 | K55: -11.93303686
A56: 0.125 | B56: -0.0002374892 | J56: 2.968615e-05 | K56: -11.67023096
A57: 0.15 | B57: -0.0002287985 | J57: 3.4319775e-05 | K57: -11.24316953
A58: 0.175 | B58: -0.0002145152 | J58: 3.754016e-05 | K58: -10.54128747
A59: 0.2 | B59: -0.0002077782 | J59: 4.155564e-05 | K59: -10.21023096
A60: 0.225 | B60: -0.0001994981 | J60: 4.48870725e-05 | K60: -9.803346437
A61: 0.25 | B61: -0.0001851042 | J61: 4.627605e-05 | K61: -9.096029484
A62: 0.275 | B62: -0.0001754716 | J62: 4.825469e-05 | K62: -8.622683047
A63: 0.3 | B63: -0.0001648162 | J63: 4.944486e-05 | K63: -8.099076167
A64: 0.325 | B64: -0.0001489568 | J64: 4.841096e-05 | K64: -7.319744472
A65: 0.35 | B65: -0.0001369578 | J65: 4.793523e-05 | K65: -6.730113022
A66: 0.375 | B66: -0.0001230334 | J66: 4.6137525e-05 | K66: -6.045867322
A67: 0.4 | B67: -0.0001040048 | J67: 4.160192e-05 | K67: -5.110800983
A68: 0.425 | B68: -9.158695e-05 | J68: 3.892445375e-05 | K68: -4.500587224
A69: 0.45 | B69: -7.016108e-05 | J69: 3.1572486e-05 | K69: -3.447718919
A70: 0.475 | B70: -4.884306e-05 | J70: 2.32004535e-05 | K70: -2.400150369
A71: 0.5 | B71: -2.360007e-05 | J71: 1.1800035e-05 | K71: -1.1597086
A72: 0.525 | B72: -6.6732e-08 | J72: 3.50343e-08 | K72: -0.003279213759
A73: 0.55 | B73: 2.892223e-05 | J73: -1.59072265e-05 | K73: 1.421239803
A74: 0.575 | B74: 6.321386e-05 | J74: =-(B74*A74) -> -3.63479695e-05 | K74: =B74*1000/$D$7 -> 3.106332187
A75: 0.6 | B75: 9.973449e-05 | J75: -5.9840694e-05 | K75: 4.90095774
A76: 0.625 | B76: 0.0001391047 | J76: -8.69404375e-05 | K76: 6.835611794
A77: 0.65 | B77: 0.0001813067 | J77: -0.000117849355 | K77: 8.909420147
A78: 0.675 | B78: 0.0002258918 | J78: -0.000152476965 | K78: 11.10033415
A79: 0.7 | B79: 0.0002745708 | J79: -0.00019219956 | K79: 13.4924226
A80: 0.725 | B80: 0.0003247389 | J80: -0.0002354357025 | K80: 15.9576855
A81: 0.75 | B81: 0.0003769267 | J81: -0.000282695025 | K81: 18.52219656
A82: 0.775 | B82: 0.0004334566 | J82: -0.000335928865 | K82: 21.30007862
A83: 0.8 | B83: 0.0004919827 | J83: -0.00039358616 | K83: 24.17605405
A84: 0.825 | B84: 0.0005492586 | J84: -0.000453138345 | K84: 26.99059459
A85: 0.85 | B85: 0.0006144767 | J85: -0.000522305195 | K85: 30.19541523
A86: 0.875 | B86: 0.0006812412 | J86: -0.00059608605 | K86: 33.47622604
A87: 0.9 | B87: 0.0007435568 | J87: -0.00066920112 | K87: 36.53841769
A88: 0.925 | B88: 0.0008147609 | J88: -0.0007536538325 | K88: 40.03739066
A89: 0.95 | B89: 0.0008903514 | J89: -0.00084583383 | K89: 43.75191155
A90: 0.975 | B90: 0.0009568507 | J90: -0.0009329294325 | K90: 47.01969042
A91: 1 | B91: 0.001033764 | J91: -0.001033764 | K91: 50.79921376
A92: 1 | B92: 0.001039892 | J92: -0.001039892 | K92: 51.10034398
A93: 0.975 | B93: 0.0009586794 | J93: -0.000934712415 | K93: 47.10955283
A94: 0.95 | B94: 0.0008901835 | J94: -0.000845674325 | K94: 43.74366093
A95: 0.925 | B95: 0.0008243701 | J95: -0.0007625423425 | K95: 40.50958722
A96: 0.9 | B96: 0.0007515644 | J96: -0.00067640796 | K96: 36.93191155
A97: 0.875 | B97: 0.0006857016 | J97: -0.0005999889 | K97: 33.69541032
A98: 0.85 | B98: 0.0006250863 | J98: -0.000531323355 | K98: 30.7167715
A99: 0.825 | B99: 0.0005583829 | J99: -0.0004606658925 | K99: 27.43896314
A100: 0.8 | B100: 0.0004996342 | J100: -0.00039970736 | K100: 24.55204914
A101: 0.775 | B101: 0.0004423045 | J101: -0.0003427859875 | K101: 21.73486486
A102: 0.75 | B102: 0.0003860891 | J102: -0.000289566825 | K102: 18.97243735
A103: 0.725 | B103: 0.0003310106 | J103: -0.000239982685 | K103: 16.26587715
A104: 0.7 | B104: 0.0002799827 | J104: -0.00019598789 | K104: 13.75836364
A105: 0.675 | B105: 0.0002307466 | J105: -0.000155753955 | K105: 11.33889926
A106: 0.65 | B106: 0.000182355 | J106: -0.00011853075 | K106: 8.960933661
A107: 0.625 | B107: 0.0001379795 | J107: -8.62371875e-05 | K107: 6.78031941
A108: 0.6 | B108: 9.53364e-05 | J108: -5.720184e-05 | K108: 4.684835381
A109: 0.575 | B109: 5.472608e-05 | J109: -3.1467496e-05 | K109: 2.68924226
A110: 0.55 | B110: 1.742571e-05 | J110: -9.5841405e-06 | K110: 0.8563002457
A111: 0.525 | B111: -1.875494e-05 | J111: 9.8463435e-06 | K111: -0.9216186732
A112: 0.5 | B112: -5.300766e-05 | J112: 2.650383e-05 | K112: -2.604799017
A113: 0.475 | B113: -8.134239e-05 | J113: 3.863763525e-05 | K113: -3.997169042
A114: 0.45 | B114: -0.0001076928 | J114: 4.846176e-05 | K114: -5.292029484
A115: 0.425 | B115: -0.000137282 | J115: 5.834485e-05 | K115: -6.746044226
A116: 0.4 | B116: -0.0001606915 | J116: 6.42766e-05 | K116: -7.896388206
A117: 0.375 | B117: -0.0001802986 | J117: 6.7611975e-05 | K117: -8.859882064
A118: 0.35 | B118: -0.0002038716 | J118: 7.135506e-05 | K118: -10.01826044
A119: 0.325 | B119: -0.0002242911 | J119: 7.28946075e-05 | K119: -11.02167568
A120: 0.3 | B120: -0.0002505567 | J120: 7.516701e-05 | K120: -12.31236855
A121: 0.275 | B121: -0.0002724699 | J121: 7.49292225e-05 | K121: -13.38918428
A122: 0.25 | B122: -0.0002823816 | J122: 7.05954e-05 | K122: -13.8762457
A123: 0.225 | B123: -0.0002920746 | J123: 6.5716785e-05 | K123: -14.3525602
A124: 0.2 | B124: -0.000305512 | J124: 6.11024e-05 | K124: -15.01287469
A125: 0.175 | B125: -0.0002910379 | J125: 5.09316325e-05 | K125: -14.30161671
A126: 0.15 | B126: -0.000304453 | J126: 4.566795e-05 | K126: -14.96083538
A127: 0.125 | B127: -0.0003165947 | J127: 3.95743375e-05 | K127: -15.55747912
A128: 0.1 | B128: -0.0003259807 | J128: 3.259807e-05 | K128: -16.01870762
A129: 0.075 | B129: -0.0003336964 | J129: 2.502723e-05 | K129: -16.39785749
A130: 0.05 | B130: -0.0003393548 | J130: 1.696774e-05 | K130: -16.67591155
A131: 0.025 | B131: -0.0003478277 | J131: 8.6956925e-06 | K131: -17.09227027
A132: 0 | B132: -0.0003565922 | J132: 0 | K132: -17.52295823
J133: 0 | K133: 0
J134: 0 | K134: 0
J135: 0 | K135: 0
J136: 0 | K136: 0
J137: 0 | K137: 0
J138: =-(B138*A138) -> 0 | K138: =B138*1000/$D$7 -> 0
J139: 0 | K139: 0
J140: 0 | K140: 0
J141: 0 | K141: 0
J142: 0 | K142: 0
J143: 0 | K143: 0
J144: 0 | K144: 0
J145: 0 | K145: 0
J146: 0 | K146: 0
J147: 0 | K147: 0
J148: 0 | K148: 0
J149: 0 | K149: 0
J150: 0 | K150: 0
J151: 0 | K151: 0
J152: 0 | K152: 0
J153: 0 | K153: 0
J154: 0 | K154: 0
J155: 0 | K155: 0
J156: 0 | K156: 0
J157: 0 | K157: 0
J158: 0 | K158: 0
J159: 0 | K159: 0
J160: 0 | K160: 0
J161: 0 | K161: 0
J162: 0 | K162: 0
J163: 0 | K163: 0
J164: 0 | K164: 0
J165: 0 | K165: 0
J166: 0 | K166: 0
J167: 0 | K167: 0
J168: 0 | K168: 0
J169: 0 | K169: 0
J170: 0 | K170: 0
J171: 0 | K171: 0
J172: 0 | K172: 0
J173: 0 | K173: 0
J174: 0 | K174: 0
J175: 0 | K175: 0
J176: 0 | K176: 0
J177: 0 | K177: 0
J178: 0 | K178: 0
J179: 0 | K179: 0
J180: 0 | K180: 0
J181: 0 | K181: 0
J182: 0 | K182: 0
J183: 0 | K183: 0
J184: 0 | K184: 0
J185: 0 | K185: 0
J186: 0 | K186: 0
J187: 0 | K187: 0
J188: 0 | K188: 0
J189: 0 | K189: 0
J190: 0 | K190: 0
J191: 0 | K191: 0
J192: 0 | K192: 0
J193: 0 | K193: 0
J194: 0 | K194: 0
J195: 0 | K195: 0
J196: 0 | K196: 0
J197: 0 | K197: 0
J198: 0 | K198: 0
J199: 0 | K199: 0
J200: 0 | K200: 0
J201: 0 | K201: 0
J202: =-(B202*A202) -> 0 | K202: =B202*1000/$D$7 -> 0
... 208 more rows

Sheet PbS TBAI pedot
C2: iv curve name: | D2: PbS TBAI pedot
C3: file name: | D3: PbS TBAI pedot
C4: Illumination Time: | E4: (hh:mm)
C5: Illumination Intensity: | D5: 100 | E5: (mW/cm2)
C6: Filter: | D6: 420 | E6: (nm)
C7: Pixel Area: | D7: 0.02035 | E7: (cm2)
A9: V (V) | B9: J (A) | E9: (mA/cm2) | F9: (A) | J9: power | K9: J (mA/cm2)
A10: 0 | B10: -0.0003576828 | D10: Jsc1 = | E10: =-F10*1000/$D$7 -> 17.57655037 | F10: =((INDEX(A10:B11,1,2)+INDEX(A10:B11,2,2))-((INDEX(A10:B11,1,2)-INDEX(A10:B11,2,2))/(INDEX(A10:B11,1,1)-INDEX(A10:B11,2,1))*(INDEX(A10:B11,1,1)+INDEX(A10:B11,2,1))))/2 -> -0.0003576828 | G10: ((INDEX(A10:B11,1,2)+INDEX(A10:B11,2,2))-((INDEX(A10:B11,1,2)-INDEX(A10:B11,2,2))/(INDEX(A10:B11,1,1)- | H10: INDEX(A10:B11,2,1))*(INDEX(A10:B11,1,1)+INDEX(A10:B11,2,1))))/2 | J10: =-(B10*A10) -> 0 | K10: =B10*1000/$D$7 -> -17.57655037 | L10: Jsc | M10: =MAX(E14:E15)/20 -> 0.02627680584 | N10: =-E10 -> -17.57655037 | O10: =-E11 -> -12.99131695 | P10: =-E12 -> -16.98430467
A11: -0.025 | B11: -0.0003491452 | D11: Jsc2 = | E11: =-F11*1000/$D$7 -> 12.99131695 | F11: =((INDEX(A30:B91,MATCH(0,A30:A91,1),2)+INDEX(A30:B91,MATCH(0,A30:A91,1)+1,2))-((INDEX(A30:B91,MATCH(0,A30:A91,1),2)-INDEX(A30:B91,MATCH(0,A30:A91,1)+1,2))/(INDEX(A30:B91,MATCH(0,A30:A91,1),1)-INDEX(A30:B91,MATCH(0,A30:A91,1)+1,1))*(INDEX(A30:B91,MATCH(0,A30:A91,1),1)+INDEX(A30:B91,MATCH(0,A30:A91,1)+1,1))))/2 -> -0.0002643733 | G11: ((INDEX(a30:b91,MATCH(0,a30:a91,1),2)+INDEX(a30:b91,MATCH(0,a30:a91,1)+1,2))-((INDEX(a30:b91,MATCH(0,a30:a91,1),2)-INDEX(a30:b91,MATCH(0,a30:a91,1)+1,2))/ | H11: (INDEX(a30:b91,MATCH(0,a30:a91,1),1)-INDEX(a30:b91,MATCH(0,a30:a91,1)+1,1))*(INDEX(a30:b91,MATCH(0,a30:a91,1),1)+INDEX(a30:b91,MATCH(0,a30:a91,1)+1,1))))/2 | J11: -8.72863e-06 | K11: -17.15701229 | M11: =-MAX(E15:E16)/20 -> -0.02627680584 | N11: =-E10 -> -17.57655037 | O11: =-E11 -> -12.99131695 | P11: =-E12 -> -16.98430467
A12: -0.05 | B12: -0.0003556427 | D12: Jsc3 = | E12: =-F12*1000/$D$7 -> 16.98430467 | F12: =((INDEX(A131:B132,1,2)+INDEX(A131:B132,2,2))-((INDEX(A131:B132,1,2)-INDEX(A131:B132,2,2))/(INDEX(A131:B132,1,1)-INDEX(A131:B132,2,1))*(INDEX(A131:B132,1,1)+INDEX(A131:B132,2,1))))/2 -> -0.0003456306 | G12: ((INDEX(A131:B132,1,2)+INDEX(A131:B132,2,2))-((INDEX(A131:B132,1,2)-INDEX(A131:B132,2,2))/(INDEX(A131:B132,1,1)- | H12: INDEX(A131:B132,2,1))*(INDEX(A131:B132,1,1)+INDEX(A131:B132,2,1))))/2 | J12: -1.7782135e-05 | K12: -17.47629975
A13: -0.075 | B13: -0.0003569831 | E13: (V) | J13: -2.67737325e-05 | K13: -17.54216708 | L13: Voc | M13: =E14 -> 0.5221433599 | N13: =-MAX(E10:E12)/15 -> -1.171770025
A14: -0.1 | B14: -0.0003568185 | D14: Voc1 = | E14: =F14 -> 0.5221433599 | F14: =((INDEX(A30:B91,MATCH(0,B30:B91,1),1)+INDEX(A30:B91,MATCH(0,B30:B91,1)+1,1))-((INDEX(A30:B91,MATCH(0,B30:B91,1),1)-INDEX(A30:B91,MATCH(0,B30:B91,1)+1,1))/(INDEX(A30:B91,MATCH(0,B30:B91,1),2)-INDEX(A30:B91,MATCH(0,B30:B91,1)+1,2))*(INDEX(A30:B91,MATCH(0,B30:B91,1),2)+INDEX(A30:B91,MATCH(0,B30:B91,1)+1,2))))/2 -> 0.5221433599 | G14: ((INDEX(a30:b91,MATCH(0,b30:b91,1),1)+INDEX(a30:b91,MATCH(0,b30:b91,1)+1,1))-((INDEX(a30:b91,MATCH(0,b30:b91,1),1)-INDEX(a30:b91,MATCH(0,b30:b91,1)+1,1))/ | H14: (INDEX(a30:b91,MATCH(0,b30:b91,1),2)-INDEX(a30:b91,MATCH(0,b30:b91,1)+1,2))*(INDEX(a30:b91,MATCH(0,b30:b91,1),2)+INDEX(a30:b91,MATCH(0,b30:b91,1)+1,2))))/2 | J14: -3.568185e-05 | K14: -17.53407862 | M14: =E14 -> 0.5221433599 | N14: =MAX(E10:E12)/15 -> 1.171770025
A15: -0.125 | B15: -0.0003635766 | D15: Voc2 = | E15: =F15 -> 0.5255361168 | F15: =((INDEX(A91:B130,MATCH(0,B91:B130,-1),1)+INDEX(A91:B130,MATCH(0,B91:B130,-1)+1,1))-((INDEX(A91:B130,MATCH(0,B91:B130,-1),1)-INDEX(A91:B130,MATCH(0,B91:B130,-1)+1,1))/(INDEX(A91:B130,MATCH(0,B91:B130,-1),2)-INDEX(A91:B130,MATCH(0,B91:B130,-1)+1,2))*(INDEX(A91:B130,MATCH(0,B91:B130,-1),2)+INDEX(A91:B130,MATCH(0,B91:B130,-1)+1,2))))/2 -> 0.5255361168 | G15: ((INDEX(a91:b130,MATCH(0,b91:b130,-1),1)+INDEX(a91:b130,MATCH(0,b91:b130,-1)+1,1))-((INDEX(a91:b130,MATCH(0,b91:b130,-1),1)-INDEX(a91:b130,MATCH(0,b91:b130,-1)+1,1))/(INDEX(a91:b130,MATCH(0,b91:b130,-1),2)- | H15: INDEX(a91:b130,MATCH(0,b91:b130,-1)+1,2))*(INDEX(a91:b130,MATCH(0,b91:b130,-1),2)+INDEX(a91:b130,MATCH(0,b91:b130,-1)+1,2))))/2 | J15: -4.5447075e-05 | K15: -17.86617199 | M15: =E15 -> 0.5255361168 | N15: =-MAX(E10:E12)/15 -> -1.171770025
A16: -0.15 | B16: -0.0003680795 | J16: -5.5211925e-05 | K16: -18.08744472 | M16: =E15 -> 0.5255361168 | N16: =MAX(E10:E12)/15 -> 1.171770025
A17: -0.175 | B17: -0.0003665846 | D17: FF1 = | E17: =F17 -> 0.3894136687 | F17: =(-1)*MAX(J30:J91)/F11/E14 -> 0.3894136687 | G17: (-1)*MAX(j30:j91)/F11/E14 | J17: -6.4152305e-05 | K17: -18.01398526
A18: -0.2 | B18: -0.0003714246 | D18: FF2 = | E18: =F18 -> 0.3768706022 | F18: =(-1)*MAX(J91:J130)/F12/E15 -> 0.3768706022 | G18: (-1)*MAX(j91:j130)/F12/E15 | J18: -7.428492e-05 | K18: -18.2518231 | L18: FF | M18: 0 | N18: =INDEX(K30:K91,MATCH(MAX(J30:J91),J30:J91,0),1) -> -7.547203931 | P18: INDEX(k30:k91,MATCH(MAX(j30:j91),j30:j91,0),1)
A19: -0.225 | B19: -0.0003770948 | J19: -8.484633e-05 | K19: -18.530457 | M19: =INDEX(A30:A91,MATCH(MAX(J30:J91),J30:J91,0),1) -> 0.35 | N19: =INDEX(K30:K91,MATCH(MAX(J30:J91),J30:J91,0),1) -> -7.547203931 | O19: INDEX(a30:a91,MATCH(MAX(j30:j91),j30:j91,0),1) | P19: INDEX(k30:k91,MATCH(MAX(j30:j91),j30:j91,0),1)
A20: -0.25 | B20: -0.0003776212 | D20: PCE up = | E20: =F20 -> 0.02641521376 | F20: =MAX(J30:J91)/D5/D7*1000 -> 0.02641521376 | G20: MAX(j30:j91)/D5/D7*1000 | J20: -9.44053e-05 | K20: -18.55632432 | M20: =INDEX(A30:A91,MATCH(MAX(J30:J91),J30:J91,0),1) -> 0.35 | N20: 0 | O20: INDEX(a30:a91,MATCH(MAX(j30:j91),j30:j91,0),1)
A21: -0.275 | B21: -0.0003804164 | D21: PCE back = | E21: =F21 -> 0.03363896314 | F21: =MAX(J91:J130)/D5/D7*1000 -> 0.03363896314 | G21: MAX(j91:j130)/D5/D7*1000 | J21: -0.00010461451 | K21: -18.69368059
A22: -0.3 | B22: -0.0003845925 | J22: -0.00011537775 | K22: -18.89889435 | M22: 0 | N22: =INDEX(K91:K130,MATCH(MAX(J91:J130),J91:J130,0),1) -> -11.21298771 | P22: INDEX(k91:k130,MATCH(MAX(j91:j130),j91:j130,0),1)
A23: -0.325 | B23: -0.0003906783 | D23: discrepancy: | E23: =E11*E14*E17/D5-E20 -> 0 | J23: -0.0001269704475 | K23: -19.19795086 | M23: =INDEX(A91:A130,MATCH(MAX(J91:J130),J91:J130,0),1) -> 0.3 | N23: =INDEX(K91:K130,MATCH(MAX(J91:J130),J91:J130,0),1) -> -11.21298771 | O23: INDEX(a91:a130,MATCH(MAX(j91:j130),j91:j130,0),1) | P23: INDEX(k91:k130,MATCH(MAX(j91:j130),j91:j130,0),1)
A24: -0.35 | B24: -0.0003857136 | E24: =E12*E15*E18/D5-E21 -> 0 | J24: -0.00013499976 | K24: -18.95398526 | M24: =INDEX(A91:A130,MATCH(MAX(J91:J130),J91:J130,0),1) -> 0.3 | N24: 0 | O24: INDEX(a91:a130,MATCH(MAX(j91:j130),j91:j130,0),1)
A25: -0.375 | B25: -0.0003911704 | J25: -0.0001466889 | K25: -19.22213268
A26: -0.4 | B26: -0.0004028805 | D26: V is from: | E26: =MIN(A10:A132) -> -0.5 | F26: to | G26: =MAX(A10:A132) -> 1 | J26: -0.0001611522 | K26: -19.79756757
A27: -0.425 | B27: -0.0003891738 | D27: row: | E27: =MATCH(-0.5,A1:A132,0) -> 30 | F27: - | G27: =MATCH(1,A1:A132,0) -> 91 | J27: -0.000165398865 | K27: -19.12401966
A28: -0.45 | B28: -0.000399536 | J28: -0.0001797912 | K28: -19.63321867
A29: -0.475 | B29: -0.0004106571 | J29: -0.0001950621225 | K29: -20.17971007
A30: -0.5 | B30: -0.0003947887 | J30: -0.00019739435 | K30: -19.39993612
A31: -0.5 | B31: -0.000437328 | J31: -0.000218664 | K31: -21.49031941
A32: -0.475 | B32: -0.0004317942 | J32: -0.000205102245 | K32: -21.21838821
A33: -0.45 | B33: -0.000412398 | J33: -0.0001855791 | K33: -20.26525799
A34: -0.425 | B34: -0.0004062787 | J34: -0.0001726684475 | K34: -19.96455528
A35: -0.4 | B35: -0.000397107 | J35: -0.0001588428 | K35: -19.51385749
A36: -0.375 | B36: -0.0003853246 | J36: -0.000144496725 | K36: -18.93486978
A37: -0.35 | B37: -0.0003828474 | J37: -0.00013399659 | K37: -18.81314005
A38: -0.325 | B38: -0.0003732092 | J38: -0.00012129299 | K38: -18.33951843
A39: -0.3 | B39: -0.000368811 | J39: -0.0001106433 | K39: -18.12339066
A40: -0.275 | B40: -0.0003630917 | J40: -9.98502175e-05 | K40: -17.84234398
A41: -0.25 | B41: -0.0003573707 | J41: -8.9342675e-05 | K41: -17.56121376
A42: -0.225 | B42: -0.0003507575 | J42: -7.89204375e-05 | K42: -17.23624079
A43: -0.2 | B43: -0.0003460177 | J43: -6.920354e-05 | K43: -17.00332678
A44: -0.175 | B44: -0.0003378347 | J44: -5.91210725e-05 | K44: -16.60121376
A45: -0.15 | B45: -0.0003312547 | J45: -4.9688205e-05 | K45: -16.27787224
A46: -0.125 | B46: -0.0003236892 | J46: -4.046115e-05 | K46: -15.90610319
A47: -0.1 | B47: -0.0003153496 | J47: -3.153496e-05 | K47: -15.49629484
A48: -0.075 | B48: -0.0003053083 | J48: -2.28981225e-05 | K48: -15.00286486
A49: -0.05 | B49: -0.0002772206 | J49: -1.386103e-05 | K49: -13.62263391
A50: -0.025 | B50: -0.0002708976 | J50: -6.77244e-06 | K50: -13.31192138
A51: 0 | B51: -0.0002643733 | J51: 0 | K51: -12.99131695
A52: 0.025 | B52: -0.0002592568 | J52: 6.48142e-06 | K52: -12.73989189
A53: 0.05 | B53: -0.0002509663 | J53: 1.2548315e-05 | K53: -12.33249631
A54: 0.075 | B54: -0.0002436165 | J54: 1.82712375e-05 | K54: -11.97132678
A55: 0.1 | B55: -0.0002397475 | J55: 2.397475e-05 | K55: -11.78120393
A56: 0.125 | B56: -0.0002286774 | J56: 2.8584675e-05 | K56: -11.23721867
A57: 0.15 | B57: -0.000221355 | J57: 3.320325e-05 | K57: -10.87739558
A58: 0.175 | B58: -0.0002141979 | J58: 3.74846325e-05 | K58: -10.52569533
A59: 0.2 | B59: -0.0002058905 | J59: 4.11781e-05 | K59: -10.11746929
A60: 0.225 | B60: -0.0001926729 | J60: 4.33514025e-05 | K60: -9.467955774
A61: 0.25 | B61: -0.0001864466 | J61: 4.661165e-05 | K61: -9.161995086
A62: 0.275 | B62: -0.0001789631 | J62: 4.92148525e-05 | K62: -8.794255528
A63: 0.3 | B63: -0.0001630704 | J63: 4.892112e-05 | K63: -8.013287469
A64: 0.325 | B64: -0.0001559312 | J64: 5.067764e-05 | K64: -7.66246683
A65: 0.35 | B65: -0.0001535856 | J65: 5.375496e-05 | K65: -7.547203931
A66: 0.375 | B66: -0.0001382172 | J66: 5.183145e-05 | K66: -6.792
A67: 0.4 | B67: -0.0001221096 | J67: 4.884384e-05 | K67: -6.000471744
A68: 0.425 | B68: -0.0001027142 | J68: 4.3653535e-05 | K68: -5.047380835
A69: 0.45 | B69: -7.938895e-05 | J69: 3.57250275e-05 | K69: -3.901176904
A70: 0.475 | B70: -5.306957e-05 | J70: 2.520804575e-05 | K70: -2.607841278
A71: 0.5 | B71: -2.600368e-05 | J71: 1.300184e-05 | K71: -1.277822113
A72: 0.525 | B72: 3.354647e-06 | J72: -1.761189675e-06 | K72: 0.1648475184
A73: 0.55 | B73: 3.589454e-05 | J73: -1.9741997e-05 | K73: 1.763859459
A74: 0.575 | B74: 7.182488e-05 | J74: =-(B74*A74) -> -4.1299306e-05 | K74: =B74*1000/$D$7 -> 3.529478133
A75: 0.6 | B75: 0.0001100627 | J75: -6.603762e-05 | K75: 5.408486486
A76: 0.625 | B76: 0.0001506679 | J76: -9.41674375e-05 | K76: 7.40382801
A77: 0.65 | B77: 0.0001932669 | J77: -0.000125623485 | K77: 9.497144963
A78: 0.675 | B78: 0.0002378688 | J78: -0.00016056144 | K78: 11.68888452
A79: 0.7 | B79: 0.0002846256 | J79: -0.00019923792 | K79: 13.98651597
A80: 0.725 | B80: 0.0003327713 | J80: -0.0002412591925 | K80: 16.35239803
A81: 0.75 | B81: 0.0003832986 | J81: -0.00028747395 | K81: 18.83531204
A82: 0.775 | B82: 0.0004355071 | J82: -0.0003375180025 | K82: 21.40084029
A83: 0.8 | B83: 0.0004885905 | J83: -0.0003908724 | K83: 24.00936118
A84: 0.825 | B84: 0.0005437813 | J84: -0.0004486195725 | K84: 26.7214398
A85: 0.85 | B85: 0.0006021381 | J85: -0.000511817385 | K85: 29.58909582
A86: 0.875 | B86: 0.0006594571 | J86: -0.0005770249625 | K86: 32.4057543
A87: 0.9 | B87: 0.0007188088 | J87: -0.00064692792 | K87: 35.32229975
A88: 0.925 | B88: 0.0007801398 | J88: -0.000721629315 | K88: 38.33610811
A89: 0.95 | B89: 0.0008359987 | J89: -0.000794198765 | K89: 41.0810172
A90: 0.975 | B90: 0.0008975497 | J90: -0.0008751109575 | K90: 44.10563636
A91: 1 | B91: 0.0009638867 | J91: -0.0009638867 | K91: 47.3654398
A92: 1 | B92: 0.0009607649 | J92: -0.0009607649 | K92: 47.2120344
A93: 0.975 | B93: 0.0008946977 | J93: -0.0008723302575 | K93: 43.96548894
A94: 0.95 | B94: 0.0008323333 | J94: -0.000790716635 | K94: 40.90089926
A95: 0.925 | B95: 0.0007718613 | J95: -0.0007139717025 | K95: 37.92930221
A96: 0.9 | B96: 0.0007101235 | J96: -0.00063911115 | K96: 34.89550369
A97: 0.875 | B97: 0.0006540688 | J97: -0.0005723102 | K97: 32.14097297
A98: 0.85 | B98: 0.0005957945 | J98: -0.000506425325 | K98: 29.27737101
A99: 0.825 | B99: 0.0005401685 | J99: -0.0004456390125 | K99: 26.54390663
A100: 0.8 | B100: 0.0004870782 | J100: -0.00038966256 | K100: 23.93504668
A101: 0.775 | B101: 0.0004343311 | J101: -0.0003366066025 | K101: 21.3430516
A102: 0.75 | B102: 0.0003834244 | J102: -0.0002875683 | K102: 18.84149386
A103: 0.725 | B103: 0.0003341051 | J103: -0.0002422261975 | K103: 16.41794103
A104: 0.7 | B104: 0.0002862423 | J104: -0.00020036961 | K104: 14.06596069
A105: 0.675 | B105: 0.0002398913 | J105: -0.0001619266275 | K105: 11.78827027
A106: 0.65 | B106: 0.0001951622 | J106: -0.00012685543 | K106: 9.590280098
A107: 0.625 | B107: 0.0001524192 | J107: -9.5262e-05 | K107: 7.489886978
A108: 0.6 | B108: 0.000111205 | J108: -6.6723e-05 | K108: 5.464619165
A109: 0.575 | B109: 7.175967e-05 | J109: -4.126181025e-05 | K109: 3.52627371
A110: 0.55 | B110: 3.439735e-05 | J110: -1.89185425e-05 | K110: 1.690287469
A111: 0.525 | B111: -7.53805e-07 | J111: 3.95747625e-07 | K111: -0.03704201474
A112: 0.5 | B112: -3.401654e-05 | J112: 1.700827e-05 | K112: -1.671574447
A113: 0.475 | B113: -6.545572e-05 | J113: 3.1091467e-05 | K113: -3.216497297
A114: 0.45 | B114: -9.506435e-05 | J114: 4.27789575e-05 | K114: -4.67146683
A115: 0.425 | B115: -0.0001215691 | J115: 5.16668675e-05 | K115: -5.973911548
A116: 0.4 | B116: -0.000146228 | J116: 5.84912e-05 | K116: -7.185651106
A117: 0.375 | B117: -0.0001701573 | J117: 6.38089875e-05 | K117: -8.361538084
A118: 0.35 | B118: -0.0001921837 | J118: 6.7264295e-05 | K118: -9.443916462
A119: 0.325 | B119: -0.0002094872 | J119: 6.808334e-05 | K119: -10.2942113
A120: 0.3 | B120: -0.0002281843 | J120: 6.845529e-05 | K120: -11.21298771
A121: 0.275 | B121: -0.0002452216 | J121: 6.743594e-05 | K121: -12.05020147
A122: 0.25 | B122: -0.0002581247 | J122: 6.4531175e-05 | K122: -12.68426044
A123: 0.225 | B123: -0.0002712183 | J123: 6.10241175e-05 | K123: -13.32768059
A124: 0.2 | B124: -0.0002842067 | J124: 5.684134e-05 | K124: -13.9659312
A125: 0.175 | B125: -0.0002940433 | J125: 5.14575775e-05 | K125: -14.44930221
A126: 0.15 | B126: -0.000301944 | J126: 4.52916e-05 | K126: -14.837543
A127: 0.125 | B127: -0.0003130537 | J127: 3.91317125e-05 | K127: -15.3834742
A128: 0.1 | B128: -0.000319576 | J128: 3.19576e-05 | K128: -15.70398034
A129: 0.075 | B129: -0.0003244882 | J129: 2.4336615e-05 | K129: -15.94536609
A130: 0.05 | B130: -0.0003341067 | J130: 1.6705335e-05 | K130: -16.41801966
A131: 0.025 | B131: -0.0003398187 | J131: 8.4954675e-06 | K131: -16.69870762
A132: 0 | B132: -0.0003456306 | J132: 0 | K132: -16.98430467
J133: 0 | K133: 0
J134: 0 | K134: 0
J135: 0 | K135: 0
J136: 0 | K136: 0
J137: 0 | K137: 0
J138: =-(B138*A138) -> 0 | K138: =B138*1000/$D$7 -> 0
J139: 0 | K139: 0
J140: 0 | K140: 0
J141: 0 | K141: 0
J142: 0 | K142: 0
J143: 0 | K143: 0
J144: 0 | K144: 0
J145: 0 | K145: 0
J146: 0 | K146: 0
J147: 0 | K147: 0
J148: 0 | K148: 0
J149: 0 | K149: 0
J150: 0 | K150: 0
J151: 0 | K151: 0
J152: 0 | K152: 0
J153: 0 | K153: 0
J154: 0 | K154: 0
J155: 0 | K155: 0
J156: 0 | K156: 0
J157: 0 | K157: 0
J158: 0 | K158: 0
J159: 0 | K159: 0
J160: 0 | K160: 0
J161: 0 | K161: 0
J162: 0 | K162: 0
J163: 0 | K163: 0
J164: 0 | K164: 0
J165: 0 | K165: 0
J166: 0 | K166: 0
J167: 0 | K167: 0
J168: 0 | K168: 0
J169: 0 | K169: 0
J170: 0 | K170: 0
J171: 0 | K171: 0
J172: 0 | K172: 0
J173: 0 | K173: 0
J174: 0 | K174: 0
J175: 0 | K175: 0
J176: 0 | K176: 0
J177: 0 | K177: 0
J178: 0 | K178: 0
J179: 0 | K179: 0
J180: 0 | K180: 0
J181: 0 | K181: 0
J182: 0 | K182: 0
J183: 0 | K183: 0
J184: 0 | K184: 0
J185: 0 | K185: 0
J186: 0 | K186: 0
J187: 0 | K187: 0
J188: 0 | K188: 0
J189: 0 | K189: 0
J190: 0 | K190: 0
J191: 0 | K191: 0
J192: 0 | K192: 0
J193: 0 | K193: 0
J194: 0 | K194: 0
J195: 0 | K195: 0
J196: 0 | K196: 0
J197: 0 | K197: 0
J198: 0 | K198: 0
J199: 0 | K199: 0
J200: 0 | K200: 0
J201: 0 | K201: 0
J202: =-(B202*A202) -> 0 | K202: =B202*1000/$D$7 -> 0
... 208 more rows

Sheet PbS TBAC pedotB
C2: iv curve name: | D2: PbS TBAC pedotB
C3: file name: | D3: PbS TBAC pedotB
C4: Illumination Time: | E4: (hh:mm)
C5: Illumination Intensity: | D5: 100 | E5: (mW/cm2)
C6: Filter: | D6: 420 | E6: (nm)
C7: Pixel Area: | D7: 0.02035 | E7: (cm2)
A9: V (V) | B9: J (A) | E9: (mA/cm2) | F9: (A) | J9: power | K9: J (mA/cm2)
A10: 0 | B10: -0.000192615 | D10: Jsc1 = | E10: =-F10*1000/$D$7 -> 9.465110565 | F10: =((INDEX(A10:B11,1,2)+INDEX(A10:B11,2,2))-((INDEX(A10:B11,1,2)-INDEX(A10:B11,2,2))/(INDEX(A10:B11,1,1)-INDEX(A10:B11,2,1))*(INDEX(A10:B11,1,1)+INDEX(A10:B11,2,1))))/2 -> -0.000192615 | G10: ((INDEX(A10:B11,1,2)+INDEX(A10:B11,2,2))-((INDEX(A10:B11,1,2)-INDEX(A10:B11,2,2))/(INDEX(A10:B11,1,1)- | H10: INDEX(A10:B11,2,1))*(INDEX(A10:B11,1,1)+INDEX(A10:B11,2,1))))/2 | J10: =-(B10*A10) -> 0 | K10: =B10*1000/$D$7 -> -9.465110565 | L10: Jsc | M10: =MAX(E14:E15)/20 -> 0.0229171694 | N10: =-E10 -> -9.465110565 | O10: =-E11 -> -5.904938575 | P10: =-E12 -> -7.704058968
A11: -0.025 | B11: -0.0001821938 | D11: Jsc2 = | E11: =-F11*1000/$D$7 -> 5.904938575 | F11: =((INDEX(A30:B91,MATCH(0,A30:A91,1),2)+INDEX(A30:B91,MATCH(0,A30:A91,1)+1,2))-((INDEX(A30:B91,MATCH(0,A30:A91,1),2)-INDEX(A30:B91,MATCH(0,A30:A91,1)+1,2))/(INDEX(A30:B91,MATCH(0,A30:A91,1),1)-INDEX(A30:B91,MATCH(0,A30:A91,1)+1,1))*(INDEX(A30:B91,MATCH(0,A30:A91,1),1)+INDEX(A30:B91,MATCH(0,A30:A91,1)+1,1))))/2 -> -0.0001201655 | G11: ((INDEX(a30:b91,MATCH(0,a30:a91,1),2)+INDEX(a30:b91,MATCH(0,a30:a91,1)+1,2))-((INDEX(a30:b91,MATCH(0,a30:a91,1),2)-INDEX(a30:b91,MATCH(0,a30:a91,1)+1,2))/ | H11: (INDEX(a30:b91,MATCH(0,a30:a91,1),1)-INDEX(a30:b91,MATCH(0,a30:a91,1)+1,1))*(INDEX(a30:b91,MATCH(0,a30:a91,1),1)+INDEX(a30:b91,MATCH(0,a30:a91,1)+1,1))))/2 | J11: -4.554845e-06 | K11: -8.953012285 | M11: =-MAX(E15:E16)/20 -> -0.02284806013 | N11: =-E10 -> -9.465110565 | O11: =-E11 -> -5.904938575 | P11: =-E12 -> -7.704058968
A12: -0.05 | B12: -0.000176969 | D12: Jsc3 = | E12: =-F12*1000/$D$7 -> 7.704058968 | F12: =((INDEX(A131:B132,1,2)+INDEX(A131:B132,2,2))-((INDEX(A131:B132,1,2)-INDEX(A131:B132,2,2))/(INDEX(A131:B132,1,1)-INDEX(A131:B132,2,1))*(INDEX(A131:B132,1,1)+INDEX(A131:B132,2,1))))/2 -> -0.0001567776 | G12: ((INDEX(A131:B132,1,2)+INDEX(A131:B132,2,2))-((INDEX(A131:B132,1,2)-INDEX(A131:B132,2,2))/(INDEX(A131:B132,1,1)- | H12: INDEX(A131:B132,2,1))*(INDEX(A131:B132,1,1)+INDEX(A131:B132,2,1))))/2 | J12: -8.84845e-06 | K12: -8.696265356
A13: -0.075 | B13: -0.0001748496 | E13: (V) | J13: -1.311372e-05 | K13: -8.592117936 | L13: Voc | M13: =E14 -> 0.4583433879 | N13: =-MAX(E10:E12)/15 -> -0.631007371
A14: -0.1 | B14: -0.0001697148 | D14: Voc1 = | E14: =F14 -> 0.4583433879 | F14: =((INDEX(A30:B91,MATCH(0,B30:B91,1),1)+INDEX(A30:B91,MATCH(0,B30:B91,1)+1,1))-((INDEX(A30:B91,MATCH(0,B30:B91,1),1)-INDEX(A30:B91,MATCH(0,B30:B91,1)+1,1))/(INDEX(A30:B91,MATCH(0,B30:B91,1),2)-INDEX(A30:B91,MATCH(0,B30:B91,1)+1,2))*(INDEX(A30:B91,MATCH(0,B30:B91,1),2)+INDEX(A30:B91,MATCH(0,B30:B91,1)+1,2))))/2 -> 0.4583433879 | G14: ((INDEX(a30:b91,MATCH(0,b30:b91,1),1)+INDEX(a30:b91,MATCH(0,b30:b91,1)+1,1))-((INDEX(a30:b91,MATCH(0,b30:b91,1),1)-INDEX(a30:b91,MATCH(0,b30:b91,1)+1,1))/ | H14: (INDEX(a30:b91,MATCH(0,b30:b91,1),2)-INDEX(a30:b91,MATCH(0,b30:b91,1)+1,2))*(INDEX(a30:b91,MATCH(0,b30:b91,1),2)+INDEX(a30:b91,MATCH(0,b30:b91,1)+1,2))))/2 | J14: -1.697148e-05 | K14: -8.339793612 | M14: =E14 -> 0.4583433879 | N14: =MAX(E10:E12)/15 -> 0.631007371
A15: -0.125 | B15: -0.0001676931 | D15: Voc2 = | E15: =F15 -> 0.4569612025 | F15: =((INDEX(A91:B130,MATCH(0,B91:B130,-1),1)+INDEX(A91:B130,MATCH(0,B91:B130,-1)+1,1))-((INDEX(A91:B130,MATCH(0,B91:B130,-1),1)-INDEX(A91:B130,MATCH(0,B91:B130,-1)+1,1))/(INDEX(A91:B130,MATCH(0,B91:B130,-1),2)-INDEX(A91:B130,MATCH(0,B91:B130,-1)+1,2))*(INDEX(A91:B130,MATCH(0,B91:B130,-1),2)+INDEX(A91:B130,MATCH(0,B91:B130,-1)+1,2))))/2 -> 0.4569612025 | G15: ((INDEX(a91:b130,MATCH(0,b91:b130,-1),1)+INDEX(a91:b130,MATCH(0,b91:b130,-1)+1,1))-((INDEX(a91:b130,MATCH(0,b91:b130,-1),1)-INDEX(a91:b130,MATCH(0,b91:b130,-1)+1,1))/(INDEX(a91:b130,MATCH(0,b91:b130,-1),2)- | H15: INDEX(a91:b130,MATCH(0,b91:b130,-1)+1,2))*(INDEX(a91:b130,MATCH(0,b91:b130,-1),2)+INDEX(a91:b130,MATCH(0,b91:b130,-1)+1,2))))/2 | J15: -2.09616375e-05 | K15: -8.240447174 | M15: =E15 -> 0.4569612025 | N15: =-MAX(E10:E12)/15 -> -0.631007371
A16: -0.15 | B16: -0.0001716684 | J16: -2.575026e-05 | K16: -8.435793612 | M16: =E15 -> 0.4569612025 | N16: =MAX(E10:E12)/15 -> 0.631007371
A17: -0.175 | B17: -0.0001701265 | D17: FF1 = | E17: =F17 -> 0.3808559379 | F17: =(-1)*MAX(J30:J91)/F11/E14 -> 0.3808559379 | G17: (-1)*MAX(j30:j91)/F11/E14 | J17: -2.97721375e-05 | K17: -8.36002457
A18: -0.2 | B18: -0.000171611 | D18: FF2 = | E18: =F18 -> 0.4542937007 | F18: =(-1)*MAX(J91:J130)/F12/E15 -> 0.4542937007 | G18: (-1)*MAX(j91:j130)/F12/E15 | J18: -3.43222e-05 | K18: -8.432972973 | L18: FF | M18: 0 | N18: =INDEX(K30:K91,MATCH(MAX(J30:J91),J30:J91,0),1) -> -3.171638821 | P18: INDEX(k30:k91,MATCH(MAX(j30:j91),j30:j91,0),1)
A19: -0.225 | B19: -0.0001761205 | J19: -3.96271125e-05 | K19: -8.654570025 | M19: =INDEX(A30:A91,MATCH(MAX(J30:J91),J30:J91,0),1) -> 0.325 | N19: =INDEX(K30:K91,MATCH(MAX(J30:J91),J30:J91,0),1) -> -3.171638821 | O19: INDEX(a30:a91,MATCH(MAX(j30:j91),j30:j91,0),1) | P19: INDEX(k30:k91,MATCH(MAX(j30:j91),j30:j91,0),1)
A20: -0.25 | B20: -0.000176019 | D20: PCE up = | E20: =F20 -> 0.01030782617 | F20: =MAX(J30:J91)/D5/D7*1000 -> 0.01030782617 | G20: MAX(j30:j91)/D5/D7*1000 | J20: -4.400475e-05 | K20: -8.64958231 | M20: =INDEX(A30:A91,MATCH(MAX(J30:J91),J30:J91,0),1) -> 0.325 | N20: 0 | O20: INDEX(a30:a91,MATCH(MAX(j30:j91),j30:j91,0),1)
A21: -0.275 | B21: -0.0001769617 | D21: PCE back = | E21: =F21 -> 0.01599321007 | F21: =MAX(J91:J130)/D5/D7*1000 -> 0.01599321007 | G21: MAX(j91:j130)/D5/D7*1000 | J21: -4.86644675e-05 | K21: -8.695906634
A22: -0.3 | B22: -0.0001798365 | J22: -5.395095e-05 | K22: -8.837174447 | M22: 0 | N22: =INDEX(K91:K130,MATCH(MAX(J91:J130),J91:J130,0),1) -> -4.920987715 | P22: INDEX(k91:k130,MATCH(MAX(j91:j130),j91:j130,0),1)
A23: -0.325 | B23: -0.0001808665 | D23: discrepancy: | E23: =E11*E14*E17/D5-E20 -> 0 | J23: -5.87816125e-05 | K23: -8.887788698 | M23: =INDEX(A91:A130,MATCH(MAX(J91:J130),J91:J130,0),1) -> 0.325 | N23: =INDEX(K91:K130,MATCH(MAX(J91:J130),J91:J130,0),1) -> -4.920987715 | O23: INDEX(a91:a130,MATCH(MAX(j91:j130),j91:j130,0),1) | P23: INDEX(k91:k130,MATCH(MAX(j91:j130),j91:j130,0),1)
A24: -0.35 | B24: -0.0001812355 | E24: =E12*E15*E18/D5-E21 -> 0 | J24: -6.3432425e-05 | K24: -8.905921376 | M24: =INDEX(A91:A130,MATCH(MAX(J91:J130),J91:J130,0),1) -> 0.325 | N24: 0 | O24: INDEX(a91:a130,MATCH(MAX(j91:j130),j91:j130,0),1)
A25: -0.375 | B25: -0.0001857195 | J25: -6.96448125e-05 | K25: -9.126265356
A26: -0.4 | B26: -0.0001892131 | D26: V is from: | E26: =MIN(A10:A132) -> -0.5 | F26: to | G26: =MAX(A10:A132) -> 1 | J26: -7.568524e-05 | K26: -9.297941032
A27: -0.425 | B27: -0.0001902353 | D27: row: | E27: =MATCH(-0.5,A1:A132,0) -> 30 | F27: - | G27: =MATCH(1,A1:A132,0) -> 91 | J27: -8.08500025e-05 | K27: -9.34817199
A28: -0.45 | B28: -0.0001937732 | J28: -8.719794e-05 | K28: -9.52202457
A29: -0.475 | B29: -0.0002012379 | J29: -9.55880025e-05 | K29: -9.888840295
A30: -0.5 | B30: -0.0002057771 | J30: -0.00010288855 | K30: -10.11189681
A31: -0.5 | B31: -0.0002017191 | J31: -0.00010085955 | K31: -9.912486486
A32: -0.475 | B32: -0.0001915297 | J32: -9.09766075e-05 | K32: -9.41177887
A33: -0.45 | B33: -0.0001824441 | J33: -8.2099845e-05 | K33: -8.965312039
A34: -0.425 | B34: -0.0001761274 | J34: -7.4854145e-05 | K34: -8.654909091
A35: -0.4 | B35: -0.0001709978 | J35: -6.839912e-05 | K35: -8.402840295
A36: -0.375 | B36: -0.0001650635 | J36: -6.18988125e-05 | K36: -8.111228501
A37: -0.35 | B37: -0.0001612549 | J37: -5.6439215e-05 | K37: -7.92407371
A38: -0.325 | B38: -0.0001569401 | J38: -5.10055325e-05 | K38: -7.712044226
A39: -0.3 | B39: -0.0001543443 | J39: -4.630329e-05 | K39: -7.584486486
A40: -0.275 | B40: -0.0001509214 | J40: -4.1503385e-05 | K40: -7.416285012
A41: -0.25 | B41: -0.0001496517 | J41: -3.7412925e-05 | K41: -7.353891892
A42: -0.225 | B42: -0.0001442743 | J42: -3.24617175e-05 | K42: -7.089646192
A43: -0.2 | B43: -0.0001403971 | J43: -2.807942e-05 | K43: -6.899120393
A44: -0.175 | B44: -0.000136082 | J44: -2.381435e-05 | K44: -6.687076167
A45: -0.15 | B45: -0.0001321852 | J45: -1.982778e-05 | K45: -6.495587224
A46: -0.125 | B46: -0.0001281536 | J46: -1.60192e-05 | K46: -6.297474201
A47: -0.1 | B47: -0.0001242397 | J47: -1.242397e-05 | K47: -6.105144963
A48: -0.075 | B48: -0.0001167398 | J48: -8.755485e-06 | K48: -5.736599509
A49: -0.05 | B49: -0.0001111377 | J49: -5.556885e-06 | K49: -5.461312039
A50: -0.025 | B50: -0.0001207762 | J50: -3.019405e-06 | K50: -5.934948403
A51: 0 | B51: -0.0001201655 | J51: 0 | K51: -5.904938575
A52: 0.025 | B52: -0.0001136716 | J52: 2.84179e-06 | K52: -5.58582801
A53: 0.05 | B53: -0.0001101127 | J53: 5.505635e-06 | K53: -5.410943489
A54: 0.075 | B54: -0.0001058332 | J54: 7.93749e-06 | K54: -5.200648649
A55: 0.1 | B55: -0.0001015604 | J55: 1.015604e-05 | K55: -4.990683047
A56: 0.125 | B56: -0.0001034158 | J56: 1.2926975e-05 | K56: -5.081857494
A57: 0.15 | B57: -9.626414e-05 | J57: 1.4439621e-05 | K57: -4.73042457
A58: 0.175 | B58: -9.141367e-05 | J58: 1.599739225e-05 | K58: -4.492072236
A59: 0.2 | B59: -8.707074e-05 | J59: 1.7414148e-05 | K59: -4.278660442
A60: 0.225 | B60: -8.278913e-05 | J60: 1.862755425e-05 | K60: -4.068261916
A61: 0.25 | B61: -7.8593e-05 | J61: 1.964825e-05 | K61: -3.862063882
A62: 0.275 | B62: -7.368671e-05 | J62: 2.026384525e-05 | K62: -3.62096855
A63: 0.3 | B63: -6.933227e-05 | J63: 2.0799681e-05 | K63: -3.406991155
A64: 0.325 | B64: -6.454285e-05 | J64: 2.097642625e-05 | K64: -3.171638821
A65: 0.35 | B65: -5.857454e-05 | J65: 2.0501089e-05 | K65: -2.878355774
A66: 0.375 | B66: -5.190041e-05 | J66: 1.946265375e-05 | K66: -2.550388698
A67: 0.4 | B67: -4.24932e-05 | J67: 1.699728e-05 | K67: -2.088117936
A68: 0.425 | B68: -2.927885e-05 | J68: 1.244351125e-05 | K68: -1.438764128
A69: 0.45 | B69: -1.069898e-05 | J69: 4.814541e-06 | K69: -0.5257484029
A70: 0.475 | B70: 2.135928e-05 | J70: -1.0145658e-05 | K70: 1.049596069
A71: 0.5 | B71: 6.626701e-05 | J71: -3.3133505e-05 | K71: 3.256364128
A72: 0.525 | B72: 0.0001279857 | J72: -6.71924925e-05 | K72: 6.289223587
A73: 0.55 | B73: 0.0001996567 | J73: -0.000109811185 | K73: 9.811140049
A74: 0.575 | B74: 0.0002835975 | J74: =-(B74*A74) -> -0.0001630685625 | K74: =B74*1000/$D$7 -> 13.93599509
A75: 0.6 | B75: 0.0003791164 | J75: -0.00022746984 | K75: 18.62979853
A76: 0.625 | B76: 0.0004850969 | J76: -0.0003031855625 | K76: 23.8376855
A77: 0.65 | B77: 0.0006010943 | J77: -0.000390711295 | K77: 29.53780344
A78: 0.675 | B78: 0.000724216 | J78: -0.0004888458 | K78: 35.58800983
A79: 0.7 | B79: 0.0008551185 | J79: -0.00059858295 | K79: 42.02056511
A80: 0.725 | B80: 0.0009936643 | J80: -0.0007204066175 | K80: 48.82871253
A81: 0.75 | B81: 0.00114251 | J81: -0.0008568825 | K81: 56.14299754
A82: 0.775 | B82: 0.001294771 | J82: -0.001003447525 | K82: 63.62511057
A83: 0.8 | B83: 0.00144937 | J83: -0.001159496 | K83: 71.22211302
A84: 0.825 | B84: 0.001608517 | J84: -0.001327026525 | K84: 79.04260442
A85: 0.85 | B85: 0.001773532 | J85: -0.0015075022 | K85: 87.15144963
A86: 0.875 | B86: 0.001941089 | J86: -0.001698452875 | K86: 95.38520885
A87: 0.9 | B87: 0.002112572 | J87: -0.0019013148 | K87: 103.8118919
A88: 0.925 | B88: 0.002288346 | J88: -0.00211672005 | K88: 112.4494349
A89: 0.95 | B89: 0.002466555 | J89: -0.00234322725 | K89: 121.2066339
A90: 0.975 | B90: 0.002647627 | J90: -0.002581436325 | K90: 130.1045209
A91: 1 | B91: 0.002831566 | J91: -0.002831566 | K91: 139.1432924
A92: 1 | B92: 0.002837891 | J92: -0.002837891 | K92: 139.4541032
A93: 0.975 | B93: 0.002664858 | J93: -0.00259823655 | K93: 130.9512531
A94: 0.95 | B94: 0.002491172 | J94: -0.0023666134 | K94: 122.4163145
A95: 0.925 | B95: 0.002318901 | J95: -0.002144983425 | K95: 113.9509091
A96: 0.9 | B96: 0.002149209 | J96: -0.0019342881 | K96: 105.6122359
A97: 0.875 | B97: 0.001979797 | J97: -0.001732322375 | K97: 97.28732187
A98: 0.85 | B98: 0.00181247 | J98: -0.0015405995 | K98: 89.06486486
A99: 0.825 | B99: 0.001651624 | J99: -0.0013625898 | K99: 81.16088452
A100: 0.8 | B100: 0.001494461 | J100: -0.0011955688 | K100: 73.43788698
A101: 0.775 | B101: 0.001340433 | J101: -0.001038835575 | K101: 65.86894349
A102: 0.75 | B102: 0.001193358 | J102: -0.0008950185 | K102: 58.64167076
A103: 0.725 | B103: 0.001048316 | J103: -0.0007600291 | K103: 51.51429975
A104: 0.7 | B104: 0.0009045366 | J104: -0.00063317562 | K104: 44.44897297
A105: 0.675 | B105: 0.0007741678 | J105: -0.000522563265 | K105: 38.04264373
A106: 0.65 | B106: 0.0006480186 | J106: -0.00042121209 | K106: 31.84366585
A107: 0.625 | B107: 0.000529909 | J107: -0.000331193125 | K107: 26.0397543
A108: 0.6 | B108: 0.0004202419 | J108: -0.00025214514 | K108: 20.65070762
A109: 0.575 | B109: 0.0003202365 | J109: -0.0001841359875 | K109: 15.73643735
A110: 0.55 | B110: 0.0002302923 | J110: -0.000126660765 | K110: 11.31657494
A111: 0.525 | B111: 0.0001507023 | J111: -7.91187075e-05 | K111: 7.405518428
A112: 0.5 | B112: 8.314334e-05 | J112: -4.157167e-05 | K112: 4.085667813
A113: 0.475 | B113: 3.009142e-05 | J113: -1.42934245e-05 | K113: 1.478693857
A114: 0.45 | B114: -1.161233e-05 | J114: 5.2255485e-06 | K114: -0.5706304668
A115: 0.425 | B115: -4.221884e-05 | J115: 1.7943007e-05 | K115: -2.074635872
A116: 0.4 | B116: -6.232451e-05 | J116: 2.4929804e-05 | K116: -3.062629484
A117: 0.375 | B117: -7.719671e-05 | J117: 2.894876625e-05 | K117: -3.793450123
A118: 0.35 | B118: -8.949501e-05 | J118: 3.13232535e-05 | K118: -4.397789189
A119: 0.325 | B119: -0.0001001421 | J119: 3.25461825e-05 | K119: -4.920987715
A120: 0.3 | B120: -0.0001042945 | J120: 3.128835e-05 | K120: -5.125036855
A121: 0.275 | B121: -0.0001124426 | J121: 3.0921715e-05 | K121: -5.525434889
A122: 0.25 | B122: -0.0001155519 | J122: 2.8887975e-05 | K122: -5.678226044
A123: 0.225 | B123: -0.0001209913 | J123: 2.72230425e-05 | K123: -5.945518428
A124: 0.2 | B124: -0.0001264967 | J124: 2.529934e-05 | K124: -6.216054054
A125: 0.175 | B125: -0.0001301311 | J125: 2.27729425e-05 | K125: -6.394648649
A126: 0.15 | B126: -0.000135212 | J126: 2.02818e-05 | K126: -6.644324324
A127: 0.125 | B127: -0.0001411638 | J127: 1.7645475e-05 | K127: -6.936796069
A128: 0.1 | B128: -0.0001430958 | J128: 1.430958e-05 | K128: -7.031734644
A129: 0.075 | B129: -0.0001483771 | J129: 1.11282825e-05 | K129: -7.291257985
A130: 0.05 | B130: -0.0001531472 | J130: 7.65736e-06 | K130: -7.525660934
A131: 0.025 | B131: -0.0001552489 | J131: 3.8812225e-06 | K131: -7.628938575
A132: 0 | B132: -0.0001567776 | J132: 0 | K132: -7.704058968
J133: 0 | K133: 0
J134: 0 | K134: 0
J135: 0 | K135: 0
J136: 0 | K136: 0
J137: 0 | K137: 0
J138: =-(B138*A138) -> 0 | K138: =B138*1000/$D$7 -> 0
J139: 0 | K139: 0
J140: 0 | K140: 0
J141: 0 | K141: 0
J142: 0 | K142: 0
J143: 0 | K143: 0
J144: 0 | K144: 0
J145: 0 | K145: 0
J146: 0 | K146: 0
J147: 0 | K147: 0
J148: 0 | K148: 0
J149: 0 | K149: 0
J150: 0 | K150: 0
J151: 0 | K151: 0
J152: 0 | K152: 0
J153: 0 | K153: 0
J154: 0 | K154: 0
J155: 0 | K155: 0
J156: 0 | K156: 0
J157: 0 | K157: 0
J158: 0 | K158: 0
J159: 0 | K159: 0
J160: 0 | K160: 0
J161: 0 | K161: 0
J162: 0 | K162: 0
J163: 0 | K163: 0
J164: 0 | K164: 0
J165: 0 | K165: 0
J166: 0 | K166: 0
J167: 0 | K167: 0
J168: 0 | K168: 0
J169: 0 | K169: 0
J170: 0 | K170: 0
J171: 0 | K171: 0
J172: 0 | K172: 0
J173: 0 | K173: 0
J174: 0 | K174: 0
J175: 0 | K175: 0
J176: 0 | K176: 0
J177: 0 | K177: 0
J178: 0 | K178: 0
J179: 0 | K179: 0
J180: 0 | K180: 0
J181: 0 | K181: 0
J182: 0 | K182: 0
J183: 0 | K183: 0
J184: 0 | K184: 0
J185: 0 | K185: 0
J186: 0 | K186: 0
J187: 0 | K187: 0
J188: 0 | K188: 0
J189: 0 | K189: 0
J190: 0 | K190: 0
J191: 0 | K191: 0
J192: 0 | K192: 0
J193: 0 | K193: 0
J194: 0 | K194: 0
J195: 0 | K195: 0
J196: 0 | K196: 0
J197: 0 | K197: 0
J198: 0 | K198: 0
J199: 0 | K199: 0
J200: 0 | K200: 0
J201: 0 | K201: 0
J202: =-(B202*A202) -> 0 | K202: =B202*1000/$D$7 -> 0
... 208 more rows

Sheet PbS TBAC pedot dark
C2: iv curve name: | D2: PbS TBAC pedot dark
C3: file name: | D3: PbS TBAC pedot dark
C4: Illumination Time: | E4: (hh:mm)
C5: Illumination Intensity: | D5: 100 | E5: (mW/cm2)
C6: Filter: | D6: 420 | E6: (nm)
C7: Pixel Area: | D7: 0.02035 | E7: (cm2)
A9: V (V) | B9: J (A) | E9: (mA/cm2) | F9: (A) | J9: power | K9: J (mA/cm2)
A10: 0 | B10: -3.72e-10 | D10: Jsc1 = | E10: =-F10*1000/$D$7 -> 1.828009828e-05 | F10: =((INDEX(A10:B11,1,2)+INDEX(A10:B11,2,2))-((INDEX(A10:B11,1,2)-INDEX(A10:B11,2,2))/(INDEX(A10:B11,1,1)-INDEX(A10:B11,2,1))*(INDEX(A10:B11,1,1)+INDEX(A10:B11,2,1))))/2 -> -3.72e-10 | G10: ((INDEX(A10:B11,1,2)+INDEX(A10:B11,2,2))-((INDEX(A10:B11,1,2)-INDEX(A10:B11,2,2))/(INDEX(A10:B11,1,1)- | H10: INDEX(A10:B11,2,1))*(INDEX(A10:B11,1,1)+INDEX(A10:B11,2,1))))/2 | J10: =-(B10*A10) -> 0 | K10: =B10*1000/$D$7 -> -1.828009828e-05 | L10: Jsc | M10: =MAX(E14:E15)/20 ->  | N10: =-E10 -> -1.828009828e-05 | O10: =-E11 -> 6.26044226e-05 | P10: =-E12 -> -6.27027027e-05
A11: -0.025 | B11: -4.198e-09 | D11: Jsc2 = | E11: =-F11*1000/$D$7 -> -6.26044226e-05 | F11: =((INDEX(A30:B91,MATCH(0,A30:A91,1),2)+INDEX(A30:B91,MATCH(0,A30:A91,1)+1,2))-((INDEX(A30:B91,MATCH(0,A30:A91,1),2)-INDEX(A30:B91,MATCH(0,A30:A91,1)+1,2))/(INDEX(A30:B91,MATCH(0,A30:A91,1),1)-INDEX(A30:B91,MATCH(0,A30:A91,1)+1,1))*(INDEX(A30:B91,MATCH(0,A30:A91,1),1)+INDEX(A30:B91,MATCH(0,A30:A91,1)+1,1))))/2 -> 1.274e-09 | G11: ((INDEX(a30:b91,MATCH(0,a30:a91,1),2)+INDEX(a30:b91,MATCH(0,a30:a91,1)+1,2))-((INDEX(a30:b91,MATCH(0,a30:a91,1),2)-INDEX(a30:b91,MATCH(0,a30:a91,1)+1,2))/ | H11: (INDEX(a30:b91,MATCH(0,a30:a91,1),1)-INDEX(a30:b91,MATCH(0,a30:a91,1)+1,1))*(INDEX(a30:b91,MATCH(0,a30:a91,1),1)+INDEX(a30:b91,MATCH(0,a30:a91,1)+1,1))))/2 | J11: -1.0495e-10 | K11: -0.0002062899263 | M11: =-MAX(E15:E16)/20 ->  | N11: =-E10 -> -1.828009828e-05 | O11: =-E11 -> 6.26044226e-05 | P11: =-E12 -> -6.27027027e-05
A12: -0.05 | B12: -7.199e-09 | D12: Jsc3 = | E12: =-F12*1000/$D$7 -> 6.27027027e-05 | F12: =((INDEX(A131:B132,1,2)+INDEX(A131:B132,2,2))-((INDEX(A131:B132,1,2)-INDEX(A131:B132,2,2))/(INDEX(A131:B132,1,1)-INDEX(A131:B132,2,1))*(INDEX(A131:B132,1,1)+INDEX(A131:B132,2,1))))/2 -> -1.276e-09 | G12: ((INDEX(A131:B132,1,2)+INDEX(A131:B132,2,2))-((INDEX(A131:B132,1,2)-INDEX(A131:B132,2,2))/(INDEX(A131:B132,1,1)- | H12: INDEX(A131:B132,2,1))*(INDEX(A131:B132,1,1)+INDEX(A131:B132,2,1))))/2 | J12: -3.5995e-10 | K12: -0.0003537592138
A13: -0.075 | B13: -9.949e-09 | E13: (V) | J13: -7.46175e-10 | K13: -0.0004888943489 | L13: Voc | M13: =E14 -> -0.01053240741 | N13: =-MAX(E10:E12)/15 -> -4.18018018e-06
A14: -0.1 | B14: -1.2631e-08 | D14: Voc1 = | E14: =F14 -> -0.01053240741 | F14: =((INDEX(A30:B91,MATCH(0,B30:B91,1),1)+INDEX(A30:B91,MATCH(0,B30:B91,1)+1,1))-((INDEX(A30:B91,MATCH(0,B30:B91,1),1)-INDEX(A30:B91,MATCH(0,B30:B91,1)+1,1))/(INDEX(A30:B91,MATCH(0,B30:B91,1),2)-INDEX(A30:B91,MATCH(0,B30:B91,1)+1,2))*(INDEX(A30:B91,MATCH(0,B30:B91,1),2)+INDEX(A30:B91,MATCH(0,B30:B91,1)+1,2))))/2 -> -0.01053240741 | G14: ((INDEX(a30:b91,MATCH(0,b30:b91,1),1)+INDEX(a30:b91,MATCH(0,b30:b91,1)+1,1))-((INDEX(a30:b91,MATCH(0,b30:b91,1),1)-INDEX(a30:b91,MATCH(0,b30:b91,1)+1,1))/ | H14: (INDEX(a30:b91,MATCH(0,b30:b91,1),2)-INDEX(a30:b91,MATCH(0,b30:b91,1)+1,2))*(INDEX(a30:b91,MATCH(0,b30:b91,1),2)+INDEX(a30:b91,MATCH(0,b30:b91,1)+1,2))))/2 | J14: -1.2631e-09 | K14: -0.0006206879607 | M14: =E14 -> -0.01053240741 | N14: =MAX(E10:E12)/15 -> 4.18018018e-06
A15: -0.125 | B15: -1.5424e-08 | D15: Voc2 = | E15: =F15 ->  | F15: =((INDEX(A91:B130,MATCH(0,B91:B130,-1),1)+INDEX(A91:B130,MATCH(0,B91:B130,-1)+1,1))-((INDEX(A91:B130,MATCH(0,B91:B130,-1),1)-INDEX(A91:B130,MATCH(0,B91:B130,-1)+1,1))/(INDEX(A91:B130,MATCH(0,B91:B130,-1),2)-INDEX(A91:B130,MATCH(0,B91:B130,-1)+1,2))*(INDEX(A91:B130,MATCH(0,B91:B130,-1),2)+INDEX(A91:B130,MATCH(0,B91:B130,-1)+1,2))))/2 ->  | G15: ((INDEX(a91:b130,MATCH(0,b91:b130,-1),1)+INDEX(a91:b130,MATCH(0,b91:b130,-1)+1,1))-((INDEX(a91:b130,MATCH(0,b91:b130,-1),1)-INDEX(a91:b130,MATCH(0,b91:b130,-1)+1,1))/(INDEX(a91:b130,MATCH(0,b91:b130,-1),2)- | H15: INDEX(a91:b130,MATCH(0,b91:b130,-1)+1,2))*(INDEX(a91:b130,MATCH(0,b91:b130,-1),2)+INDEX(a91:b130,MATCH(0,b91:b130,-1)+1,2))))/2 | J15: -1.928e-09 | K15: -0.0007579361179 | M15: =E15 ->  | N15: =-MAX(E10:E12)/15 -> -4.18018018e-06
A16: -0.15 | B16: -1.8301e-08 | J16: -2.74515e-09 | K16: -0.0008993120393 | M16: =E15 ->  | N16: =MAX(E10:E12)/15 -> 4.18018018e-06
A17: -0.175 | B17: -2.1254e-08 | D17: FF1 = | E17: =F17 -> 0 | F17: =(-1)*MAX(J30:J91)/F11/E14 -> 0 | G17: (-1)*MAX(j30:j91)/F11/E14 | J17: -3.71945e-09 | K17: -0.001044422604
A18: -0.2 | B18: -2.4414e-08 | D18: FF2 = | E18: =F18 ->  | F18: =(-1)*MAX(J91:J130)/F12/E15 ->  | G18: (-1)*MAX(j91:j130)/F12/E15 | J18: -4.8828e-09 | K18: -0.00119970516 | L18: FF | M18: 0 | N18: =INDEX(K30:K91,MATCH(MAX(J30:J91),J30:J91,0),1) -> 6.26044226e-05 | P18: INDEX(k30:k91,MATCH(MAX(j30:j91),j30:j91,0),1)
A19: -0.225 | B19: -2.7872e-08 | J19: -6.2712e-09 | K19: -0.00136963145 | M19: =INDEX(A30:A91,MATCH(MAX(J30:J91),J30:J91,0),1) -> 0 | N19: =INDEX(K30:K91,MATCH(MAX(J30:J91),J30:J91,0),1) -> 6.26044226e-05 | O19: INDEX(a30:a91,MATCH(MAX(j30:j91),j30:j91,0),1) | P19: INDEX(k30:k91,MATCH(MAX(j30:j91),j30:j91,0),1)
A20: -0.25 | B20: -3.1595e-08 | D20: PCE up = | E20: =F20 -> 0 | F20: =MAX(J30:J91)/D5/D7*1000 -> 0 | G20: MAX(j30:j91)/D5/D7*1000 | J20: -7.89875e-09 | K20: -0.001552579853 | M20: =INDEX(A30:A91,MATCH(MAX(J30:J91),J30:J91,0),1) -> 0 | N20: 0 | O20: INDEX(a30:a91,MATCH(MAX(j30:j91),j30:j91,0),1)
A21: -0.275 | B21: -3.5691e-08 | D21: PCE back = | E21: =F21 -> -1.85995086e-07 | F21: =MAX(J91:J130)/D5/D7*1000 -> -1.85995086e-07 | G21: MAX(j91:j130)/D5/D7*1000 | J21: -9.815025e-09 | K21: -0.001753857494
A22: -0.3 | B22: -4.0373e-08 | J22: -1.21119e-08 | K22: -0.001983931204 | M22: 0 | N22: =INDEX(K91:K130,MATCH(MAX(J91:J130),J91:J130,0),1) -> 0.000371990172 | P22: INDEX(k91:k130,MATCH(MAX(j91:j130),j91:j130,0),1)
A23: -0.325 | B23: -4.5863e-08 | D23: discrepancy: | E23: =E11*E14*E17/D5-E20 -> 0 | J23: -1.4905475e-08 | K23: -0.002253710074 | M23: =INDEX(A91:A130,MATCH(MAX(J91:J130),J91:J130,0),1) -> 0.05 | N23: =INDEX(K91:K130,MATCH(MAX(J91:J130),J91:J130,0),1) -> 0.000371990172 | O23: INDEX(a91:a130,MATCH(MAX(j91:j130),j91:j130,0),1) | P23: INDEX(k91:k130,MATCH(MAX(j91:j130),j91:j130,0),1)
A24: -0.35 | B24: -5.2299e-08 | E24: =E12*E15*E18/D5-E21 ->  | J24: -1.830465e-08 | K24: -0.00256997543 | M24: =INDEX(A91:A130,MATCH(MAX(J91:J130),J91:J130,0),1) -> 0.05 | N24: 0 | O24: INDEX(a91:a130,MATCH(MAX(j91:j130),j91:j130,0),1)
A25: -0.375 | B25: -6.0057e-08 | J25: -2.2521375e-08 | K25: -0.002951203931
A26: -0.4 | B26: -6.9576e-08 | D26: V is from: | E26: =MIN(A10:A132) -> -0.5 | F26: to | G26: =MAX(A10:A132) -> 1 | J26: -2.78304e-08 | K26: -0.003418968059
A27: -0.425 | B27: -8.1297e-08 | D27: row: | E27: =MATCH(-0.5,A1:A132,0) -> 30 | F27: - | G27: =MATCH(1,A1:A132,0) -> 91 | J27: -3.4551225e-08 | K27: -0.003994938575
A28: -0.45 | B28: -9.5679e-08 | J28: -4.305555e-08 | K28: -0.004701670762
A29: -0.475 | B29: -1.13235e-07 | J29: -5.3786625e-08 | K29: -0.005564373464
A30: -0.5 | B30: -1.34616e-07 | J30: -6.7308e-08 | K30: -0.006615036855
A31: -0.5 | B31: -1.45596e-07 | J31: -7.2798e-08 | K31: -0.007154594595
A32: -0.475 | B32: -1.39638e-07 | J32: -6.632805e-08 | K32: -0.006861818182
A33: -0.45 | B33: -1.29569e-07 | J33: -5.830605e-08 | K33: -0.006367027027
A34: -0.425 | B34: -1.17626e-07 | J34: -4.999105e-08 | K34: -0.00578014742
A35: -0.4 | B35: -1.04731e-07 | J35: -4.18924e-08 | K35: -0.005146486486
A36: -0.375 | B36: -9.1704e-08 | J36: -3.4389e-08 | K36: -0.004506339066
A37: -0.35 | B37: -7.9175e-08 | J37: -2.771125e-08 | K37: -0.003890663391
A38: -0.325 | B38: -6.759e-08 | J38: -2.196675e-08 | K38: -0.003321375921
A39: -0.3 | B39: -5.7075e-08 | J39: -1.71225e-08 | K39: -0.002804668305
A40: -0.275 | B40: -4.7808e-08 | J40: -1.31472e-08 | K40: -0.002349287469
A41: -0.25 | B41: -3.9817e-08 | J41: -9.95425e-09 | K41: -0.001956609337
A42: -0.225 | B42: -3.2972e-08 | J42: -7.4187e-09 | K42: -0.0016202457
A43: -0.2 | B43: -2.7109e-08 | J43: -5.4218e-09 | K43: -0.001332137592
A44: -0.175 | B44: -2.2057e-08 | J44: -3.859975e-09 | K44: -0.001083882064
A45: -0.15 | B45: -1.7826e-08 | J45: -2.6739e-09 | K45: -0.000875970516
A46: -0.125 | B46: -1.4052e-08 | J46: -1.7565e-09 | K46: -0.0006905159705
A47: -0.1 | B47: -1.0648e-08 | J47: -1.0648e-09 | K47: -0.0005232432432
A48: -0.075 | B48: -7.542e-09 | J48: -5.6565e-10 | K48: -0.0003706142506
A49: -0.05 | B49: -4.64e-09 | J49: -2.32e-10 | K49: -0.000228009828
A50: -0.025 | B50: -1.75e-09 | J50: -4.375e-11 | K50: -8.5995086e-05
A51: 0 | B51: 1.274e-09 | J51: 0 | K51: 6.26044226e-05
A52: 0.025 | B52: 4.817e-09 | J52: -1.20425e-10 | K52: 0.0002367076167
A53: 0.05 | B53: 9.202e-09 | J53: -4.601e-10 | K53: 0.0004521867322
A54: 0.075 | B54: 1.5063e-08 | J54: -1.129725e-09 | K54: 0.0007401965602
A55: 0.1 | B55: 2.3488e-08 | J55: -2.3488e-09 | K55: 0.001154201474
A56: 0.125 | B56: 3.6246e-08 | J56: -4.53075e-09 | K56: 0.001781130221
A57: 0.15 | B57: 5.6111e-08 | J57: -8.41665e-09 | K57: 0.002757297297
A58: 0.175 | B58: 8.7736e-08 | J58: -1.53538e-08 | K58: 0.004311351351
A59: 0.2 | B59: 1.39375e-07 | J59: -2.7875e-08 | K59: 0.006848894349
A60: 0.225 | B60: 2.24713e-07 | J60: -5.0560425e-08 | K60: 0.01104240786
A61: 0.25 | B61: 3.67972e-07 | J61: -9.1993e-08 | K61: 0.01808216216
A62: 0.275 | B62: 6.10976e-07 | J62: -1.680184e-07 | K62: 0.03002339066
A63: 0.3 | B63: 1.065438e-06 | J63: -3.196314e-07 | K63: 0.05235567568
A64: 0.325 | B64: 1.782973e-06 | J64: -5.79466225e-07 | K64: 0.08761538084
A65: 0.35 | B65: 3.012541e-06 | J65: -1.05438935e-06 | K65: 0.1480364128
A66: 0.375 | B66: 5.099039e-06 | J66: -1.912139625e-06 | K66: 0.250567027
A67: 0.4 | B67: 8.569943e-06 | J67: -3.4279772e-06 | K67: 0.4211274201
A68: 0.425 | B68: 1.503493e-05 | J68: -6.38984525e-06 | K68: 0.738817199
A69: 0.45 | B69: 2.383529e-05 | J69: -1.07258805e-05 | K69: 1.171267322
A70: 0.475 | B70: 3.735315e-05 | J70: -1.774274625e-05 | K70: 1.835535627
A71: 0.5 | B71: 5.713099e-05 | J71: -2.8565495e-05 | K71: 2.807419656
A72: 0.525 | B72: 8.472428e-05 | J72: -4.4480247e-05 | K72: 4.163355283
A73: 0.55 | B73: 0.0001271924 | J73: -6.995582e-05 | K73: 6.250240786
A74: 0.575 | B74: 0.0001737056 | J74: =-(B74*A74) -> -9.988072e-05 | K74: =B74*1000/$D$7 -> 8.53590172
A75: 0.6 | B75: 0.0002323596 | J75: -0.00013941576 | K75: 11.41816216
A76: 0.625 | B76: 0.0003030792 | J76: -0.0001894245 | K76: 14.89332678
A77: 0.65 | B77: 0.0003856799 | J77: -0.000250691935 | K77: 18.95232924
A78: 0.675 | B78: 0.0004798952 | J78: -0.00032392926 | K78: 23.58207371
A79: 0.7 | B79: 0.0005848595 | J79: -0.00040940165 | K79: 28.74002457
A80: 0.725 | B80: 0.0007001413 | J80: -0.0005076024425 | K80: 34.40497789
A81: 0.75 | B81: 0.0008245963 | J81: -0.000618447225 | K81: 40.5207027
A82: 0.775 | B82: 0.000957693 | J82: -0.000742212075 | K82: 47.06108108
A83: 0.8 | B83: 0.001109165 | J83: -0.000887332 | K83: 54.5044226
A84: 0.825 | B84: 0.001255291 | J84: -0.001035615075 | K84: 61.68506143
A85: 0.85 | B85: 0.001409278 | J85: -0.0011978863 | K85: 69.25199017
A86: 0.875 | B86: 0.001569082 | J86: -0.00137294675 | K86: 77.10476658
A87: 0.9 | B87: 0.001734492 | J87: -0.0015610428 | K87: 85.23302211
A88: 0.925 | B88: 0.001904515 | J88: -0.001761676375 | K88: 93.58796069
A89: 0.95 | B89: 0.002078735 | J89: -0.00197479825 | K89: 102.14914
A90: 0.975 | B90: 0.002256804 | J90: -0.0022003839 | K90: 110.8994595
A91: 1 | B91: 0.002438097 | J91: -0.002438097 | K91: 119.8082064
A92: 1 | B92: 0.002450048 | J92: -0.002450048 | K92: 120.3954791
A93: 0.975 | B93: 0.002288999 | J93: -0.002231774025 | K93: 112.4815233
A94: 0.95 | B94: 0.00212603 | J94: -0.0020197285 | K94: 104.4732187
A95: 0.925 | B95: 0.001964102 | J95: -0.00181679435 | K95: 96.5160688
A96: 0.9 | B96: 0.001804172 | J96: -0.0016237548 | K96: 88.65710074
A97: 0.875 | B97: 0.001646858 | J97: -0.00144100075 | K97: 80.92668305
A98: 0.85 | B98: 0.001493334 | J98: -0.0012693339 | K98: 73.38250614
A99: 0.825 | B99: 0.001343721 | J99: -0.001108569825 | K99: 66.03051597
A100: 0.8 | B100: 0.001199101 | J100: -0.0009592808 | K100: 58.92388206
A101: 0.775 | B101: 0.001059944 | J101: -0.0008214566 | K101: 52.08570025
A102: 0.75 | B102: 0.0009218859 | J102: -0.000691414425 | K102: 45.30151843
A103: 0.725 | B103: 0.0007978782 | J103: -0.000578461695 | K103: 39.20777396
A104: 0.7 | B104: 0.0006797414 | J104: -0.00047581898 | K104: 33.4025258
A105: 0.675 | B105: 0.0005697421 | J105: -0.0003845759175 | K105: 27.99715479
A106: 0.65 | B106: 0.0004685169 | J106: -0.000304535985 | K106: 23.02294349
A107: 0.625 | B107: 0.0003772101 | J107: -0.0002357563125 | K107: 18.53612285
A108: 0.6 | B108: 0.0002964172 | J108: -0.00017785032 | K108: 14.56595577
A109: 0.575 | B109: 0.0002268116 | J109: -0.00013041667 | K109: 11.14553317
A110: 0.55 | B110: 0.000168508 | J110: -9.26794e-05 | K110: 8.2804914
A111: 0.525 | B111: 0.0001212664 | J111: -6.366486e-05 | K111: 5.959036855
A112: 0.5 | B112: 8.286472e-05 | J112: -4.143236e-05 | K112: 4.071976413
A113: 0.475 | B113: 5.634242e-05 | J113: -2.67626495e-05 | K113: 2.768669287
A114: 0.45 | B114: 3.696577e-05 | J114: -1.66345965e-05 | K114: 1.816499754
A115: 0.425 | B115: 2.356611e-05 | J115: -1.001559675e-05 | K115: 1.158039803
A116: 0.4 | B116: 1.467008e-05 | J116: -5.868032e-06 | K116: 0.7208884521
A117: 0.375 | B117: 8.67797e-06 | J117: -3.25423875e-06 | K117: 0.4264358722
A118: 0.35 | B118: 5.281376e-06 | J118: -1.8484816e-06 | K118: 0.2595270762
A119: 0.325 | B119: 3.156663e-06 | J119: -1.025915475e-06 | K119: 0.1551185749
A120: 0.3 | B120: 1.869091e-06 | J120: -5.607273e-07 | K120: 0.09184722359
A121: 0.275 | B121: 1.102631e-06 | J121: -3.03223525e-07 | K121: 0.05418334152
A122: 0.25 | B122: 6.28183e-07 | J122: -1.5704575e-07 | K122: 0.03086894349
A123: 0.225 | B123: 3.75454e-07 | J123: -8.447715e-08 | K123: 0.01844982801
A124: 0.2 | B124: 2.22625e-07 | J124: -4.4525e-08 | K124: 0.01093980344
A125: 0.175 | B125: 1.32315e-07 | J125: -2.3155125e-08 | K125: 0.006501965602
A126: 0.15 | B126: 7.8686e-08 | J126: -1.18029e-08 | K126: 0.003866633907
A127: 0.125 | B127: 4.6631e-08 | J127: -5.828875e-09 | K127: 0.002291449631
A128: 0.1 | B128: 2.7269e-08 | J128: -2.7269e-09 | K128: 0.00134
A129: 0.075 | B129: 1.5246e-08 | J129: -1.14345e-09 | K129: 0.0007491891892
A130: 0.05 | B130: 7.57e-09 | J130: -3.785e-10 | K130: 0.000371990172
A131: 0.025 | B131: 2.469e-09 | J131: -6.1725e-11 | K131: 0.0001213267813
A132: 0 | B132: -1.276e-09 | J132: 0 | K132: -6.27027027e-05
J133: 0 | K133: 0
J134: 0 | K134: 0
J135: 0 | K135: 0
J136: 0 | K136: 0
J137: 0 | K137: 0
J138: =-(B138*A138) -> 0 | K138: =B138*1000/$D$7 -> 0
J139: 0 | K139: 0
J140: 0 | K140: 0
J141: 0 | K141: 0
J142: 0 | K142: 0
J143: 0 | K143: 0
J144: 0 | K144: 0
J145: 0 | K145: 0
J146: 0 | K146: 0
J147: 0 | K147: 0
J148: 0 | K148: 0
J149: 0 | K149: 0
J150: 0 | K150: 0
J151: 0 | K151: 0
J152: 0 | K152: 0
J153: 0 | K153: 0
J154: 0 | K154: 0
J155: 0 | K155: 0
J156: 0 | K156: 0
J157: 0 | K157: 0
J158: 0 | K158: 0
J159: 0 | K159: 0
J160: 0 | K160: 0
J161: 0 | K161: 0
J162: 0 | K162: 0
J163: 0 | K163: 0
J164: 0 | K164: 0
J165: 0 | K165: 0
J166: 0 | K166: 0
J167: 0 | K167: 0
J168: 0 | K168: 0
J169: 0 | K169: 0
J170: 0 | K170: 0
J171: 0 | K171: 0
J172: 0 | K172: 0
J173: 0 | K173: 0
J174: 0 | K174: 0
J175: 0 | K175: 0
J176: 0 | K176: 0
J177: 0 | K177: 0
J178: 0 | K178: 0
J179: 0 | K179: 0
J180: 0 | K180: 0
J181: 0 | K181: 0
J182: 0 | K182: 0
J183: 0 | K183: 0
J184: 0 | K184: 0
J185: 0 | K185: 0
J186: 0 | K186: 0
J187: 0 | K187: 0
J188: 0 | K188: 0
J189: 0 | K189: 0
J190: 0 | K190: 0
J191: 0 | K191: 0
J192: 0 | K192: 0
J193: 0 | K193: 0
J194: 0 | K194: 0
J195: 0 | K195: 0
J196: 0 | K196: 0
J197: 0 | K197: 0
J198: 0 | K198: 0
J199: 0 | K199: 0
J200: 0 | K200: 0
J201: 0 | K201: 0
J202: =-(B202*A202) -> 0 | K202: =B202*1000/$D$7 -> 0
... 208 more rows

Sheet PbS TBAC pedot
C2: iv curve name: | D2: PbS TBAC pedot
C3: file name: | D3: PbS TBAC pedot
C4: Illumination Time: | E4: (hh:mm)
C5: Illumination Intensity: | D5: 100 | E5: (mW/cm2)
C6: Filter: | D6: 420 | E6: (nm)
C7: Pixel Area: | D7: 0.02035 | E7: (cm2)
A9: V (V) | B9: J (A) | E9: (mA/cm2) | F9: (A) | J9: power | K9: J (mA/cm2)
A10: 0 | B10: -0.0001759824 | D10: Jsc1 = | E10: =-F10*1000/$D$7 -> 8.647783784 | F10: =((INDEX(A10:B11,1,2)+INDEX(A10:B11,2,2))-((INDEX(A10:B11,1,2)-INDEX(A10:B11,2,2))/(INDEX(A10:B11,1,1)-INDEX(A10:B11,2,1))*(INDEX(A10:B11,1,1)+INDEX(A10:B11,2,1))))/2 -> -0.0001759824 | G10: ((INDEX(A10:B11,1,2)+INDEX(A10:B11,2,2))-((INDEX(A10:B11,1,2)-INDEX(A10:B11,2,2))/(INDEX(A10:B11,1,1)- | H10: INDEX(A10:B11,2,1))*(INDEX(A10:B11,1,1)+INDEX(A10:B11,2,1))))/2 | J10: =-(B10*A10) -> 0 | K10: =B10*1000/$D$7 -> -8.647783784 | L10: Jsc | M10: =MAX(E14:E15)/20 -> 0.02293836136 | N10: =-E10 -> -8.647783784 | O10: =-E11 -> -5.437823096 | P10: =-E12 -> -7.296643735
A11: -0.025 | B11: -0.0001713309 | D11: Jsc2 = | E11: =-F11*1000/$D$7 -> 5.437823096 | F11: =((INDEX(A30:B91,MATCH(0,A30:A91,1),2)+INDEX(A30:B91,MATCH(0,A30:A91,1)+1,2))-((INDEX(A30:B91,MATCH(0,A30:A91,1),2)-INDEX(A30:B91,MATCH(0,A30:A91,1)+1,2))/(INDEX(A30:B91,MATCH(0,A30:A91,1),1)-INDEX(A30:B91,MATCH(0,A30:A91,1)+1,1))*(INDEX(A30:B91,MATCH(0,A30:A91,1),1)+INDEX(A30:B91,MATCH(0,A30:A91,1)+1,1))))/2 -> -0.0001106597 | G11: ((INDEX(a30:b91,MATCH(0,a30:a91,1),2)+INDEX(a30:b91,MATCH(0,a30:a91,1)+1,2))-((INDEX(a30:b91,MATCH(0,a30:a91,1),2)-INDEX(a30:b91,MATCH(0,a30:a91,1)+1,2))/ | H11: (INDEX(a30:b91,MATCH(0,a30:a91,1),1)-INDEX(a30:b91,MATCH(0,a30:a91,1)+1,1))*(INDEX(a30:b91,MATCH(0,a30:a91,1),1)+INDEX(a30:b91,MATCH(0,a30:a91,1)+1,1))))/2 | J11: -4.2832725e-06 | K11: -8.419208845 | M11: =-MAX(E15:E16)/20 -> -0.02293836136 | N11: =-E10 -> -8.647783784 | O11: =-E11 -> -5.437823096 | P11: =-E12 -> -7.296643735
A12: -0.05 | B12: -0.0001659187 | D12: Jsc3 = | E12: =-F12*1000/$D$7 -> 7.296643735 | F12: =((INDEX(A131:B132,1,2)+INDEX(A131:B132,2,2))-((INDEX(A131:B132,1,2)-INDEX(A131:B132,2,2))/(INDEX(A131:B132,1,1)-INDEX(A131:B132,2,1))*(INDEX(A131:B132,1,1)+INDEX(A131:B132,2,1))))/2 -> -0.0001484867 | G12: ((INDEX(A131:B132,1,2)+INDEX(A131:B132,2,2))-((INDEX(A131:B132,1,2)-INDEX(A131:B132,2,2))/(INDEX(A131:B132,1,1)- | H12: INDEX(A131:B132,2,1))*(INDEX(A131:B132,1,1)+INDEX(A131:B132,2,1))))/2 | J12: -8.295935e-06 | K12: -8.153253071
A13: -0.075 | B13: -0.0001666645 | E13: (V) | J13: -1.24998375e-05 | K13: -8.18990172 | L13: Voc | M13: =E14 -> 0.4546327194 | N13: =-MAX(E10:E12)/15 -> -0.5765189189
A14: -0.1 | B14: -0.0001666832 | D14: Voc1 = | E14: =F14 -> 0.4546327194 | F14: =((INDEX(A30:B91,MATCH(0,B30:B91,1),1)+INDEX(A30:B91,MATCH(0,B30:B91,1)+1,1))-((INDEX(A30:B91,MATCH(0,B30:B91,1),1)-INDEX(A30:B91,MATCH(0,B30:B91,1)+1,1))/(INDEX(A30:B91,MATCH(0,B30:B91,1),2)-INDEX(A30:B91,MATCH(0,B30:B91,1)+1,2))*(INDEX(A30:B91,MATCH(0,B30:B91,1),2)+INDEX(A30:B91,MATCH(0,B30:B91,1)+1,2))))/2 -> 0.4546327194 | G14: ((INDEX(a30:b91,MATCH(0,b30:b91,1),1)+INDEX(a30:b91,MATCH(0,b30:b91,1)+1,1))-((INDEX(a30:b91,MATCH(0,b30:b91,1),1)-INDEX(a30:b91,MATCH(0,b30:b91,1)+1,1))/ | H14: (INDEX(a30:b91,MATCH(0,b30:b91,1),2)-INDEX(a30:b91,MATCH(0,b30:b91,1)+1,2))*(INDEX(a30:b91,MATCH(0,b30:b91,1),2)+INDEX(a30:b91,MATCH(0,b30:b91,1)+1,2))))/2 | J14: -1.666832e-05 | K14: -8.190820639 | M14: =E14 -> 0.4546327194 | N14: =MAX(E10:E12)/15 -> 0.5765189189
A15: -0.125 | B15: -0.0001666972 | D15: Voc2 = | E15: =F15 -> 0.4587672271 | F15: =((INDEX(A91:B130,MATCH(0,B91:B130,-1),1)+INDEX(A91:B130,MATCH(0,B91:B130,-1)+1,1))-((INDEX(A91:B130,MATCH(0,B91:B130,-1),1)-INDEX(A91:B130,MATCH(0,B91:B130,-1)+1,1))/(INDEX(A91:B130,MATCH(0,B91:B130,-1),2)-INDEX(A91:B130,MATCH(0,B91:B130,-1)+1,2))*(INDEX(A91:B130,MATCH(0,B91:B130,-1),2)+INDEX(A91:B130,MATCH(0,B91:B130,-1)+1,2))))/2 -> 0.4587672271 | G15: ((INDEX(a91:b130,MATCH(0,b91:b130,-1),1)+INDEX(a91:b130,MATCH(0,b91:b130,-1)+1,1))-((INDEX(a91:b130,MATCH(0,b91:b130,-1),1)-INDEX(a91:b130,MATCH(0,b91:b130,-1)+1,1))/(INDEX(a91:b130,MATCH(0,b91:b130,-1),2)- | H15: INDEX(a91:b130,MATCH(0,b91:b130,-1)+1,2))*(INDEX(a91:b130,MATCH(0,b91:b130,-1),2)+INDEX(a91:b130,MATCH(0,b91:b130,-1)+1,2))))/2 | J15: -2.083715e-05 | K15: -8.1915086 | M15: =E15 -> 0.4587672271 | N15: =-MAX(E10:E12)/15 -> -0.5765189189
A16: -0.15 | B16: -0.0001693851 | J16: -2.5407765e-05 | K16: -8.323592138 | M16: =E15 -> 0.4587672271 | N16: =MAX(E10:E12)/15 -> 0.5765189189
A17: -0.175 | B17: -0.0001697563 | D17: FF1 = | E17: =F17 -> 0.398275438 | F17: =(-1)*MAX(J30:J91)/F11/E14 -> 0.398275438 | G17: (-1)*MAX(j30:j91)/F11/E14 | J17: -2.97073525e-05 | K17: -8.341832924
A18: -0.2 | B18: -0.0001719814 | D18: FF2 = | E18: =F18 -> 0.4792975838 | F18: =(-1)*MAX(J91:J130)/F12/E15 -> 0.4792975838 | G18: (-1)*MAX(j91:j130)/F12/E15 | J18: -3.439628e-05 | K18: -8.451174447 | L18: FF | M18: 0 | N18: =INDEX(K30:K91,MATCH(MAX(J30:J91),J30:J91,0),1) -> -3.029604423 | P18: INDEX(k30:k91,MATCH(MAX(j30:j91),j30:j91,0),1)
A19: -0.225 | B19: -0.0001759538 | J19: -3.9589605e-05 | K19: -8.646378378 | M19: =INDEX(A30:A91,MATCH(MAX(J30:J91),J30:J91,0),1) -> 0.325 | N19: =INDEX(K30:K91,MATCH(MAX(J30:J91),J30:J91,0),1) -> -3.029604423 | O19: INDEX(a30:a91,MATCH(MAX(j30:j91),j30:j91,0),1) | P19: INDEX(k30:k91,MATCH(MAX(j30:j91),j30:j91,0),1)
A20: -0.25 | B20: -0.000177062 | D20: PCE up = | E20: =F20 -> 0.009846214373 | F20: =MAX(J30:J91)/D5/D7*1000 -> 0.009846214373 | G20: MAX(j30:j91)/D5/D7*1000 | J20: -4.42655e-05 | K20: -8.700835381 | M20: =INDEX(A30:A91,MATCH(MAX(J30:J91),J30:J91,0),1) -> 0.325 | N20: 0 | O20: INDEX(a30:a91,MATCH(MAX(j30:j91),j30:j91,0),1)
A21: -0.275 | B21: -0.0001799867 | D21: PCE back = | E21: =F21 -> 0.01604429975 | F21: =MAX(J91:J130)/D5/D7*1000 -> 0.01604429975 | G21: MAX(j91:j130)/D5/D7*1000 | J21: -4.94963425e-05 | K21: -8.844555283
A22: -0.3 | B22: -0.000183404 | J22: -5.50212e-05 | K22: -9.012481572 | M22: 0 | N22: =INDEX(K91:K130,MATCH(MAX(J91:J130),J91:J130,0),1) -> -4.936707617 | P22: INDEX(k91:k130,MATCH(MAX(j91:j130),j91:j130,0),1)
A23: -0.325 | B23: -0.0001718469 | D23: discrepancy: | E23: =E11*E14*E17/D5-E20 -> 0 | J23: -5.58502425e-05 | K23: -8.444565111 | M23: =INDEX(A91:A130,MATCH(MAX(J91:J130),J91:J130,0),1) -> 0.325 | N23: =INDEX(K91:K130,MATCH(MAX(J91:J130),J91:J130,0),1) -> -4.936707617 | O23: INDEX(a91:a130,MATCH(MAX(j91:j130),j91:j130,0),1) | P23: INDEX(k91:k130,MATCH(MAX(j91:j130),j91:j130,0),1)
A24: -0.35 | B24: -0.0001915537 | E24: =E12*E15*E18/D5-E21 -> 0 | J24: -6.7043795e-05 | K24: -9.412958231 | M24: =INDEX(A91:A130,MATCH(MAX(J91:J130),J91:J130,0),1) -> 0.325 | N24: 0 | O24: INDEX(a91:a130,MATCH(MAX(j91:j130),j91:j130,0),1)
A25: -0.375 | B25: -0.000193042 | J25: -7.239075e-05 | K25: -9.486093366
A26: -0.4 | B26: -0.0001926605 | D26: V is from: | E26: =MIN(A10:A132) -> -0.5 | F26: to | G26: =MAX(A10:A132) -> 1 | J26: -7.70642e-05 | K26: -9.467346437
A27: -0.425 | B27: -0.0001944673 | D27: row: | E27: =MATCH(-0.5,A1:A132,0) -> 30 | F27: - | G27: =MATCH(1,A1:A132,0) -> 91 | J27: -8.26486025e-05 | K27: -9.556132678
A28: -0.45 | B28: -0.0001910355 | J28: -8.5965975e-05 | K28: -9.387493857
A29: -0.475 | B29: -0.000200717 | J29: -9.5340575e-05 | K29: -9.863243243
A30: -0.5 | B30: -0.0002002111 | J30: -0.00010010555 | K30: -9.838383292
A31: -0.5 | B31: -0.0001961909 | J31: -9.809545e-05 | K31: -9.640830467
A32: -0.475 | B32: -0.0001911849 | J32: -9.08128275e-05 | K32: -9.394835381
A33: -0.45 | B33: -0.0001823376 | J33: -8.205192e-05 | K33: -8.960078624
A34: -0.425 | B34: -0.0001750646 | J34: -7.4402455e-05 | K34: -8.602683047
A35: -0.4 | B35: -0.0001709718 | J35: -6.838872e-05 | K35: -8.401562654
A36: -0.375 | B36: -0.0001684984 | J36: -6.31869e-05 | K36: -8.280019656
A37: -0.35 | B37: -0.0001612774 | J37: -5.644709e-05 | K37: -7.925179361
A38: -0.325 | B38: -0.0001569135 | J38: -5.09968875e-05 | K38: -7.710737101
A39: -0.3 | B39: -0.0001530099 | J39: -4.590297e-05 | K39: -7.518914005
A40: -0.275 | B40: -0.0001482682 | J40: -4.0773755e-05 | K40: -7.285906634
A41: -0.25 | B41: -0.0001459244 | J41: -3.64811e-05 | K41: -7.170732187
A42: -0.225 | B42: -0.0001417398 | J42: -3.1891455e-05 | K42: -6.965100737
A43: -0.2 | B43: -0.0001378981 | J43: -2.757962e-05 | K43: -6.77631941
A44: -0.175 | B44: -0.0001354904 | J44: -2.371082e-05 | K44: -6.658004914
A45: -0.15 | B45: -0.0001329394 | J45: -1.994091e-05 | K45: -6.532648649
A46: -0.125 | B46: -0.0001245239 | J46: -1.55654875e-05 | K46: -6.119110565
A47: -0.1 | B47: -0.0001212594 | J47: -1.212594e-05 | K47: -5.958692875
A48: -0.075 | B48: -0.0001193261 | J48: -8.9494575e-06 | K48: -5.863690418
A49: -0.05 | B49: -0.0001143983 | J49: -5.719915e-06 | K49: -5.621538084
A50: -0.025 | B50: -0.000112339 | J50: -2.808475e-06 | K50: -5.52034398
A51: 0 | B51: -0.0001106597 | J51: 0 | K51: -5.437823096
A52: 0.025 | B52: -0.000107546 | J52: 2.68865e-06 | K52: -5.284815725
A53: 0.05 | B53: -0.0001056237 | J53: 5.281185e-06 | K53: -5.190353808
A54: 0.075 | B54: -0.0001014069 | J54: 7.6055175e-06 | K54: -4.983140049
A55: 0.1 | B55: -0.0001029916 | J55: 1.029916e-05 | K55: -5.061012285
A56: 0.125 | B56: -9.546409e-05 | J56: 1.193301125e-05 | K56: -4.691110074
A57: 0.15 | B57: -9.080334e-05 | J57: 1.3620501e-05 | K57: -4.46208059
A58: 0.175 | B58: -8.72071e-05 | J58: 1.52612425e-05 | K58: -4.285361179
A59: 0.2 | B59: -8.269372e-05 | J59: 1.6538744e-05 | K59: -4.063573464
A60: 0.225 | B60: -7.860944e-05 | J60: 1.7687124e-05 | K60: -3.862871744
A61: 0.25 | B61: -7.501832e-05 | J61: 1.875458e-05 | K61: -3.686403931
A62: 0.275 | B62: -7.123242e-05 | J62: 1.95889155e-05 | K62: -3.500364619
A63: 0.3 | B63: -6.56776e-05 | J63: 1.970328e-05 | K63: -3.227400491
A64: 0.325 | B64: -6.165245e-05 | J64: 2.003704625e-05 | K64: -3.029604423
A65: 0.35 | B65: -5.679174e-05 | J65: 1.9877109e-05 | K65: -2.790748894
A66: 0.375 | B66: -4.96645e-05 | J66: 1.86241875e-05 | K66: -2.440515971
A67: 0.4 | B67: -3.690706e-05 | J67: 1.4762824e-05 | K67: -1.813614742
A68: 0.425 | B68: -2.458432e-05 | J68: 1.0448336e-05 | K68: -1.208074693
A69: 0.45 | B69: -5.419718e-06 | J69: 2.4388731e-06 | K69: -0.2663252088
A70: 0.475 | B70: 2.382724e-05 | J70: -1.1317939e-05 | K70: 1.170871744
A71: 0.5 | B71: 6.358484e-05 | J71: -3.179242e-05 | K71: 3.124562162
A72: 0.525 | B72: 0.0001166257 | J72: -6.12284925e-05 | K72: 5.730992629
A73: 0.55 | B73: 0.0001762849 | J73: -9.6956695e-05 | K73: 8.662648649
A74: 0.575 | B74: 0.0002451559 | J74: =-(B74*A74) -> -0.0001409646425 | K74: =B74*1000/$D$7 -> 12.04697297
A75: 0.6 | B75: 0.0003220199 | J75: -0.00019321194 | K75: 15.82407371
A76: 0.625 | B76: 0.0004057577 | J76: -0.0002535985625 | K76: 19.93895332
A77: 0.65 | B77: 0.0004954594 | J77: -0.00032204861 | K77: 24.34689926
A78: 0.675 | B78: 0.0005905778 | J78: -0.000398640015 | K78: 29.02102211
A79: 0.7 | B79: 0.000690189 | J79: -0.0004831323 | K79: 33.91592138
A80: 0.725 | B80: 0.0007942339 | J80: -0.0005758195775 | K80: 39.02869287
A81: 0.75 | B81: 0.0009024556 | J81: -0.0006768417 | K81: 44.34671253
A82: 0.775 | B82: 0.001013916 | J82: -0.0007857849 | K82: 49.82388206
A83: 0.8 | B83: 0.001073336 | J83: -0.0008586688 | K83: 52.74378378
A84: 0.825 | B84: 0.001182294 | J84: -0.00097539255 | K84: 58.09798526
A85: 0.85 | B85: 0.00120737 | J85: -0.0010262645 | K85: 59.33022113
A86: 0.875 | B86: 0.00129479 | J86: -0.00113294125 | K86: 63.62604423
A87: 0.9 | B87: 0.001242333 | J87: -0.0011180997 | K87: 61.04830467
A88: 0.925 | B88: 0.001332335 | J88: -0.001232409875 | K88: 65.47100737
A89: 0.95 | B89: 0.001423146 | J89: -0.0013519887 | K89: 69.93346437
A90: 0.975 | B90: 0.001516804 | J90: -0.0014788839 | K90: 74.5358231
A91: 1 | B91: 0.001613269 | J91: -0.001613269 | K91: 79.27611794
A92: 1 | B92: 0.001608983 | J92: -0.001608983 | K92: 79.06550369
A93: 0.975 | B93: 0.001508659 | J93: -0.001470942525 | K93: 74.1355774
A94: 0.95 | B94: 0.001411993 | J94: -0.00134139335 | K94: 69.38540541
A95: 0.925 | B95: 0.001315954 | J95: -0.00121725745 | K95: 64.66604423
A96: 0.9 | B96: 0.001224224 | J96: -0.0011018016 | K96: 60.15842752
A97: 0.875 | B97: 0.001134314 | J97: -0.00099252475 | K97: 55.7402457
A98: 0.85 | B98: 0.001045634 | J98: -0.0008887889 | K98: 51.38250614
A99: 0.825 | B99: 0.0009573065 | J99: -0.0007897778625 | K99: 47.04208845
A100: 0.8 | B100: 0.0008726668 | J100: -0.00069813344 | K100: 42.88288943
A101: 0.775 | B101: 0.0007911998 | J101: -0.000613179845 | K101: 38.87959705
A102: 0.75 | B102: 0.0007109623 | J102: -0.000533221725 | K102: 34.93672236
A103: 0.725 | B103: 0.0006328404 | J103: -0.00045880929 | K103: 31.09780835
A104: 0.7 | B104: 0.0005574481 | J104: -0.00039021367 | K104: 27.39302703
A105: 0.675 | B105: 0.0004840425 | J105: -0.0003267286875 | K105: 23.78587224
A106: 0.65 | B106: 0.0004130889 | J106: -0.000268507785 | K106: 20.29920885
A107: 0.625 | B107: 0.0003454982 | J107: -0.000215936375 | K107: 16.97779853
A108: 0.6 | B108: 0.0002805356 | J108: -0.00016832136 | K108: 13.78553317
A109: 0.575 | B109: 0.0002205226 | J109: -0.000126800495 | K109: 10.8364914
A110: 0.55 | B110: 0.000163785 | J110: -9.008175e-05 | K110: 8.048402948
A111: 0.525 | B111: 0.0001109358 | J111: -5.8241295e-05 | K111: 5.451390663
A112: 0.5 | B112: 6.428806e-05 | J112: -3.214403e-05 | K112: 3.159118428
A113: 0.475 | B113: 2.460765e-05 | J113: -1.168863375e-05 | K113: 1.20922113
A114: 0.45 | B114: -1.329045e-05 | J114: 5.9807025e-06 | K114: -0.6530933661
A115: 0.425 | B115: -4.291593e-05 | J115: 1.823927025e-05 | K115: -2.108890909
A116: 0.4 | B116: -6.331623e-05 | J116: 2.5326492e-05 | K116: -3.111362654
A117: 0.375 | B117: -7.855919e-05 | J117: 2.945969625e-05 | K117: -3.860402457
A118: 0.35 | B118: -9.162186e-05 | J118: 3.2067651e-05 | K118: -4.502302703
A119: 0.325 | B119: -0.000100462 | J119: 3.265015e-05 | K119: -4.936707617
A120: 0.3 | B120: -0.0001040879 | J120: 3.122637e-05 | K120: -5.114884521
A121: 0.275 | B121: -0.0001119245 | J121: 3.07792375e-05 | K121: -5.49997543
A122: 0.25 | B122: -0.0001172717 | J122: 2.9317925e-05 | K122: -5.762737101
A123: 0.225 | B123: -0.0001125681 | J123: 2.53278225e-05 | K123: -5.531601966
A124: 0.2 | B124: -0.0001182536 | J124: 2.365072e-05 | K124: -5.810987715
A125: 0.175 | B125: -0.0001220048 | J125: 2.135084e-05 | K125: -5.995321867
A126: 0.15 | B126: -0.0001260843 | J126: 1.8912645e-05 | K126: -6.195788698
A127: 0.125 | B127: -0.0001319617 | J127: 1.64952125e-05 | K127: -6.484604423
A128: 0.1 | B128: -0.0001351681 | J128: 1.351681e-05 | K128: -6.642167076
A129: 0.075 | B129: -0.0001377423 | J129: 1.03306725e-05 | K129: -6.768663391
A130: 0.05 | B130: -0.0001394405 | J130: 6.972025e-06 | K130: -6.852113022
A131: 0.025 | B131: -0.0001442666 | J131: 3.606665e-06 | K131: -7.089267813
A132: 0 | B132: -0.0001484867 | J132: 0 | K132: -7.296643735
J133: 0 | K133: 0
J134: 0 | K134: 0
J135: 0 | K135: 0
J136: 0 | K136: 0
J137: 0 | K137: 0
J138: =-(B138*A138) -> 0 | K138: =B138*1000/$D$7 -> 0
J139: 0 | K139: 0
J140: 0 | K140: 0
J141: 0 | K141: 0
J142: 0 | K142: 0
J143: 0 | K143: 0
J144: 0 | K144: 0
J145: 0 | K145: 0
J146: 0 | K146: 0
J147: 0 | K147: 0
J148: 0 | K148: 0
J149: 0 | K149: 0
J150: 0 | K150: 0
J151: 0 | K151: 0
J152: 0 | K152: 0
J153: 0 | K153: 0
J154: 0 | K154: 0
J155: 0 | K155: 0
J156: 0 | K156: 0
J157: 0 | K157: 0
J158: 0 | K158: 0
J159: 0 | K159: 0
J160: 0 | K160: 0
J161: 0 | K161: 0
J162: 0 | K162: 0
J163: 0 | K163: 0
J164: 0 | K164: 0
J165: 0 | K165: 0
J166: 0 | K166: 0
J167: 0 | K167: 0
J168: 0 | K168: 0
J169: 0 | K169: 0
J170: 0 | K170: 0
J171: 0 | K171: 0
J172: 0 | K172: 0
J173: 0 | K173: 0
J174: 0 | K174: 0
J175: 0 | K175: 0
J176: 0 | K176: 0
J177: 0 | K177: 0
J178: 0 | K178: 0
J179: 0 | K179: 0
J180: 0 | K180: 0
J181: 0 | K181: 0
J182: 0 | K182: 0
J183: 0 | K183: 0
J184: 0 | K184: 0
J185: 0 | K185: 0
J186: 0 | K186: 0
J187: 0 | K187: 0
J188: 0 | K188: 0
J189: 0 | K189: 0
J190: 0 | K190: 0
J191: 0 | K191: 0
J192: 0 | K192: 0
J193: 0 | K193: 0
J194: 0 | K194: 0
J195: 0 | K195: 0
J196: 0 | K196: 0
J197: 0 | K197: 0
J198: 0 | K198: 0
J199: 0 | K199: 0
J200: 0 | K200: 0
J201: 0 | K201: 0
J202: =-(B202*A202) -> 0 | K202: =B202*1000/$D$7 -> 0
... 208 more rows

Sheet PbS TBAB pedot dark
C2: iv curve name: | D2: PbS TBAB pedot dark
C3: file name: | D3: PbS TBAB pedot dark
C4: Illumination Time: | E4: (hh:mm)
C5: Illumination Intensity: | D5: 100 | E5: (mW/cm2)
C6: Filter: | D6: 420 | E6: (nm)
C7: Pixel Area: | D7: 0.02035 | E7: (cm2)
A9: V (V) | B9: J (A) | E9: (mA/cm2) | F9: (A) | J9: power | K9: J (mA/cm2)
A10: 0 | B10: -1.789e-09 | D10: Jsc1 = | E10: =-F10*1000/$D$7 -> 8.791154791e-05 | F10: =((INDEX(A10:B11,1,2)+INDEX(A10:B11,2,2))-((INDEX(A10:B11,1,2)-INDEX(A10:B11,2,2))/(INDEX(A10:B11,1,1)-INDEX(A10:B11,2,1))*(INDEX(A10:B11,1,1)+INDEX(A10:B11,2,1))))/2 -> -1.789e-09 | G10: ((INDEX(A10:B11,1,2)+INDEX(A10:B11,2,2))-((INDEX(A10:B11,1,2)-INDEX(A10:B11,2,2))/(INDEX(A10:B11,1,1)- | H10: INDEX(A10:B11,2,1))*(INDEX(A10:B11,1,1)+INDEX(A10:B11,2,1))))/2 | J10: =-(B10*A10) -> 0 | K10: =B10*1000/$D$7 -> -8.791154791e-05 | L10: Jsc | M10: =MAX(E14:E15)/20 ->  | N10: =-E10 -> -8.791154791e-05 | O10: =-E11 -> 4.314496314e-05 | P10: =-E12 -> -0.0001167076167
A11: -0.025 | B11: -7.149e-09 | D11: Jsc2 = | E11: =-F11*1000/$D$7 -> -4.314496314e-05 | F11: =((INDEX(A30:B91,MATCH(0,A30:A91,1),2)+INDEX(A30:B91,MATCH(0,A30:A91,1)+1,2))-((INDEX(A30:B91,MATCH(0,A30:A91,1),2)-INDEX(A30:B91,MATCH(0,A30:A91,1)+1,2))/(INDEX(A30:B91,MATCH(0,A30:A91,1),1)-INDEX(A30:B91,MATCH(0,A30:A91,1)+1,1))*(INDEX(A30:B91,MATCH(0,A30:A91,1),1)+INDEX(A30:B91,MATCH(0,A30:A91,1)+1,1))))/2 -> 8.78e-10 | G11: ((INDEX(a30:b91,MATCH(0,a30:a91,1),2)+INDEX(a30:b91,MATCH(0,a30:a91,1)+1,2))-((INDEX(a30:b91,MATCH(0,a30:a91,1),2)-INDEX(a30:b91,MATCH(0,a30:a91,1)+1,2))/ | H11: (INDEX(a30:b91,MATCH(0,a30:a91,1),1)-INDEX(a30:b91,MATCH(0,a30:a91,1)+1,1))*(INDEX(a30:b91,MATCH(0,a30:a91,1),1)+INDEX(a30:b91,MATCH(0,a30:a91,1)+1,1))))/2 | J11: -1.78725e-10 | K11: -0.0003513022113 | M11: =-MAX(E15:E16)/20 ->  | N11: =-E10 -> -8.791154791e-05 | O11: =-E11 -> 4.314496314e-05 | P11: =-E12 -> -0.0001167076167
A12: -0.05 | B12: -1.1156e-08 | D12: Jsc3 = | E12: =-F12*1000/$D$7 -> 0.0001167076167 | F12: =((INDEX(A131:B132,1,2)+INDEX(A131:B132,2,2))-((INDEX(A131:B132,1,2)-INDEX(A131:B132,2,2))/(INDEX(A131:B132,1,1)-INDEX(A131:B132,2,1))*(INDEX(A131:B132,1,1)+INDEX(A131:B132,2,1))))/2 -> -2.375e-09 | G12: ((INDEX(A131:B132,1,2)+INDEX(A131:B132,2,2))-((INDEX(A131:B132,1,2)-INDEX(A131:B132,2,2))/(INDEX(A131:B132,1,1)- | H12: INDEX(A131:B132,2,1))*(INDEX(A131:B132,1,1)+INDEX(A131:B132,2,1))))/2 | J12: -5.578e-10 | K12: -0.0005482063882
A13: -0.075 | B13: -1.4762e-08 | E13: (V) | J13: -1.10715e-09 | K13: -0.0007254054054 | L13: Voc | M13: =E14 -> -0.00521873514 | N13: =-MAX(E10:E12)/15 -> -7.780507781e-06
A14: -0.1 | B14: -1.8089e-08 | D14: Voc1 = | E14: =F14 -> -0.00521873514 | F14: =((INDEX(A30:B91,MATCH(0,B30:B91,1),1)+INDEX(A30:B91,MATCH(0,B30:B91,1)+1,1))-((INDEX(A30:B91,MATCH(0,B30:B91,1),1)-INDEX(A30:B91,MATCH(0,B30:B91,1)+1,1))/(INDEX(A30:B91,MATCH(0,B30:B91,1),2)-INDEX(A30:B91,MATCH(0,B30:B91,1)+1,2))*(INDEX(A30:B91,MATCH(0,B30:B91,1),2)+INDEX(A30:B91,MATCH(0,B30:B91,1)+1,2))))/2 -> -0.00521873514 | G14: ((INDEX(a30:b91,MATCH(0,b30:b91,1),1)+INDEX(a30:b91,MATCH(0,b30:b91,1)+1,1))-((INDEX(a30:b91,MATCH(0,b30:b91,1),1)-INDEX(a30:b91,MATCH(0,b30:b91,1)+1,1))/ | H14: (INDEX(a30:b91,MATCH(0,b30:b91,1),2)-INDEX(a30:b91,MATCH(0,b30:b91,1)+1,2))*(INDEX(a30:b91,MATCH(0,b30:b91,1),2)+INDEX(a30:b91,MATCH(0,b30:b91,1)+1,2))))/2 | J14: -1.8089e-09 | K14: -0.0008888943489 | M14: =E14 -> -0.00521873514 | N14: =MAX(E10:E12)/15 -> 7.780507781e-06
A15: -0.125 | B15: -2.1216e-08 | D15: Voc2 = | E15: =F15 ->  | F15: =((INDEX(A91:B130,MATCH(0,B91:B130,-1),1)+INDEX(A91:B130,MATCH(0,B91:B130,-1)+1,1))-((INDEX(A91:B130,MATCH(0,B91:B130,-1),1)-INDEX(A91:B130,MATCH(0,B91:B130,-1)+1,1))/(INDEX(A91:B130,MATCH(0,B91:B130,-1),2)-INDEX(A91:B130,MATCH(0,B91:B130,-1)+1,2))*(INDEX(A91:B130,MATCH(0,B91:B130,-1),2)+INDEX(A91:B130,MATCH(0,B91:B130,-1)+1,2))))/2 ->  | G15: ((INDEX(a91:b130,MATCH(0,b91:b130,-1),1)+INDEX(a91:b130,MATCH(0,b91:b130,-1)+1,1))-((INDEX(a91:b130,MATCH(0,b91:b130,-1),1)-INDEX(a91:b130,MATCH(0,b91:b130,-1)+1,1))/(INDEX(a91:b130,MATCH(0,b91:b130,-1),2)- | H15: INDEX(a91:b130,MATCH(0,b91:b130,-1)+1,2))*(INDEX(a91:b130,MATCH(0,b91:b130,-1),2)+INDEX(a91:b130,MATCH(0,b91:b130,-1)+1,2))))/2 | J15: -2.652e-09 | K15: -0.001042555283 | M15: =E15 ->  | N15: =-MAX(E10:E12)/15 -> -7.780507781e-06
A16: -0.15 | B16: -2.4232e-08 | J16: -3.6348e-09 | K16: -0.001190761671 | M16: =E15 ->  | N16: =MAX(E10:E12)/15 -> 7.780507781e-06
A17: -0.175 | B17: -2.7136e-08 | D17: FF1 = | E17: =F17 -> 0 | F17: =(-1)*MAX(J30:J91)/F11/E14 -> 0 | G17: (-1)*MAX(j30:j91)/F11/E14 | J17: -4.7488e-09 | K17: -0.001333464373
A18: -0.2 | B18: -2.9969e-08 | D18: FF2 = | E18: =F18 ->  | F18: =(-1)*MAX(J91:J130)/F12/E15 ->  | G18: (-1)*MAX(j91:j130)/F12/E15 | J18: -5.9938e-09 | K18: -0.001472678133 | L18: FF | M18: 0 | N18: =INDEX(K30:K91,MATCH(MAX(J30:J91),J30:J91,0),1) -> 4.314496314e-05 | P18: INDEX(k30:k91,MATCH(MAX(j30:j91),j30:j91,0),1)
A19: -0.225 | B19: -3.2741e-08 | J19: -7.366725e-09 | K19: -0.001608894349 | M19: =INDEX(A30:A91,MATCH(MAX(J30:J91),J30:J91,0),1) -> 0 | N19: =INDEX(K30:K91,MATCH(MAX(J30:J91),J30:J91,0),1) -> 4.314496314e-05 | O19: INDEX(a30:a91,MATCH(MAX(j30:j91),j30:j91,0),1) | P19: INDEX(k30:k91,MATCH(MAX(j30:j91),j30:j91,0),1)
A20: -0.25 | B20: -3.5493e-08 | D20: PCE up = | E20: =F20 -> 0 | F20: =MAX(J30:J91)/D5/D7*1000 -> 0 | G20: MAX(j30:j91)/D5/D7*1000 | J20: -8.87325e-09 | K20: -0.001744127764 | M20: =INDEX(A30:A91,MATCH(MAX(J30:J91),J30:J91,0),1) -> 0 | N20: 0 | O20: INDEX(a30:a91,MATCH(MAX(j30:j91),j30:j91,0),1)
A21: -0.275 | B21: -3.8205e-08 | D21: PCE back = | E21: =F21 -> -1.728746929e-07 | F21: =MAX(J91:J130)/D5/D7*1000 -> -1.728746929e-07 | G21: MAX(j91:j130)/D5/D7*1000 | J21: -1.0506375e-08 | K21: -0.001877395577
A22: -0.3 | B22: -4.0942e-08 | J22: -1.22826e-08 | K22: -0.002011891892 | M22: 0 | N22: =INDEX(K91:K130,MATCH(MAX(J91:J130),J91:J130,0),1) -> 0.0003457493857 | P22: INDEX(k91:k130,MATCH(MAX(j91:j130),j91:j130,0),1)
A23: -0.325 | B23: -4.3651e-08 | D23: discrepancy: | E23: =E11*E14*E17/D5-E20 -> 0 | J23: -1.4186575e-08 | K23: -0.002145012285 | M23: =INDEX(A91:A130,MATCH(MAX(J91:J130),J91:J130,0),1) -> 0.05 | N23: =INDEX(K91:K130,MATCH(MAX(J91:J130),J91:J130,0),1) -> 0.0003457493857 | O23: INDEX(a91:a130,MATCH(MAX(j91:j130),j91:j130,0),1) | P23: INDEX(k91:k130,MATCH(MAX(j91:j130),j91:j130,0),1)
A24: -0.35 | B24: -4.6345e-08 | E24: =E12*E15*E18/D5-E21 ->  | J24: -1.622075e-08 | K24: -0.002277395577 | M24: =INDEX(A91:A130,MATCH(MAX(J91:J130),J91:J130,0),1) -> 0.05 | N24: 0 | O24: INDEX(a91:a130,MATCH(MAX(j91:j130),j91:j130,0),1)
A25: -0.375 | B25: -4.9068e-08 | J25: -1.84005e-08 | K25: -0.002411203931
A26: -0.4 | B26: -5.182e-08 | D26: V is from: | E26: =MIN(A10:A132) -> -0.5 | F26: to | G26: =MAX(A10:A132) -> 1 | J26: -2.0728e-08 | K26: -0.002546437346
A27: -0.425 | B27: -5.4592e-08 | D27: row: | E27: =MATCH(-0.5,A1:A132,0) -> 30 | F27: - | G27: =MATCH(1,A1:A132,0) -> 91 | J27: -2.32016e-08 | K27: -0.002682653563
A28: -0.45 | B28: -5.7423e-08 | J28: -2.584035e-08 | K28: -0.002821769042
A29: -0.475 | B29: -6.0284e-08 | J29: -2.86349e-08 | K29: -0.002962358722
A30: -0.5 | B30: -6.3176e-08 | J30: -3.1588e-08 | K30: -0.003104471744
A31: -0.5 | B31: -6.2283e-08 | J31: -3.11415e-08 | K31: -0.003060589681
A32: -0.475 | B32: -5.8608e-08 | J32: -2.78388e-08 | K32: -0.00288
A33: -0.45 | B33: -5.5799e-08 | J33: -2.510955e-08 | K33: -0.002741965602
A34: -0.425 | B34: -5.3116e-08 | J34: -2.25743e-08 | K34: -0.00261012285
A35: -0.4 | B35: -5.045e-08 | J35: -2.018e-08 | K35: -0.002479115479
A36: -0.375 | B36: -4.7767e-08 | J36: -1.7912625e-08 | K36: -0.002347272727
A37: -0.35 | B37: -4.5001e-08 | J37: -1.575035e-08 | K37: -0.002211351351
A38: -0.325 | B38: -4.2207e-08 | J38: -1.3717275e-08 | K38: -0.002074054054
A39: -0.3 | B39: -3.9305e-08 | J39: -1.17915e-08 | K39: -0.001931449631
A40: -0.275 | B40: -3.6369e-08 | J40: -1.0001475e-08 | K40: -0.001787174447
A41: -0.25 | B41: -3.3347e-08 | J41: -8.33675e-09 | K41: -0.001638673219
A42: -0.225 | B42: -3.0258e-08 | J42: -6.80805e-09 | K42: -0.001486879607
A43: -0.2 | B43: -2.7093e-08 | J43: -5.4186e-09 | K43: -0.001331351351
A44: -0.175 | B44: -2.3852e-08 | J44: -4.1741e-09 | K44: -0.001172088452
A45: -0.15 | B45: -2.0618e-08 | J45: -3.0927e-09 | K45: -0.001013169533
A46: -0.125 | B46: -1.735e-08 | J46: -2.16875e-09 | K46: -0.0008525798526
A47: -0.1 | B47: -1.4027e-08 | J47: -1.4027e-09 | K47: -0.0006892874693
A48: -0.075 | B48: -1.0621e-08 | J48: -7.96575e-10 | K48: -0.0005219164619
A49: -0.05 | B49: -7.084e-09 | J49: -3.542e-10 | K49: -0.0003481081081
A50: -0.025 | B50: -3.328e-09 | J50: -8.32e-11 | K50: -0.0001635380835
A51: 0 | B51: 8.78e-10 | J51: 0 | K51: 4.314496314e-05
A52: 0.025 | B52: 5.915e-09 | J52: -1.47875e-10 | K52: 0.0002906633907
A53: 0.05 | B53: 1.2302e-08 | J53: -6.151e-10 | K53: 0.0006045208845
A54: 0.075 | B54: 2.0901e-08 | J54: -1.567575e-09 | K54: 0.001027076167
A55: 0.1 | B55: 3.3078e-08 | J55: -3.3078e-09 | K55: 0.001625454545
A56: 0.125 | B56: 5.1002e-08 | J56: -6.37525e-09 | K56: 0.002506240786
A57: 0.15 | B57: 7.7909e-08 | J57: -1.168635e-08 | K57: 0.003828452088
A58: 0.175 | B58: 1.18886e-07 | J58: -2.080505e-08 | K58: 0.005842063882
A59: 0.2 | B59: 1.82175e-07 | J59: -3.6435e-08 | K59: 0.008952088452
A60: 0.225 | B60: 2.80134e-07 | J60: -6.303015e-08 | K60: 0.01376579853
A61: 0.25 | B61: 4.32163e-07 | J61: -1.0804075e-07 | K61: 0.02123651106
A62: 0.275 | B62: 6.67546e-07 | J62: -1.8357515e-07 | K62: 0.03280324324
A63: 0.3 | B63: 1.030088e-06 | J63: -3.090264e-07 | K63: 0.05061857494
A64: 0.325 | B64: 1.617195e-06 | J64: -5.25588375e-07 | K64: 0.07946904177
A65: 0.35 | B65: 2.451358e-06 | J65: -8.579753e-07 | K65: 0.1204598526
A66: 0.375 | B66: 3.700813e-06 | J66: -1.387804875e-06 | K66: 0.1818581327
A67: 0.4 | B67: 5.532672e-06 | J67: -2.2130688e-06 | K67: 0.271875774
A68: 0.425 | B68: 8.193259e-06 | J68: -3.482135075e-06 | K68: 0.4026171499
A69: 0.45 | B69: 1.281782e-05 | J69: -5.768019e-06 | K69: 0.6298683047
A70: 0.475 | B70: 1.822731e-05 | J70: -8.65797225e-06 | K70: 0.8956909091
A71: 0.5 | B71: 2.591955e-05 | J71: -1.2959775e-05 | K71: 1.273687961
A72: 0.525 | B72: 3.659255e-05 | J72: -1.921108875e-05 | K72: 1.798159705
A73: 0.55 | B73: 5.124876e-05 | J73: -2.8186818e-05 | K73: 2.518366585
A74: 0.575 | B74: 7.101503e-05 | J74: =-(B74*A74) -> -4.083364225e-05 | K74: =B74*1000/$D$7 -> 3.489682064
A75: 0.6 | B75: 9.722122e-05 | J75: -5.8332732e-05 | K75: 4.777455528
A76: 0.625 | B76: 0.000140395 | J76: -8.7746875e-05 | K76: 6.899017199
A77: 0.65 | B77: 0.0001829107 | J77: -0.000118891955 | K77: 8.988240786
A78: 0.675 | B78: 0.0002369879 | J78: -0.0001599668325 | K78: 11.64559705
A79: 0.7 | B79: 0.0003028282 | J79: -0.00021197974 | K79: 14.88099263
A80: 0.725 | B80: 0.0003815492 | J80: -0.00027662317 | K80: 18.74934644
A81: 0.75 | B81: 0.0004731641 | J81: -0.000354873075 | K81: 23.25130713
A82: 0.775 | B82: 0.0005779841 | J82: -0.0004479376775 | K82: 28.40216708
A83: 0.8 | B83: 0.0006957577 | J83: -0.00055660616 | K83: 34.18956757
A84: 0.825 | B84: 0.0008267036 | J84: -0.00068203047 | K84: 40.62425553
A85: 0.85 | B85: 0.0009688473 | J85: -0.000823520205 | K85: 47.60920393
A86: 0.875 | B86: 0.001136016 | J86: -0.000994014 | K86: 55.82388206
A87: 0.9 | B87: 0.001296582 | J87: -0.0011669238 | K87: 63.71410319
A88: 0.925 | B88: 0.001467664 | J88: -0.0013575892 | K88: 72.12108108
A89: 0.95 | B89: 0.001647517 | J89: -0.00156514115 | K89: 80.95906634
A90: 0.975 | B90: 0.001835455 | J90: -0.001789568625 | K90: 90.19434889
A91: 1 | B91: 0.002030079 | J91: -0.002030079 | K91: 99.75818182
A92: 1 | B92: 0.002046578 | J92: -0.002046578 | K92: 100.5689435
A93: 0.975 | B93: 0.001878763 | J93: -0.001831793925 | K93: 92.32250614
A94: 0.95 | B94: 0.001710306 | J94: -0.0016247907 | K94: 84.04452088
A95: 0.925 | B95: 0.001545566 | J95: -0.00142964855 | K95: 75.94918919
A96: 0.9 | B96: 0.001385904 | J96: -0.0012473136 | K96: 68.10339066
A97: 0.875 | B97: 0.001232469 | J97: -0.001078410375 | K97: 60.56358722
A98: 0.85 | B98: 0.001086524 | J98: -0.0009235454 | K98: 53.39184275
A99: 0.825 | B99: 0.0009434152 | J99: -0.00077831754 | K99: 46.35946929
A100: 0.8 | B100: 0.0008170844 | J100: -0.00065366752 | K100: 40.15156757
A101: 0.775 | B101: 0.0006984212 | J101: -0.00054127643 | K101: 34.32045209
A102: 0.75 | B102: 0.0005894921 | J102: -0.000442119075 | K102: 28.96767076
A103: 0.725 | B103: 0.0004908737 | J103: -0.0003558834325 | K103: 24.12155774
A104: 0.7 | B104: 0.0004027404 | J104: -0.00028191828 | K104: 19.79068305
A105: 0.675 | B105: 0.0003253751 | J105: -0.0002196281925 | K105: 15.9889484
A106: 0.65 | B106: 0.00025844 | J106: -0.000167986 | K106: 12.6997543
A107: 0.625 | B107: 0.0002017542 | J107: -0.000126096375 | K107: 9.914211302
A108: 0.6 | B108: 0.000154605 | J108: -9.2763e-05 | K108: 7.597297297
A109: 0.575 | B109: 0.0001162712 | J109: -6.685594e-05 | K109: 5.713572482
A110: 0.55 | B110: 8.428407e-05 | J110: -4.63562385e-05 | K110: 4.141723342
A111: 0.525 | B111: 6.131025e-05 | J111: -3.218788125e-05 | K111: 3.012788698
A112: 0.5 | B112: 4.351144e-05 | J112: -2.175572e-05 | K112: 2.1381543
A113: 0.475 | B113: 3.018866e-05 | J113: -1.43396135e-05 | K113: 1.483472236
A114: 0.45 | B114: 2.049585e-05 | J114: -9.2231325e-06 | K114: 1.007167076
A115: 0.425 | B115: 1.361429e-05 | J115: -5.78607325e-06 | K115: 0.6690068796
A116: 0.4 | B116: 8.700323e-06 | J116: -3.4801292e-06 | K116: 0.4275342998
A117: 0.375 | B117: 5.575806e-06 | J117: -2.09092725e-06 | K117: 0.2739953808
A118: 0.35 | B118: 3.489088e-06 | J118: -1.2211808e-06 | K118: 0.1714539558
A119: 0.325 | B119: 2.149485e-06 | J119: -6.98582625e-07 | K119: 0.1056257985
A120: 0.3 | B120: 1.307277e-06 | J120: -3.921831e-07 | K120: 0.06423965602
A121: 0.275 | B121: 7.7864e-07 | J121: -2.14126e-07 | K121: 0.03826240786
A122: 0.25 | B122: 4.71643e-07 | J122: -1.1791075e-07 | K122: 0.0231765602
A123: 0.225 | B123: 2.84951e-07 | J123: -6.4113975e-08 | K123: 0.01400250614
A124: 0.2 | B124: 1.73194e-07 | J124: -3.46388e-08 | K124: 0.008510761671
A125: 0.175 | B125: 1.06051e-07 | J125: -1.8558925e-08 | K125: 0.005211351351
A126: 0.15 | B126: 6.5484e-08 | J126: -9.8226e-09 | K126: 0.003217886978
A127: 0.125 | B127: 4.0489e-08 | J127: -5.061125e-09 | K127: 0.00198963145
A128: 0.1 | B128: 2.4684e-08 | J128: -2.4684e-09 | K128: 0.001212972973
A129: 0.075 | B129: 1.4282e-08 | J129: -1.07115e-09 | K129: 0.0007018181818
A130: 0.05 | B130: 7.036e-09 | J130: -3.518e-10 | K130: 0.0003457493857
A131: 0.025 | B131: 1.719e-09 | J131: -4.2975e-11 | K131: 8.447174447e-05
A132: 0 | B132: -2.375e-09 | J132: 0 | K132: -0.0001167076167
J133: 0 | K133: 0
J134: 0 | K134: 0
J135: 0 | K135: 0
J136: 0 | K136: 0
J137: 0 | K137: 0
J138: =-(B138*A138) -> 0 | K138: =B138*1000/$D$7 -> 0
J139: 0 | K139: 0
J140: 0 | K140: 0
J141: 0 | K141: 0
J142: 0 | K142: 0
J143: 0 | K143: 0
J144: 0 | K144: 0
J145: 0 | K145: 0
J146: 0 | K146: 0
J147: 0 | K147: 0
J148: 0 | K148: 0
J149: 0 | K149: 0
J150: 0 | K150: 0
J151: 0 | K151: 0
J152: 0 | K152: 0
J153: 0 | K153: 0
J154: 0 | K154: 0
J155: 0 | K155: 0
J156: 0 | K156: 0
J157: 0 | K157: 0
J158: 0 | K158: 0
J159: 0 | K159: 0
J160: 0 | K160: 0
J161: 0 | K161: 0
J162: 0 | K162: 0
J163: 0 | K163: 0
J164: 0 | K164: 0
J165: 0 | K165: 0
J166: 0 | K166: 0
J167: 0 | K167: 0
J168: 0 | K168: 0
J169: 0 | K169: 0
J170: 0 | K170: 0
J171: 0 | K171: 0
J172: 0 | K172: 0
J173: 0 | K173: 0
J174: 0 | K174: 0
J175: 0 | K175: 0
J176: 0 | K176: 0
J177: 0 | K177: 0
J178: 0 | K178: 0
J179: 0 | K179: 0
J180: 0 | K180: 0
J181: 0 | K181: 0
J182: 0 | K182: 0
J183: 0 | K183: 0
J184: 0 | K184: 0
J185: 0 | K185: 0
J186: 0 | K186: 0
J187: 0 | K187: 0
J188: 0 | K188: 0
J189: 0 | K189: 0
J190: 0 | K190: 0
J191: 0 | K191: 0
J192: 0 | K192: 0
J193: 0 | K193: 0
J194: 0 | K194: 0
J195: 0 | K195: 0
J196: 0 | K196: 0
J197: 0 | K197: 0
J198: 0 | K198: 0
J199: 0 | K199: 0
J200: 0 | K200: 0
J201: 0 | K201: 0
J202: =-(B202*A202) -> 0 | K202: =B202*1000/$D$7 -> 0
... 208 more rows

Sheet PbS TBAB pedot B
C2: iv curve name: | D2: PbS TBAB pedot B
C3: file name: | D3: PbS TBAB pedot B
C4: Illumination Time: | E4: (hh:mm)
C5: Illumination Intensity: | D5: 100 | E5: (mW/cm2)
C6: Filter: | D6: 420 | E6: (nm)
C7: Pixel Area: | D7: 0.02035 | E7: (cm2)
A9: V (V) | B9: J (A) | E9: (mA/cm2) | F9: (A) | J9: power | K9: J (mA/cm2)
A10: 0 | B10: -0.0004051747 | D10: Jsc1 = | E10: =-F10*1000/$D$7 -> 19.91030467 | F10: =((INDEX(A10:B11,1,2)+INDEX(A10:B11,2,2))-((INDEX(A10:B11,1,2)-INDEX(A10:B11,2,2))/(INDEX(A10:B11,1,1)-INDEX(A10:B11,2,1))*(INDEX(A10:B11,1,1)+INDEX(A10:B11,2,1))))/2 -> -0.0004051747 | G10: ((INDEX(A10:B11,1,2)+INDEX(A10:B11,2,2))-((INDEX(A10:B11,1,2)-INDEX(A10:B11,2,2))/(INDEX(A10:B11,1,1)- | H10: INDEX(A10:B11,2,1))*(INDEX(A10:B11,1,1)+INDEX(A10:B11,2,1))))/2 | J10: =-(B10*A10) -> 0 | K10: =B10*1000/$D$7 -> -19.91030467 | L10: Jsc | M10: =MAX(E14:E15)/20 -> 0.02505775689 | N10: =-E10 -> -19.91030467 | O10: =-E11 -> -14.96535627 | P10: =-E12 -> -19.2528059
A11: -0.025 | B11: -0.0004066081 | D11: Jsc2 = | E11: =-F11*1000/$D$7 -> 14.96535627 | F11: =((INDEX(A30:B91,MATCH(0,A30:A91,1),2)+INDEX(A30:B91,MATCH(0,A30:A91,1)+1,2))-((INDEX(A30:B91,MATCH(0,A30:A91,1),2)-INDEX(A30:B91,MATCH(0,A30:A91,1)+1,2))/(INDEX(A30:B91,MATCH(0,A30:A91,1),1)-INDEX(A30:B91,MATCH(0,A30:A91,1)+1,1))*(INDEX(A30:B91,MATCH(0,A30:A91,1),1)+INDEX(A30:B91,MATCH(0,A30:A91,1)+1,1))))/2 -> -0.000304545 | G11: ((INDEX(a30:b91,MATCH(0,a30:a91,1),2)+INDEX(a30:b91,MATCH(0,a30:a91,1)+1,2))-((INDEX(a30:b91,MATCH(0,a30:a91,1),2)-INDEX(a30:b91,MATCH(0,a30:a91,1)+1,2))/ | H11: (INDEX(a30:b91,MATCH(0,a30:a91,1),1)-INDEX(a30:b91,MATCH(0,a30:a91,1)+1,1))*(INDEX(a30:b91,MATCH(0,a30:a91,1),1)+INDEX(a30:b91,MATCH(0,a30:a91,1)+1,1))))/2 | J11: -1.01652025e-05 | K11: -19.98074201 | M11: =-MAX(E15:E16)/20 -> -0.02505775689 | N11: =-E10 -> -19.91030467 | O11: =-E11 -> -14.96535627 | P11: =-E12 -> -19.2528059
A12: -0.05 | B12: -0.0003994772 | D12: Jsc3 = | E12: =-F12*1000/$D$7 -> 19.2528059 | F12: =((INDEX(A131:B132,1,2)+INDEX(A131:B132,2,2))-((INDEX(A131:B132,1,2)-INDEX(A131:B132,2,2))/(INDEX(A131:B132,1,1)-INDEX(A131:B132,2,1))*(INDEX(A131:B132,1,1)+INDEX(A131:B132,2,1))))/2 -> -0.0003917946 | G12: ((INDEX(A131:B132,1,2)+INDEX(A131:B132,2,2))-((INDEX(A131:B132,1,2)-INDEX(A131:B132,2,2))/(INDEX(A131:B132,1,1)- | H12: INDEX(A131:B132,2,1))*(INDEX(A131:B132,1,1)+INDEX(A131:B132,2,1))))/2 | J12: -1.997386e-05 | K12: -19.63032924
A13: -0.075 | B13: -0.0004005909 | E13: (V) | J13: -3.00443175e-05 | K13: -19.68505651 | L13: Voc | M13: =E14 -> 0.4903348496 | N13: =-MAX(E10:E12)/15 -> -1.327353645
A14: -0.1 | B14: -0.0004133551 | D14: Voc1 = | E14: =F14 -> 0.4903348496 | F14: =((INDEX(A30:B91,MATCH(0,B30:B91,1),1)+INDEX(A30:B91,MATCH(0,B30:B91,1)+1,1))-((INDEX(A30:B91,MATCH(0,B30:B91,1),1)-INDEX(A30:B91,MATCH(0,B30:B91,1)+1,1))/(INDEX(A30:B91,MATCH(0,B30:B91,1),2)-INDEX(A30:B91,MATCH(0,B30:B91,1)+1,2))*(INDEX(A30:B91,MATCH(0,B30:B91,1),2)+INDEX(A30:B91,MATCH(0,B30:B91,1)+1,2))))/2 -> 0.4903348496 | G14: ((INDEX(a30:b91,MATCH(0,b30:b91,1),1)+INDEX(a30:b91,MATCH(0,b30:b91,1)+1,1))-((INDEX(a30:b91,MATCH(0,b30:b91,1),1)-INDEX(a30:b91,MATCH(0,b30:b91,1)+1,1))/ | H14: (INDEX(a30:b91,MATCH(0,b30:b91,1),2)-INDEX(a30:b91,MATCH(0,b30:b91,1)+1,2))*(INDEX(a30:b91,MATCH(0,b30:b91,1),2)+INDEX(a30:b91,MATCH(0,b30:b91,1)+1,2))))/2 | J14: -4.133551e-05 | K14: -20.31228993 | M14: =E14 -> 0.4903348496 | N14: =MAX(E10:E12)/15 -> 1.327353645
A15: -0.125 | B15: -0.0004042834 | D15: Voc2 = | E15: =F15 -> 0.5011551378 | F15: =((INDEX(A91:B130,MATCH(0,B91:B130,-1),1)+INDEX(A91:B130,MATCH(0,B91:B130,-1)+1,1))-((INDEX(A91:B130,MATCH(0,B91:B130,-1),1)-INDEX(A91:B130,MATCH(0,B91:B130,-1)+1,1))/(INDEX(A91:B130,MATCH(0,B91:B130,-1),2)-INDEX(A91:B130,MATCH(0,B91:B130,-1)+1,2))*(INDEX(A91:B130,MATCH(0,B91:B130,-1),2)+INDEX(A91:B130,MATCH(0,B91:B130,-1)+1,2))))/2 -> 0.5011551378 | G15: ((INDEX(a91:b130,MATCH(0,b91:b130,-1),1)+INDEX(a91:b130,MATCH(0,b91:b130,-1)+1,1))-((INDEX(a91:b130,MATCH(0,b91:b130,-1),1)-INDEX(a91:b130,MATCH(0,b91:b130,-1)+1,1))/(INDEX(a91:b130,MATCH(0,b91:b130,-1),2)- | H15: INDEX(a91:b130,MATCH(0,b91:b130,-1)+1,2))*(INDEX(a91:b130,MATCH(0,b91:b130,-1),2)+INDEX(a91:b130,MATCH(0,b91:b130,-1)+1,2))))/2 | J15: -5.0535425e-05 | K15: -19.86650614 | M15: =E15 -> 0.5011551378 | N15: =-MAX(E10:E12)/15 -> -1.327353645
A16: -0.15 | B16: -0.0004091248 | J16: -6.136872e-05 | K16: -20.10441278 | M16: =E15 -> 0.5011551378 | N16: =MAX(E10:E12)/15 -> 1.327353645
A17: -0.175 | B17: -0.0004242432 | D17: FF1 = | E17: =F17 -> 0.3847260727 | F17: =(-1)*MAX(J30:J91)/F11/E14 -> 0.3847260727 | G17: (-1)*MAX(j30:j91)/F11/E14 | J17: -7.424256e-05 | K17: -20.8473317
A18: -0.2 | B18: -0.0004174315 | D18: FF2 = | E18: =F18 -> 0.4203953746 | F18: =(-1)*MAX(J91:J130)/F12/E15 -> 0.4203953746 | G18: (-1)*MAX(j91:j130)/F12/E15 | J18: -8.34863e-05 | K18: -20.51260442 | L18: FF | M18: 0 | N18: =INDEX(K30:K91,MATCH(MAX(J30:J91),J30:J91,0),1) -> -8.686565111 | P18: INDEX(k30:k91,MATCH(MAX(j30:j91),j30:j91,0),1)
A19: -0.225 | B19: -0.0004161291 | J19: -9.36290475e-05 | K19: -20.44860442 | M19: =INDEX(A30:A91,MATCH(MAX(J30:J91),J30:J91,0),1) -> 0.325 | N19: =INDEX(K30:K91,MATCH(MAX(J30:J91),J30:J91,0),1) -> -8.686565111 | O19: INDEX(a30:a91,MATCH(MAX(j30:j91),j30:j91,0),1) | P19: INDEX(k30:k91,MATCH(MAX(j30:j91),j30:j91,0),1)
A20: -0.25 | B20: -0.0004286952 | D20: PCE up = | E20: =F20 -> 0.02823133661 | F20: =MAX(J30:J91)/D5/D7*1000 -> 0.02823133661 | G20: MAX(j30:j91)/D5/D7*1000 | J20: -0.0001071738 | K20: -21.06610319 | M20: =INDEX(A30:A91,MATCH(MAX(J30:J91),J30:J91,0),1) -> 0.325 | N20: 0 | O20: INDEX(a30:a91,MATCH(MAX(j30:j91),j30:j91,0),1)
A21: -0.275 | B21: -0.0004263063 | D21: PCE back = | E21: =F21 -> 0.04056244717 | F21: =MAX(J91:J130)/D5/D7*1000 -> 0.04056244717 | G21: MAX(j91:j130)/D5/D7*1000 | J21: -0.0001172342325 | K21: -20.94871253
A22: -0.3 | B22: -0.0004227197 | J22: -0.00012681591 | K22: -20.77246683 | M22: 0 | N22: =INDEX(K91:K130,MATCH(MAX(J91:J130),J91:J130,0),1) -> -13.52081572 | P22: INDEX(k91:k130,MATCH(MAX(j91:j130),j91:j130,0),1)
A23: -0.325 | B23: -0.0004342314 | D23: discrepancy: | E23: =E11*E14*E17/D5-E20 -> 0 | J23: -0.000141125205 | K23: -21.33815233 | M23: =INDEX(A91:A130,MATCH(MAX(J91:J130),J91:J130,0),1) -> 0.3 | N23: =INDEX(K91:K130,MATCH(MAX(J91:J130),J91:J130,0),1) -> -13.52081572 | O23: INDEX(a91:a130,MATCH(MAX(j91:j130),j91:j130,0),1) | P23: INDEX(k91:k130,MATCH(MAX(j91:j130),j91:j130,0),1)
A24: -0.35 | B24: -0.0004350583 | E24: =E12*E15*E18/D5-E21 -> 0 | J24: -0.000152270405 | K24: -21.37878624 | M24: =INDEX(A91:A130,MATCH(MAX(J91:J130),J91:J130,0),1) -> 0.3 | N24: 0 | O24: INDEX(a91:a130,MATCH(MAX(j91:j130),j91:j130,0),1)
A25: -0.375 | B25: -0.0004267261 | J25: -0.0001600222875 | K25: -20.96934152
A26: -0.4 | B26: -0.0004420772 | D26: V is from: | E26: =MIN(A10:A132) -> -0.5 | F26: to | G26: =MAX(A10:A132) -> 1 | J26: -0.00017683088 | K26: -21.72369533
A27: -0.425 | B27: -0.0004448518 | D27: row: | E27: =MATCH(-0.5,A1:A132,0) -> 30 | F27: - | G27: =MATCH(1,A1:A132,0) -> 91 | J27: -0.000189062015 | K27: -21.86003931
A28: -0.45 | B28: -0.0004325269 | J28: -0.000194637105 | K28: -21.25439312
A29: -0.475 | B29: -0.0004466785 | J29: -0.0002121722875 | K29: -21.94980344
A30: -0.5 | B30: -0.0004542042 | J30: -0.0002271021 | K30: -22.31961671
A31: -0.5 | B31: -0.0004301762 | J31: -0.0002150881 | K31: -21.13887961
A32: -0.475 | B32: -0.0004671768 | J32: -0.00022190898 | K32: -22.95709091
A33: -0.45 | B33: -0.0004292013 | J33: -0.000193140585 | K33: -21.09097297
A34: -0.425 | B34: -0.0004082731 | J34: -0.0001735160675 | K34: -20.0625602
A35: -0.4 | B35: -0.0004077232 | J35: -0.00016308928 | K35: -20.03553808
A36: -0.375 | B36: -0.0004117018 | J36: -0.000154388175 | K36: -20.23104668
A37: -0.35 | B37: -0.0003954481 | J37: -0.000138406835 | K37: -19.43233907
A38: -0.325 | B38: -0.0003891683 | J38: -0.0001264796975 | K38: -19.12374939
A39: -0.3 | B39: -0.0003925698 | J39: -0.00011777094 | K39: -19.29089926
A40: -0.275 | B40: -0.0003796291 | J40: -0.0001043980025 | K40: -18.65499263
A41: -0.25 | B41: -0.0003716771 | J41: -9.2919275e-05 | K41: -18.26423096
A42: -0.225 | B42: -0.0003728149 | J42: -8.38833525e-05 | K42: -18.32014251
A43: -0.2 | B43: -0.0003636267 | J43: -7.272534e-05 | K43: -17.86863391
A44: -0.175 | B44: -0.0003517547 | J44: -6.15570725e-05 | K44: -17.28524324
A45: -0.15 | B45: -0.0003517062 | J45: -5.275593e-05 | K45: -17.28285995
A46: -0.125 | B46: -0.0003469764 | J46: -4.337205e-05 | K46: -17.05043735
A47: -0.1 | B47: -0.0003298215 | J47: -3.298215e-05 | K47: -16.20744472
A48: -0.075 | B48: -0.0003296692 | J48: -2.472519e-05 | K48: -16.19996069
A49: -0.05 | B49: -0.0003249116 | J49: -1.624558e-05 | K49: -15.96617199
A50: -0.025 | B50: -0.0003142535 | J50: -7.8563375e-06 | K50: -15.44243243
A51: 0 | B51: -0.000304545 | J51: 0 | K51: -14.96535627
A52: 0.025 | B52: -0.0003022685 | J52: 7.5567125e-06 | K52: -14.85348894
A53: 0.05 | B53: -0.0002915824 | J53: 1.457912e-05 | K53: -14.32837346
A54: 0.075 | B54: -0.0002832647 | J54: 2.12448525e-05 | K54: -13.91964128
A55: 0.1 | B55: -0.0002764173 | J55: 2.764173e-05 | K55: -13.58315971
A56: 0.125 | B56: -0.0002688634 | J56: 3.3607925e-05 | K56: -13.21196069
A57: 0.15 | B57: -0.0002529052 | J57: 3.793578e-05 | K57: -12.42777396
A58: 0.175 | B58: -0.0002490439 | J58: 4.35826825e-05 | K58: -12.23802948
A59: 0.2 | B59: -0.0002413123 | J59: 4.826246e-05 | K59: -11.85809828
A60: 0.225 | B60: -0.0002241394 | J60: 5.0431365e-05 | K60: -11.01422113
A61: 0.25 | B61: -0.0002164454 | J61: 5.411135e-05 | K61: -10.63613759
A62: 0.275 | B62: -0.0002073282 | J62: 5.7015255e-05 | K62: -10.18811794
A63: 0.3 | B63: -0.0001878346 | J63: 5.635038e-05 | K63: -9.230201474
A64: 0.325 | B64: -0.0001767716 | J64: 5.745077e-05 | K64: -8.686565111
A65: 0.35 | B65: -0.000163576 | J65: 5.72516e-05 | K65: -8.038132678
A66: 0.375 | B66: -0.00013843 | J66: 5.191125e-05 | K66: -6.802457002
A67: 0.4 | B67: -0.0001164853 | J67: 4.659412e-05 | K67: -5.724093366
A68: 0.425 | B68: -9.335604e-05 | J68: 3.9676317e-05 | K68: -4.587520393
A69: 0.45 | B69: -6.314407e-05 | J69: 2.84148315e-05 | K69: -3.102902703
A70: 0.475 | B70: -2.672879e-05 | J70: 1.269617525e-05 | K70: -1.313454054
A71: 0.5 | B71: 1.684645e-05 | J71: -8.423225e-06 | K71: 0.8278353808
A72: 0.525 | B72: 6.390518e-05 | J72: -3.35502195e-05 | K72: 3.140303686
A73: 0.55 | B73: 0.0001180719 | J73: -6.4939545e-05 | K73: 5.802058968
A74: 0.575 | B74: 0.0001822184 | J74: =-(B74*A74) -> -0.00010477558 | K74: =B74*1000/$D$7 -> 8.95422113
A75: 0.6 | B75: 0.0002539101 | J75: -0.00015234606 | K75: 12.47715479
A76: 0.625 | B76: 0.0003348475 | J76: -0.0002092796875 | K76: 16.4544226
A77: 0.65 | B77: 0.0004224375 | J77: -0.000274584375 | K77: 20.75859951
A78: 0.675 | B78: 0.000521602 | J78: -0.00035208135 | K78: 25.63154791
A79: 0.7 | B79: 0.0006338079 | J79: -0.00044366553 | K79: 31.14535135
A80: 0.725 | B80: 0.0007452628 | J80: -0.00054031553 | K80: 36.62225061
A81: 0.75 | B81: 0.00087461 | J81: -0.0006559575 | K81: 42.97837838
A82: 0.775 | B82: 0.001013026 | J82: -0.00078509515 | K82: 49.78014742
A83: 0.8 | B83: 0.001163427 | J83: -0.0009307416 | K83: 57.17085995
A84: 0.825 | B84: 0.001320091 | J84: -0.001089075075 | K84: 64.86933661
A85: 0.85 | B85: 0.00147646 | J85: -0.001254991 | K85: 72.55331695
A86: 0.875 | B86: 0.001648608 | J86: -0.001442532 | K86: 81.01267813
A87: 0.9 | B87: 0.001831974 | J87: -0.0016487766 | K87: 90.02329238
A88: 0.925 | B88: 0.002008883 | J88: -0.001858216775 | K88: 98.71660934
A89: 0.95 | B89: 0.002204004 | J89: -0.0020938038 | K89: 108.3048649
A90: 0.975 | B90: 0.002405996 | J90: -0.0023458461 | K90: 118.2307617
A91: 1 | B91: 0.0026003 | J91: -0.0026003 | K91: 127.7788698
A92: 1 | B92: 0.002609847 | J92: -0.002609847 | K92: 128.2480098
A93: 0.975 | B93: 0.002427412 | J93: -0.0023667267 | K93: 119.283145
A94: 0.95 | B94: 0.002229352 | J94: -0.0021178844 | K94: 109.5504668
A95: 0.925 | B95: 0.002045391 | J95: -0.001891986675 | K95: 100.5106143
A96: 0.9 | B96: 0.001873489 | J96: -0.0016861401 | K96: 92.06334152
A97: 0.875 | B97: 0.00169211 | J97: -0.00148059625 | K97: 83.15036855
A98: 0.85 | B98: 0.001526045 | J98: -0.00129713825 | K98: 74.98992629
A99: 0.825 | B99: 0.001373116 | J99: -0.0011328207 | K99: 67.47498771
A100: 0.8 | B100: 0.001210884 | J100: -0.0009687072 | K100: 59.50289926
A101: 0.775 | B101: 0.001068393 | J101: -0.000828004575 | K101: 52.50088452
A102: 0.75 | B102: 0.0009236251 | J102: -0.000692718825 | K102: 45.3869828
A103: 0.725 | B103: 0.0007993376 | J103: -0.00057951976 | K103: 39.27948894
A104: 0.7 | B104: 0.0006785415 | J104: -0.00047497905 | K104: 33.34356265
A105: 0.675 | B105: 0.0005622976 | J105: -0.00037955088 | K105: 27.6313317
A106: 0.65 | B106: 0.0004589743 | J106: -0.000298333295 | K106: 22.55401966
A107: 0.625 | B107: 0.000361896 | J107: -0.000226185 | K107: 17.78358722
A108: 0.6 | B108: 0.0002734288 | J108: -0.00016405728 | K108: 13.43630467
A109: 0.575 | B109: 0.0001930901 | J109: -0.0001110268075 | K109: 9.488457002
A110: 0.55 | B110: 0.0001202673 | J110: -6.6147015e-05 | K110: 5.909941032
A111: 0.525 | B111: 5.488804e-05 | J111: -2.8816221e-05 | K111: 2.697200983
A112: 0.5 | B112: -2.65899e-06 | J112: 1.329495e-06 | K112: -0.1306628993
A113: 0.475 | B113: -5.397669e-05 | J113: 2.563892775e-05 | K113: -2.652417199
A114: 0.45 | B114: -9.976427e-05 | J114: 4.48939215e-05 | K114: -4.90242113
A115: 0.425 | B115: -0.0001363005 | J115: 5.79277125e-05 | K115: -6.697813268
A116: 0.4 | B116: -0.0001729465 | J116: 6.91786e-05 | K116: -8.498599509
A117: 0.375 | B117: -0.0002044402 | J117: 7.6665075e-05 | K117: -10.04620147
A118: 0.35 | B118: -0.0002289615 | J118: 8.0136525e-05 | K118: -11.25117936
A119: 0.325 | B119: -0.0002517591 | J119: 8.18217075e-05 | K119: -12.37145455
A120: 0.3 | B120: -0.0002751486 | J120: 8.254458e-05 | K120: -13.52081572
A121: 0.275 | B121: -0.0002849242 | J121: 7.8354155e-05 | K121: -14.00118919
A122: 0.25 | B122: -0.000302653 | J122: 7.566325e-05 | K122: -14.87238329
A123: 0.225 | B123: -0.0003204772 | J123: 7.210737e-05 | K123: -15.74826536
A124: 0.2 | B124: -0.000323921 | J124: 6.47842e-05 | K124: -15.91749386
A125: 0.175 | B125: -0.0003333291 | J125: 5.83325925e-05 | K125: -16.37980835
A126: 0.15 | B126: -0.0003516593 | J126: 5.2748895e-05 | K126: -17.28055528
A127: 0.125 | B127: -0.0003503688 | J127: 4.37961e-05 | K127: -17.21714005
A128: 0.1 | B128: -0.0003583468 | J128: 3.583468e-05 | K128: -17.60917936
A129: 0.075 | B129: -0.0003774956 | J129: 2.831217e-05 | K129: -18.55015233
A130: 0.05 | B130: -0.0003663799 | J130: 1.8318995e-05 | K130: -18.00392629
A131: 0.025 | B131: -0.0003808152 | J131: 9.52038e-06 | K131: -18.71327764
A132: 0 | B132: -0.0003917946 | J132: 0 | K132: -19.2528059
J133: 0 | K133: 0
J134: 0 | K134: 0
J135: 0 | K135: 0
J136: 0 | K136: 0
J137: 0 | K137: 0
J138: =-(B138*A138) -> 0 | K138: =B138*1000/$D$7 -> 0
J139: 0 | K139: 0
J140: 0 | K140: 0
J141: 0 | K141: 0
J142: 0 | K142: 0
J143: 0 | K143: 0
J144: 0 | K144: 0
J145: 0 | K145: 0
J146: 0 | K146: 0
J147: 0 | K147: 0
J148: 0 | K148: 0
J149: 0 | K149: 0
J150: 0 | K150: 0
J151: 0 | K151: 0
J152: 0 | K152: 0
J153: 0 | K153: 0
J154: 0 | K154: 0
J155: 0 | K155: 0
J156: 0 | K156: 0
J157: 0 | K157: 0
J158: 0 | K158: 0
J159: 0 | K159: 0
J160: 0 | K160: 0
J161: 0 | K161: 0
J162: 0 | K162: 0
J163: 0 | K163: 0
J164: 0 | K164: 0
J165: 0 | K165: 0
J166: 0 | K166: 0
J167: 0 | K167: 0
J168: 0 | K168: 0
J169: 0 | K169: 0
J170: 0 | K170: 0
J171: 0 | K171: 0
J172: 0 | K172: 0
J173: 0 | K173: 0
J174: 0 | K174: 0
J175: 0 | K175: 0
J176: 0 | K176: 0
J177: 0 | K177: 0
J178: 0 | K178: 0
J179: 0 | K179: 0
J180: 0 | K180: 0
J181: 0 | K181: 0
J182: 0 | K182: 0
J183: 0 | K183: 0
J184: 0 | K184: 0
J185: 0 | K185: 0
J186: 0 | K186: 0
J187: 0 | K187: 0
J188: 0 | K188: 0
J189: 0 | K189: 0
J190: 0 | K190: 0
J191: 0 | K191: 0
J192: 0 | K192: 0
J193: 0 | K193: 0
J194: 0 | K194: 0
J195: 0 | K195: 0
J196: 0 | K196: 0
J197: 0 | K197: 0
J198: 0 | K198: 0
J199: 0 | K199: 0
J200: 0 | K200: 0
J201: 0 | K201: 0
J202: =-(B202*A202) -> 0 | K202: =B202*1000/$D$7 -> 0
... 208 more rows

Sheet PbS TBAB pedot
C2: iv curve name: | D2: PbS TBAB pedot
C3: file name: | D3: PbS TBAB pedot
C4: Illumination Time: | E4: (hh:mm)
C5: Illumination Intensity: | D5: 100 | E5: (mW/cm2)
C6: Filter: | D6: 420 | E6: (nm)
C7: Pixel Area: | D7: 0.02035 | E7: (cm2)
A9: V (V) | B9: J (A) | E9: (mA/cm2) | F9: (A) | J9: power | K9: J (mA/cm2)
A10: 0 | B10: -0.0004182892 | D10: Jsc1 = | E10: =-F10*1000/$D$7 -> 20.55475184 | F10: =((INDEX(A10:B11,1,2)+INDEX(A10:B11,2,2))-((INDEX(A10:B11,1,2)-INDEX(A10:B11,2,2))/(INDEX(A10:B11,1,1)-INDEX(A10:B11,2,1))*(INDEX(A10:B11,1,1)+INDEX(A10:B11,2,1))))/2 -> -0.0004182892 | G10: ((INDEX(A10:B11,1,2)+INDEX(A10:B11,2,2))-((INDEX(A10:B11,1,2)-INDEX(A10:B11,2,2))/(INDEX(A10:B11,1,1)- | H10: INDEX(A10:B11,2,1))*(INDEX(A10:B11,1,1)+INDEX(A10:B11,2,1))))/2 | J10: =-(B10*A10) -> 0 | K10: =B10*1000/$D$7 -> -20.55475184 | L10: Jsc | M10: =MAX(E14:E15)/20 -> 0.02563440121 | N10: =-E10 -> -20.55475184 | O10: =-E11 -> -15.73206388 | P10: =-E12 -> -19.90628993
A11: -0.025 | B11: -0.0004141001 | D11: Jsc2 = | E11: =-F11*1000/$D$7 -> 15.73206388 | F11: =((INDEX(A30:B91,MATCH(0,A30:A91,1),2)+INDEX(A30:B91,MATCH(0,A30:A91,1)+1,2))-((INDEX(A30:B91,MATCH(0,A30:A91,1),2)-INDEX(A30:B91,MATCH(0,A30:A91,1)+1,2))/(INDEX(A30:B91,MATCH(0,A30:A91,1),1)-INDEX(A30:B91,MATCH(0,A30:A91,1)+1,1))*(INDEX(A30:B91,MATCH(0,A30:A91,1),1)+INDEX(A30:B91,MATCH(0,A30:A91,1)+1,1))))/2 -> -0.0003201475 | G11: ((INDEX(a30:b91,MATCH(0,a30:a91,1),2)+INDEX(a30:b91,MATCH(0,a30:a91,1)+1,2))-((INDEX(a30:b91,MATCH(0,a30:a91,1),2)-INDEX(a30:b91,MATCH(0,a30:a91,1)+1,2))/ | H11: (INDEX(a30:b91,MATCH(0,a30:a91,1),1)-INDEX(a30:b91,MATCH(0,a30:a91,1)+1,1))*(INDEX(a30:b91,MATCH(0,a30:a91,1),1)+INDEX(a30:b91,MATCH(0,a30:a91,1)+1,1))))/2 | J11: -1.03525025e-05 | K11: -20.34889926 | M11: =-MAX(E15:E16)/20 -> -0.02563440121 | N11: =-E10 -> -20.55475184 | O11: =-E11 -> -15.73206388 | P11: =-E12 -> -19.90628993
A12: -0.05 | B12: -0.0004152204 | D12: Jsc3 = | E12: =-F12*1000/$D$7 -> 19.90628993 | F12: =((INDEX(A131:B132,1,2)+INDEX(A131:B132,2,2))-((INDEX(A131:B132,1,2)-INDEX(A131:B132,2,2))/(INDEX(A131:B132,1,1)-INDEX(A131:B132,2,1))*(INDEX(A131:B132,1,1)+INDEX(A131:B132,2,1))))/2 -> -0.000405093 | G12: ((INDEX(A131:B132,1,2)+INDEX(A131:B132,2,2))-((INDEX(A131:B132,1,2)-INDEX(A131:B132,2,2))/(INDEX(A131:B132,1,1)- | H12: INDEX(A131:B132,2,1))*(INDEX(A131:B132,1,1)+INDEX(A131:B132,2,1))))/2 | J12: -2.076102e-05 | K12: -20.40395086
A13: -0.075 | B13: -0.0004207373 | E13: (V) | J13: -3.15552975e-05 | K13: -20.6750516 | L13: Voc | M13: =E14 -> 0.502422322 | N13: =-MAX(E10:E12)/15 -> -1.37031679
A14: -0.1 | B14: -0.0004260264 | D14: Voc1 = | E14: =F14 -> 0.502422322 | F14: =((INDEX(A30:B91,MATCH(0,B30:B91,1),1)+INDEX(A30:B91,MATCH(0,B30:B91,1)+1,1))-((INDEX(A30:B91,MATCH(0,B30:B91,1),1)-INDEX(A30:B91,MATCH(0,B30:B91,1)+1,1))/(INDEX(A30:B91,MATCH(0,B30:B91,1),2)-INDEX(A30:B91,MATCH(0,B30:B91,1)+1,2))*(INDEX(A30:B91,MATCH(0,B30:B91,1),2)+INDEX(A30:B91,MATCH(0,B30:B91,1)+1,2))))/2 -> 0.502422322 | G14: ((INDEX(a30:b91,MATCH(0,b30:b91,1),1)+INDEX(a30:b91,MATCH(0,b30:b91,1)+1,1))-((INDEX(a30:b91,MATCH(0,b30:b91,1),1)-INDEX(a30:b91,MATCH(0,b30:b91,1)+1,1))/ | H14: (INDEX(a30:b91,MATCH(0,b30:b91,1),2)-INDEX(a30:b91,MATCH(0,b30:b91,1)+1,2))*(INDEX(a30:b91,MATCH(0,b30:b91,1),2)+INDEX(a30:b91,MATCH(0,b30:b91,1)+1,2))))/2 | J14: -4.260264e-05 | K14: -20.93495823 | M14: =E14 -> 0.502422322 | N14: =MAX(E10:E12)/15 -> 1.37031679
A15: -0.125 | B15: -0.0004280989 | D15: Voc2 = | E15: =F15 -> 0.5126880243 | F15: =((INDEX(A91:B130,MATCH(0,B91:B130,-1),1)+INDEX(A91:B130,MATCH(0,B91:B130,-1)+1,1))-((INDEX(A91:B130,MATCH(0,B91:B130,-1),1)-INDEX(A91:B130,MATCH(0,B91:B130,-1)+1,1))/(INDEX(A91:B130,MATCH(0,B91:B130,-1),2)-INDEX(A91:B130,MATCH(0,B91:B130,-1)+1,2))*(INDEX(A91:B130,MATCH(0,B91:B130,-1),2)+INDEX(A91:B130,MATCH(0,B91:B130,-1)+1,2))))/2 -> 0.5126880243 | G15: ((INDEX(a91:b130,MATCH(0,b91:b130,-1),1)+INDEX(a91:b130,MATCH(0,b91:b130,-1)+1,1))-((INDEX(a91:b130,MATCH(0,b91:b130,-1),1)-INDEX(a91:b130,MATCH(0,b91:b130,-1)+1,1))/(INDEX(a91:b130,MATCH(0,b91:b130,-1),2)- | H15: INDEX(a91:b130,MATCH(0,b91:b130,-1)+1,2))*(INDEX(a91:b130,MATCH(0,b91:b130,-1),2)+INDEX(a91:b130,MATCH(0,b91:b130,-1)+1,2))))/2 | J15: -5.35123625e-05 | K15: -21.03680098 | M15: =E15 -> 0.5126880243 | N15: =-MAX(E10:E12)/15 -> -1.37031679
A16: -0.15 | B16: -0.0004323254 | J16: -6.484881e-05 | K16: -21.2444914 | M16: =E15 -> 0.5126880243 | N16: =MAX(E10:E12)/15 -> 1.37031679
A17: -0.175 | B17: -0.0004342091 | D17: FF1 = | E17: =F17 -> 0.3459442297 | F17: =(-1)*MAX(J30:J91)/F11/E14 -> 0.3459442297 | G17: (-1)*MAX(j30:j91)/F11/E14 | J17: -7.59865925e-05 | K17: -21.33705651
A18: -0.2 | B18: -0.0004377181 | D18: FF2 = | E18: =F18 -> 0.4160879417 | F18: =(-1)*MAX(J91:J130)/F12/E15 -> 0.4160879417 | G18: (-1)*MAX(j91:j130)/F12/E15 | J18: -8.754362e-05 | K18: -21.50948894 | L18: FF | M18: 0 | N18: =INDEX(K30:K91,MATCH(MAX(J30:J91),J30:J91,0),1) -> -9.114638821 | P18: INDEX(k30:k91,MATCH(MAX(j30:j91),j30:j91,0),1)
A19: -0.225 | B19: -0.0004427643 | J19: -9.96219675e-05 | K19: -21.75745946 | M19: =INDEX(A30:A91,MATCH(MAX(J30:J91),J30:J91,0),1) -> 0.3 | N19: =INDEX(K30:K91,MATCH(MAX(J30:J91),J30:J91,0),1) -> -9.114638821 | O19: INDEX(a30:a91,MATCH(MAX(j30:j91),j30:j91,0),1) | P19: INDEX(k30:k91,MATCH(MAX(j30:j91),j30:j91,0),1)
A20: -0.25 | B20: -0.0004428613 | D20: PCE up = | E20: =F20 -> 0.02734391646 | F20: =MAX(J30:J91)/D5/D7*1000 -> 0.02734391646 | G20: MAX(j30:j91)/D5/D7*1000 | J20: -0.000110715325 | K20: -21.76222604 | M20: =INDEX(A30:A91,MATCH(MAX(J30:J91),J30:J91,0),1) -> 0.3 | N20: 0 | O20: INDEX(a30:a91,MATCH(MAX(j30:j91),j30:j91,0),1)
A21: -0.275 | B21: -0.0004496433 | D21: PCE back = | E21: =F21 -> 0.04246475553 | F21: =MAX(J91:J130)/D5/D7*1000 -> 0.04246475553 | G21: MAX(j91:j130)/D5/D7*1000 | J21: -0.0001236519075 | K21: -22.09549386
A22: -0.3 | B22: -0.0004534364 | J22: -0.00013603092 | K22: -22.28188698 | M22: 0 | N22: =INDEX(K91:K130,MATCH(MAX(J91:J130),J91:J130,0),1) -> -13.06607862 | P22: INDEX(k91:k130,MATCH(MAX(j91:j130),j91:j130,0),1)
A23: -0.325 | B23: -0.0004544784 | D23: discrepancy: | E23: =E11*E14*E17/D5-E20 -> 0 | J23: -0.00014770548 | K23: -22.33309091 | M23: =INDEX(A91:A130,MATCH(MAX(J91:J130),J91:J130,0),1) -> 0.325 | N23: =INDEX(K91:K130,MATCH(MAX(J91:J130),J91:J130,0),1) -> -13.06607862 | O23: INDEX(a91:a130,MATCH(MAX(j91:j130),j91:j130,0),1) | P23: INDEX(k91:k130,MATCH(MAX(j91:j130),j91:j130,0),1)
A24: -0.35 | B24: -0.0004557812 | E24: =E12*E15*E18/D5-E21 -> 0 | J24: -0.00015952342 | K24: -22.39711057 | M24: =INDEX(A91:A130,MATCH(MAX(J91:J130),J91:J130,0),1) -> 0.325 | N24: 0 | O24: INDEX(a91:a130,MATCH(MAX(j91:j130),j91:j130,0),1)
A25: -0.375 | B25: -0.0004612536 | J25: -0.0001729701 | K25: -22.66602457
A26: -0.4 | B26: -0.000463957 | D26: V is from: | E26: =MIN(A10:A132) -> -0.5 | F26: to | G26: =MAX(A10:A132) -> 1 | J26: -0.0001855828 | K26: -22.79886978
A27: -0.425 | B27: -0.0004659767 | D27: row: | E27: =MATCH(-0.5,A1:A132,0) -> 30 | F27: - | G27: =MATCH(1,A1:A132,0) -> 91 | J27: -0.0001980400975 | K27: -22.89811794
A28: -0.45 | B28: -0.000466421 | J28: -0.00020988945 | K28: -22.91995086
A29: -0.475 | B29: -0.0004704717 | J29: -0.0002234740575 | K29: -23.11900246
A30: -0.5 | B30: -0.0004789808 | J30: -0.0002394904 | K30: -23.53714005
A31: -0.5 | B31: -0.0004637914 | J31: -0.0002318957 | K31: -22.79073219
A32: -0.475 | B32: -0.0004585128 | J32: -0.00021779358 | K32: -22.53134152
A33: -0.45 | B33: -0.0004581707 | J33: -0.000206176815 | K33: -22.51453071
A34: -0.425 | B34: -0.0004382127 | J34: -0.0001862403975 | K34: -21.53379361
A35: -0.4 | B35: -0.0004377885 | J35: -0.0001751154 | K35: -21.5129484
A36: -0.375 | B36: -0.0004329166 | J36: -0.000162343725 | K36: -21.273543
A37: -0.35 | B37: -0.0004172793 | J37: -0.000146047755 | K37: -20.50512531
A38: -0.325 | B38: -0.0004171691 | J38: -0.0001355799575 | K38: -20.49971007
A39: -0.3 | B39: -0.0004137511 | J39: -0.00012412533 | K39: -20.33174939
A40: -0.275 | B40: -0.0003991811 | J40: -0.0001097748025 | K40: -19.61577887
A41: -0.25 | B41: -0.0003970609 | J41: -9.9265225e-05 | K41: -19.51159214
A42: -0.225 | B42: -0.0003899707 | J42: -8.77434075e-05 | K42: -19.16317936
A43: -0.2 | B43: -0.0003805909 | J43: -7.611818e-05 | K43: -18.70225553
A44: -0.175 | B44: -0.000373214 | J44: -6.531245e-05 | K44: -18.3397543
A45: -0.15 | B45: -0.0003702734 | J45: -5.554101e-05 | K45: -18.19525307
A46: -0.125 | B46: -0.0003578424 | J46: -4.47303e-05 | K46: -17.58439312
A47: -0.1 | B47: -0.0003524931 | J47: -3.524931e-05 | K47: -17.32152826
A48: -0.075 | B48: -0.0003447728 | J48: -2.585796e-05 | K48: -16.94215233
A49: -0.05 | B49: -0.0003358447 | J49: -1.6792235e-05 | K49: -16.50342506
A50: -0.025 | B50: -0.0003279105 | J50: -8.1977625e-06 | K50: -16.11353808
A51: 0 | B51: -0.0003201475 | J51: 0 | K51: -15.73206388
A52: 0.025 | B52: -0.0003121713 | J52: 7.8042825e-06 | K52: -15.34011302
A53: 0.05 | B53: -0.0002994749 | J53: 1.4973745e-05 | K53: -14.7162113
A54: 0.075 | B54: -0.0002921706 | J54: 2.1912795e-05 | K54: -14.35727764
A55: 0.1 | B55: -0.0002829961 | J55: 2.829961e-05 | K55: -13.90644226
A56: 0.125 | B56: -0.0002734878 | J56: 3.4185975e-05 | K56: -13.43920393
A57: 0.15 | B57: -0.000262713 | J57: 3.940695e-05 | K57: -12.90972973
A58: 0.175 | B58: -0.0002519279 | J58: 4.40873825e-05 | K58: -12.37974939
A59: 0.2 | B59: -0.0002412614 | J59: 4.825228e-05 | K59: -11.85559705
A60: 0.225 | B60: -0.0002290329 | J60: 5.15324025e-05 | K60: -11.25468796
A61: 0.25 | B61: -0.0002150662 | J61: 5.376655e-05 | K61: -10.56836364
A62: 0.275 | B62: -0.0002007954 | J62: 5.5218735e-05 | K62: -9.867095823
A63: 0.3 | B63: -0.0001854829 | J63: 5.564487e-05 | K63: -9.114638821
A64: 0.325 | B64: -0.0001676319 | J64: 5.44803675e-05 | K64: -8.237439803
A65: 0.35 | B65: -0.0001496306 | J65: 5.237071e-05 | K65: -7.352855037
A66: 0.375 | B66: -0.0001300556 | J66: 4.877085e-05 | K66: -6.390938575
A67: 0.4 | B67: -0.0001079298 | J67: 4.317192e-05 | K67: -5.303675676
A68: 0.425 | B68: -8.770625e-05 | J68: 3.727515625e-05 | K68: -4.309889435
A69: 0.45 | B69: -6.05334e-05 | J69: 2.724003e-05 | K69: -2.974614251
A70: 0.475 | B70: -3.237298e-05 | J70: 1.53771655e-05 | K70: -1.590809828
A71: 0.5 | B71: -3.374471e-06 | J71: 1.6872355e-06 | K71: -0.1658216708
A72: 0.525 | B72: 3.145235e-05 | J72: -1.651248375e-05 | K72: 1.545570025
A73: 0.55 | B73: 7.17889e-05 | J73: -3.9483895e-05 | K73: 3.527710074
A74: 0.575 | B74: 0.0001115173 | J74: =-(B74*A74) -> -6.41224475e-05 | K74: =B74*1000/$D$7 -> 5.479965602
A75: 0.6 | B75: 0.0001561473 | J75: -9.368838e-05 | K75: 7.673085995
A76: 0.625 | B76: 0.000203227 | J76: -0.000127016875 | K76: 9.986584767
A77: 0.65 | B77: 0.000252542 | J77: -0.0001641523 | K77: 12.40992629
A78: 0.675 | B78: 0.0003042059 | J78: -0.0002053389825 | K78: 14.94869287
A79: 0.7 | B79: 0.0003567158 | J79: -0.00024970106 | K79: 17.52903194
A80: 0.725 | B80: 0.0004117706 | J80: -0.000298533685 | K80: 20.23442752
A81: 0.75 | B81: 0.000467503 | J81: -0.00035062725 | K81: 22.97312039
A82: 0.775 | B82: 0.0005254268 | J82: -0.00040720577 | K82: 25.81949877
A83: 0.8 | B83: 0.0005824846 | J83: -0.00046598768 | K83: 28.62332187
A84: 0.825 | B84: 0.0006412913 | J84: -0.0005290653225 | K84: 31.513086
A85: 0.85 | B85: 0.0007005067 | J85: -0.000595430695 | K85: 34.42293366
A86: 0.875 | B86: 0.000758782 | J86: -0.00066393425 | K86: 37.28658477
A87: 0.9 | B87: 0.0008164109 | J87: -0.00073476981 | K87: 40.11847174
A88: 0.925 | B88: 0.0008756651 | J88: -0.0008099902175 | K88: 43.03022604
A89: 0.95 | B89: 0.0009343298 | J89: -0.00088761331 | K89: 45.91301229
A90: 0.975 | B90: 0.0009998215 | J90: -0.0009748259625 | K90: 49.13127764
A91: 1 | B91: 0.001730804 | J91: -0.001730804 | K91: 85.05179361
A92: 1 | B92: 0.001740169 | J92: -0.001740169 | K92: 85.51199017
A93: 0.975 | B93: 0.001634379 | J93: -0.001593519525 | K93: 80.31346437
A94: 0.95 | B94: 0.001527988 | J94: -0.0014515886 | K94: 75.08540541
A95: 0.925 | B95: 0.001418873 | J95: -0.001312457525 | K95: 69.72348894
A96: 0.9 | B96: 0.001309245 | J96: -0.0011783205 | K96: 64.33636364
A97: 0.875 | B97: 0.001202599 | J97: -0.001052274125 | K97: 59.09577396
A98: 0.85 | B98: 0.001097175 | J98: -0.00093259875 | K98: 53.91523342
A99: 0.825 | B99: 0.0009920665 | J99: -0.0008184548625 | K99: 48.75019656
A100: 0.8 | B100: 0.0008891552 | J100: -0.00071132416 | K100: 43.69313022
A101: 0.775 | B101: 0.0007904588 | J101: -0.00061260557 | K101: 38.84318428
A102: 0.75 | B102: 0.0006966991 | J102: -0.000522524325 | K102: 34.23582801
A103: 0.725 | B103: 0.0006043526 | J103: -0.000438155635 | K103: 29.69791646
A104: 0.7 | B104: 0.0005164768 | J104: -0.00036153376 | K104: 25.37969533
A105: 0.675 | B105: 0.0004333758 | J105: -0.000292528665 | K105: 21.29610811
A106: 0.65 | B106: 0.0003534364 | J106: -0.00022973366 | K106: 17.36788206
A107: 0.625 | B107: 0.0002785159 | J107: -0.0001740724375 | K107: 13.68628501
A108: 0.6 | B108: 0.0002080692 | J108: -0.00012484152 | K108: 10.22453071
A109: 0.575 | B109: 0.000142274 | J109: -8.180755e-05 | K109: 6.991351351
A110: 0.55 | B110: 8.158504e-05 | J110: -4.4871772e-05 | K110: 4.009092875
A111: 0.525 | B111: 2.569269e-05 | J111: -1.348866225e-05 | K111: 1.262540049
A112: 0.5 | B112: -2.647743e-05 | J112: 1.3238715e-05 | K112: -1.301102211
A113: 0.475 | B113: -7.186903e-05 | J113: 3.413778925e-05 | K113: -3.531647666
A114: 0.45 | B114: -0.0001124079 | J114: 5.0583555e-05 | K114: -5.52372973
A115: 0.425 | B115: -0.0001526462 | J115: 6.4874635e-05 | K115: -7.501041769
A116: 0.4 | B116: -0.0001842385 | J116: 7.36954e-05 | K116: -9.053488943
A117: 0.375 | B117: -0.0002148262 | J117: 8.0559825e-05 | K117: -10.55657002
A118: 0.35 | B118: -0.000243645 | J118: 8.527575e-05 | K118: -11.97272727
A119: 0.325 | B119: -0.0002658947 | J119: 8.64157775e-05 | K119: -13.06607862
A120: 0.3 | B120: -0.0002868556 | J120: 8.605668e-05 | K120: -14.09609828
A121: 0.275 | B121: -0.0003087431 | J121: 8.49043525e-05 | K121: -15.17165111
A122: 0.25 | B122: -0.0003216982 | J122: 8.042455e-05 | K122: -15.80826536
A123: 0.225 | B123: -0.0003331315 | J123: 7.49545875e-05 | K123: -16.37009828
A124: 0.2 | B124: -0.000350414 | J124: 7.00828e-05 | K124: -17.21936118
A125: 0.175 | B125: -0.000365993 | J125: 6.4048775e-05 | K125: -17.984914
A126: 0.15 | B126: -0.0003608529 | J126: 5.4127935e-05 | K126: -17.73232924
A127: 0.125 | B127: -0.0003770255 | J127: 4.71281875e-05 | K127: -18.5270516
A128: 0.1 | B128: -0.0003959899 | J128: 3.959899e-05 | K128: -19.45896314
A129: 0.075 | B129: -0.0003844205 | J129: 2.88315375e-05 | K129: -18.89044226
A130: 0.05 | B130: -0.0003981488 | J130: 1.990744e-05 | K130: -19.5650516
A131: 0.025 | B131: -0.000416765 | J131: 1.0419125e-05 | K131: -20.47985258
A132: 0 | B132: -0.000405093 | J132: 0 | K132: -19.90628993
J133: 0 | K133: 0
J134: 0 | K134: 0
J135: 0 | K135: 0
J136: 0 | K136: 0
J137: 0 | K137: 0
J138: =-(B138*A138) -> 0 | K138: =B138*1000/$D$7 -> 0
J139: 0 | K139: 0
J140: 0 | K140: 0
J141: 0 | K141: 0
J142: 0 | K142: 0
J143: 0 | K143: 0
J144: 0 | K144: 0
J145: 0 | K145: 0
J146: 0 | K146: 0
J147: 0 | K147: 0
J148: 0 | K148: 0
J149: 0 | K149: 0
J150: 0 | K150: 0
J151: 0 | K151: 0
J152: 0 | K152: 0
J153: 0 | K153: 0
J154: 0 | K154: 0
J155: 0 | K155: 0
J156: 0 | K156: 0
J157: 0 | K157: 0
J158: 0 | K158: 0
J159: 0 | K159: 0
J160: 0 | K160: 0
J161: 0 | K161: 0
J162: 0 | K162: 0
J163: 0 | K163: 0
J164: 0 | K164: 0
J165: 0 | K165: 0
J166: 0 | K166: 0
J167: 0 | K167: 0
J168: 0 | K168: 0
J169: 0 | K169: 0
J170: 0 | K170: 0
J171: 0 | K171: 0
J172: 0 | K172: 0
J173: 0 | K173: 0
J174: 0 | K174: 0
J175: 0 | K175: 0
J176: 0 | K176: 0
J177: 0 | K177: 0
J178: 0 | K178: 0
J179: 0 | K179: 0
J180: 0 | K180: 0
J181: 0 | K181: 0
J182: 0 | K182: 0
J183: 0 | K183: 0
J184: 0 | K184: 0
J185: 0 | K185: 0
J186: 0 | K186: 0
J187: 0 | K187: 0
J188: 0 | K188: 0
J189: 0 | K189: 0
J190: 0 | K190: 0
J191: 0 | K191: 0
J192: 0 | K192: 0
J193: 0 | K193: 0
J194: 0 | K194: 0
J195: 0 | K195: 0
J196: 0 | K196: 0
J197: 0 | K197: 0
J198: 0 | K198: 0
J199: 0 | K199: 0
J200: 0 | K200: 0
J201: 0 | K201: 0
J202: =-(B202*A202) -> 0 | K202: =B202*1000/$D$7 -> 0
... 208 more rows
